Workbook

Sheet Names
A1: 0 | B1: Names | D1: Tab. | J1: 0 | M1: LE | N1: Ins | O1: Vod
A2: 1 | B2: راجي صبحي | C2: 111 | D2: 1 | F2: =LOOKUP(H2,$I$2:$I$161,$K$2:$K$161) -> راجي محمد صبحي | G2: =LOOKUP(H2,$I$2:$I$161,$L$2:$L$161) -> 111 | H2: 1 | I2: 1 | J2: =_xlfn.IFNA(LOOKUP(L2,[1]Rank!B$9:B$795,[1]Rank!E$9:E$795),"") -> * | K2: =LOOKUP(L2,[2]الأسماء!A$3:A$962,[2]الأسماء!C$3:C$962) -> راجي محمد صبحي | L2: 111 | M2: =SUM(N2:P2) -> 0 | Q2: راجي محمد صبحي
A3: 2 | B3: شريف أحمد محمد حمروش | C3: 2003 | F3: شريف أحمد محمد حمروش | G3: =LOOKUP(H3,$I$2:$I$161,$L$2:$L$161) -> 2003 | H3: 11 | I3: 2 | J3: =_xlfn.IFNA(LOOKUP(L3,[1]Rank!B$9:B$795,[1]Rank!E$9:E$795),"") -> * | K3: =LOOKUP(L3,[2]الأسماء!A$3:A$962,[2]الأسماء!C$3:C$962) -> باسم أسحق صموائيل عزيز | L3: 516 | M3: =SUM(N3:P3) -> 300 | N3: 300 | Q3: باسم أسحق صموائيل عزيز
A4: 3 | B4: إيهاب يوسف عمارة | C4: 756 | F4: إيهاب يوسف عبد القادر عمارة | G4: 756 | H4: 27 | I4: 3 | J4: =_xlfn.IFNA(LOOKUP(L4,[1]Rank!B$9:B$795,[1]Rank!E$9:E$795),"") -> 0 | K4: أمير كمال جميل | L4: 2001 | M4: 300 | N4: 300 | Q4: أمير كمال جميل
A5: 4 | B5: محمد سعيد الفطاطري | C5: 550 | F5: محمد سعيد زكي محمد الفطاطري | G5: 550 | H5: 10 | I5: 4 | J5: =_xlfn.IFNA(LOOKUP(L5,[1]Rank!B$9:B$795,[1]Rank!E$9:E$795),"") -> * | K5: =LOOKUP(L5,[2]الأسماء!A$3:A$962,[2]الأسماء!C$3:C$962) -> أحمد محمد يوسف حجازي | L5: 322 | M5: 0 | Q5: أحمد محمد يوسف حجازي
A6: 5 | B6: محمد عصام الدين القاضي | C6: 304 | D6: 2 | F6: أحمد مصطفى سعد أحمد راشد | G6: 306 | H6: 28 | I6: 5 | J6: =_xlfn.IFNA(LOOKUP(L6,[1]Rank!B$9:B$795,[1]Rank!E$9:E$795),"") -> 0 | K6: مصطفى يوسف محمد | L6: 2002 | M6: 300 | N6: 300 | Q6: مصطفى يوسف محمد
A7: 6 | B7: إبراهيم عرفان السقا | C7: 721 | F7: إبراهيم عرفان السقا | G7: 721 | H7: 9 | I7: 6 | J7: =_xlfn.IFNA(LOOKUP(L7,[1]Rank!B$9:B$795,[1]Rank!E$9:E$795),"") -> * | K7: =LOOKUP(L7,[2]الأسماء!A$3:A$962,[2]الأسماء!C$3:C$962) -> عبد الرحمن محمود عبد السميع محمد عثمان | L7: 596 | M7: 0 | Q7: عبد الرحمن محمود عبد السميع محمد عثمان
A8: 7 | B8: باسم أسحق صموائيل | C8: 516 | F8: باسم أسحق صموائيل عزيز | G8: 516 | H8: 2 | I8: 7 | J8: =_xlfn.IFNA(LOOKUP(L8,[1]Rank!B$9:B$795,[1]Rank!E$9:E$795),"") -> * | K8: =LOOKUP(L8,[2]الأسماء!A$3:A$962,[2]الأسماء!C$3:C$962) -> أحمد شيرين محمود عز الدين بسيوني | L8: 399 | M8: 0 | Q8: أحمد شيرين محمود عز الدين بسيوني
A9: 8 | B9: إيهاب محمد الزهيري | C9: 342 | F9: إيهاب محمد الزهيري امين | G9: 342 | H9: 12 | I9: 8 | J9: =_xlfn.IFNA(LOOKUP(L9,[1]Rank!B$9:B$795,[1]Rank!E$9:E$795),"") -> * | K9: =LOOKUP(L9,[2]الأسماء!A$3:A$962,[2]الأسماء!C$3:C$962) -> أحمد محمود عبد الفتاح عرفه | L9: 588 | M9: 300 | N9: 300 | Q9: أحمد محمود عبد الفتاح عرفه
A10: 9 | B10: رأفت الصياد | C10: 3001 | D10: 3 | F10: رأفت الصياد | G10: 3001 | H10: 26 | I10: 9 | J10: =_xlfn.IFNA(LOOKUP(L10,[1]Rank!B$9:B$795,[1]Rank!E$9:E$795),"") -> * | K10: =LOOKUP(L10,[2]الأسماء!A$3:A$962,[2]الأسماء!C$3:C$962) -> إبراهيم عرفان السقا | L10: 721 | M10: 0 | Q10: إبراهيم عرفان السقا
A11: 10 | B11: نبيل خلف زكي حسنين | C11: 392 | F11: نبيل خلف زكي حسنين | G11: 392 | H11: 29 | I11: 10 | J11: =_xlfn.IFNA(LOOKUP(L11,[1]Rank!B$9:B$795,[1]Rank!E$9:E$795),"") -> * | K11: =LOOKUP(L11,[2]الأسماء!A$3:A$962,[2]الأسماء!C$3:C$962) -> محمد سعيد زكي محمد الفطاطري | L11: 550 | M11: 0 | Q11: محمد سعيد زكي محمد الفطاطري
A12: 11 | B12: معتز محمد مدبولي | C12: 548 | F12: معتز محمد مدبولي | G12: 548 | H12: 19 | I12: 11 | J12: =_xlfn.IFNA(LOOKUP(L12,[1]Rank!B$9:B$795,[1]Rank!E$9:E$795),"") -> 0 | K12: شريف أحمد محمد حمروش | L12: 2003 | M12: 300 | N12: 300 | Q12: شريف أحمد محمد حمروش
A13: 12 | B13: أمير كمال جميل | C13: 2001 | F13: أمير كمال جميل | G13: 2001 | H13: 3 | I13: 12 | J13: =_xlfn.IFNA(LOOKUP(L13,[1]Rank!B$9:B$795,[1]Rank!E$9:E$795),"") -> * | K13: =LOOKUP(L13,[2]الأسماء!A$3:A$962,[2]الأسماء!C$3:C$962) -> إيهاب محمد الزهيري امين | L13: 342 | M13: 0 | Q13: إيهاب محمد الزهيري امين
A14: 13 | B14: أحمد جميل السيد | C14: 368 | D14: 4 | F14: أحمد جميل السيد | G14: 368 | H14: 13 | I14: 13 | J14: =_xlfn.IFNA(LOOKUP(L14,[1]Rank!B$9:B$795,[1]Rank!E$9:E$795),"") -> * | K14: =LOOKUP(L14,[2]الأسماء!A$3:A$962,[2]الأسماء!C$3:C$962) -> أحمد جميل السيد | L14: 368 | M14: 0 | Q14: أحمد جميل السيد
A15: 14 | B15: عماد محمد فؤاد | C15: 681 | F15: عماد محمد فؤاد مرسي | G15: 681 | H15: 40 | I15: 14 | J15: =_xlfn.IFNA(LOOKUP(L15,[1]Rank!B$9:B$795,[1]Rank!E$9:E$795),"") -> 0 | K15: أحمد ممدوح أحمد عبد الدايم | L15: 2004 | M15: 300 | N15: 300 | Q15: أحمد ممدوح أحمد عبد الدايم
A16: 15 | B16: أحمد رمزي الديب | C16: 547 | F16: أحمد رمزي الديب | G16: 547 | H16: 25 | I16: 15 | J16: =_xlfn.IFNA(LOOKUP(L16,[1]Rank!B$9:B$795,[1]Rank!E$9:E$795),"") -> * | K16: =LOOKUP(L16,[2]الأسماء!A$3:A$962,[2]الأسماء!C$3:C$962) -> هيثم محمد أحمد إبراهيم شبانة | L16: 668 | M16: 0 | Q16: هيثم محمد أحمد إبراهيم شبانة
A17: 16 | B17: عبد الرحمن سعد موسى | C17: 2018 | F17: محمد علي حسن طه الأمام | G17: 305 | H17: 36 | I17: 16 | J17: =_xlfn.IFNA(LOOKUP(L17,[1]Rank!B$9:B$795,[1]Rank!E$9:E$795),"") -> * | K17: =LOOKUP(L17,[2]الأسماء!A$3:A$962,[2]الأسماء!C$3:C$962) -> شريف جلال عبد السلام سماحة | L17: 718 | M17: 0 | Q17: شريف جلال عبد السلام سماحة
A18: 17 | B18: أحمد علي خليل حسن | C18: 664 | D18: 5 | F18: أحمد محمد يوسف حجازي | G18: 322 | H18: 4 | I18: 17 | J18: =_xlfn.IFNA(LOOKUP(L18,[1]Rank!B$9:B$795,[1]Rank!E$9:E$795),"") -> 0 | L18: 2005 | M18: 0
A19: 18 | B19: أحمد ممدوح عبد الدايم | C19: 2004 | F19: أحمد ممدوح أحمد عبد الدايم | G19: 2004 | H19: 14 | I19: 18 | J19: =_xlfn.IFNA(LOOKUP(L19,[1]Rank!B$9:B$795,[1]Rank!E$9:E$795),"") -> 0 | K19: حمدي محمود عبد العزيز | L19: 2006 | M19: 300 | O19: 300 | Q19: حمدي محمود عبد العزيز
A20: 19 | B20: إبراهيم عنتر | C20: 338 | F20: إبراهيم عنتر بخيت حسين | G20: 338 | H20: 30 | I20: 19 | J20: =_xlfn.IFNA(LOOKUP(L20,[1]Rank!B$9:B$795,[1]Rank!E$9:E$795),"") -> 0 | K20: =LOOKUP(L20,[2]الأسماء!A$3:A$962,[2]الأسماء!C$3:C$962) -> معتز محمد مدبولي | L20: 548 | M20: 300 | N20: 300 | Q20: معتز محمد مدبولي
A21: 20 | B21: إسلام قاسم | C21: 2008 | F21: إسلام قاسم | G21: 2008 | H21: 39 | I21: 20 | J21: =_xlfn.IFNA(LOOKUP(L21,[1]Rank!B$9:B$795,[1]Rank!E$9:E$795),"") -> * | K21: =LOOKUP(L21,[2]الأسماء!A$3:A$962,[2]الأسماء!C$3:C$962) -> خالد محمود أحمد شباره | L21: 6 | M21: 0 | Q21: خالد محمود أحمد شباره
A22: 21 | B22: أحمد محمد حمدي صالح | C22: 396 | D22: 6 | F22: أحمد محمد حمدي صالح | G22: 396 | H22: 24 | I22: 21 | J22: =_xlfn.IFNA(LOOKUP(L22,[1]Rank!B$9:B$795,[1]Rank!E$9:E$795),"") -> 0 | K22: =LOOKUP(L22,[2]الأسماء!A$3:A$962,[2]الأسماء!C$3:C$962) -> فؤاد عزت الضلعي | L22: 250 | M22: 0 | Q22: فؤاد عزت الضلعي
A23: 22 | B23: طه إبراهيم طه | C23: 344 | F23: طه إبراهيم طه ابراهيم | G23: 344 | H23: 37 | I23: 22 | J23: =_xlfn.IFNA(LOOKUP(L23,[1]Rank!B$9:B$795,[1]Rank!E$9:E$795),"") -> * | K23: =LOOKUP(L23,[2]الأسماء!A$3:A$962,[2]الأسماء!C$3:C$962) -> ماجد محمد فكري ابراهيم عبد العاطى | L23: 649 | M23: 0 | Q23: ماجد محمد فكري ابراهيم عبد العاطى
A24: 23 | B24: مصطفى يوسف محمد | C24: 2002 | F24: مصطفى يوسف محمد | G24: 2002 | H24: 5 | I24: 23 | J24: =_xlfn.IFNA(LOOKUP(L24,[1]Rank!B$9:B$795,[1]Rank!E$9:E$795),"") -> * | K24: =LOOKUP(L24,[2]الأسماء!A$3:A$962,[2]الأسماء!C$3:C$962) -> أحمد عبد العظيم عثمان الطنطاوي | L24: 670 | M24: 0 | Q24: أحمد عبد العظيم عثمان الطنطاوي
A25: 24 | B25: هيثم محمد شبانة | C25: 668 | F25: هيثم محمد أحمد إبراهيم شبانة | G25: 668 | H25: 15 | I25: 24 | J25: =_xlfn.IFNA(LOOKUP(L25,[1]Rank!B$9:B$795,[1]Rank!E$9:E$795),"") -> * | K25: =LOOKUP(L25,[2]الأسماء!A$3:A$962,[2]الأسماء!C$3:C$962) -> أحمد محمد حمدي صالح | L25: 396 | M25: 0 | Q25: أحمد محمد حمدي صالح
A26: 25 | B26: خالد شباره | C26: 6 | D26: 7 | F26: خالد محمود أحمد شباره | G26: 6 | H26: 20 | I26: 25 | J26: =_xlfn.IFNA(LOOKUP(L26,[1]Rank!B$9:B$795,[1]Rank!E$9:E$795),"") -> * | K26: =LOOKUP(L26,[2]الأسماء!A$3:A$962,[2]الأسماء!C$3:C$962) -> أحمد رمزي الديب | L26: 547 | M26: 0 | Q26: أحمد رمزي الديب
A27: 26 | B27: أحمد الطنطاوي | C27: 670 | F27: أحمد عبد العظيم عثمان الطنطاوي | G27: 670 | H27: 23 | I27: 26 | J27: =_xlfn.IFNA(LOOKUP(L27,[1]Rank!B$9:B$795,[1]Rank!E$9:E$795),"") -> 0 | K27: رأفت الصياد | L27: 3001 | M27: 0 | Q27: رأفت الصياد
A28: 27 | B28: سمير الحوفي | C28: 2007 | F28: سمير الحوفي | G28: 2007 | H28: 31 | I28: 27 | J28: =_xlfn.IFNA(LOOKUP(L28,[1]Rank!B$9:B$795,[1]Rank!E$9:E$795),"") -> * | K28: =LOOKUP(L28,[2]الأسماء!A$3:A$962,[2]الأسماء!C$3:C$962) -> إيهاب يوسف عبد القادر عمارة | L28: 756 | M28: 0 | Q28: إيهاب يوسف عبد القادر عمارة
A29: 28 | B29: عمرو محسن فرج | C29: 390 | F29: عمرو محمد محسن فرج | G29: 390 | H29: 38 | I29: 28 | J29: =_xlfn.IFNA(LOOKUP(L29,[1]Rank!B$9:B$795,[1]Rank!E$9:E$795),"") -> * | K29: =LOOKUP(L29,[2]الأسماء!A$3:A$962,[2]الأسماء!C$3:C$962) -> أحمد مصطفى سعد أحمد راشد | L29: 306 | M29: 0 | Q29: أحمد مصطفى سعد أحمد راشد
A30: 29 | B30: عبد الرحمن عثمان | C30: 596 | D30: 8 | F30: عبد الرحمن محمود عبد السميع محمد عثمان | G30: 596 | H30: 6 | I30: 29 | J30: =_xlfn.IFNA(LOOKUP(L30,[1]Rank!B$9:B$795,[1]Rank!E$9:E$795),"") -> * | K30: =LOOKUP(L30,[2]الأسماء!A$3:A$962,[2]الأسماء!C$3:C$962) -> نبيل خلف زكي حسنين | L30: 392 | M30: 0 | Q30: نبيل خلف زكي حسنين
A31: 30 | B31: شريف جلال سماحة | C31: 718 | F31: شريف جلال عبد السلام سماحة | G31: 718 | H31: 16 | I31: 30 | J31: =_xlfn.IFNA(LOOKUP(L31,[1]Rank!B$9:B$795,[1]Rank!E$9:E$795),"") -> * | K31: =LOOKUP(L31,[2]الأسماء!A$3:A$962,[2]الأسماء!C$3:C$962) -> إبراهيم عنتر بخيت حسين | L31: 338 | M31: 0 | Q31: إبراهيم عنتر بخيت حسين
A32: 31 | B32: ماجد محمد فكري | C32: 649 | F32: ماجد محمد فكري ابراهيم عبد العاطى | G32: 649 | H32: 22 | I32: 31 | J32: =_xlfn.IFNA(LOOKUP(L32,[1]Rank!B$9:B$795,[1]Rank!E$9:E$795),"") -> 0 | K32: سمير الحوفي | L32: 2007 | M32: 0 | Q32: سمير الحوفي
A33: 32 | B33: حمزة أحمد محمد | C33: 2021 | F33: باسم عماد عبد القادر رمضان مطاوع | G33: 330 | H33: 32 | I33: 32 | J33: =_xlfn.IFNA(LOOKUP(L33,[1]Rank!B$9:B$795,[1]Rank!E$9:E$795),"") -> * | K33: =LOOKUP(L33,[2]الأسماء!A$3:A$962,[2]الأسماء!C$3:C$962) -> باسم عماد عبد القادر رمضان مطاوع | L33: 330 | M33: 0 | Q33: باسم عماد عبد القادر رمضان مطاوع
A34: 33 | B34: أحمد بسيوني | C34: 399 | D34: 9 | F34: =LOOKUP(H34,$I$2:$I$161,$K$2:$K$161) -> أحمد شيرين محمود عز الدين بسيوني | G34: =LOOKUP(H34,$I$2:$I$161,$L$2:$L$161) -> 399 | H34: 7 | I34: 33 | J34: =_xlfn.IFNA(LOOKUP(L34,[1]Rank!B$9:B$795,[1]Rank!E$9:E$795),"") -> * | K34: =LOOKUP(L34,[2]الأسماء!A$3:A$962,[2]الأسماء!C$3:C$962) -> أسامة لطفي نجيب واصف | L34: 751 | M34: 0 | Q34: أسامة لطفي نجيب واصف
A35: 34 | B35: عماد الدين جمعة هلال | C35: 391 | F35: 0 | G35: 2005 | H35: 17 | I35: 34 | J35: =_xlfn.IFNA(LOOKUP(L35,[1]Rank!B$9:B$795,[1]Rank!E$9:E$795),"") -> * | K35: =LOOKUP(L35,[2]الأسماء!A$3:A$962,[2]الأسماء!C$3:C$962) -> إسلام أحمد السيد أحمد عمر | L35: 337 | M35: 0 | Q35: إسلام أحمد السيد أحمد عمر
A36: 35 | B36: عمرو عماد الدين أبوالعلا | C36: 454 | F36: عماد الدين جمعة هلال سلامة | G36: 391 | H36: 35 | I36: 35 | J36: =_xlfn.IFNA(LOOKUP(L36,[1]Rank!B$9:B$795,[1]Rank!E$9:E$795),"") -> 0 | K36: =LOOKUP(L36,[2]الأسماء!A$3:A$962,[2]الأسماء!C$3:C$962) -> عماد الدين جمعة هلال سلامة | L36: 391 | M36: 0 | Q36: عماد الدين جمعة هلال سلامة
A37: 36 | B37: أحمد عبد الفتاح عرفه | C37: 588 | F37: فؤاد عزت الضلعي | G37: 250 | H37: 21 | I37: 36 | J37: =_xlfn.IFNA(LOOKUP(L37,[1]Rank!B$9:B$795,[1]Rank!E$9:E$795),"") -> * | K37: =LOOKUP(L37,[2]الأسماء!A$3:A$962,[2]الأسماء!C$3:C$962) -> محمد علي حسن طه الأمام | L37: 305 | M37: 0 | Q37: محمد علي حسن طه الأمام
A38: 37 | B38: حمدي محمود عبد العزيز | C38: 2006 | D38: 10 | F38: أحمد محمود عبد الفتاح عرفه | G38: 588 | H38: 8 | I38: 37 | J38: =_xlfn.IFNA(LOOKUP(L38,[1]Rank!B$9:B$795,[1]Rank!E$9:E$795),"") -> * | K38: =LOOKUP(L38,[2]الأسماء!A$3:A$962,[2]الأسماء!C$3:C$962) -> طه إبراهيم طه ابراهيم | L38: 344 | M38: 0 | Q38: طه إبراهيم طه ابراهيم
A39: 38 | B39: أسامة لطفي نجيب | C39: 751 | F39: حمدي محمود عبد العزيز | G39: 2006 | H39: 18 | I39: 38 | J39: =_xlfn.IFNA(LOOKUP(L39,[1]Rank!B$9:B$795,[1]Rank!E$9:E$795),"") -> * | K39: =LOOKUP(L39,[2]الأسماء!A$3:A$962,[2]الأسماء!C$3:C$962) -> عمرو محمد محسن فرج | L39: 390 | M39: 0 | Q39: عمرو محمد محسن فرج
A40: 39 | B40: إسلام أحمد السيد عمر | C40: 337 | F40: أسامة لطفي نجيب واصف | G40: 751 | H40: 33 | I40: 39 | J40: =_xlfn.IFNA(LOOKUP(L40,[1]Rank!B$9:B$795,[1]Rank!E$9:E$795),"") -> 0 | K40: إسلام قاسم | L40: 2008 | M40: 0 | Q40: إسلام قاسم
A41: 40 | B41: احمد محمود عبد الرزاق | C41: 639 | F41: إسلام أحمد السيد أحمد عمر | G41: 337 | H41: 34 | I41: 40 | J41: =_xlfn.IFNA(LOOKUP(L41,[1]Rank!B$9:B$795,[1]Rank!E$9:E$795),"") -> * | K41: =LOOKUP(L41,[2]الأسماء!A$3:A$962,[2]الأسماء!C$3:C$962) -> عماد محمد فؤاد مرسي | L41: 681 | M41: 0 | Q41: عماد محمد فؤاد مرسي
A42: 41 | B42: خالد مصطفى عزت | C42: 726 | D42: 11 | F42: احمد محمود عبد الرزاق محمد | G42: 639 | H42: 45 | I42: 41 | J42: =_xlfn.IFNA(LOOKUP(L42,[1]Rank!B$9:B$795,[1]Rank!E$9:E$795),"") -> * | K42: =LOOKUP(L42,[2]الأسماء!A$3:A$962,[2]الأسماء!C$3:C$962) -> مصطفى كامل محمد فؤاد الشحري | L42: 340 | M42: 0 | Q42: مصطفى كامل محمد فؤاد الشحري
A43: 42 | B43: محمد عبد الهادي أبو القاسم | C43: 393 | F43: خالد مصطفى أحمد عزت عبد الخالق | G43: 726 | H43: 59 | I43: 42 | J43: =_xlfn.IFNA(LOOKUP(L43,[1]Rank!B$9:B$795,[1]Rank!E$9:E$795),"") -> * | K43: =LOOKUP(L43,[2]الأسماء!A$3:A$962,[2]الأسماء!C$3:C$962) -> أحمد طارق | L43: 346 | M43: 0 | Q43: أحمد طارق
A44: 43 | B44: أمير محمد خطاب | C44: 200 | F44: محمد عبد الهادي أحمد أبو القاسم | G44: 393 | H44: 76 | I44: 43 | J44: =_xlfn.IFNA(LOOKUP(L44,[1]Rank!B$9:B$795,[1]Rank!E$9:E$795),"") -> 0 | K44: نهير عمر عبد العزيز | L44: 4001 | M44: 0 | Q44: نهير عمر عبد العزيز
A45: 44 | B45: جمال السيد توفيق محمد | C45: 758 | F45: أمير محمد خطاب | G45: 200 | H45: 53 | I45: 44 | J45: =_xlfn.IFNA(LOOKUP(L45,[1]Rank!B$9:B$795,[1]Rank!E$9:E$795),"") -> * | K45: =LOOKUP(L45,[2]الأسماء!A$3:A$962,[2]الأسماء!C$3:C$962) -> محمد ناجي زاهر بلبع | L45: 324 | M45: 0 | Q45: محمد ناجي زاهر بلبع
A46: 45 | B46: رضا هنري | D46: 12 | F46: جمال السيد توفيق محمد | G46: 758 | H46: 63 | I46: 45 | J46: =_xlfn.IFNA(LOOKUP(L46,[1]Rank!B$9:B$795,[1]Rank!E$9:E$795),"") -> * | K46: =LOOKUP(L46,[2]الأسماء!A$3:A$962,[2]الأسماء!C$3:C$962) -> احمد محمود عبد الرزاق محمد | L46: 639 | M46: 0 | Q46: احمد محمود عبد الرزاق محمد
A47: 46 | B47: علاء شوقي جبريل | C47: 361 | F47: عبد العظيم منير | G47: 2012 | H47: 71 | I47: 46 | J47: =_xlfn.IFNA(LOOKUP(L47,[1]Rank!B$9:B$795,[1]Rank!E$9:E$795),"") -> 0 | K47: ناجي بلبع | L47: 2009 | M47: 0 | Q47: ناجي بلبع
A48: 47 | B48: هاني فكري المراكبي | C48: 2011 | F48: علاء شوقي جبريل | G48: 361 | H48: 54 | I48: 47 | J48: =_xlfn.IFNA(LOOKUP(L48,[1]Rank!B$9:B$795,[1]Rank!E$9:E$795),"") -> * | K48: =LOOKUP(L48,[2]الأسماء!A$3:A$962,[2]الأسماء!C$3:C$962) -> مينا ناجح صبحي | L48: 611 | M48: 0 | Q48: مينا ناجح صبحي
A49: 48 | B49: محمد ناجي زاهر بلبع | C49: 324 | F49: هاني فكري المراكبي | G49: 2011 | H49: 66 | I49: 48 | J49: =_xlfn.IFNA(LOOKUP(L49,[1]Rank!B$9:B$795,[1]Rank!E$9:E$795),"") -> * | K49: =LOOKUP(L49,[2]الأسماء!A$3:A$962,[2]الأسماء!C$3:C$962) -> محمد أحمد محمد عبد الله | L49: 360 | M49: 0 | Q49: محمد أحمد محمد عبد الله
A50: 49 | B50: هيثم العشماوي | C50: 300 | D50: 13 | F50: محمد ناجي زاهر بلبع | G50: 324 | H50: 44 | I50: 49 | J50: =_xlfn.IFNA(LOOKUP(L50,[1]Rank!B$9:B$795,[1]Rank!E$9:E$795),"") -> 0 | K50: فادي ناجح | L50: 2010 | M50: 0 | Q50: فادي ناجح
A51: 50 | B51: فادي ناجح | C51: 2010 | F51: هيثم عباس عبد الباري العشماوي | G51: 300 | H51: 60 | I51: 50 | J51: =_xlfn.IFNA(LOOKUP(L51,[1]Rank!B$9:B$795,[1]Rank!E$9:E$795),"") -> * | K51: =LOOKUP(L51,[2]الأسماء!A$3:A$962,[2]الأسماء!C$3:C$962) -> أحمد علي السيد علي شرع | L51: 536 | M51: 0 | Q51: أحمد علي السيد علي شرع
A52: 51 | B52: أحمد أحمد مرسي عبد الله | C52: 341 | F52: فادي ناجح | G52: 2010 | H52: 49 | I52: 51 | J52: =_xlfn.IFNA(LOOKUP(L52,[1]Rank!B$9:B$795,[1]Rank!E$9:E$795),"") -> 0 | K52: =LOOKUP(L52,[2]الأسماء!A$3:A$962,[2]الأسماء!C$3:C$962) -> وليد شعبان إسماعيل علي | L52: 450 | M52: 0 | Q52: وليد شعبان إسماعيل علي
A53: 52 | B53: يامن محمد حسن | C53: 350 | F53: أحمد أحمد مرسي عبد الله | G53: 341 | H53: 62 | I53: 52 | J53: =_xlfn.IFNA(LOOKUP(L53,[1]Rank!B$9:B$795,[1]Rank!E$9:E$795),"") -> * | K53: =LOOKUP(L53,[2]الأسماء!A$3:A$962,[2]الأسماء!C$3:C$962) -> أحمد سمير خلف علي محمد | L53: 706 | M53: 0 | Q53: أحمد سمير خلف علي محمد
A54: 53 | B54: أحمد محمد شوقي هيبه | C54: 477 | D54: 14 | F54: يامن محمد حسن | G54: 350 | H54: 55 | I54: 53 | J54: =_xlfn.IFNA(LOOKUP(L54,[1]Rank!B$9:B$795,[1]Rank!E$9:E$795),"") -> * | K54: =LOOKUP(L54,[2]الأسماء!A$3:A$962,[2]الأسماء!C$3:C$962) -> أمير محمد خطاب | L54: 200 | M54: 0 | Q54: أمير محمد خطاب
A55: 54 | B55: تامر رشاد | C55: 297 | F55: محمد عبد العظيم منير | G55: 2013 | H55: 72 | I55: 54 | J55: =_xlfn.IFNA(LOOKUP(L55,[1]Rank!B$9:B$795,[1]Rank!E$9:E$795),"") -> * | K55: =LOOKUP(L55,[2]الأسماء!A$3:A$962,[2]الأسماء!C$3:C$962) -> علاء شوقي جبريل | L55: 361 | M55: 0 | Q55: علاء شوقي جبريل
A56: 55 | B56: ناجي بلبع | C56: 2009 | F56: تامر رشاد | G56: 297 | H56: 65 | I56: 55 | J56: =_xlfn.IFNA(LOOKUP(L56,[1]Rank!B$9:B$795,[1]Rank!E$9:E$795),"") -> * | K56: =LOOKUP(L56,[2]الأسماء!A$3:A$962,[2]الأسماء!C$3:C$962) -> يامن محمد حسن | L56: 350 | M56: 0 | Q56: يامن محمد حسن
A57: 56 | B57: جاسر محمد | C57: 299 | F57: ناجي بلبع | G57: 2009 | H57: 46 | I57: 56 | J57: =_xlfn.IFNA(LOOKUP(L57,[1]Rank!B$9:B$795,[1]Rank!E$9:E$795),"") -> 0 | K57: عصام على | L57: 3002 | M57: 0 | Q57: عصام على
A58: 57 | B58: مصطفى كامل الشحري | C58: 340 | D58: 15 | F58: محمد صلاح الدين محمد ذكرالله | G58: 299 | H58: 69 | I58: 57 | J58: =_xlfn.IFNA(LOOKUP(L58,[1]Rank!B$9:B$795,[1]Rank!E$9:E$795),"") -> * | K58: =LOOKUP(L58,[2]الأسماء!A$3:A$962,[2]الأسماء!C$3:C$962) -> محمد محمود مسعود | L58: 234 | M58: 0 | Q58: محمد محمود مسعود
A59: 58 | B59: أحمد إبراهيم غانم | C59: 366 | F59: مصطفى كامل محمد فؤاد الشحري | G59: 340 | H59: 41 | I59: 58 | J59: =_xlfn.IFNA(LOOKUP(L59,[1]Rank!B$9:B$795,[1]Rank!E$9:E$795),"") -> * | K59: =LOOKUP(L59,[2]الأسماء!A$3:A$962,[2]الأسماء!C$3:C$962) -> أحمد صلاح الدين محمد دياب | L59: 510 | M59: 0 | Q59: أحمد صلاح الدين محمد دياب
A60: 59 | B60: هشام أبوغربية | C60: 389 | F60: أحمد إبراهيم أحمد غانم | G60: 366 | H60: 67 | I60: 59 | J60: =_xlfn.IFNA(LOOKUP(L60,[1]Rank!B$9:B$795,[1]Rank!E$9:E$795),"") -> 0 | K60: =LOOKUP(L60,[2]الأسماء!A$3:A$962,[2]الأسماء!C$3:C$962) -> خالد مصطفى أحمد عزت عبد الخالق | L60: 726 | M60: 0 | Q60: خالد مصطفى أحمد عزت عبد الخالق
A61: 60 | B61: عصام الدين حامد منصور | C61: 758 | F61: عصام على | G61: 3002 | H61: 56 | I61: 60 | J61: =_xlfn.IFNA(LOOKUP(L61,[1]Rank!B$9:B$795,[1]Rank!E$9:E$795),"") -> * | K61: =LOOKUP(L61,[2]الأسماء!A$3:A$962,[2]الأسماء!C$3:C$962) -> هيثم عباس عبد الباري العشماوي | L61: 300 | M61: 0 | Q61: هيثم عباس عبد الباري العشماوي
A62: 61 | B62: كريم إيهاب عامر | C62: 606 | D62: 16 | F62: شريف طه بصري | G62: 2014 | H62: 73 | I62: 61 | J62: =_xlfn.IFNA(LOOKUP(L62,[1]Rank!B$9:B$795,[1]Rank!E$9:E$795),"") -> * | K62: =LOOKUP(L62,[2]الأسماء!A$3:A$962,[2]الأسماء!C$3:C$962) -> كريم إيهاب عامر | L62: 606 | M62: 0 | Q62: كريم إيهاب عامر
A63: 62 | B63: محمد محمود مسعود | C63: 234 | F63: كريم إيهاب عامر | G63: 606 | H63: 61 | I63: 62 | J63: =_xlfn.IFNA(LOOKUP(L63,[1]Rank!B$9:B$795,[1]Rank!E$9:E$795),"") -> * | K63: =LOOKUP(L63,[2]الأسماء!A$3:A$962,[2]الأسماء!C$3:C$962) -> أحمد أحمد مرسي عبد الله | L63: 341 | M63: 0 | Q63: أحمد أحمد مرسي عبد الله
A64: 63 | B64: محمد أحمد محمد عبد الله | C64: 360 | F64: محمد محمود مسعود | G64: 234 | H64: 57 | I64: 63 | J64: =_xlfn.IFNA(LOOKUP(L64,[1]Rank!B$9:B$795,[1]Rank!E$9:E$795),"") -> * | K64: =LOOKUP(L64,[2]الأسماء!A$3:A$962,[2]الأسماء!C$3:C$962) -> جمال السيد توفيق محمد | L64: 758 | M64: 0 | Q64: جمال السيد توفيق محمد
A65: 64 | B65: وليد شعبان إسماعيل علي | C65: 450 | F65: محمد أحمد محمد عبد الله | G65: 360 | H65: 48 | I65: 64 | J65: =_xlfn.IFNA(LOOKUP(L65,[1]Rank!B$9:B$795,[1]Rank!E$9:E$795),"") -> 0 | K65: فريدة شكري | L65: 3003 | M65: 0 | Q65: فريدة شكري
A66: 65 | B66: أحمد طارق | C66: 346 | D66: 17 | F66: =LOOKUP(H66,$I$2:$I$161,$K$2:$K$161) -> وليد شعبان إسماعيل علي | G66: =LOOKUP(H66,$I$2:$I$161,$L$2:$L$161) -> 450 | H66: 51 | I66: 65 | J66: =_xlfn.IFNA(LOOKUP(L66,[1]Rank!B$9:B$795,[1]Rank!E$9:E$795),"") -> * | K66: =LOOKUP(L66,[2]الأسماء!A$3:A$962,[2]الأسماء!C$3:C$962) -> تامر رشاد | L66: 297 | M66: 0 | Q66: تامر رشاد
A67: 66 | B67: أحمد فؤاد حسنين | C67: 363 | F67: أحمد طارق | G67: 346 | H67: 42 | I67: 66 | J67: =_xlfn.IFNA(LOOKUP(L67,[1]Rank!B$9:B$795,[1]Rank!E$9:E$795),"") -> 0 | K67: هاني فكري المراكبي | L67: 2011 | M67: =SUM(N67:P67) -> 300 | N67: 300 | Q67: هاني فكري المراكبي
A68: 67 | B68: محمد محمود فضل | C68: 379 | F68: أحمد فؤاد حسنين محمد عباس | G68: 363 | H68: 70 | I68: 67 | J68: =_xlfn.IFNA(LOOKUP(L68,[1]Rank!B$9:B$795,[1]Rank!E$9:E$795),"") -> * | K68: =LOOKUP(L68,[2]الأسماء!A$3:A$962,[2]الأسماء!C$3:C$962) -> أحمد إبراهيم أحمد غانم | L68: 366 | M68: 0 | Q68: أحمد إبراهيم أحمد غانم
A69: 68 | B69: مصطفى إسماعيل | C69: 2015 | F69: محمد محمود محمد فضل | G69: 379 | H69: 68 | I69: 68 | J69: =_xlfn.IFNA(LOOKUP(L69,[1]Rank!B$9:B$795,[1]Rank!E$9:E$795),"") -> 0 | K69: =LOOKUP(L69,[2]الأسماء!A$3:A$962,[2]الأسماء!C$3:C$962) -> محمد محمود محمد فضل | L69: 379 | M69: 0 | Q69: محمد محمود محمد فضل
A70: 69 | B70: أحمد علي السيد شرع | C70: 536 | D70: 18 | F70: مصطفى إسماعيل | G70: 2015 | H70: 74 | I70: 69 | J70: =_xlfn.IFNA(LOOKUP(L70,[1]Rank!B$9:B$795,[1]Rank!E$9:E$795),"") -> * | K70: =LOOKUP(L70,[2]الأسماء!A$3:A$962,[2]الأسماء!C$3:C$962) -> محمد صلاح الدين محمد ذكرالله | L70: 299 | M70: 0 | Q70: محمد صلاح الدين محمد ذكرالله
A71: 70 | B71: أحمد صلاح الدين دياب | C71: 510 | F71: أحمد علي السيد علي شرع | G71: 536 | H71: 50 | I71: 70 | J71: =_xlfn.IFNA(LOOKUP(L71,[1]Rank!B$9:B$795,[1]Rank!E$9:E$795),"") -> * | K71: =LOOKUP(L71,[2]الأسماء!A$3:A$962,[2]الأسماء!C$3:C$962) -> أحمد فؤاد حسنين محمد عباس | L71: 363 | M71: 0 | Q71: أحمد فؤاد حسنين محمد عباس
A72: 71 | B72: معتز محمد | F72: أحمد صلاح الدين محمد دياب | G72: 510 | H72: 58 | I72: 71 | J72: =_xlfn.IFNA(LOOKUP(L72,[1]Rank!B$9:B$795,[1]Rank!E$9:E$795),"") -> 0 | K72: عبد العظيم منير | L72: 2012 | M72: 0 | Q72: عبد العظيم منير
A73: 72 | B73: أحمد سمير خلف | C73: 706 | F73: نهير عمر عبد العزيز | G73: 4001 | H73: 43 | I73: 72 | J73: =_xlfn.IFNA(LOOKUP(L73,[1]Rank!B$9:B$795,[1]Rank!E$9:E$795),"") -> 0 | K73: محمد عبد العظيم منير | L73: 2013 | M73: 0 | Q73: محمد عبد العظيم منير
A74: 73 | B74: مينا ناجح صبحي | C74: 611 | D74: 19 | F74: أحمد سمير خلف علي محمد | G74: 706 | H74: 52 | I74: 73 | J74: =_xlfn.IFNA(LOOKUP(L74,[1]Rank!B$9:B$795,[1]Rank!E$9:E$795),"") -> 0 | K74: شريف طه بصري | L74: 2014 | M74: 0 | Q74: شريف طه بصري
A75: 74 | B75: فريدة شكري | C75: 3003 | F75: مينا ناجح صبحي | G75: 611 | H75: 47 | I75: 74 | J75: =_xlfn.IFNA(LOOKUP(L75,[1]Rank!B$9:B$795,[1]Rank!E$9:E$795),"") -> 0 | K75: مصطفى إسماعيل | L75: 2015 | M75: 300 | N75: 300 | Q75: مصطفى إسماعيل
A76: 75 | B76: محمود سليمان | C76: 2016 | F76: فريدة شكري | G76: 3003 | H76: 64 | I76: 75 | J76: =_xlfn.IFNA(LOOKUP(L76,[1]Rank!B$9:B$795,[1]Rank!E$9:E$795),"") -> 0 | K76: محمود سليمان | L76: 2016 | M76: 300 | N76: 300 | Q76: محمود سليمان
A77: 76 | B77: محمد إبراهيم قطب | C77: 2017 | F77: محمود سليمان | G77: 2016 | H77: 75 | I77: 76 | J77: =_xlfn.IFNA(LOOKUP(L77,[1]Rank!B$9:B$795,[1]Rank!E$9:E$795),"") -> * | K77: =LOOKUP(L77,[2]الأسماء!A$3:A$962,[2]الأسماء!C$3:C$962) -> محمد عبد الهادي أحمد أبو القاسم | L77: 393 | M77: 0 | Q77: محمد عبد الهادي أحمد أبو القاسم
A78: 77 | B78: محمد محمود شعبان | C78: 486 | D78: 20 | F78: محمد إبراهيم قطب أحمد | G78: 2017 | H78: 77 | I78: 77 | J78: =_xlfn.IFNA(LOOKUP(L78,[1]Rank!B$9:B$795,[1]Rank!E$9:E$795),"") -> 0 | K78: محمد إبراهيم قطب أحمد | L78: 2017 | M78: 300 | N78: 300 | Q78: محمد إبراهيم قطب أحمد
A79: 78 | B79: حسام الخلفاوي | C79: 2019 | F79: محمد محمود شعبان محمد رمضان | G79: 486 | H79: 90 | I79: 78 | J79: =_xlfn.IFNA(LOOKUP(L79,[1]Rank!B$9:B$795,[1]Rank!E$9:E$795),"") -> 0 | K79: عبد الرحمن سعد موسى | L79: 2018 | M79: 0 | Q79: عبد الرحمن سعد موسى
A80: 79 | B80: محمد علي حسن طه الأمام | C80: 305 | F80: حسام الخلفاوي | G80: 2019 | H80: 86 | I80: 79 | J80: =_xlfn.IFNA(LOOKUP(L80,[1]Rank!B$9:B$795,[1]Rank!E$9:E$795),"") -> * | K80: =LOOKUP(L80,[2]الأسماء!A$3:A$962,[2]الأسماء!C$3:C$962) -> أحمد علي خليل حسن | L80: 664 | M80: 0 | Q80: أحمد علي خليل حسن
A81: 80 | B81: أمن حسام | C81: 2020 | F81: عصام الدين حامد أحمد منصور | G81: 302 | H81: 81 | I81: 80 | J81: =_xlfn.IFNA(LOOKUP(L81,[1]Rank!B$9:B$795,[1]Rank!E$9:E$795),"") -> * | K81: =LOOKUP(L81,[2]الأسماء!A$3:A$962,[2]الأسماء!C$3:C$962) -> أحمد محمد شوقي عبد الحميد هيبه | L81: 477 | M81: 0 | Q81: أحمد محمد شوقي عبد الحميد هيبه
A82: 81 | D82: 21 | G82: 0 | H82: 96 | I82: 81 | J82: =_xlfn.IFNA(LOOKUP(L82,[3]Rank!$B$9:$B$782,[3]Rank!$E$9:$E$782),"") -> 0 | K82: =LOOKUP(L82,[2]الأسماء!A$3:A$962,[2]الأسماء!C$3:C$962) -> عصام الدين حامد أحمد منصور | L82: 302 | M82: 0 | Q82: عصام الدين حامد أحمد منصور
A83: 82 | G83: 0 | H83: 94 | I83: 82 | J83: =_xlfn.IFNA(LOOKUP(L83,[3]Rank!$B$9:$B$782,[3]Rank!$E$9:$E$782),"") -> 0 | K83: =LOOKUP(L83,[2]الأسماء!A$3:A$962,[2]الأسماء!C$3:C$962) -> عمرو عماد الدين أبوالعلا | L83: 454 | M83: 0 | Q83: عمرو عماد الدين أبوالعلا
A84: 83 | F84: رضا هنري | G84: 3004 | H84: 85 | I84: 83 | J84: =_xlfn.IFNA(LOOKUP(L84,[3]Rank!$B$9:$B$782,[3]Rank!$E$9:$E$782),"") -> 0 | K84: =LOOKUP(L84,[2]الأسماء!A$3:A$962,[2]الأسماء!C$3:C$962) -> أحمد محمد هشام سردينة | L84: 317 | M84: 0 | Q84: أحمد محمد هشام سردينة
A85: 84 | G85: 0 | H85: 99 | I85: 84 | J85: =_xlfn.IFNA(LOOKUP(L85,[3]Rank!$B$9:$B$782,[3]Rank!$E$9:$E$782),"") -> 0 | K85: =LOOKUP(L85,[2]الأسماء!A$3:A$962,[2]الأسماء!C$3:C$962) -> هشام علي حسن أبو غربية | L85: 389 | M85: 0 | Q85: هشام علي حسن أبو غربية
A86: 85 | D86: 22 | F86: إبراهيم أحمد أمام | G86: 2022 | H86: 91 | I86: 85 | J86: =_xlfn.IFNA(LOOKUP(L86,[3]Rank!$B$9:$B$782,[3]Rank!$E$9:$E$782),"") -> 0 | K86: رضا هنري | L86: 3004 | M86: 0 | Q86: رضا هنري
A87: 86 | F87: أحمد علي خليل حسن | G87: 664 | H87: 79 | I87: 86 | J87: =_xlfn.IFNA(LOOKUP(L87,[3]Rank!$B$9:$B$782,[3]Rank!$E$9:$E$782),"") -> 0 | K87: حسام الخلفاوي | L87: 2019 | M87: 0 | Q87: حسام الخلفاوي
A88: 87 | F88: حمزة أحمد محمد | G88: 2021 | H88: 88 | I88: 87 | J88: =_xlfn.IFNA(LOOKUP(L88,[3]Rank!$B$9:$B$782,[3]Rank!$E$9:$E$782),"") -> 0 | K88: أمن حسام | L88: 2020 | M88: 0 | Q88: أمن حسام
A89: 88 | G89: 0 | H89: 97 | I89: 88 | J89: =_xlfn.IFNA(LOOKUP(L89,[3]Rank!$B$9:$B$782,[3]Rank!$E$9:$E$782),"") -> 0 | K89: حمزة أحمد محمد | L89: 2021 | M89: 0 | Q89: حمزة أحمد محمد
A90: 89 | D90: 23 | F90: عمرو عماد الدين أبوالعلا | G90: 454 | H90: 82 | I90: 89 | J90: =_xlfn.IFNA(LOOKUP(L90,[3]Rank!$B$9:$B$782,[3]Rank!$E$9:$E$782),"") -> 0 | K90: =LOOKUP(L90,[2]الأسماء!A$3:A$962,[2]الأسماء!C$3:C$962) -> محمد عصام الدين محمد القاضي | L90: 304 | M90: 0 | Q90: محمد عصام الدين محمد القاضي
A91: 90 | G91: 0 | H91: 93 | I91: 90 | J91: =_xlfn.IFNA(LOOKUP(L91,[3]Rank!$B$9:$B$782,[3]Rank!$E$9:$E$782),"") -> 0 | K91: =LOOKUP(L91,[2]الأسماء!A$3:A$962,[2]الأسماء!C$3:C$962) -> محمد محمود شعبان محمد رمضان | L91: 486 | M91: 0 | Q91: محمد محمود شعبان محمد رمضان
A92: 91 | F92: أحمد محمد شوقي عبد الحميد هيبه | G92: 477 | H92: 80 | I92: 91 | J92: =_xlfn.IFNA(LOOKUP(L92,[3]Rank!$B$9:$B$782,[3]Rank!$E$9:$E$782),"") -> 0 | K92: إبراهيم أحمد أمام | L92: 2022 | M92: 0 | Q92: إبراهيم أحمد أمام
A93: 92 | G93: 0 | H93: 98 | I93: 92 | J93: =_xlfn.IFNA(LOOKUP(L93,[3]Rank!$B$9:$B$782,[3]Rank!$E$9:$E$782),"") ->  | K93: =LOOKUP(L93,[2]الأسماء!A$3:A$962,[2]الأسماء!C$3:C$962) ->  | M93: 0
A94: 93 | D94: 24 | F94: محمد عصام الدين محمد القاضي | G94: 304 | H94: 89 | I94: 93 | J94: =_xlfn.IFNA(LOOKUP(L94,[3]Rank!$B$9:$B$782,[3]Rank!$E$9:$E$782),"") ->  | K94: =LOOKUP(L94,[2]الأسماء!A$3:A$962,[2]الأسماء!C$3:C$962) ->  | M94: 0
A95: 94 | G95: 0 | H95: 100 | I95: 94 | J95: =_xlfn.IFNA(LOOKUP(L95,[3]Rank!$B$9:$B$782,[3]Rank!$E$9:$E$782),"") ->  | K95: =LOOKUP(L95,[2]الأسماء!A$3:A$962,[2]الأسماء!C$3:C$962) ->  | M95: 0
A96: 95 | F96: أحمد محمد هشام سردينة | G96: 317 | H96: 83 | I96: 95 | J96: =_xlfn.IFNA(LOOKUP(L96,[3]Rank!$B$9:$B$782,[3]Rank!$E$9:$E$782),"") ->  | K96: =LOOKUP(L96,[2]الأسماء!A$3:A$962,[2]الأسماء!C$3:C$962) ->  | M96: 0
A97: 96 | G97: 0 | H97: 95 | I97: 96 | J97: =_xlfn.IFNA(LOOKUP(L97,[3]Rank!$B$9:$B$782,[3]Rank!$E$9:$E$782),"") ->  | K97: =LOOKUP(L97,[2]الأسماء!A$3:A$962,[2]الأسماء!C$3:C$962) ->  | M97: 0
A98: 97 | D98: B1 | F98: =LOOKUP(H98,$I$2:$I$161,$K$2:$K$161) -> أمن حسام | G98: =LOOKUP(H98,$I$2:$I$161,$L$2:$L$161) -> 2020 | H98: 87 | I98: 97 | J98: =_xlfn.IFNA(LOOKUP(L98,[3]Rank!$B$9:$B$782,[3]Rank!$E$9:$E$782),"") ->  | K98: =LOOKUP(L98,[2]الأسماء!A$3:A$962,[2]الأسماء!C$3:C$962) ->  | M98: 0
A99: 98 | G99: 0 | H99: 92 | I99: 98 | J99: =_xlfn.IFNA(LOOKUP(L99,[3]Rank!$B$9:$B$782,[3]Rank!$E$9:$E$782),"") ->  | K99: =LOOKUP(L99,[2]الأسماء!A$3:A$962,[2]الأسماء!C$3:C$962) ->  | M99: 0
A100: 99 | F100: عبد الرحمن سعد موسى | G100: 2018 | H100: 78 | I100: 99 | J100: =_xlfn.IFNA(LOOKUP(L100,[3]Rank!$B$9:$B$782,[3]Rank!$E$9:$E$782),"") ->  | K100: =LOOKUP(L100,[2]الأسماء!A$3:A$962,[2]الأسماء!C$3:C$962) ->  | M100: 0
A101: 100 | F101: هشام علي حسن أبو غربية | G101: 389 | H101: 84 | I101: 100 | J101: =_xlfn.IFNA(LOOKUP(L101,[3]Rank!$B$9:$B$782,[3]Rank!$E$9:$E$782),"") ->  | K101: =LOOKUP(L101,[2]الأسماء!A$3:A$962,[2]الأسماء!C$3:C$962) ->  | M101: 0
A102: 101 | D102: B2 | G102: 0 | H102: 101 | I102: 101 | J102: =_xlfn.IFNA(LOOKUP(L102,[3]Rank!$B$9:$B$782,[3]Rank!$E$9:$E$782),"") ->  | K102: =LOOKUP(L102,[2]الأسماء!A$3:A$962,[2]الأسماء!C$3:C$962) ->  | M102: 0
A103: 102 | G103: 0 | H103: 102 | I103: 102 | J103: =_xlfn.IFNA(LOOKUP(L103,[3]Rank!$B$9:$B$782,[3]Rank!$E$9:$E$782),"") ->  | K103: =LOOKUP(L103,[2]الأسماء!A$3:A$962,[2]الأسماء!C$3:C$962) ->  | M103: 0
A104: 103 | G104: 0 | H104: 103 | I104: 103 | J104: =_xlfn.IFNA(LOOKUP(L104,[3]Rank!$B$9:$B$782,[3]Rank!$E$9:$E$782),"") ->  | K104: =LOOKUP(L104,[2]الأسماء!A$3:A$962,[2]الأسماء!C$3:C$962) ->  | M104: 0
A105: 104 | G105: 0 | H105: 104 | I105: 104 | J105: =_xlfn.IFNA(LOOKUP(L105,[3]Rank!$B$9:$B$782,[3]Rank!$E$9:$E$782),"") ->  | K105: =LOOKUP(L105,[2]الأسماء!A$3:A$962,[2]الأسماء!C$3:C$962) ->  | M105: 0
A106: 105 | D106: B3 | G106: 0 | H106: 105 | I106: 105 | J106: =_xlfn.IFNA(LOOKUP(L106,[3]Rank!$B$9:$B$782,[3]Rank!$E$9:$E$782),"") ->  | K106: =LOOKUP(L106,[2]الأسماء!A$3:A$962,[2]الأسماء!C$3:C$962) ->  | M106: 0
A107: 106 | G107: 0 | H107: 106 | I107: 106 | J107: =_xlfn.IFNA(LOOKUP(L107,[3]Rank!$B$9:$B$782,[3]Rank!$E$9:$E$782),"") ->  | K107: =LOOKUP(L107,[2]الأسماء!A$3:A$962,[2]الأسماء!C$3:C$962) ->  | M107: 0
A108: 107 | G108: 0 | H108: 107 | I108: 107 | J108: =_xlfn.IFNA(LOOKUP(L108,[3]Rank!$B$9:$B$782,[3]Rank!$E$9:$E$782),"") ->  | K108: =LOOKUP(L108,[2]الأسماء!A$3:A$962,[2]الأسماء!C$3:C$962) ->  | M108: 0
A109: 108 | G109: 0 | H109: 108 | I109: 108 | J109: =_xlfn.IFNA(LOOKUP(L109,[3]Rank!$B$9:$B$782,[3]Rank!$E$9:$E$782),"") ->  | K109: =LOOKUP(L109,[2]الأسماء!A$3:A$962,[2]الأسماء!C$3:C$962) ->  | M109: 0
A110: 109 | D110: B4 | G110: 0 | H110: 109 | I110: 109 | J110: =_xlfn.IFNA(LOOKUP(L110,[3]Rank!$B$9:$B$782,[3]Rank!$E$9:$E$782),"") ->  | K110: =LOOKUP(L110,[2]الأسماء!A$3:A$962,[2]الأسماء!C$3:C$962) ->  | M110: 0
A111: 110 | G111: 0 | H111: 110 | I111: 110 | J111: =_xlfn.IFNA(LOOKUP(L111,[3]Rank!$B$9:$B$782,[3]Rank!$E$9:$E$782),"") ->  | K111: =LOOKUP(L111,[2]الأسماء!A$3:A$962,[2]الأسماء!C$3:C$962) ->  | M111: 0
A112: 111 | G112: 0 | H112: 111 | I112: 111 | J112: =_xlfn.IFNA(LOOKUP(L112,[3]Rank!$B$9:$B$782,[3]Rank!$E$9:$E$782),"") ->  | K112: =LOOKUP(L112,[2]الأسماء!A$3:A$962,[2]الأسماء!C$3:C$962) ->  | M112: 0
A113: 112 | G113: 0 | H113: 112 | I113: 112 | J113: =_xlfn.IFNA(LOOKUP(L113,[3]Rank!$B$9:$B$782,[3]Rank!$E$9:$E$782),"") ->  | K113: =LOOKUP(L113,[2]الأسماء!A$3:A$962,[2]الأسماء!C$3:C$962) ->  | M113: 0
A114: 113 | D114: B5 | G114: 0 | H114: 113 | I114: 113 | J114: =_xlfn.IFNA(LOOKUP(L114,[3]Rank!$B$9:$B$782,[3]Rank!$E$9:$E$782),"") ->  | K114: =LOOKUP(L114,[2]الأسماء!A$3:A$962,[2]الأسماء!C$3:C$962) ->  | M114: 0
A115: 114 | G115: 0 | H115: 114 | I115: 114 | J115: =_xlfn.IFNA(LOOKUP(L115,[3]Rank!$B$9:$B$782,[3]Rank!$E$9:$E$782),"") ->  | K115: =LOOKUP(L115,[2]الأسماء!A$3:A$962,[2]الأسماء!C$3:C$962) ->  | M115: 0
A116: 115 | G116: 0 | H116: 115 | I116: 115 | J116: =_xlfn.IFNA(LOOKUP(L116,[3]Rank!$B$9:$B$782,[3]Rank!$E$9:$E$782),"") ->  | K116: =LOOKUP(L116,[2]الأسماء!A$3:A$962,[2]الأسماء!C$3:C$962) ->  | M116: 0
A117: 116 | G117: 0 | H117: 116 | I117: 116 | J117: =_xlfn.IFNA(LOOKUP(L117,[3]Rank!$B$9:$B$782,[3]Rank!$E$9:$E$782),"") ->  | K117: =LOOKUP(L117,[2]الأسماء!A$3:A$962,[2]الأسماء!C$3:C$962) ->  | M117: 0
A118: 117 | D118: B6 | G118: 0 | H118: 117 | I118: 117 | J118: =_xlfn.IFNA(LOOKUP(L118,[3]Rank!$B$9:$B$782,[3]Rank!$E$9:$E$782),"") ->  | K118: =LOOKUP(L118,[2]الأسماء!A$3:A$962,[2]الأسماء!C$3:C$962) ->  | M118: 0
A119: 118 | G119: 0 | H119: 118 | I119: 118 | J119: =_xlfn.IFNA(LOOKUP(L119,[3]Rank!$B$9:$B$782,[3]Rank!$E$9:$E$782),"") ->  | K119: =LOOKUP(L119,[2]الأسماء!A$3:A$962,[2]الأسماء!C$3:C$962) ->  | M119: 0
A120: 119 | G120: 0 | H120: 119 | I120: 119 | J120: =_xlfn.IFNA(LOOKUP(L120,[3]Rank!$B$9:$B$782,[3]Rank!$E$9:$E$782),"") ->  | K120: =LOOKUP(L120,[2]الأسماء!A$3:A$962,[2]الأسماء!C$3:C$962) ->  | M120: 0
A121: 120 | G121: 0 | H121: 120 | I121: 120 | J121: =_xlfn.IFNA(LOOKUP(L121,[3]Rank!$B$9:$B$782,[3]Rank!$E$9:$E$782),"") ->  | K121: =LOOKUP(L121,[2]الأسماء!A$3:A$962,[2]الأسماء!C$3:C$962) ->  | M121: 0
A122: 121 | D122: 31 | I122: 121 | J122: =_xlfn.IFNA(LOOKUP(L122,[3]Rank!$B$9:$B$782,[3]Rank!$E$9:$E$782),"") ->  | K122: =LOOKUP(L122,[4]الأسماء!A$3:A$962,[4]الأسماء!C$3:C$962) -> 
A123: 122 | I123: 122 | J123: =_xlfn.IFNA(LOOKUP(L123,[3]Rank!$B$9:$B$782,[3]Rank!$E$9:$E$782),"") ->  | K123: =LOOKUP(L123,[4]الأسماء!A$3:A$962,[4]الأسماء!C$3:C$962) -> 
A124: 123 | I124: 123 | J124: =_xlfn.IFNA(LOOKUP(L124,[3]Rank!$B$9:$B$782,[3]Rank!$E$9:$E$782),"") ->  | K124: =LOOKUP(L124,[4]الأسماء!A$3:A$962,[4]الأسماء!C$3:C$962) -> 
A125: 124 | I125: 124 | J125: =_xlfn.IFNA(LOOKUP(L125,[3]Rank!$B$9:$B$782,[3]Rank!$E$9:$E$782),"") ->  | K125: =LOOKUP(L125,[4]الأسماء!A$3:A$962,[4]الأسماء!C$3:C$962) -> 
A126: 125 | D126: 32 | I126: 125 | J126: =_xlfn.IFNA(LOOKUP(L126,[3]Rank!$B$9:$B$782,[3]Rank!$E$9:$E$782),"") ->  | K126: =LOOKUP(L126,[4]الأسماء!A$3:A$962,[4]الأسماء!C$3:C$962) -> 
A127: 126 | I127: 126 | J127: =_xlfn.IFNA(LOOKUP(L127,[3]Rank!$B$9:$B$782,[3]Rank!$E$9:$E$782),"") ->  | K127: =LOOKUP(L127,[4]الأسماء!A$3:A$962,[4]الأسماء!C$3:C$962) -> 
A128: 127 | I128: 127 | J128: =_xlfn.IFNA(LOOKUP(L128,[3]Rank!$B$9:$B$782,[3]Rank!$E$9:$E$782),"") ->  | K128: =LOOKUP(L128,[4]الأسماء!A$3:A$962,[4]الأسماء!C$3:C$962) -> 
A129: 128 | I129: 128 | J129: =_xlfn.IFNA(LOOKUP(L129,[3]Rank!$B$9:$B$782,[3]Rank!$E$9:$E$782),"") ->  | K129: =LOOKUP(L129,[4]الأسماء!A$3:A$962,[4]الأسماء!C$3:C$962) -> 
A130: 129 | D130: 33 | F130: =LOOKUP(H130,$I$2:$I$161,$K$2:$K$161) ->  | G130: =LOOKUP(H130,$I$2:$I$161,$L$2:$L$161) ->  | I130: 129 | J130: =_xlfn.IFNA(LOOKUP(L130,[3]Rank!$B$9:$B$782,[3]Rank!$E$9:$E$782),"") ->  | K130: =LOOKUP(L130,[4]الأسماء!A$3:A$962,[4]الأسماء!C$3:C$962) -> 
A131: 130 | I131: 130 | J131: =_xlfn.IFNA(LOOKUP(L131,[3]Rank!$B$9:$B$782,[3]Rank!$E$9:$E$782),"") ->  | K131: =LOOKUP(L131,[4]الأسماء!A$3:A$962,[4]الأسماء!C$3:C$962) -> 
A132: 131 | I132: 131 | J132: =_xlfn.IFNA(LOOKUP(L132,[3]Rank!$B$9:$B$782,[3]Rank!$E$9:$E$782),"") ->  | K132: =LOOKUP(L132,[4]الأسماء!A$3:A$962,[4]الأسماء!C$3:C$962) -> 
A133: 132 | I133: 132 | J133: =_xlfn.IFNA(LOOKUP(L133,[3]Rank!$B$9:$B$782,[3]Rank!$E$9:$E$782),"") ->  | K133: =LOOKUP(L133,[4]الأسماء!A$3:A$962,[4]الأسماء!C$3:C$962) -> 
A134: 133 | D134: 34 | I134: 133 | J134: =_xlfn.IFNA(LOOKUP(L134,[3]Rank!$B$9:$B$782,[3]Rank!$E$9:$E$782),"") ->  | K134: =LOOKUP(L134,[4]الأسماء!A$3:A$962,[4]الأسماء!C$3:C$962) -> 
A135: 134 | I135: 134 | J135: =_xlfn.IFNA(LOOKUP(L135,[3]Rank!$B$9:$B$782,[3]Rank!$E$9:$E$782),"") ->  | K135: =LOOKUP(L135,[4]الأسماء!A$3:A$962,[4]الأسماء!C$3:C$962) -> 
A136: 135 | I136: 135 | J136: =_xlfn.IFNA(LOOKUP(L136,[3]Rank!$B$9:$B$782,[3]Rank!$E$9:$E$782),"") ->  | K136: =LOOKUP(L136,[4]الأسماء!A$3:A$962,[4]الأسماء!C$3:C$962) -> 
A137: 136 | I137: 136 | J137: =_xlfn.IFNA(LOOKUP(L137,[3]Rank!$B$9:$B$782,[3]Rank!$E$9:$E$782),"") ->  | K137: =LOOKUP(L137,[4]الأسماء!A$3:A$962,[4]الأسماء!C$3:C$962) -> 
A138: 137 | D138: 35 | I138: 137 | J138: =_xlfn.IFNA(LOOKUP(L138,[3]Rank!$B$9:$B$782,[3]Rank!$E$9:$E$782),"") ->  | K138: =LOOKUP(L138,[4]الأسماء!A$3:A$962,[4]الأسماء!C$3:C$962) -> 
A139: 138 | I139: 138 | J139: =_xlfn.IFNA(LOOKUP(L139,[3]Rank!$B$9:$B$782,[3]Rank!$E$9:$E$782),"") ->  | K139: =LOOKUP(L139,[4]الأسماء!A$3:A$962,[4]الأسماء!C$3:C$962) -> 
A140: 139 | I140: 139 | J140: =_xlfn.IFNA(LOOKUP(L140,[3]Rank!$B$9:$B$782,[3]Rank!$E$9:$E$782),"") ->  | K140: =LOOKUP(L140,[4]الأسماء!A$3:A$962,[4]الأسماء!C$3:C$962) -> 
A141: 140 | I141: 140 | J141: =_xlfn.IFNA(LOOKUP(L141,[3]Rank!$B$9:$B$782,[3]Rank!$E$9:$E$782),"") ->  | K141: =LOOKUP(L141,[4]الأسماء!A$3:A$962,[4]الأسماء!C$3:C$962) -> 
A142: 141 | D142: 36 | I142: 141 | J142: =_xlfn.IFNA(LOOKUP(L142,[3]Rank!$B$9:$B$782,[3]Rank!$E$9:$E$782),"") ->  | K142: =LOOKUP(L142,[4]الأسماء!A$3:A$962,[4]الأسماء!C$3:C$962) -> 
A143: 142 | I143: 142 | J143: =_xlfn.IFNA(LOOKUP(L143,[3]Rank!$B$9:$B$782,[3]Rank!$E$9:$E$782),"") ->  | K143: =LOOKUP(L143,[4]الأسماء!A$3:A$962,[4]الأسماء!C$3:C$962) -> 
A144: 143 | I144: 143 | J144: =_xlfn.IFNA(LOOKUP(L144,[3]Rank!$B$9:$B$782,[3]Rank!$E$9:$E$782),"") ->  | K144: =LOOKUP(L144,[4]الأسماء!A$3:A$962,[4]الأسماء!C$3:C$962) -> 
A145: 144 | I145: 144 | J145: =_xlfn.IFNA(LOOKUP(L145,[3]Rank!$B$9:$B$782,[3]Rank!$E$9:$E$782),"") ->  | K145: =LOOKUP(L145,[4]الأسماء!A$3:A$962,[4]الأسماء!C$3:C$962) -> 
A146: 145 | D146: 37 | I146: 145 | J146: =_xlfn.IFNA(LOOKUP(L146,[3]Rank!$B$9:$B$782,[3]Rank!$E$9:$E$782),"") ->  | K146: =LOOKUP(L146,[4]الأسماء!A$3:A$962,[4]الأسماء!C$3:C$962) -> 
A147: 146 | I147: 146 | J147: =_xlfn.IFNA(LOOKUP(L147,[3]Rank!$B$9:$B$782,[3]Rank!$E$9:$E$782),"") ->  | K147: =LOOKUP(L147,[4]الأسماء!A$3:A$962,[4]الأسماء!C$3:C$962) -> 
A148: 147 | I148: 147 | J148: =_xlfn.IFNA(LOOKUP(L148,[3]Rank!$B$9:$B$782,[3]Rank!$E$9:$E$782),"") ->  | K148: =LOOKUP(L148,[4]الأسماء!A$3:A$962,[4]الأسماء!C$3:C$962) -> 
A149: 148 | I149: 148 | J149: =_xlfn.IFNA(LOOKUP(L149,[3]Rank!$B$9:$B$782,[3]Rank!$E$9:$E$782),"") ->  | K149: =LOOKUP(L149,[4]الأسماء!A$3:A$962,[4]الأسماء!C$3:C$962) -> 
A150: 149 | D150: 38 | I150: 149 | J150: =_xlfn.IFNA(LOOKUP(L150,[3]Rank!$B$9:$B$782,[3]Rank!$E$9:$E$782),"") ->  | K150: =LOOKUP(L150,[4]الأسماء!A$3:A$962,[4]الأسماء!C$3:C$962) -> 
A151: 150 | I151: 150 | J151: =_xlfn.IFNA(LOOKUP(L151,[3]Rank!$B$9:$B$782,[3]Rank!$E$9:$E$782),"") ->  | K151: =LOOKUP(L151,[4]الأسماء!A$3:A$962,[4]الأسماء!C$3:C$962) -> 
A152: 151 | I152: 151 | J152: =_xlfn.IFNA(LOOKUP(L152,[3]Rank!$B$9:$B$782,[3]Rank!$E$9:$E$782),"") ->  | K152: =LOOKUP(L152,[4]الأسماء!A$3:A$962,[4]الأسماء!C$3:C$962) -> 
A153: 152 | I153: 152 | J153: =_xlfn.IFNA(LOOKUP(L153,[3]Rank!$B$9:$B$782,[3]Rank!$E$9:$E$782),"") ->  | K153: =LOOKUP(L153,[4]الأسماء!A$3:A$962,[4]الأسماء!C$3:C$962) -> 
A154: 153 | D154: 39 | I154: 153 | J154: =_xlfn.IFNA(LOOKUP(L154,[3]Rank!$B$9:$B$782,[3]Rank!$E$9:$E$782),"") ->  | K154: =LOOKUP(L154,[4]الأسماء!A$3:A$962,[4]الأسماء!C$3:C$962) -> 
A155: 154 | I155: 154 | J155: =_xlfn.IFNA(LOOKUP(L155,[3]Rank!$B$9:$B$782,[3]Rank!$E$9:$E$782),"") ->  | K155: =LOOKUP(L155,[4]الأسماء!A$3:A$962,[4]الأسماء!C$3:C$962) -> 
A156: 155 | I156: 155 | J156: =_xlfn.IFNA(LOOKUP(L156,[3]Rank!$B$9:$B$782,[3]Rank!$E$9:$E$782),"") ->  | K156: =LOOKUP(L156,[4]الأسماء!A$3:A$962,[4]الأسماء!C$3:C$962) -> 
A157: 156 | I157: 156 | J157: =_xlfn.IFNA(LOOKUP(L157,[3]Rank!$B$9:$B$782,[3]Rank!$E$9:$E$782),"") ->  | K157: =LOOKUP(L157,[4]الأسماء!A$3:A$962,[4]الأسماء!C$3:C$962) -> 
A158: 157 | D158: 40 | I158: 157 | J158: =_xlfn.IFNA(LOOKUP(L158,[3]Rank!$B$9:$B$782,[3]Rank!$E$9:$E$782),"") ->  | K158: =LOOKUP(L158,[4]الأسماء!A$3:A$962,[4]الأسماء!C$3:C$962) -> 
A159: 158 | I159: 158 | J159: =_xlfn.IFNA(LOOKUP(L159,[3]Rank!$B$9:$B$782,[3]Rank!$E$9:$E$782),"") ->  | K159: =LOOKUP(L159,[4]الأسماء!A$3:A$962,[4]الأسماء!C$3:C$962) -> 
A160: 159 | I160: 159 | J160: =_xlfn.IFNA(LOOKUP(L160,[3]Rank!$B$9:$B$782,[3]Rank!$E$9:$E$782),"") ->  | K160: =LOOKUP(L160,[4]الأسماء!A$3:A$962,[4]الأسماء!C$3:C$962) -> 
A161: 160 | I161: 160 | J161: =_xlfn.IFNA(LOOKUP(L161,[3]Rank!$B$9:$B$782,[3]Rank!$E$9:$E$782),"") ->  | K161: =LOOKUP(L161,[4]الأسماء!A$3:A$962,[4]الأسماء!C$3:C$962) -> 
C162: =COUNTA(B2:B129) -> 80 | L162: =COUNTA(L2:L161) -> 91 | M162: =SUM(M2:M121) -> 3600 | N162: =SUM(N2:N121) -> 3300 | O162: 300 | P162: =SUM(P2:P121) -> 0
C163: =C162/4 -> 20 | L163: =L162/4 -> 22.75 | M163: =M162/300 -> 12 | N163: =N162/300 -> 11 | O163: =O162/300 -> 1 | P163: =P162/300 -> 0
L165: =(L162-M163)*300 -> 23700
K168: 20400 | M168: 600 | N168: 1
M169: 900 | N169: 2
M170: 1200 | N170: 3
M171: 600 | N171: 4
M172: 900 | N172: 5
M173: 900 | N173: 6
M174: 900 | N174: 7
M175: 900 | N175: 8
M176: 1200 | N176: 9
M177: 1200 | N177: 10
M178: 1200 | N178: 11
M179: 600 | N179: 12
M180: 1200 | N180: 13
M181: 900 | N181: 14
M182: 1200 | N182: 15
M183: 1200 | N183: 16
M184: 1200 | N184: 17
M185: 1200 | N185: 18
M186: 1200 | N186: 19
M187: 900 | N187: 20
M188: =SUM(M168:M187) -> 20100

Sheet Score
G1: ESTIMATION | T1: بطولة الجمهورية الثانية للفردي المفتوح | AC1: Date : | AH1: 2024-06-28
A3: Tabel | C3: P. | D3: Names | E3: Round ( 1 ) | I3: P. | J3: Names | K3: Round ( 2 ) | O3: P. | P3: Names | Q3: Round ( 3 ) | U3: P. | V3: Names | W3: Round ( 4 ) | AB3: P. No. | AC3: Names | AH3: FINAL | AT3: R.
E4: Score | F4: Tab | G4: Axe | H4: TOT | K4: Score | L4: Tab | M4: Axe | N4: TOT | Q4: Score | R4: Tab | S4: Axe | T4: TOT | W4: Score | X4: Tab | Y4: Axe | Z4: TOT | AD4: 1 | AE4: 2 | AF4: 3 | AG4: 4 | AH4: Score | AI4: 1 | AJ4: 2 | AK4: 3 | AL4: 4 | AM4: Tab | AN4: 1 | AO4: 2 | AP4: 3 | AQ4: 4 | AR4: Axe | AS4: TOT
A5: Tabel ( 1 ) | B5: N | C5: 1 | D5: =LOOKUP(C5,Names!$A$2:$A$161,Names!$B$2:$B$161) -> راجي صبحي | E5: 95 | F5: 0 | G5: 10 | H5: =F5+G5 -> 10 | I5: 1 | J5: =LOOKUP(I5,Names!$A$2:$A$161,Names!$B$2:$B$161) -> راجي صبحي | K5: 47 | L5: 0 | M5: 1 | N5: =L5+M5 -> 1 | O5: 1 | P5: =LOOKUP(O5,Names!$A$2:$A$161,Names!$B$2:$B$161) -> راجي صبحي | Q5: 76 | R5: 0 | S5: 6 | T5: =R5+S5 -> 6 | U5: 1 | V5: =LOOKUP(U5,Names!$A$2:$A$161,Names!$B$2:$B$161) -> راجي صبحي | W5: 89 | X5: 0 | Y5: 10 | Z5: =X5+Y5 -> 10 | AB5: 30 | AC5: =LOOKUP(AB5,Names!$A$2:$A$161,Names!$B$2:$B$161) -> شريف جلال سماحة | AD5: =IF(ISNA(VLOOKUP(AB5,$C$5:$H$164,3,FALSE))=TRUE,"",VLOOKUP(AB5,$C$5:$H$164,3,FALSE)) -> 180 | AE5: =IF(ISNA(VLOOKUP(AB5,$I$5:$N$164,3,FALSE))=TRUE,"",VLOOKUP(AB5,$I$5:$N$164,3,FALSE)) -> 216 | AF5: =IF(ISNA(VLOOKUP(AB5,$O$5:$T$164,3,FALSE))=TRUE,"",VLOOKUP(AB5,$O$5:$T$164,3,FALSE)) -> 137 | AG5: =IF(ISNA(VLOOKUP(AB5,$U$5:$Z$164,3,FALSE))=TRUE,"",VLOOKUP(AB5,$U$5:$Z$164,3,FALSE)) -> 127 | AH5: =SUM(AD5:AG5) -> 660 | AI5: =IF(ISNA(VLOOKUP(AB5,$C$5:$H$164,4,FALSE))=TRUE,"",VLOOKUP(AB5,$C$5:$H$164,4,FALSE)) -> 0 | AJ5: =IF(ISNA(VLOOKUP(AB5,$I$5:$N$164,4,FALSE))=TRUE,"",VLOOKUP(AB5,$I$5:$N$164,4,FALSE)) -> 0 | AK5: =IF(ISNA(VLOOKUP(AB5,$O$5:$T$164,4,FALSE))=TRUE,"",VLOOKUP(AB5,$O$5:$T$164,4,FALSE)) -> 0 | AL5: =IF(ISNA(VLOOKUP(AB5,$U$5:$Z$164,4,FALSE))=TRUE,"",VLOOKUP(AB5,$U$5:$Z$164,4,FALSE)) -> 0 | AM5: =SUM(AI5:AL5) -> 0 | AN5: =IF(ISNA(VLOOKUP(AB5,$C$5:$H$164,5,FALSE))=TRUE,"",VLOOKUP(AB5,$C$5:$H$164,5,FALSE)) -> 19 | AO5: =IF(ISNA(VLOOKUP(AB5,$I$5:$N$164,5,FALSE))=TRUE,"",VLOOKUP(AB5,$I$5:$N$164,5,FALSE)) -> 21 | AP5: =IF(ISNA(VLOOKUP(AB5,$O$5:$T$164,5,FALSE))=TRUE,"",VLOOKUP(AB5,$O$5:$T$164,5,FALSE)) -> 17 | AQ5: =IF(ISNA(VLOOKUP(AB5,$U$5:$Z$164,5,FALSE))=TRUE,"",VLOOKUP(AB5,$U$5:$Z$164,5,FALSE)) -> 16 | AR5: =SUM(AN5:AQ5) -> 73 | AS5: =AM5+AR5 -> 73 | AT5: 1 | AV5: 1 | AW5: =AV5 -> 1
B6: W | C6: 2 | D6: =LOOKUP(C6,Names!$A$2:$A$161,Names!$B$2:$B$161) -> شريف أحمد محمد حمروش | E6: 65 | F6: 0 | G6: 7 | H6: 7 | I6: 21 | J6: =LOOKUP(I6,Names!$A$2:$A$161,Names!$B$2:$B$161) -> أحمد محمد حمدي صالح | K6: 112 | L6: 0 | M6: 7 | N6: 7 | O6: 78 | P6: =LOOKUP(O6,Names!$A$2:$A$161,Names!$B$2:$B$161) -> حسام الخلفاوي | Q6: 8 | R6: 0 | S6: 1 | T6: 1 | U6: 70 | V6: =LOOKUP(U6,Names!$A$2:$A$161,Names!$B$2:$B$161) -> أحمد صلاح الدين دياب | W6: 67 | X6: 0 | Y6: 4 | Z6: 4 | AB6: 59 | AC6: =LOOKUP(AB6,Names!$A$2:$A$161,Names!$B$2:$B$161) -> هشام أبوغربية | AD6: 195 | AE6: 162 | AF6: 104 | AG6: 163 | AH6: 624 | AI6: 0 | AJ6: 0 | AK6: 0 | AL6: 0 | AM6: 0 | AN6: 19 | AO6: 19 | AP6: 12.5 | AQ6: 19 | AR6: 69.5 | AS6: 69.5 | AT6: 2 | AV6: 70 | AW6: =AV6 -> 70
B7: S | C7: 3 | D7: =LOOKUP(C7,Names!$A$2:$A$161,Names!$B$2:$B$161) -> إيهاب يوسف عمارة | E7: 133 | F7: 0 | G7: 12 | H7: 12 | I7: 41 | J7: =LOOKUP(I7,Names!$A$2:$A$161,Names!$B$2:$B$161) -> خالد مصطفى عزت | K7: 97 | L7: 0 | M7: 13 | N7: 13 | O7: 11 | P7: =LOOKUP(O7,Names!$A$2:$A$161,Names!$B$2:$B$161) -> معتز محمد مدبولي | Q7: 147 | R7: 0 | S7: 17.5 | T7: 17.5 | U7: 59 | V7: =LOOKUP(U7,Names!$A$2:$A$161,Names!$B$2:$B$161) -> هشام أبوغربية | W7: 163 | X7: 0 | Y7: 19 | Z7: 19 | AB7: 73 | AC7: =LOOKUP(AB7,Names!$A$2:$A$161,Names!$B$2:$B$161) -> مينا ناجح صبحي | AD7: 180 | AE7: 98 | AF7: 125 | AG7: 107 | AH7: 510 | AI7: 0 | AJ7: 0 | AK7: 0 | AL7: 0 | AM7: 0 | AN7: 19 | AO7: 13 | AP7: 21 | AQ7: 16 | AR7: 69 | AS7: 69 | AT7: 3 | AV7: 59 | AW7: =AV7 -> 59
B8: E | C8: 4 | D8: =LOOKUP(C8,Names!$A$2:$A$161,Names!$B$2:$B$161) -> محمد سعيد الفطاطري | E8: 103 | F8: 0 | G8: 14 | H8: 14 | I8: 61 | J8: =LOOKUP(I8,Names!$A$2:$A$161,Names!$B$2:$B$161) -> كريم إيهاب عامر | K8: 116 | L8: 0 | M8: 17 | N8: 17 | O8: 8 | P8: =LOOKUP(O8,Names!$A$2:$A$161,Names!$B$2:$B$161) -> إيهاب محمد الزهيري | Q8: 160 | R8: 0 | S8: 21 | T8: 21 | U8: 48 | V8: =LOOKUP(U8,Names!$A$2:$A$161,Names!$B$2:$B$161) -> محمد ناجي زاهر بلبع | W8: 81 | X8: 0 | Y8: 13 | Z8: 13 | AB8: 48 | AC8: =LOOKUP(AB8,Names!$A$2:$A$161,Names!$B$2:$B$161) -> محمد ناجي زاهر بلبع | AD8: 182 | AE8: 119 | AF8: 146 | AG8: 81 | AH8: 528 | AI8: 0 | AJ8: 0 | AK8: 0 | AL8: 0 | AM8: 0 | AN8: 21 | AO8: 15.5 | AP8: 16 | AQ8: 13 | AR8: 65.5 | AS8: 65.5 | AT8: 4 | AV8: 48 | AW8: =AV8 -> 48
A9: Tabel ( 2 ) | B9: N | C9: 5 | D9: =LOOKUP(C9,Names!$A$2:$A$161,Names!$B$2:$B$161) -> محمد عصام الدين القاضي | E9: 136 | F9: 0 | G9: 17 | H9: 17 | I9: 2 | J9: =LOOKUP(I9,Names!$A$2:$A$161,Names!$B$2:$B$161) -> شريف أحمد محمد حمروش | K9: 51 | L9: 0 | M9: 2 | N9: 2 | O9: 2 | P9: =LOOKUP(O9,Names!$A$2:$A$161,Names!$B$2:$B$161) -> شريف أحمد محمد حمروش | Q9: 113 | R9: 0 | S9: 12 | T9: 12 | U9: 74 | V9: =LOOKUP(U9,Names!$A$2:$A$161,Names!$B$2:$B$161) -> فريدة شكري | W9: 85 | X9: 0 | Y9: 9 | Z9: 9 | AB9: 58 | AC9: =LOOKUP(AB9,Names!$A$2:$A$161,Names!$B$2:$B$161) -> أحمد إبراهيم غانم | AD9: 165 | AE9: 94 | AF9: 106 | AG9: 135 | AH9: 500 | AI9: 0 | AJ9: 0 | AK9: 0 | AL9: 0 | AM9: 0 | AN9: 16 | AO9: 12 | AP9: 17.5 | AQ9: 19 | AR9: 64.5 | AS9: 64.5 | AT9: 5 | AV9: 5 | AW9: =AV10 -> 74
B10: W | C10: 6 | D10: =LOOKUP(C10,Names!$A$2:$A$161,Names!$B$2:$B$161) -> إبراهيم عرفان السقا | E10: 126 | F10: 0 | G10: 14 | H10: 14 | I10: 22 | J10: =LOOKUP(I10,Names!$A$2:$A$161,Names!$B$2:$B$161) -> طه إبراهيم طه | K10: 151 | L10: 0 | M10: 16.5 | N10: 16.5 | O10: 25 | P10: =LOOKUP(O10,Names!$A$2:$A$161,Names!$B$2:$B$161) -> خالد شباره | Q10: 35 | R10: 0 | S10: 6 | T10: 6 | U10: 63 | V10: =LOOKUP(U10,Names!$A$2:$A$161,Names!$B$2:$B$161) -> محمد أحمد محمد عبد الله | W10: 149 | X10: 0 | Y10: 17 | Z10: 17 | AB10: 15 | AC10: =LOOKUP(AB10,Names!$A$2:$A$161,Names!$B$2:$B$161) -> أحمد رمزي الديب | AD10: 190 | AE10: 172 | AF10: 90 | AG10: 178 | AH10: 630 | AI10: 0 | AJ10: 0 | AK10: 0 | AL10: 0 | AM10: 0 | AN10: 17 | AO10: 19 | AP10: 8 | AQ10: 19 | AR10: 63 | AS10: 63 | AT10: 6 | AV10: 74 | AW10: =AV11 -> 63
B11: S | C11: 7 | D11: =LOOKUP(C11,Names!$A$2:$A$161,Names!$B$2:$B$161) -> باسم أسحق صموائيل | E11: 87 | F11: 0 | G11: 6 | H11: 6 | I11: 42 | J11: =LOOKUP(I11,Names!$A$2:$A$161,Names!$B$2:$B$161) -> محمد عبد الهادي أبو القاسم | K11: 119 | L11: 0 | M11: 15.5 | N11: 15.5 | O11: 12 | P11: =LOOKUP(O11,Names!$A$2:$A$161,Names!$B$2:$B$161) -> أمير كمال جميل | Q11: 147 | R11: 0 | S11: 17.5 | T11: 17.5 | U11: 52 | V11: =LOOKUP(U11,Names!$A$2:$A$161,Names!$B$2:$B$161) -> يامن محمد حسن | W11: 17 | X11: 0 | Y11: 4 | Z11: 4 | AB11: 69 | AC11: =LOOKUP(AB11,Names!$A$2:$A$161,Names!$B$2:$B$161) -> أحمد علي السيد شرع | AD11: 92 | AE11: 136 | AF11: 152 | AG11: 140 | AH11: 520 | AI11: 0 | AJ11: 0 | AK11: 0 | AL11: 0 | AM11: 0 | AN11: 8.5 | AO11: 18 | AP11: 16 | AQ11: 18 | AR11: 60.5 | AS11: 60.5 | AT11: 7 | AV11: 63 | AW11: =AV12 -> 52
B12: E | C12: 8 | D12: =LOOKUP(C12,Names!$A$2:$A$161,Names!$B$2:$B$161) -> إيهاب محمد الزهيري | E12: 78 | F12: 0 | G12: 9 | H12: 9 | I12: 62 | J12: =LOOKUP(I12,Names!$A$2:$A$161,Names!$B$2:$B$161) -> محمد محمود مسعود | K12: 78 | L12: 0 | M12: 10 | N12: 10 | O12: 15 | P12: =LOOKUP(O12,Names!$A$2:$A$161,Names!$B$2:$B$161) -> أحمد رمزي الديب | Q12: 90 | R12: 0 | S12: 8 | T12: 8 | U12: 5 | V12: =LOOKUP(U12,Names!$A$2:$A$161,Names!$B$2:$B$161) -> محمد عصام الدين القاضي | W12: 53 | X12: 0 | Y12: 9 | Z12: 9 | AB12: 14 | AC12: =LOOKUP(AB12,Names!$A$2:$A$161,Names!$B$2:$B$161) -> عماد محمد فؤاد | AD12: 56 | AE12: 119 | AF12: 201 | AG12: 172 | AH12: 548 | AI12: 0 | AJ12: 0 | AK12: 0 | AL12: 0 | AM12: 0 | AN12: 5.5 | AO12: 14 | AP12: 19 | AQ12: 21 | AR12: 59.5 | AS12: 59.5 | AT12: 8 | AV12: 52 | AW12: =AV9 -> 5
A13: Tabel ( 3 ) | B13: N | C13: 9 | D13: =LOOKUP(C13,Names!$A$2:$A$161,Names!$B$2:$B$161) -> رأفت الصياد | E13: 36 | F13: 0 | G13: 2 | H13: 2 | I13: 3 | J13: =LOOKUP(I13,Names!$A$2:$A$161,Names!$B$2:$B$161) -> إيهاب يوسف عمارة | K13: 108 | L13: 0 | M13: 11 | N13: 11 | O13: 19 | P13: =LOOKUP(O13,Names!$A$2:$A$161,Names!$B$2:$B$161) -> إبراهيم عنتر | Q13: 94 | R13: 0 | S13: 9 | T13: 9 | U13: 67 | V13: =LOOKUP(U13,Names!$A$2:$A$161,Names!$B$2:$B$161) -> محمد محمود فضل | W13: 119 | X13: 0 | Y13: 16 | Z13: 16 | AB13: 21 | AC13: =LOOKUP(AB13,Names!$A$2:$A$161,Names!$B$2:$B$161) -> أحمد محمد حمدي صالح | AD13: 196 | AE13: 112 | AF13: 77 | AG13: 160 | AH13: 545 | AI13: 0 | AJ13: 0 | AK13: 0 | AL13: 0 | AM13: 0 | AN13: 21 | AO13: 7 | AP13: 12 | AQ13: 19 | AR13: 59 | AS13: 59 | AT13: 9 | AV13: 9 | AW13: =AV15 -> 67
B14: W | C14: 10 | D14: =LOOKUP(C14,Names!$A$2:$A$161,Names!$B$2:$B$161) -> نبيل خلف زكي حسنين | E14: 165 | F14: 0 | G14: 16 | H14: 16 | I14: 23 | J14: =LOOKUP(I14,Names!$A$2:$A$161,Names!$B$2:$B$161) -> مصطفى يوسف محمد | K14: 69 | L14: 0 | M14: 4 | N14: 4 | O14: 16 | P14: =LOOKUP(O14,Names!$A$2:$A$161,Names!$B$2:$B$161) -> عبد الرحمن سعد موسى | Q14: 90 | R14: 0 | S14: 13.5 | T14: 13.5 | U14: 56 | V14: =LOOKUP(U14,Names!$A$2:$A$161,Names!$B$2:$B$161) -> جاسر محمد | W14: 120 | X14: 0 | Y14: 14.5 | Z14: 14.5 | AB14: 42 | AC14: =LOOKUP(AB14,Names!$A$2:$A$161,Names!$B$2:$B$161) -> محمد عبد الهادي أبو القاسم | AD14: 55 | AE14: 119 | AF14: 153 | AG14: 177 | AH14: 504 | AI14: 0 | AJ14: 0 | AK14: 0 | AL14: 0 | AM14: 0 | AN14: 4 | AO14: 15.5 | AP14: 18 | AQ14: 21 | AR14: 58.5 | AS14: 58.5 | AT14: 10 | AV14: 78 | AW14: =AV16 -> 56
B15: S | C15: 11 | D15: =LOOKUP(C15,Names!$A$2:$A$161,Names!$B$2:$B$161) -> معتز محمد مدبولي | E15: 17 | F15: 0 | G15: 3 | H15: 3 | I15: 43 | J15: =LOOKUP(I15,Names!$A$2:$A$161,Names!$B$2:$B$161) -> أمير محمد خطاب | K15: 49 | L15: 0 | M15: 6 | N15: 6 | O15: 29 | P15: =LOOKUP(O15,Names!$A$2:$A$161,Names!$B$2:$B$161) -> عبد الرحمن عثمان | Q15: 39 | R15: 0 | S15: 1 | T15: 1 | U15: 9 | V15: =LOOKUP(U15,Names!$A$2:$A$161,Names!$B$2:$B$161) -> رأفت الصياد | W15: 184 | X15: 0 | Y15: 21 | Z15: 21 | AB15: 49 | AC15: =LOOKUP(AB15,Names!$A$2:$A$161,Names!$B$2:$B$161) -> هيثم العشماوي | AD15: 126 | AE15: 78 | AF15: 106 | AG15: 126 | AH15: 436 | AI15: 0 | AJ15: 0 | AK15: 0 | AL15: 0 | AM15: 0 | AN15: 14 | AO15: 10 | AP15: 17.5 | AQ15: 17 | AR15: 58.5 | AS15: 58.5 | AT15: 11 | AV15: 67 | AW15: =AV13 -> 9
B16: E | C16: 12 | D16: =LOOKUP(C16,Names!$A$2:$A$161,Names!$B$2:$B$161) -> أمير كمال جميل | E16: 98 | F16: 0 | G16: 12 | H16: 12 | I16: 63 | J16: =LOOKUP(I16,Names!$A$2:$A$161,Names!$B$2:$B$161) -> محمد أحمد محمد عبد الله | K16: 102 | L16: 0 | M16: 14 | N16: 14 | O16: 6 | P16: =LOOKUP(O16,Names!$A$2:$A$161,Names!$B$2:$B$161) -> إبراهيم عرفان السقا | Q16: 96 | R16: 0 | S16: 10 | T16: 10 | U16: 78 | V16: =LOOKUP(U16,Names!$A$2:$A$161,Names!$B$2:$B$161) -> حسام الخلفاوي | W16: 20 | X16: 0 | Y16: 5 | Z16: 5 | AB16: 51 | AC16: =LOOKUP(AB16,Names!$A$2:$A$161,Names!$B$2:$B$161) -> أحمد أحمد مرسي عبد الله | AD16: 111 | AE16: 121 | AF16: 112 | AG16: 132 | AH16: 476 | AI16: 0 | AJ16: 0 | AK16: 0 | AL16: 0 | AM16: 0 | AN16: 9 | AO16: 17 | AP16: 13 | AQ16: 18 | AR16: 57 | AS16: 57 | AT16: 12 | AV16: 56 | AW16: =AV14 -> 78
A17: Tabel ( 4 ) | B17: N | C17: 13 | D17: =LOOKUP(C17,Names!$A$2:$A$161,Names!$B$2:$B$161) -> أحمد جميل السيد | E17: 83 | F17: 0 | G17: 6 | H17: 6 | I17: 4 | J17: =LOOKUP(I17,Names!$A$2:$A$161,Names!$B$2:$B$161) -> محمد سعيد الفطاطري | K17: 190 | L17: 0 | M17: 21 | N17: 21 | O17: 33 | P17: =LOOKUP(O17,Names!$A$2:$A$161,Names!$B$2:$B$161) -> أحمد بسيوني | Q17: 129 | R17: 0 | S17: 13 | T17: 13 | U17: 60 | V17: =LOOKUP(U17,Names!$A$2:$A$161,Names!$B$2:$B$161) -> عصام الدين حامد منصور | W17: 90 | X17: 0 | Y17: 11 | Z17: 11 | AB17: 66 | AC17: =LOOKUP(AB17,Names!$A$2:$A$161,Names!$B$2:$B$161) -> أحمد فؤاد حسنين | AD17: 174 | AE17: 140 | AF17: 98 | AG17: 63 | AH17: 475 | AI17: 0 | AJ17: 0 | AK17: 0 | AL17: 0 | AM17: 0 | AN17: 18 | AO17: 20 | AP17: 11 | AQ17: 8 | AR17: 57 | AS17: 57 | AT17: 13 | AV17: 13 | AW17: =AV20 -> 60
B18: W | C18: 14 | D18: =LOOKUP(C18,Names!$A$2:$A$161,Names!$B$2:$B$161) -> عماد محمد فؤاد | E18: 56 | F18: 0 | G18: 5.5 | H18: 5.5 | I18: 24 | J18: =LOOKUP(I18,Names!$A$2:$A$161,Names!$B$2:$B$161) -> هيثم محمد شبانة | K18: 134 | L18: 0 | M18: 13 | N18: 13 | O18: 10 | P18: =LOOKUP(O18,Names!$A$2:$A$161,Names!$B$2:$B$161) -> نبيل خلف زكي حسنين | Q18: 12 | R18: 0 | S18: 3 | T18: 3 | U18: 13 | V18: =LOOKUP(U18,Names!$A$2:$A$161,Names!$B$2:$B$161) -> أحمد جميل السيد | W18: 120 | X18: 0 | Y18: 14.5 | Z18: 14.5 | AB18: 56 | AC18: =LOOKUP(AB18,Names!$A$2:$A$161,Names!$B$2:$B$161) -> جاسر محمد | AD18: 70 | AE18: 135 | AF18: 122 | AG18: 120 | AH18: 447 | AI18: 0 | AJ18: 0 | AK18: 0 | AL18: 0 | AM18: 0 | AN18: 7 | AO18: 18 | AP18: 15 | AQ18: 14.5 | AR18: 54.5 | AS18: 54.5 | AT18: 14 | AV18: 2 | AW18: =AV17 -> 13
B19: S | C19: 15 | D19: =LOOKUP(C19,Names!$A$2:$A$161,Names!$B$2:$B$161) -> أحمد رمزي الديب | E19: 190 | F19: 0 | G19: 17 | H19: 17 | I19: 44 | J19: =LOOKUP(I19,Names!$A$2:$A$161,Names!$B$2:$B$161) -> جمال السيد توفيق محمد | K19: 22 | L19: 0 | M19: 5 | N19: 5 | O19: 23 | P19: =LOOKUP(O19,Names!$A$2:$A$161,Names!$B$2:$B$161) -> مصطفى يوسف محمد | Q19: 136 | R19: 0 | S19: 15 | T19: 15 | U19: 2 | V19: =LOOKUP(U19,Names!$A$2:$A$161,Names!$B$2:$B$161) -> شريف أحمد محمد حمروش | W19: 61 | X19: 0 | Y19: 7 | Z19: 7 | AB19: 8 | AC19: =LOOKUP(AB19,Names!$A$2:$A$161,Names!$B$2:$B$161) -> إيهاب محمد الزهيري | AD19: 78 | AE19: 93 | AF19: 160 | AG19: 141 | AH19: 472 | AI19: 0 | AJ19: 0 | AK19: 0 | AL19: 0 | AM19: 0 | AN19: 9 | AO19: 8 | AP19: 21 | AQ19: 16 | AR19: 54 | AS19: 54 | AT19: 15 | AV19: 71 | AW19: =AV18 -> 2
B20: E | C20: 16 | D20: =LOOKUP(C20,Names!$A$2:$A$161,Names!$B$2:$B$161) -> عبد الرحمن سعد موسى | E20: 46 | F20: 0 | G20: 5 | H20: 5 | I20: 64 | J20: =LOOKUP(I20,Names!$A$2:$A$161,Names!$B$2:$B$161) -> وليد شعبان إسماعيل علي | K20: -8 | L20: 0 | M20: -5 | N20: -5 | O20: 20 | P20: =LOOKUP(O20,Names!$A$2:$A$161,Names!$B$2:$B$161) -> إسلام قاسم | Q20: 64 | R20: 0 | S20: 4 | T20: 4 | U20: 71 | V20: =LOOKUP(U20,Names!$A$2:$A$161,Names!$B$2:$B$161) -> معتز محمد | W20: 98 | X20: 0 | Y20: 14 | Z20: 14 | AB20: 41 | AC20: =LOOKUP(AB20,Names!$A$2:$A$161,Names!$B$2:$B$161) -> خالد مصطفى عزت | AD20: 133 | AE20: 97 | AF20: 93 | AG20: 149 | AH20: 472 | AI20: 0 | AJ20: 0 | AK20: 0 | AL20: 0 | AM20: 0 | AN20: 16 | AO20: 13 | AP20: 7 | AQ20: 18 | AR20: 54 | AS20: 54 | AT20: 16 | AV20: 60 | AW20: =AV19 -> 71
A21: Tabel ( 5 ) | B21: N | C21: 17 | D21: =LOOKUP(C21,Names!$A$2:$A$161,Names!$B$2:$B$161) -> أحمد علي خليل حسن | E21: 38 | F21: 0 | G21: 3 | H21: 3 | I21: 5 | J21: =LOOKUP(I21,Names!$A$2:$A$161,Names!$B$2:$B$161) -> محمد عصام الدين القاضي | K21: 118 | L21: 0 | M21: 13 | N21: 13 | O21: 14 | P21: =LOOKUP(O21,Names!$A$2:$A$161,Names!$B$2:$B$161) -> عماد محمد فؤاد | Q21: 201 | R21: 0 | S21: 19 | T21: 19 | U21: 17 | V21: =LOOKUP(U21,Names!$A$2:$A$161,Names!$B$2:$B$161) -> أحمد علي خليل حسن | W21: 114 | X21: 0 | Y21: 15 | Z21: 15 | AB21: 20 | AC21: =LOOKUP(AB21,Names!$A$2:$A$161,Names!$B$2:$B$161) -> إسلام قاسم | AD21: 106 | AE21: 146 | AF21: 64 | AG21: 144 | AH21: 460 | AI21: 0 | AJ21: 0 | AK21: 0 | AL21: 0 | AM21: 0 | AN21: 15 | AO21: 17 | AP21: 4 | AQ21: 17 | AR21: 53 | AS21: 53 | AT21: 17 | AV21: 17 | AW21: =AV21 -> 17
B22: W | C22: 18 | D22: =LOOKUP(C22,Names!$A$2:$A$161,Names!$B$2:$B$161) -> أحمد ممدوح عبد الدايم | E22: -19 | F22: 0 | G22: -6 | H22: -6 | I22: 25 | J22: =LOOKUP(I22,Names!$A$2:$A$161,Names!$B$2:$B$161) -> خالد شباره | K22: 160 | L22: 0 | M22: 18.5 | N22: 18.5 | O22: 37 | P22: =LOOKUP(O22,Names!$A$2:$A$161,Names!$B$2:$B$161) -> حمدي محمود عبد العزيز | Q22: 68 | R22: 0 | S22: 11 | T22: 11 | U22: 6 | V22: =LOOKUP(U22,Names!$A$2:$A$161,Names!$B$2:$B$161) -> إبراهيم عرفان السقا | W22: 62 | X22: 0 | Y22: 3 | Z22: 3 | AB22: 68 | AC22: =LOOKUP(AB22,Names!$A$2:$A$161,Names!$B$2:$B$161) -> مصطفى إسماعيل | AD22: 84 | AE22: 113 | AF22: 159 | AG22: 67 | AH22: 423 | AI22: 0 | AJ22: 0 | AK22: 0 | AL22: 0 | AM22: 0 | AN22: 10 | AO22: 15 | AP22: 19 | AQ22: 9 | AR22: 53 | AS22: 53 | AT22: 18 | AV22: 6 | AW22: =AV22 -> 6
B23: S | C23: 19 | D23: =LOOKUP(C23,Names!$A$2:$A$161,Names!$B$2:$B$161) -> إبراهيم عنتر | E23: 167 | F23: 0 | G23: 16 | H23: 16 | I23: 45 | J23: =LOOKUP(I23,Names!$A$2:$A$161,Names!$B$2:$B$161) -> رضا هنري | K23: -12 | L23: 0 | M23: -5 | N23: -5 | O23: 24 | P23: =LOOKUP(O23,Names!$A$2:$A$161,Names!$B$2:$B$161) -> هيثم محمد شبانة | Q23: 92 | R23: 0 | S23: 6 | T23: 6 | U23: 75 | V23: =LOOKUP(U23,Names!$A$2:$A$161,Names!$B$2:$B$161) -> محمود سليمان | W23: 76 | X23: 0 | Y23: 11 | Z23: 11 | AB23: 67 | AC23: =LOOKUP(AB23,Names!$A$2:$A$161,Names!$B$2:$B$161) -> محمد محمود فضل | AD23: 118 | AE23: 73 | AF23: 148 | AG23: 119 | AH23: 458 | AI23: 0 | AJ23: 0 | AK23: 0 | AL23: 0 | AM23: 0 | AN23: 11 | AO23: 9 | AP23: 15 | AQ23: 16 | AR23: 51 | AS23: 51 | AT23: 19 | AV23: 75 | AW23: =AV23 -> 75
B24: E | C24: 20 | D24: =LOOKUP(C24,Names!$A$2:$A$161,Names!$B$2:$B$161) -> إسلام قاسم | E24: 106 | F24: 0 | G24: 15 | H24: 15 | I24: 65 | J24: =LOOKUP(I24,Names!$A$2:$A$161,Names!$B$2:$B$161) -> أحمد طارق | K24: 83 | L24: 0 | M24: 11 | N24: 11 | O24: 27 | P24: =LOOKUP(O24,Names!$A$2:$A$161,Names!$B$2:$B$161) -> سمير الحوفي | Q24: 92 | R24: 0 | S24: 9 | T24: 9 | U24: 64 | V24: =LOOKUP(U24,Names!$A$2:$A$161,Names!$B$2:$B$161) -> وليد شعبان إسماعيل علي | W24: 15 | X24: 0 | Y24: 3 | Z24: 3 | AB24: 39 | AC24: =LOOKUP(AB24,Names!$A$2:$A$161,Names!$B$2:$B$161) -> إسلام أحمد السيد عمر | AD24: 115 | AE24: 136 | AF24: 124 | AG24: 60 | AH24: 435 | AI24: 0 | AJ24: 0 | AK24: 0 | AL24: 0 | AM24: 0 | AN24: 10 | AO24: 15 | AP24: 16 | AQ24: 10 | AR24: 51 | AS24: 51 | AT24: 20 | AV24: 64 | AW24: =AV24 -> 64
A25: Tabel ( 6 ) | B25: N | C25: 21 | D25: =LOOKUP(C25,Names!$A$2:$A$161,Names!$B$2:$B$161) -> أحمد محمد حمدي صالح | E25: 196 | F25: 0 | G25: 21 | H25: 21 | I25: 6 | J25: =LOOKUP(I25,Names!$A$2:$A$161,Names!$B$2:$B$161) -> إبراهيم عرفان السقا | K25: 142 | L25: 0 | M25: 15.5 | N25: 15.5 | O25: 31 | P25: =LOOKUP(O25,Names!$A$2:$A$161,Names!$B$2:$B$161) -> ماجد محمد فكري | Q25: 57 | R25: 0 | S25: 3 | T25: 3 | U25: 10 | V25: =LOOKUP(U25,Names!$A$2:$A$161,Names!$B$2:$B$161) -> نبيل خلف زكي حسنين | W25: 99 | X25: 0 | Y25: 12 | Z25: 12 | AB25: 72 | AC25: =LOOKUP(AB25,Names!$A$2:$A$161,Names!$B$2:$B$161) -> أحمد سمير خلف | AD25: 140 | AE25: 140 | AF25: 64 | AG25: 98 | AH25: 442 | AI25: 0 | AJ25: 0 | AK25: 0 | AL25: 0 | AM25: 0 | AN25: 17 | AO25: 20 | AP25: 5 | AQ25: 8 | AR25: 50 | AS25: 50 | AT25: 21 | AV25: 21 | AW25: =AV26 -> 10
B26: W | C26: 22 | D26: =LOOKUP(C26,Names!$A$2:$A$161,Names!$B$2:$B$161) -> طه إبراهيم طه | E26: 56 | F26: 0 | G26: 5.5 | H26: 5.5 | I26: 26 | J26: =LOOKUP(I26,Names!$A$2:$A$161,Names!$B$2:$B$161) -> أحمد الطنطاوي | K26: 126 | L26: 0 | M26: 9 | N26: 9 | O26: 28 | P26: =LOOKUP(O26,Names!$A$2:$A$161,Names!$B$2:$B$161) -> عمرو محسن فرج | Q26: 110 | R26: 0 | S26: 19 | T26: 19 | U26: 79 | V26: =LOOKUP(U26,Names!$A$2:$A$161,Names!$B$2:$B$161) -> محمد علي حسن طه الأمام | W26: 101 | X26: 0 | Y26: 11 | Z26: 11 | AB26: 7 | AC26: =LOOKUP(AB26,Names!$A$2:$A$161,Names!$B$2:$B$161) -> باسم أسحق صموائيل | AD26: 87 | AE26: 112 | AF26: 121 | AG26: 129 | AH26: 449 | AI26: 0 | AJ26: 0 | AK26: 0 | AL26: 0 | AM26: 0 | AN26: 6 | AO26: 12 | AP26: 14 | AQ26: 17 | AR26: 49 | AS26: 49 | AT26: 22 | AV26: 10 | AW26: =AV27 -> 79
B27: S | C27: 23 | D27: =LOOKUP(C27,Names!$A$2:$A$161,Names!$B$2:$B$161) -> مصطفى يوسف محمد | E27: 107 | F27: 0 | G27: 8 | H27: 8 | I27: 46 | J27: =LOOKUP(I27,Names!$A$2:$A$161,Names!$B$2:$B$161) -> علاء شوقي جبريل | K27: -30 | L27: 0 | M27: -6 | N27: -6 | O27: 41 | P27: =LOOKUP(O27,Names!$A$2:$A$161,Names!$B$2:$B$161) -> خالد مصطفى عزت | Q27: 93 | R27: 0 | S27: 7 | T27: 7 | U27: 68 | V27: =LOOKUP(U27,Names!$A$2:$A$161,Names!$B$2:$B$161) -> مصطفى إسماعيل | W27: 67 | X27: 0 | Y27: 9 | Z27: 9 | AB27: 10 | AC27: =LOOKUP(AB27,Names!$A$2:$A$161,Names!$B$2:$B$161) -> نبيل خلف زكي حسنين | AD27: 165 | AE27: 164 | AF27: 12 | AG27: 99 | AH27: 440 | AI27: 0 | AJ27: 0 | AK27: 0 | AL27: 0 | AM27: 0 | AN27: 16 | AO27: 18 | AP27: 3 | AQ27: 12 | AR27: 49 | AS27: 49 | AT27: 23 | AV27: 79 | AW27: =AV28 -> 68
B28: E | C28: 24 | D28: =LOOKUP(C28,Names!$A$2:$A$161,Names!$B$2:$B$161) -> هيثم محمد شبانة | E28: -37 | F28: 0 | G28: -6 | H28: -6 | I28: 66 | J28: =LOOKUP(I28,Names!$A$2:$A$161,Names!$B$2:$B$161) -> أحمد فؤاد حسنين | K28: 140 | L28: 0 | M28: 20 | N28: 20 | O28: 18 | P28: =LOOKUP(O28,Names!$A$2:$A$161,Names!$B$2:$B$161) -> أحمد ممدوح عبد الدايم | Q28: 78 | R28: 0 | S28: 7 | T28: 7 | U28: 21 | V28: =LOOKUP(U28,Names!$A$2:$A$161,Names!$B$2:$B$161) -> أحمد محمد حمدي صالح | W28: 160 | X28: 0 | Y28: 19 | Z28: 19 | AB28: 25 | AC28: =LOOKUP(AB28,Names!$A$2:$A$161,Names!$B$2:$B$161) -> خالد شباره | AD28: 149 | AE28: 160 | AF28: 35 | AG28: 59 | AH28: 403 | AI28: 0 | AJ28: 0 | AK28: 0 | AL28: 0 | AM28: 0 | AN28: 18 | AO28: 18.5 | AP28: 6 | AQ28: 6 | AR28: 48.5 | AS28: 48.5 | AT28: 24 | AV28: 68 | AW28: =AV25 -> 21
A29: Tabel ( 7 ) | B29: N | C29: 25 | D29: =LOOKUP(C29,Names!$A$2:$A$161,Names!$B$2:$B$161) -> خالد شباره | E29: 149 | F29: 0 | G29: 18 | H29: 18 | I29: 7 | J29: =LOOKUP(I29,Names!$A$2:$A$161,Names!$B$2:$B$161) -> باسم أسحق صموائيل | K29: 112 | L29: 0 | M29: 12 | N29: 12 | O29: 45 | P29: =LOOKUP(O29,Names!$A$2:$A$161,Names!$B$2:$B$161) -> رضا هنري | Q29: 168 | R29: 0 | S29: 18 | T29: 18 | U29: 3 | V29: =LOOKUP(U29,Names!$A$2:$A$161,Names!$B$2:$B$161) -> إيهاب يوسف عمارة | W29: 65 | X29: 0 | Y29: 5 | Z29: 5 | AB29: 43 | AC29: =LOOKUP(AB29,Names!$A$2:$A$161,Names!$B$2:$B$161) -> أمير محمد خطاب | AD29: 203 | AE29: 49 | AF29: 110 | AG29: 68 | AH29: 430 | AI29: 0 | AJ29: 0 | AK29: 0 | AL29: 0 | AM29: 0 | AN29: 21 | AO29: 6 | AP29: 11 | AQ29: 10 | AR29: 48 | AS29: 48 | AT29: 25 | AV29: 25 | AW29: =AV31 -> 3
B30: W | C30: 26 | D30: =LOOKUP(C30,Names!$A$2:$A$161,Names!$B$2:$B$161) -> أحمد الطنطاوي | E30: 85 | F30: 0 | G30: 9 | H30: 9 | I30: 27 | J30: =LOOKUP(I30,Names!$A$2:$A$161,Names!$B$2:$B$161) -> سمير الحوفي | K30: 70 | L30: 0 | M30: 5 | N30: 5 | O30: 22 | P30: =LOOKUP(O30,Names!$A$2:$A$161,Names!$B$2:$B$161) -> طه إبراهيم طه | Q30: 56 | R30: 0 | S30: 8 | T30: 8 | U30: 72 | V30: =LOOKUP(U30,Names!$A$2:$A$161,Names!$B$2:$B$161) -> أحمد سمير خلف | W30: 98 | X30: 0 | Y30: 8 | Z30: 8 | AB30: 77 | AC30: =LOOKUP(AB30,Names!$A$2:$A$161,Names!$B$2:$B$161) -> محمد محمود شعبان | AD30: 92 | AE30: 96 | AF30: 119 | AG30: 119 | AH30: 426 | AI30: 0 | AJ30: 0 | AK30: 0 | AL30: 0 | AM30: 0 | AN30: 8.5 | AO30: 12 | AP30: 14 | AQ30: 13 | AR30: 47.5 | AS30: 47.5 | AT30: 26 | AV30: 14 | AW30: =AV32 -> 72
B31: S | C31: 27 | D31: =LOOKUP(C31,Names!$A$2:$A$161,Names!$B$2:$B$161) -> سمير الحوفي | E31: -4 | F31: 0 | G31: -5 | H31: -5 | I31: 47 | J31: =LOOKUP(I31,Names!$A$2:$A$161,Names!$B$2:$B$161) -> هاني فكري المراكبي | K31: 177 | L31: 0 | M31: 21 | N31: 21 | O31: 35 | P31: =LOOKUP(O31,Names!$A$2:$A$161,Names!$B$2:$B$161) -> عمرو عماد الدين أبوالعلا | Q31: 98 | R31: 0 | S31: 10 | T31: 10 | U31: 25 | V31: =LOOKUP(U31,Names!$A$2:$A$161,Names!$B$2:$B$161) -> خالد شباره | W31: 59 | X31: 0 | Y31: 6 | Z31: 6 | AB31: 12 | AC31: =LOOKUP(AB31,Names!$A$2:$A$161,Names!$B$2:$B$161) -> أمير كمال جميل | AD31: 98 | AE31: 67 | AF31: 147 | AG31: 106 | AH31: 418 | AI31: 0 | AJ31: 0 | AK31: 0 | AL31: 0 | AM31: 0 | AN31: 12 | AO31: 5 | AP31: 17.5 | AQ31: 13 | AR31: 47.5 | AS31: 47.5 | AT31: 27 | AV31: 3 | AW31: =AV29 -> 25
B32: E | C32: 28 | D32: =LOOKUP(C32,Names!$A$2:$A$161,Names!$B$2:$B$161) -> عمرو محسن فرج | E32: 121 | F32: 0 | G32: 16 | H32: 16 | I32: 67 | J32: =LOOKUP(I32,Names!$A$2:$A$161,Names!$B$2:$B$161) -> محمد محمود فضل | K32: 73 | L32: 0 | M32: 9 | N32: 9 | O32: 32 | P32: =LOOKUP(O32,Names!$A$2:$A$161,Names!$B$2:$B$161) -> حمزة أحمد محمد | Q32: 40 | R32: 0 | S32: 3 | T32: 3 | U32: 14 | V32: =LOOKUP(U32,Names!$A$2:$A$161,Names!$B$2:$B$161) -> عماد محمد فؤاد | W32: 172 | X32: 0 | Y32: 21 | Z32: 21 | AB32: 3 | AC32: =LOOKUP(AB32,Names!$A$2:$A$161,Names!$B$2:$B$161) -> إيهاب يوسف عمارة | AD32: 133 | AE32: 108 | AF32: 165 | AG32: 65 | AH32: 471 | AI32: 0 | AJ32: 0 | AK32: 0 | AL32: 0 | AM32: 0 | AN32: 12 | AO32: 11 | AP32: 19 | AQ32: 5 | AR32: 47 | AS32: 47 | AT32: 28 | AV32: 72 | AW32: =AV30 -> 14
A33: Tabel ( 8 ) | B33: N | C33: 29 | D33: =LOOKUP(C33,Names!$A$2:$A$161,Names!$B$2:$B$161) -> عبد الرحمن عثمان | E33: 103 | F33: 0 | G33: 12 | H33: 12 | I33: 8 | J33: =LOOKUP(I33,Names!$A$2:$A$161,Names!$B$2:$B$161) -> إيهاب محمد الزهيري | K33: 93 | L33: 0 | M33: 8 | N33: 8 | O33: 26 | P33: =LOOKUP(O33,Names!$A$2:$A$161,Names!$B$2:$B$161) -> أحمد الطنطاوي | Q33: 98 | R33: 0 | S33: 10 | T33: 10 | U33: 76 | V33: =LOOKUP(U33,Names!$A$2:$A$161,Names!$B$2:$B$161) -> محمد إبراهيم قطب | W33: 55 | X33: 0 | Y33: 4 | Z33: 4 | AB33: 31 | AC33: =LOOKUP(AB33,Names!$A$2:$A$161,Names!$B$2:$B$161) -> ماجد محمد فكري | AD33: 166 | AE33: 151 | AF33: 57 | AG33: 116 | AH33: 490 | AI33: 0 | AJ33: 0 | AK33: 0 | AL33: 0 | AM33: 0 | AN33: 15 | AO33: 16.5 | AP33: 3 | AQ33: 12 | AR33: 46.5 | AS33: 46.5 | AT33: 29 | AV33: 29 | AW33: =AV36 -> 76
B34: W | C34: 30 | D34: =LOOKUP(C34,Names!$A$2:$A$161,Names!$B$2:$B$161) -> شريف جلال سماحة | E34: 180 | F34: 0 | G34: 19 | H34: 19 | I34: 28 | J34: =LOOKUP(I34,Names!$A$2:$A$161,Names!$B$2:$B$161) -> عمرو محسن فرج | K34: 55 | L34: 0 | M34: 2 | N34: 2 | O34: 49 | P34: =LOOKUP(O34,Names!$A$2:$A$161,Names!$B$2:$B$161) -> هيثم العشماوي | Q34: 106 | R34: 0 | S34: 17.5 | T34: 17.5 | U34: 29 | V34: =LOOKUP(U34,Names!$A$2:$A$161,Names!$B$2:$B$161) -> عبد الرحمن عثمان | W34: 73 | X34: 0 | Y34: 5 | Z34: 5 | AB34: 52 | AC34: =LOOKUP(AB34,Names!$A$2:$A$161,Names!$B$2:$B$161) -> يامن محمد حسن | AD34: 142 | AE34: 61 | AF34: 99 | AG34: 17 | AH34: 319 | AI34: 0 | AJ34: 0 | AK34: 0 | AL34: 0 | AM34: 0 | AN34: 18 | AO34: 8 | AP34: 16 | AQ34: 4 | AR34: 46 | AS34: 46 | AT34: 30 | AV34: 18 | AW34: =AV33 -> 29
B35: S | C35: 31 | D35: =LOOKUP(C35,Names!$A$2:$A$161,Names!$B$2:$B$161) -> ماجد محمد فكري | E35: 166 | F35: 0 | G35: 15 | H35: 15 | I35: 48 | J35: =LOOKUP(I35,Names!$A$2:$A$161,Names!$B$2:$B$161) -> محمد ناجي زاهر بلبع | K35: 119 | L35: 0 | M35: 15.5 | N35: 15.5 | O35: 36 | P35: =LOOKUP(O35,Names!$A$2:$A$161,Names!$B$2:$B$161) -> أحمد عبد الفتاح عرفه | Q35: 42 | R35: 0 | S35: 2 | T35: 2 | U35: 18 | V35: =LOOKUP(U35,Names!$A$2:$A$161,Names!$B$2:$B$161) -> أحمد ممدوح عبد الدايم | W35: -22 | X35: 0 | Y35: -6 | Z35: -6 | AB35: 13 | AC35: =LOOKUP(AB35,Names!$A$2:$A$161,Names!$B$2:$B$161) -> أحمد جميل السيد | AD35: 83 | AE35: 142 | AF35: 96 | AG35: 120 | AH35: 441 | AI35: 0 | AJ35: 0 | AK35: 0 | AL35: 0 | AM35: 0 | AN35: 6 | AO35: 15.5 | AP35: 9 | AQ35: 14.5 | AR35: 45 | AS35: 45 | AT35: 31 | AV35: 7 | AW35: =AV34 -> 18
B36: E | C36: 32 | D36: =LOOKUP(C36,Names!$A$2:$A$161,Names!$B$2:$B$161) -> حمزة أحمد محمد | E36: 12 | F36: 0 | G36: 4 | H36: 4 | I36: 68 | J36: =LOOKUP(I36,Names!$A$2:$A$161,Names!$B$2:$B$161) -> مصطفى إسماعيل | K36: 113 | L36: 0 | M36: 15 | N36: 15 | O36: 39 | P36: =LOOKUP(O36,Names!$A$2:$A$161,Names!$B$2:$B$161) -> إسلام أحمد السيد عمر | Q36: 124 | R36: 0 | S36: 16 | T36: 16 | U36: 7 | V36: =LOOKUP(U36,Names!$A$2:$A$161,Names!$B$2:$B$161) -> باسم أسحق صموائيل | W36: 129 | X36: 0 | Y36: 17 | Z36: 17 | AB36: 33 | AC36: =LOOKUP(AB36,Names!$A$2:$A$161,Names!$B$2:$B$161) -> أحمد بسيوني | AD36: 131 | AE36: 63 | AF36: 129 | AG36: 112 | AH36: 435 | AI36: 0 | AJ36: 0 | AK36: 0 | AL36: 0 | AM36: 0 | AN36: 15 | AO36: 3 | AP36: 13 | AQ36: 14 | AR36: 45 | AS36: 45 | AT36: 32 | AV36: 76 | AW36: =AV35 -> 7
A37: Tabel ( 9 ) | B37: N | C37: 33 | D37: =LOOKUP(C37,Names!$A$2:$A$161,Names!$B$2:$B$161) -> أحمد بسيوني | E37: 131 | F37: 0 | G37: 15 | H37: 15 | I37: 9 | J37: =LOOKUP(I37,Names!$A$2:$A$161,Names!$B$2:$B$161) -> رأفت الصياد | K37: 83 | L37: 0 | M37: 7 | N37: 7 | O37: 43 | P37: =LOOKUP(O37,Names!$A$2:$A$161,Names!$B$2:$B$161) -> أمير محمد خطاب | Q37: 110 | R37: 0 | S37: 11 | T37: 11 | U37: 33 | V37: =LOOKUP(U37,Names!$A$2:$A$161,Names!$B$2:$B$161) -> أحمد بسيوني | W37: 112 | X37: 0 | Y37: 14 | Z37: =X37+Y37 -> 14 | AB37: 63 | AC37: =LOOKUP(AB37,Names!$A$2:$A$161,Names!$B$2:$B$161) -> محمد أحمد محمد عبد الله | AD37: =IF(ISNA(VLOOKUP(AB37,$C$5:$H$164,3,FALSE))=TRUE,"",VLOOKUP(AB37,$C$5:$H$164,3,FALSE)) -> 97 | AE37: =IF(ISNA(VLOOKUP(AB37,$I$5:$N$164,3,FALSE))=TRUE,"",VLOOKUP(AB37,$I$5:$N$164,3,FALSE)) -> 102 | AF37: =IF(ISNA(VLOOKUP(AB37,$O$5:$T$164,3,FALSE))=TRUE,"",VLOOKUP(AB37,$O$5:$T$164,3,FALSE)) -> 77 | AG37: =IF(ISNA(VLOOKUP(AB37,$U$5:$Z$164,3,FALSE))=TRUE,"",VLOOKUP(AB37,$U$5:$Z$164,3,FALSE)) -> 149 | AH37: =SUM(AD37:AG37) -> 425 | AI37: =IF(ISNA(VLOOKUP(AB37,$C$5:$H$164,4,FALSE))=TRUE,"",VLOOKUP(AB37,$C$5:$H$164,4,FALSE)) -> 0 | AJ37: =IF(ISNA(VLOOKUP(AB37,$I$5:$N$164,4,FALSE))=TRUE,"",VLOOKUP(AB37,$I$5:$N$164,4,FALSE)) -> 0 | AK37: =IF(ISNA(VLOOKUP(AB37,$O$5:$T$164,4,FALSE))=TRUE,"",VLOOKUP(AB37,$O$5:$T$164,4,FALSE)) -> 0 | AL37: =IF(ISNA(VLOOKUP(AB37,$U$5:$Z$164,4,FALSE))=TRUE,"",VLOOKUP(AB37,$U$5:$Z$164,4,FALSE)) -> 0 | AM37: =SUM(AI37:AL37) -> 0 | AN37: =IF(ISNA(VLOOKUP(AB37,$C$5:$H$164,5,FALSE))=TRUE,"",VLOOKUP(AB37,$C$5:$H$164,5,FALSE)) -> 7 | AO37: =IF(ISNA(VLOOKUP(AB37,$I$5:$N$164,5,FALSE))=TRUE,"",VLOOKUP(AB37,$I$5:$N$164,5,FALSE)) -> 14 | AP37: =IF(ISNA(VLOOKUP(AB37,$O$5:$T$164,5,FALSE))=TRUE,"",VLOOKUP(AB37,$O$5:$T$164,5,FALSE)) -> 6 | AQ37: =IF(ISNA(VLOOKUP(AB37,$U$5:$Z$164,5,FALSE))=TRUE,"",VLOOKUP(AB37,$U$5:$Z$164,5,FALSE)) -> 17 | AR37: =SUM(AN37:AQ37) -> 44 | AS37: =AM37+AR37 -> 44 | AT37: 33 | AV37: 33 | AW37: =AV37 -> 33
B38: W | C38: 34 | D38: =LOOKUP(C38,Names!$A$2:$A$161,Names!$B$2:$B$161) -> عماد الدين جمعة هلال | E38: -6 | F38: 0 | G38: -5 | H38: -5 | I38: 29 | J38: =LOOKUP(I38,Names!$A$2:$A$161,Names!$B$2:$B$161) -> عبد الرحمن عثمان | K38: 114 | L38: 0 | M38: 8 | N38: 8 | O38: 40 | P38: =LOOKUP(O38,Names!$A$2:$A$161,Names!$B$2:$B$161) -> احمد محمود عبد الرزاق | Q38: 28 | R38: 0 | S38: 5 | T38: 5 | U38: 22 | V38: =LOOKUP(U38,Names!$A$2:$A$161,Names!$B$2:$B$161) -> طه إبراهيم طه | W38: 99 | X38: 0 | Y38: 9 | Z38: 9 | AB38: 4 | AC38: =LOOKUP(AB38,Names!$A$2:$A$161,Names!$B$2:$B$161) -> محمد سعيد الفطاطري | AD38: 103 | AE38: 190 | AF38: 56 | AG38: 45 | AH38: 394 | AI38: 0 | AJ38: 0 | AK38: 0 | AL38: 0 | AM38: 0 | AN38: 14 | AO38: 21 | AP38: 4 | AQ38: 5 | AR38: 44 | AS38: 44 | AT38: 34 | AV38: 22 | AW38: =AV38 -> 22
B39: S | C39: 35 | D39: =LOOKUP(C39,Names!$A$2:$A$161,Names!$B$2:$B$161) -> عمرو عماد الدين أبوالعلا | E39: 142 | F39: 0 | G39: 13 | H39: 13 | I39: 49 | J39: =LOOKUP(I39,Names!$A$2:$A$161,Names!$B$2:$B$161) -> هيثم العشماوي | K39: 78 | L39: 0 | M39: 10 | N39: 10 | O39: 53 | P39: =LOOKUP(O39,Names!$A$2:$A$161,Names!$B$2:$B$161) -> أحمد محمد شوقي هيبه | Q39: 104 | R39: 0 | S39: 12.5 | T39: 12.5 | U39: 11 | V39: =LOOKUP(U39,Names!$A$2:$A$161,Names!$B$2:$B$161) -> معتز محمد مدبولي | W39: 77 | X39: 0 | Y39: 12 | Z39: 12 | AB39: 5 | AC39: =LOOKUP(AB39,Names!$A$2:$A$161,Names!$B$2:$B$161) -> محمد عصام الدين القاضي | AD39: 136 | AE39: 118 | AF39: 70 | AG39: 53 | AH39: 377 | AI39: 0 | AJ39: 0 | AK39: 0 | AL39: 0 | AM39: 0 | AN39: 17 | AO39: 13 | AP39: 5 | AQ39: 9 | AR39: 44 | AS39: 44 | AT39: 35 | AV39: 11 | AW39: =AV39 -> 11
B40: E | C40: 36 | D40: =LOOKUP(C40,Names!$A$2:$A$161,Names!$B$2:$B$161) -> أحمد عبد الفتاح عرفه | E40: 100 | F40: 0 | G40: 13 | H40: 13 | I40: 69 | J40: =LOOKUP(I40,Names!$A$2:$A$161,Names!$B$2:$B$161) -> أحمد علي السيد شرع | K40: 136 | L40: 0 | M40: 18 | N40: 18 | O40: 30 | P40: =LOOKUP(O40,Names!$A$2:$A$161,Names!$B$2:$B$161) -> شريف جلال سماحة | Q40: 137 | R40: 0 | S40: 17 | T40: 17 | U40: 80 | V40: =LOOKUP(U40,Names!$A$2:$A$161,Names!$B$2:$B$161) -> أمن حسام | W40: 44 | X40: 0 | Y40: 8 | Z40: 8 | AB40: 35 | AC40: =LOOKUP(AB40,Names!$A$2:$A$161,Names!$B$2:$B$161) -> عمرو عماد الدين أبوالعلا | AD40: 142 | AE40: 160 | AF40: 98 | AG40: 45 | AH40: 445 | AI40: 0 | AJ40: 0 | AK40: 0 | AL40: 0 | AM40: 0 | AN40: 13 | AO40: 18.5 | AP40: 10 | AQ40: 2 | AR40: 43.5 | AS40: 43.5 | AT40: 36 | AV40: 80 | AW40: =AV40 -> 80
A41: Tabel ( 10 ) | B41: N | C41: 37 | D41: =LOOKUP(C41,Names!$A$2:$A$161,Names!$B$2:$B$161) -> حمدي محمود عبد العزيز | E41: 91 | F41: 0 | G41: 7 | H41: 7 | I41: 10 | J41: =LOOKUP(I41,Names!$A$2:$A$161,Names!$B$2:$B$161) -> نبيل خلف زكي حسنين | K41: 164 | L41: 0 | M41: 18 | N41: 18 | O41: 57 | P41: =LOOKUP(O41,Names!$A$2:$A$161,Names!$B$2:$B$161) -> مصطفى كامل الشحري | Q41: 63 | R41: 0 | S41: 4 | T41: 4 | U41: 26 | V41: =LOOKUP(U41,Names!$A$2:$A$161,Names!$B$2:$B$161) -> أحمد الطنطاوي | W41: 74 | X41: 0 | Y41: 6 | Z41: 6 | AB41: 74 | AC41: =LOOKUP(AB41,Names!$A$2:$A$161,Names!$B$2:$B$161) -> فريدة شكري | AD41: 187 | AE41: 43 | AF41: 82 | AG41: 85 | AH41: 397 | AI41: 0 | AJ41: 0 | AK41: 0 | AL41: 0 | AM41: 0 | AN41: 21 | AO41: 6 | AP41: 7.5 | AQ41: 9 | AR41: 43.5 | AS41: 43.5 | AT41: 37 | AV41: 37 | AW41: =AV42 -> 26
B42: W | C42: 38 | D42: =LOOKUP(C42,Names!$A$2:$A$161,Names!$B$2:$B$161) -> أسامة لطفي نجيب | E42: 124 | F42: 0 | G42: 13 | H42: 13 | I42: 30 | J42: =LOOKUP(I42,Names!$A$2:$A$161,Names!$B$2:$B$161) -> شريف جلال سماحة | K42: 216 | L42: 0 | M42: 21 | N42: 21 | O42: 34 | P42: =LOOKUP(O42,Names!$A$2:$A$161,Names!$B$2:$B$161) -> عماد الدين جمعة هلال | Q42: 66 | R42: 0 | S42: 10 | T42: 10 | U42: 15 | V42: =LOOKUP(U42,Names!$A$2:$A$161,Names!$B$2:$B$161) -> أحمد رمزي الديب | W42: 178 | X42: 0 | Y42: 19 | Z42: 19 | AB42: 6 | AC42: =LOOKUP(AB42,Names!$A$2:$A$161,Names!$B$2:$B$161) -> إبراهيم عرفان السقا | AD42: 126 | AE42: 142 | AF42: 96 | AG42: 62 | AH42: 426 | AI42: 0 | AJ42: 0 | AK42: 0 | AL42: 0 | AM42: 0 | AN42: 14 | AO42: 15.5 | AP42: 10 | AQ42: 3 | AR42: 42.5 | AS42: 42.5 | AT42: 38 | AV42: 26 | AW42: =AV43 -> 15
B43: S | C43: 39 | D43: =LOOKUP(C43,Names!$A$2:$A$161,Names!$B$2:$B$161) -> إسلام أحمد السيد عمر | E43: 115 | F43: 0 | G43: 10 | H43: 10 | I43: 50 | J43: =LOOKUP(I43,Names!$A$2:$A$161,Names!$B$2:$B$161) -> فادي ناجح | K43: -7 | L43: 0 | M43: -4 | N43: -4 | O43: 47 | P43: =LOOKUP(O43,Names!$A$2:$A$161,Names!$B$2:$B$161) -> هاني فكري المراكبي | Q43: 173 | R43: 0 | S43: 21 | T43: 21 | U43: 4 | V43: =LOOKUP(U43,Names!$A$2:$A$161,Names!$B$2:$B$161) -> محمد سعيد الفطاطري | W43: 45 | X43: 0 | Y43: 5 | Z43: 5 | AB43: 38 | AC43: =LOOKUP(AB43,Names!$A$2:$A$161,Names!$B$2:$B$161) -> أسامة لطفي نجيب | AD43: 124 | AE43: 107 | AF43: 157 | AG43: 81 | AH43: 469 | AI43: 0 | AJ43: 0 | AK43: 0 | AL43: 0 | AM43: 0 | AN43: 13 | AO43: 6 | AP43: 17 | AQ43: 6 | AR43: 42 | AS43: 42 | AT43: 39 | AV43: 15 | AW43: =AV44 -> 4
B44: E | C44: 40 | D44: =LOOKUP(C44,Names!$A$2:$A$161,Names!$B$2:$B$161) -> احمد محمود عبد الرزاق | E44: 150 | F44: 0 | G44: 19 | H44: 19 | I44: 70 | J44: =LOOKUP(I44,Names!$A$2:$A$161,Names!$B$2:$B$161) -> أحمد صلاح الدين دياب | K44: 36 | L44: 0 | M44: 4 | N44: 4 | O44: 44 | P44: =LOOKUP(O44,Names!$A$2:$A$161,Names!$B$2:$B$161) -> جمال السيد توفيق محمد | Q44: 69 | R44: 0 | S44: 5 | T44: 5 | U44: 37 | V44: =LOOKUP(U44,Names!$A$2:$A$161,Names!$B$2:$B$161) -> حمدي محمود عبد العزيز | W44: 77 | X44: 0 | Y44: 11.5 | Z44: 11.5 | AB44: 17 | AC44: =LOOKUP(AB44,Names!$A$2:$A$161,Names!$B$2:$B$161) -> أحمد علي خليل حسن | AD44: 38 | AE44: 57 | AF44: 202 | AG44: 114 | AH44: 411 | AI44: 0 | AJ44: 0 | AK44: 0 | AL44: 0 | AM44: 0 | AN44: 3 | AO44: 3 | AP44: 21 | AQ44: 15 | AR44: 42 | AS44: 42 | AT44: 40 | AV44: 4 | AW44: =AV41 -> 37
A45: Tabel ( 11 ) | B45: N | C45: 41 | D45: =LOOKUP(C45,Names!$A$2:$A$161,Names!$B$2:$B$161) -> خالد مصطفى عزت | E45: 133 | F45: 0 | G45: 16 | H45: 16 | I45: 11 | J45: =LOOKUP(I45,Names!$A$2:$A$161,Names!$B$2:$B$161) -> معتز محمد مدبولي | K45: 103 | L45: 0 | M45: 9 | N45: 9 | O45: 38 | P45: =LOOKUP(O45,Names!$A$2:$A$161,Names!$B$2:$B$161) -> أسامة لطفي نجيب | Q45: 157 | R45: 0 | S45: 17 | T45: 17 | U45: 19 | V45: =LOOKUP(U45,Names!$A$2:$A$161,Names!$B$2:$B$161) -> إبراهيم عنتر | W45: 13 | X45: 0 | Y45: 1 | Z45: 1 | AB45: 11 | AC45: =LOOKUP(AB45,Names!$A$2:$A$161,Names!$B$2:$B$161) -> معتز محمد مدبولي | AD45: 17 | AE45: 103 | AF45: 147 | AG45: 77 | AH45: 344 | AI45: 0 | AJ45: 0 | AK45: 0 | AL45: 0 | AM45: 0 | AN45: 3 | AO45: 9 | AP45: 17.5 | AQ45: 12 | AR45: 41.5 | AS45: 41.5 | AT45: 41 | AV45: 41 | AW45: =AV47 -> 19
B46: W | C46: 42 | D46: =LOOKUP(C46,Names!$A$2:$A$161,Names!$B$2:$B$161) -> محمد عبد الهادي أبو القاسم | E46: 55 | F46: 0 | G46: 4 | H46: 4 | I46: 31 | J46: =LOOKUP(I46,Names!$A$2:$A$161,Names!$B$2:$B$161) -> ماجد محمد فكري | K46: 151 | L46: 0 | M46: 16.5 | N46: 16.5 | O46: 61 | P46: =LOOKUP(O46,Names!$A$2:$A$161,Names!$B$2:$B$161) -> كريم إيهاب عامر | Q46: 59 | R46: 0 | S46: 9 | T46: 9 | U46: 8 | V46: =LOOKUP(U46,Names!$A$2:$A$161,Names!$B$2:$B$161) -> إيهاب محمد الزهيري | W46: 141 | X46: 0 | Y46: 16 | Z46: 16 | AB46: 61 | AC46: =LOOKUP(AB46,Names!$A$2:$A$161,Names!$B$2:$B$161) -> كريم إيهاب عامر | AD46: 75 | AE46: 116 | AF46: 59 | AG46: 100 | AH46: 350 | AI46: 0 | AJ46: 0 | AK46: 0 | AL46: 0 | AM46: 0 | AN46: 5 | AO46: 17 | AP46: 9 | AQ46: 10 | AR46: 41 | AS46: 41 | AT46: 42 | AV46: 30 | AW46: =AV48 -> 8
B47: S | C47: 43 | D47: =LOOKUP(C47,Names!$A$2:$A$161,Names!$B$2:$B$161) -> أمير محمد خطاب | E47: 203 | F47: 0 | G47: 21 | H47: 21 | I47: 51 | J47: =LOOKUP(I47,Names!$A$2:$A$161,Names!$B$2:$B$161) -> أحمد أحمد مرسي عبد الله | K47: 121 | L47: 0 | M47: 17 | N47: 17 | O47: 48 | P47: =LOOKUP(O47,Names!$A$2:$A$161,Names!$B$2:$B$161) -> محمد ناجي زاهر بلبع | Q47: 146 | R47: 0 | S47: 16 | T47: 16 | U47: 41 | V47: =LOOKUP(U47,Names!$A$2:$A$161,Names!$B$2:$B$161) -> خالد مصطفى عزت | W47: 149 | X47: 0 | Y47: 18 | Z47: 18 | AB47: 54 | AC47: =LOOKUP(AB47,Names!$A$2:$A$161,Names!$B$2:$B$161) -> تامر رشاد | AD47: 100 | AE47: 55 | AF47: 30 | AG47: 203 | AH47: 388 | AI47: 0 | AJ47: 0 | AK47: 0 | AL47: 0 | AM47: 0 | AN47: 10 | AO47: 7 | AP47: 2 | AQ47: 21 | AR47: 40 | AS47: 40 | AT47: 43 | AV47: 19 | AW47: =AV45 -> 41
B48: E | C48: 44 | D48: =LOOKUP(C48,Names!$A$2:$A$161,Names!$B$2:$B$161) -> جمال السيد توفيق محمد | E48: 87 | F48: 0 | G48: 11 | H48: 11 | I48: 71 | J48: =LOOKUP(I48,Names!$A$2:$A$161,Names!$B$2:$B$161) -> معتز محمد | K48: 30 | L48: 0 | M48: 3 | N48: 3 | O48: 51 | P48: =LOOKUP(O48,Names!$A$2:$A$161,Names!$B$2:$B$161) -> أحمد أحمد مرسي عبد الله | Q48: 112 | R48: 0 | S48: 13 | T48: 13 | U48: 30 | V48: =LOOKUP(U48,Names!$A$2:$A$161,Names!$B$2:$B$161) -> شريف جلال سماحة | W48: 127 | X48: 0 | Y48: 16 | Z48: 16 | AB48: 65 | AC48: =LOOKUP(AB48,Names!$A$2:$A$161,Names!$B$2:$B$161) -> أحمد طارق | AD48: 98 | AE48: 83 | AF48: 101 | AG48: 77 | AH48: 359 | AI48: 0 | AJ48: 0 | AK48: 0 | AL48: 0 | AM48: 0 | AN48: 11 | AO48: 11 | AP48: 11 | AQ48: 7 | AR48: 40 | AS48: 40 | AT48: 44 | AV48: 8 | AW48: =AV46 -> 30
A49: Tabel ( 12 ) | B49: N | C49: 45 | D49: =LOOKUP(C49,Names!$A$2:$A$161,Names!$B$2:$B$161) -> رضا هنري | E49: 25 | F49: 0 | G49: 1 | H49: 1 | I49: 12 | J49: =LOOKUP(I49,Names!$A$2:$A$161,Names!$B$2:$B$161) -> أمير كمال جميل | K49: 67 | L49: 0 | M49: 5 | N49: 5 | O49: 55 | P49: =LOOKUP(O49,Names!$A$2:$A$161,Names!$B$2:$B$161) -> ناجي بلبع | Q49: 4 | R49: 0 | S49: 1 | T49: 1 | U49: 12 | V49: =LOOKUP(U49,Names!$A$2:$A$161,Names!$B$2:$B$161) -> أمير كمال جميل | W49: 106 | X49: 0 | Y49: 13 | Z49: 13 | AB49: 40 | AC49: =LOOKUP(AB49,Names!$A$2:$A$161,Names!$B$2:$B$161) -> احمد محمود عبد الرزاق | AD49: 150 | AE49: 135 | AF49: 28 | AG49: 36 | AH49: 349 | AI49: 0 | AJ49: 0 | AK49: 0 | AL49: 0 | AM49: 0 | AN49: 19 | AO49: 14 | AP49: 5 | AQ49: 2 | AR49: 40 | AS49: 40 | AT49: 45 | AV49: 45 | AW49: =AV52 -> 12
B50: W | C50: 46 | D50: =LOOKUP(C50,Names!$A$2:$A$161,Names!$B$2:$B$161) -> علاء شوقي جبريل | E50: 165 | F50: 0 | G50: 16 | H50: 16 | I50: 32 | J50: =LOOKUP(I50,Names!$A$2:$A$161,Names!$B$2:$B$161) -> حمزة أحمد محمد | K50: 130 | L50: 0 | M50: 12 | N50: 12 | O50: 52 | P50: =LOOKUP(O50,Names!$A$2:$A$161,Names!$B$2:$B$161) -> يامن محمد حسن | Q50: 99 | R50: 0 | S50: 16 | T50: 16 | U50: 45 | V50: =LOOKUP(U50,Names!$A$2:$A$161,Names!$B$2:$B$161) -> رضا هنري | W50: 177 | X50: 0 | Y50: 18 | Z50: 18 | AB50: 28 | AC50: =LOOKUP(AB50,Names!$A$2:$A$161,Names!$B$2:$B$161) -> عمرو محسن فرج | AD50: 121 | AE50: 55 | AF50: 110 | AG50: 49 | AH50: 335 | AI50: 0 | AJ50: 0 | AK50: 0 | AL50: 0 | AM50: 0 | AN50: 16 | AO50: 2 | AP50: 19 | AQ50: 3 | AR50: 40 | AS50: 40 | AT50: 46 | AV50: 34 | AW50: =AV49 -> 45
B51: S | C51: 47 | D51: =LOOKUP(C51,Names!$A$2:$A$161,Names!$B$2:$B$161) -> هاني فكري المراكبي | E51: -11 | F51: 0 | G51: -6 | H51: -6 | I51: 52 | J51: =LOOKUP(I51,Names!$A$2:$A$161,Names!$B$2:$B$161) -> يامن محمد حسن | K51: 61 | L51: 0 | M51: 8 | N51: 8 | O51: 65 | P51: =LOOKUP(O51,Names!$A$2:$A$161,Names!$B$2:$B$161) -> أحمد طارق | Q51: 101 | R51: 0 | S51: 11 | T51: 11 | U51: 34 | V51: =LOOKUP(U51,Names!$A$2:$A$161,Names!$B$2:$B$161) -> عماد الدين جمعة هلال | W51: 8 | X51: 0 | Y51: 3 | Z51: 3 | AB51: 79 | AC51: =LOOKUP(AB51,Names!$A$2:$A$161,Names!$B$2:$B$161) -> محمد علي حسن طه الأمام | AD51: 193 | AE51: 54 | AF51: 46 | AG51: 101 | AH51: 394 | AI51: 0 | AJ51: 0 | AK51: 0 | AL51: 0 | AM51: 0 | AN51: 18 | AO51: 8 | AP51: 2 | AQ51: 11 | AR51: 39 | AS51: 39 | AT51: 47 | AV51: 23 | AW51: =AV50 -> 34
B52: E | C52: 48 | D52: =LOOKUP(C52,Names!$A$2:$A$161,Names!$B$2:$B$161) -> محمد ناجي زاهر بلبع | E52: 182 | F52: 0 | G52: 21 | H52: 21 | I52: 72 | J52: =LOOKUP(I52,Names!$A$2:$A$161,Names!$B$2:$B$161) -> أحمد سمير خلف | K52: 140 | L52: 0 | M52: 20 | N52: 20 | O52: 42 | P52: =LOOKUP(O52,Names!$A$2:$A$161,Names!$B$2:$B$161) -> محمد عبد الهادي أبو القاسم | Q52: 153 | R52: 0 | S52: 18 | T52: 18 | U52: 23 | V52: =LOOKUP(U52,Names!$A$2:$A$161,Names!$B$2:$B$161) -> مصطفى يوسف محمد | W52: -40 | X52: 0 | Y52: -6 | Z52: -6 | AB52: 22 | AC52: =LOOKUP(AB52,Names!$A$2:$A$161,Names!$B$2:$B$161) -> طه إبراهيم طه | AD52: 56 | AE52: 151 | AF52: 56 | AG52: 99 | AH52: 362 | AI52: 0 | AJ52: 0 | AK52: 0 | AL52: 0 | AM52: 0 | AN52: 5.5 | AO52: 16.5 | AP52: 8 | AQ52: 9 | AR52: 39 | AS52: 39 | AT52: 48 | AV52: 12 | AW52: =AV51 -> 23
A53: Tabel ( 13 ) | B53: N | C53: 49 | D53: =LOOKUP(C53,Names!$A$2:$A$161,Names!$B$2:$B$161) -> هيثم العشماوي | E53: 126 | F53: 0 | G53: 14 | H53: 14 | I53: 13 | J53: =LOOKUP(I53,Names!$A$2:$A$161,Names!$B$2:$B$161) -> أحمد جميل السيد | K53: 142 | L53: 0 | M53: 15.5 | N53: 15.5 | O53: 69 | P53: =LOOKUP(O53,Names!$A$2:$A$161,Names!$B$2:$B$161) -> أحمد علي السيد شرع | Q53: 152 | R53: 0 | S53: 16 | T53: 16 | U53: 49 | V53: =LOOKUP(U53,Names!$A$2:$A$161,Names!$B$2:$B$161) -> هيثم العشماوي | W53: 126 | X53: 0 | Y53: 17 | Z53: 17 | AB53: 36 | AC53: =LOOKUP(AB53,Names!$A$2:$A$161,Names!$B$2:$B$161) -> أحمد عبد الفتاح عرفه | AD53: 100 | AE53: 128 | AF53: 42 | AG53: 82 | AH53: 352 | AI53: 0 | AJ53: 0 | AK53: 0 | AL53: 0 | AM53: 0 | AN53: 13 | AO53: 10.5 | AP53: 2 | AQ53: 13 | AR53: 38.5 | AS53: 38.5 | AT53: 49 | AV53: 49 | AW53: =AV53 -> 49
B54: W | C54: 50 | D54: =LOOKUP(C54,Names!$A$2:$A$161,Names!$B$2:$B$161) -> فادي ناجح | E54: 101 | F54: 0 | G54: 11 | H54: 11 | I54: 33 | J54: =LOOKUP(I54,Names!$A$2:$A$161,Names!$B$2:$B$161) -> أحمد بسيوني | K54: 63 | L54: 0 | M54: 3 | N54: 3 | O54: 46 | P54: =LOOKUP(O54,Names!$A$2:$A$161,Names!$B$2:$B$161) -> علاء شوقي جبريل | Q54: 48 | R54: 0 | S54: 7 | T54: 7 | U54: 38 | V54: =LOOKUP(U54,Names!$A$2:$A$161,Names!$B$2:$B$161) -> أسامة لطفي نجيب | W54: 81 | X54: 0 | Y54: 6 | Z54: 6 | AB54: 53 | AC54: =LOOKUP(AB54,Names!$A$2:$A$161,Names!$B$2:$B$161) -> أحمد محمد شوقي هيبه | AD54: 104 | AE54: 72 | AF54: 104 | AG54: 16 | AH54: 296 | AI54: 0 | AJ54: 0 | AK54: 0 | AL54: 0 | AM54: 0 | AN54: 13 | AO54: 9 | AP54: 12.5 | AQ54: 4 | AR54: 38.5 | AS54: 38.5 | AT54: 50 | AV54: 38 | AW54: =AV54 -> 38
B55: S | C55: 51 | D55: =LOOKUP(C55,Names!$A$2:$A$161,Names!$B$2:$B$161) -> أحمد أحمد مرسي عبد الله | E55: 111 | F55: 0 | G55: 9 | H55: 9 | I55: 53 | J55: =LOOKUP(I55,Names!$A$2:$A$161,Names!$B$2:$B$161) -> أحمد محمد شوقي هيبه | K55: 72 | L55: 0 | M55: 9 | N55: 9 | O55: 59 | P55: =LOOKUP(O55,Names!$A$2:$A$161,Names!$B$2:$B$161) -> هشام أبوغربية | Q55: 104 | R55: 0 | S55: 12.5 | T55: 12.5 | U55: 27 | V55: =LOOKUP(U55,Names!$A$2:$A$161,Names!$B$2:$B$161) -> سمير الحوفي | W55: 3 | X55: 0 | Y55: 2 | Z55: 2 | AB55: 62 | AC55: =LOOKUP(AB55,Names!$A$2:$A$161,Names!$B$2:$B$161) -> محمد محمود مسعود | AD55: 77 | AE55: 78 | AF55: 134 | AG55: 37 | AH55: 326 | AI55: 0 | AJ55: 0 | AK55: 0 | AL55: 0 | AM55: 0 | AN55: 8 | AO55: 10 | AP55: 14 | AQ55: 6 | AR55: 38 | AS55: 38 | AT55: 51 | AV55: 27 | AW55: =AV55 -> 27
B56: E | C56: 52 | D56: =LOOKUP(C56,Names!$A$2:$A$161,Names!$B$2:$B$161) -> يامن محمد حسن | E56: 142 | F56: 0 | G56: 18 | H56: 18 | I56: 73 | J56: =LOOKUP(I56,Names!$A$2:$A$161,Names!$B$2:$B$161) -> مينا ناجح صبحي | K56: 98 | L56: 0 | M56: 13 | N56: 13 | O56: 56 | P56: =LOOKUP(O56,Names!$A$2:$A$161,Names!$B$2:$B$161) -> جاسر محمد | Q56: 122 | R56: 0 | S56: 15 | T56: 15 | U56: 16 | V56: =LOOKUP(U56,Names!$A$2:$A$161,Names!$B$2:$B$161) -> عبد الرحمن سعد موسى | W56: 77 | X56: 0 | Y56: 11.5 | Z56: 11.5 | AB56: 47 | AC56: =LOOKUP(AB56,Names!$A$2:$A$161,Names!$B$2:$B$161) -> هاني فكري المراكبي | AD56: -11 | AE56: 177 | AF56: 173 | AG56: 9 | AH56: 348 | AI56: 0 | AJ56: 0 | AK56: 0 | AL56: 0 | AM56: 0 | AN56: -6 | AO56: 21 | AP56: 21 | AQ56: 1 | AR56: 37 | AS56: 37 | AT56: 52 | AV56: 16 | AW56: =AV56 -> 16
A57: Tabel ( 14 ) | B57: N | C57: 53 | D57: =LOOKUP(C57,Names!$A$2:$A$161,Names!$B$2:$B$161) -> أحمد محمد شوقي هيبه | E57: 104 | F57: 0 | G57: 13 | H57: 13 | I57: 14 | J57: =LOOKUP(I57,Names!$A$2:$A$161,Names!$B$2:$B$161) -> عماد محمد فؤاد | K57: 119 | L57: 0 | M57: 14 | N57: 14 | O57: 50 | P57: =LOOKUP(O57,Names!$A$2:$A$161,Names!$B$2:$B$161) -> فادي ناجح | Q57: 82 | R57: 0 | S57: 7.5 | T57: 7.5 | U57: 42 | V57: =LOOKUP(U57,Names!$A$2:$A$161,Names!$B$2:$B$161) -> محمد عبد الهادي أبو القاسم | W57: 177 | X57: 0 | Y57: 21 | Z57: 21 | AB57: 19 | AC57: =LOOKUP(AB57,Names!$A$2:$A$161,Names!$B$2:$B$161) -> إبراهيم عنتر | AD57: 167 | AE57: 106 | AF57: 94 | AG57: 13 | AH57: 380 | AI57: 0 | AJ57: 0 | AK57: 0 | AL57: 0 | AM57: 0 | AN57: 16 | AO57: 10 | AP57: 9 | AQ57: 1 | AR57: 36 | AS57: 36 | AT57: 53 | AV57: 53 | AW57: =AV58 -> 42
B58: W | C58: 54 | D58: =LOOKUP(C58,Names!$A$2:$A$161,Names!$B$2:$B$161) -> تامر رشاد | E58: 100 | F58: 0 | G58: 10 | H58: 10 | I58: 34 | J58: =LOOKUP(I58,Names!$A$2:$A$161,Names!$B$2:$B$161) -> عماد الدين جمعة هلال | K58: 128 | L58: 0 | M58: 10.5 | N58: 10.5 | O58: 73 | P58: =LOOKUP(O58,Names!$A$2:$A$161,Names!$B$2:$B$161) -> مينا ناجح صبحي | Q58: 125 | R58: 0 | S58: 21 | T58: 21 | U58: 31 | V58: =LOOKUP(U58,Names!$A$2:$A$161,Names!$B$2:$B$161) -> ماجد محمد فكري | W58: 116 | X58: 0 | Y58: 12 | Z58: 12 | AB58: 70 | AC58: =LOOKUP(AB58,Names!$A$2:$A$161,Names!$B$2:$B$161) -> أحمد صلاح الدين دياب | AD58: 105 | AE58: 36 | AF58: 95 | AG58: 67 | AH58: 303 | AI58: 0 | AJ58: 0 | AK58: 0 | AL58: 0 | AM58: 0 | AN58: 12 | AO58: 4 | AP58: 15 | AQ58: 4 | AR58: 35 | AS58: 35 | AT58: 54 | AV58: 42 | AW58: =AV59 -> 31
B59: S | C59: 55 | D59: =LOOKUP(C59,Names!$A$2:$A$161,Names!$B$2:$B$161) -> ناجي بلبع | E59: 143 | F59: 0 | G59: 14 | H59: 14 | I59: 54 | J59: =LOOKUP(I59,Names!$A$2:$A$161,Names!$B$2:$B$161) -> تامر رشاد | K59: 55 | L59: 0 | M59: 7 | N59: 7 | O59: 60 | P59: =LOOKUP(O59,Names!$A$2:$A$161,Names!$B$2:$B$161) -> عصام الدين حامد منصور | Q59: 49 | R59: 0 | S59: 3 | T59: 3 | U59: 20 | V59: =LOOKUP(U59,Names!$A$2:$A$161,Names!$B$2:$B$161) -> إسلام قاسم | W59: 144 | X59: 0 | Y59: 17 | Z59: 17 | AB59: 26 | AC59: =LOOKUP(AB59,Names!$A$2:$A$161,Names!$B$2:$B$161) -> أحمد الطنطاوي | AD59: 85 | AE59: 126 | AF59: 98 | AG59: 74 | AH59: 383 | AI59: 0 | AJ59: 0 | AK59: 0 | AL59: 0 | AM59: 0 | AN59: 9 | AO59: 9 | AP59: 10 | AQ59: 6 | AR59: 34 | AS59: 34 | AT59: 55 | AV59: 31 | AW59: =AV60 -> 20
B60: E | C60: 56 | D60: =LOOKUP(C60,Names!$A$2:$A$161,Names!$B$2:$B$161) -> جاسر محمد | E60: 70 | F60: 0 | G60: 7 | H60: 7 | I60: 74 | J60: =LOOKUP(I60,Names!$A$2:$A$161,Names!$B$2:$B$161) -> فريدة شكري | K60: 43 | L60: 0 | M60: 6 | N60: 6 | O60: 63 | P60: =LOOKUP(O60,Names!$A$2:$A$161,Names!$B$2:$B$161) -> محمد أحمد محمد عبد الله | Q60: 77 | R60: 0 | S60: 6 | T60: 6 | U60: 53 | V60: =LOOKUP(U60,Names!$A$2:$A$161,Names!$B$2:$B$161) -> أحمد محمد شوقي هيبه | W60: 16 | X60: 0 | Y60: 4 | Z60: 4 | AB60: 60 | AC60: =LOOKUP(AB60,Names!$A$2:$A$161,Names!$B$2:$B$161) -> عصام الدين حامد منصور | AD60: 69 | AE60: 109 | AF60: 49 | AG60: 90 | AH60: 317 | AI60: 0 | AJ60: 0 | AK60: 0 | AL60: 0 | AM60: 0 | AN60: 6 | AO60: 14 | AP60: 3 | AQ60: 11 | AR60: 34 | AS60: 34 | AT60: 56 | AV60: 20 | AW60: =AV57 -> 53
A61: Tabel ( 15 ) | B61: N | C61: 57 | D61: =LOOKUP(C61,Names!$A$2:$A$161,Names!$B$2:$B$161) -> مصطفى كامل الشحري | E61: 50 | F61: 0 | G61: 4 | H61: 4 | I61: 15 | J61: =LOOKUP(I61,Names!$A$2:$A$161,Names!$B$2:$B$161) -> أحمد رمزي الديب | K61: 172 | L61: 0 | M61: 19 | N61: 19 | O61: 67 | P61: =LOOKUP(O61,Names!$A$2:$A$161,Names!$B$2:$B$161) -> محمد محمود فضل | Q61: 148 | R61: 0 | S61: 15 | T61: 15 | U61: 35 | V61: =LOOKUP(U61,Names!$A$2:$A$161,Names!$B$2:$B$161) -> عمرو عماد الدين أبوالعلا | W61: 45 | X61: 0 | Y61: 2 | Z61: 2 | AB61: 57 | AC61: =LOOKUP(AB61,Names!$A$2:$A$161,Names!$B$2:$B$161) -> مصطفى كامل الشحري | AD61: 50 | AE61: 85 | AF61: 63 | AG61: 101 | AH61: 299 | AI61: 0 | AJ61: 0 | AK61: 0 | AL61: 0 | AM61: 0 | AN61: 4 | AO61: 11 | AP61: 4 | AQ61: 15 | AR61: 34 | AS61: 34 | AT61: 57 | AV61: 57 | AW61: =AV63 -> 35
B62: W | C62: 58 | D62: =LOOKUP(C62,Names!$A$2:$A$161,Names!$B$2:$B$161) -> أحمد إبراهيم غانم | E62: 165 | F62: 0 | G62: 16 | H62: 16 | I62: 35 | J62: =LOOKUP(I62,Names!$A$2:$A$161,Names!$B$2:$B$161) -> عمرو عماد الدين أبوالعلا | K62: 160 | L62: 0 | M62: 18.5 | N62: 18.5 | O62: 64 | P62: =LOOKUP(O62,Names!$A$2:$A$161,Names!$B$2:$B$161) -> وليد شعبان إسماعيل علي | Q62: 14 | R62: 0 | S62: 4 | T62: 4 | U62: 24 | V62: =LOOKUP(U62,Names!$A$2:$A$161,Names!$B$2:$B$161) -> هيثم محمد شبانة | W62: 89 | X62: 0 | Y62: 7 | Z62: 7 | AB62: 16 | AC62: =LOOKUP(AB62,Names!$A$2:$A$161,Names!$B$2:$B$161) -> عبد الرحمن سعد موسى | AD62: 46 | AE62: 58 | AF62: 90 | AG62: 77 | AH62: 271 | AI62: 0 | AJ62: 0 | AK62: 0 | AL62: 0 | AM62: 0 | AN62: 5 | AO62: 4 | AP62: 13.5 | AQ62: 11.5 | AR62: 34 | AS62: 34 | AT62: 58 | AV62: 46 | AW62: =AV64 -> 24
B63: S | C63: 59 | D63: =LOOKUP(C63,Names!$A$2:$A$161,Names!$B$2:$B$161) -> هشام أبوغربية | E63: 195 | F63: 0 | G63: 19 | H63: 19 | I63: 55 | J63: =LOOKUP(I63,Names!$A$2:$A$161,Names!$B$2:$B$161) -> ناجي بلبع | K63: 18 | L63: 0 | M63: 4 | N63: 4 | O63: 77 | P63: =LOOKUP(O63,Names!$A$2:$A$161,Names!$B$2:$B$161) -> محمد محمود شعبان | Q63: 119 | R63: 0 | S63: 14 | T63: 14 | U63: 57 | V63: =LOOKUP(U63,Names!$A$2:$A$161,Names!$B$2:$B$161) -> مصطفى كامل الشحري | W63: 101 | X63: 0 | Y63: 15 | Z63: 15 | AB63: 45 | AC63: =LOOKUP(AB63,Names!$A$2:$A$161,Names!$B$2:$B$161) -> رضا هنري | AD63: 25 | AE63: -12 | AF63: 168 | AG63: 177 | AH63: 358 | AI63: 0 | AJ63: 0 | AK63: 0 | AL63: 0 | AM63: 0 | AN63: 1 | AO63: -5 | AP63: 18 | AQ63: 18 | AR63: 32 | AS63: 32 | AT63: 59 | AV63: 35 | AW63: =AV61 -> 57
B64: E | C64: 60 | D64: =LOOKUP(C64,Names!$A$2:$A$161,Names!$B$2:$B$161) -> عصام الدين حامد منصور | E64: 69 | F64: 0 | G64: 6 | H64: 6 | I64: 75 | J64: =LOOKUP(I64,Names!$A$2:$A$161,Names!$B$2:$B$161) -> محمود سليمان | K64: 37 | L64: 0 | M64: 5 | N64: 5 | O64: 54 | P64: =LOOKUP(O64,Names!$A$2:$A$161,Names!$B$2:$B$161) -> تامر رشاد | Q64: 30 | R64: 0 | S64: 2 | T64: 2 | U64: 46 | V64: =LOOKUP(U64,Names!$A$2:$A$161,Names!$B$2:$B$161) -> علاء شوقي جبريل | W64: 110 | X64: 0 | Y64: 15 | Z64: 15 | AB64: 9 | AC64: =LOOKUP(AB64,Names!$A$2:$A$161,Names!$B$2:$B$161) -> رأفت الصياد | AD64: 36 | AE64: 83 | AF64: 9 | AG64: 184 | AH64: 312 | AI64: 0 | AJ64: 0 | AK64: 0 | AL64: 0 | AM64: 0 | AN64: 2 | AO64: 7 | AP64: 2 | AQ64: 21 | AR64: 32 | AS64: 32 | AT64: 60 | AV64: 24 | AW64: =AV62 -> 46
A65: Tabel ( 16 ) | B65: N | C65: 61 | D65: =LOOKUP(C65,Names!$A$2:$A$161,Names!$B$2:$B$161) -> كريم إيهاب عامر | E65: 75 | F65: 0 | G65: 5 | H65: 5 | I65: 16 | J65: =LOOKUP(I65,Names!$A$2:$A$161,Names!$B$2:$B$161) -> عبد الرحمن سعد موسى | K65: 58 | L65: 0 | M65: 4 | N65: 4 | O65: 5 | P65: =LOOKUP(O65,Names!$A$2:$A$161,Names!$B$2:$B$161) -> محمد عصام الدين القاضي | Q65: 70 | R65: 0 | S65: 5 | T65: 5 | U65: 28 | V65: =LOOKUP(U65,Names!$A$2:$A$161,Names!$B$2:$B$161) -> عمرو محسن فرج | W65: 49 | X65: 0 | Y65: 3 | Z65: 3 | AB65: 46 | AC65: =LOOKUP(AB65,Names!$A$2:$A$161,Names!$B$2:$B$161) -> علاء شوقي جبريل | AD65: 165 | AE65: -30 | AF65: 48 | AG65: 110 | AH65: 293 | AI65: 0 | AJ65: 0 | AK65: 0 | AL65: 0 | AM65: 0 | AN65: 16 | AO65: -6 | AP65: 7 | AQ65: 15 | AR65: 32 | AS65: 32 | AT65: 61 | AV65: 61 | AW65: =AV68 -> 28
B66: W | C66: 62 | D66: =LOOKUP(C66,Names!$A$2:$A$161,Names!$B$2:$B$161) -> محمد محمود مسعود | E66: 77 | F66: 0 | G66: 8 | H66: 8 | I66: 36 | J66: =LOOKUP(I66,Names!$A$2:$A$161,Names!$B$2:$B$161) -> أحمد عبد الفتاح عرفه | K66: 128 | L66: 0 | M66: 10.5 | N66: 10.5 | O66: 58 | P66: =LOOKUP(O66,Names!$A$2:$A$161,Names!$B$2:$B$161) -> أحمد إبراهيم غانم | Q66: 106 | R66: 0 | S66: 17.5 | T66: 17.5 | U66: 61 | V66: =LOOKUP(U66,Names!$A$2:$A$161,Names!$B$2:$B$161) -> كريم إيهاب عامر | W66: 100 | X66: 0 | Y66: 10 | Z66: 10 | AB66: 75 | AC66: =LOOKUP(AB66,Names!$A$2:$A$161,Names!$B$2:$B$161) -> محمود سليمان | AD66: 48 | AE66: 37 | AF66: 100 | AG66: 76 | AH66: 261 | AI66: 0 | AJ66: 0 | AK66: 0 | AL66: 0 | AM66: 0 | AN66: 4 | AO66: 5 | AP66: 12 | AQ66: 11 | AR66: 32 | AS66: 32 | AT66: 62 | AV66: 50 | AW66: =AV65 -> 61
B67: S | C67: 63 | D67: =LOOKUP(C67,Names!$A$2:$A$161,Names!$B$2:$B$161) -> محمد أحمد محمد عبد الله | E67: 97 | F67: 0 | G67: 7 | H67: 7 | I67: 56 | J67: =LOOKUP(I67,Names!$A$2:$A$161,Names!$B$2:$B$161) -> جاسر محمد | K67: 135 | L67: 0 | M67: 18 | N67: 18 | O67: 71 | P67: =LOOKUP(O67,Names!$A$2:$A$161,Names!$B$2:$B$161) -> معتز محمد | Q67: 95 | R67: 0 | S67: 8 | T67: 8 | U67: 50 | V67: =LOOKUP(U67,Names!$A$2:$A$161,Names!$B$2:$B$161) -> فادي ناجح | W67: 83 | X67: 0 | Y67: 14 | Z67: 14 | AB67: 37 | AC67: =LOOKUP(AB67,Names!$A$2:$A$161,Names!$B$2:$B$161) -> حمدي محمود عبد العزيز | AD67: 91 | AE67: 15 | AF67: 68 | AG67: 77 | AH67: 251 | AI67: 0 | AJ67: 0 | AK67: 0 | AL67: 0 | AM67: 0 | AN67: 7 | AO67: 1 | AP67: 11 | AQ67: 11.5 | AR67: 30.5 | AS67: 30.5 | AT67: 63 | AV67: 39 | AW67: =AV66 -> 50
B68: E | C68: 64 | D68: =LOOKUP(C68,Names!$A$2:$A$161,Names!$B$2:$B$161) -> وليد شعبان إسماعيل علي | E68: 71 | F68: 0 | G68: 8 | H68: 8 | I68: 76 | J68: =LOOKUP(I68,Names!$A$2:$A$161,Names!$B$2:$B$161) -> محمد إبراهيم قطب | K68: 52 | L68: 0 | M68: 7 | N68: 7 | O68: 68 | P68: =LOOKUP(O68,Names!$A$2:$A$161,Names!$B$2:$B$161) -> مصطفى إسماعيل | Q68: 159 | R68: 0 | S68: 19 | T68: 19 | U68: 39 | V68: =LOOKUP(U68,Names!$A$2:$A$161,Names!$B$2:$B$161) -> إسلام أحمد السيد عمر | W68: 60 | X68: 0 | Y68: 10 | Z68: 10 | AB68: 71 | AC68: =LOOKUP(AB68,Names!$A$2:$A$161,Names!$B$2:$B$161) -> معتز محمد | AD68: 82 | AE68: 30 | AF68: 95 | AG68: 98 | AH68: 305 | AI68: 0 | AJ68: 0 | AK68: 0 | AL68: 0 | AM68: 0 | AN68: 5 | AO68: 3 | AP68: 8 | AQ68: 14 | AR68: 30 | AS68: 30 | AT68: 64 | AV68: 28 | AW68: =AV67 -> 39
A69: Tabel ( 17 ) | B69: N | C69: 65 | D69: =LOOKUP(C69,Names!$A$2:$A$161,Names!$B$2:$B$161) -> أحمد طارق | E69: 98 | F69: 0 | G69: 11 | H69: =F69+G69 -> 11 | I69: 17 | J69: =LOOKUP(I69,Names!$A$2:$A$161,Names!$B$2:$B$161) -> أحمد علي خليل حسن | K69: 57 | L69: 0 | M69: 3 | N69: =L69+M69 -> 3 | O69: 62 | P69: =LOOKUP(O69,Names!$A$2:$A$161,Names!$B$2:$B$161) -> محمد محمود مسعود | Q69: 134 | R69: 0 | S69: 14 | T69: =R69+S69 -> 14 | U69: 65 | V69: =LOOKUP(U69,Names!$A$2:$A$161,Names!$B$2:$B$161) -> أحمد طارق | W69: 77 | X69: 0 | Y69: 7 | Z69: =X69+Y69 -> 7 | AB69: 44 | AC69: =LOOKUP(AB69,Names!$A$2:$A$161,Names!$B$2:$B$161) -> جمال السيد توفيق محمد | AD69: =IF(ISNA(VLOOKUP(AB69,$C$5:$H$164,3,FALSE))=TRUE,"",VLOOKUP(AB69,$C$5:$H$164,3,FALSE)) -> 87 | AE69: =IF(ISNA(VLOOKUP(AB69,$I$5:$N$164,3,FALSE))=TRUE,"",VLOOKUP(AB69,$I$5:$N$164,3,FALSE)) -> 22 | AF69: =IF(ISNA(VLOOKUP(AB69,$O$5:$T$164,3,FALSE))=TRUE,"",VLOOKUP(AB69,$O$5:$T$164,3,FALSE)) -> 69 | AG69: =IF(ISNA(VLOOKUP(AB69,$U$5:$Z$164,3,FALSE))=TRUE,"",VLOOKUP(AB69,$U$5:$Z$164,3,FALSE)) -> 84 | AH69: =SUM(AD69:AG69) -> 262 | AI69: =IF(ISNA(VLOOKUP(AB69,$C$5:$H$164,4,FALSE))=TRUE,"",VLOOKUP(AB69,$C$5:$H$164,4,FALSE)) -> 0 | AJ69: =IF(ISNA(VLOOKUP(AB69,$I$5:$N$164,4,FALSE))=TRUE,"",VLOOKUP(AB69,$I$5:$N$164,4,FALSE)) -> 0 | AK69: =IF(ISNA(VLOOKUP(AB69,$O$5:$T$164,4,FALSE))=TRUE,"",VLOOKUP(AB69,$O$5:$T$164,4,FALSE)) -> 0 | AL69: =IF(ISNA(VLOOKUP(AB69,$U$5:$Z$164,4,FALSE))=TRUE,"",VLOOKUP(AB69,$U$5:$Z$164,4,FALSE)) -> 0 | AM69: =SUM(AI69:AL69) -> 0 | AN69: =IF(ISNA(VLOOKUP(AB69,$C$5:$H$164,5,FALSE))=TRUE,"",VLOOKUP(AB69,$C$5:$H$164,5,FALSE)) -> 11 | AO69: =IF(ISNA(VLOOKUP(AB69,$I$5:$N$164,5,FALSE))=TRUE,"",VLOOKUP(AB69,$I$5:$N$164,5,FALSE)) -> 5 | AP69: =IF(ISNA(VLOOKUP(AB69,$O$5:$T$164,5,FALSE))=TRUE,"",VLOOKUP(AB69,$O$5:$T$164,5,FALSE)) -> 5 | AQ69: =IF(ISNA(VLOOKUP(AB69,$U$5:$Z$164,5,FALSE))=TRUE,"",VLOOKUP(AB69,$U$5:$Z$164,5,FALSE)) -> 8 | AR69: =SUM(AN69:AQ69) -> 29 | AS69: =AM69+AR69 -> 29 | AT69: 65 | AV69: 65 | AW69: =AV69 -> 65
B70: W | C70: 66 | D70: =LOOKUP(C70,Names!$A$2:$A$161,Names!$B$2:$B$161) -> أحمد فؤاد حسنين | E70: 174 | F70: 0 | G70: 18 | H70: 18 | I70: 37 | J70: =LOOKUP(I70,Names!$A$2:$A$161,Names!$B$2:$B$161) -> حمدي محمود عبد العزيز | K70: 15 | L70: 0 | M70: 1 | N70: 1 | O70: 9 | P70: =LOOKUP(O70,Names!$A$2:$A$161,Names!$B$2:$B$161) -> رأفت الصياد | Q70: 9 | R70: 0 | S70: 2 | T70: 2 | U70: 54 | V70: =LOOKUP(U70,Names!$A$2:$A$161,Names!$B$2:$B$161) -> تامر رشاد | W70: 203 | X70: 0 | Y70: 21 | Z70: 21 | AB70: 50 | AC70: =LOOKUP(AB70,Names!$A$2:$A$161,Names!$B$2:$B$161) -> فادي ناجح | AD70: 101 | AE70: -7 | AF70: 82 | AG70: 83 | AH70: 259 | AI70: 0 | AJ70: 0 | AK70: 0 | AL70: 0 | AM70: 0 | AN70: 11 | AO70: -4 | AP70: 7.5 | AQ70: 14 | AR70: 28.5 | AS70: 28.5 | AT70: 66 | AV70: 54 | AW70: =AV70 -> 54
B71: S | C71: 67 | D71: =LOOKUP(C71,Names!$A$2:$A$161,Names!$B$2:$B$161) -> محمد محمود فضل | E71: 118 | F71: 0 | G71: 11 | H71: 11 | I71: 57 | J71: =LOOKUP(I71,Names!$A$2:$A$161,Names!$B$2:$B$161) -> مصطفى كامل الشحري | K71: 85 | L71: 0 | M71: 11 | N71: 11 | O71: 72 | P71: =LOOKUP(O71,Names!$A$2:$A$161,Names!$B$2:$B$161) -> أحمد سمير خلف | Q71: 64 | R71: 0 | S71: 5 | T71: 5 | U71: 43 | V71: =LOOKUP(U71,Names!$A$2:$A$161,Names!$B$2:$B$161) -> أمير محمد خطاب | W71: 68 | X71: 0 | Y71: 10 | Z71: 10 | AB71: 2 | AC71: =LOOKUP(AB71,Names!$A$2:$A$161,Names!$B$2:$B$161) -> شريف أحمد محمد حمروش | AD71: 65 | AE71: 51 | AF71: 113 | AG71: 61 | AH71: 290 | AI71: 0 | AJ71: 0 | AK71: 0 | AL71: 0 | AM71: 0 | AN71: 7 | AO71: 2 | AP71: 12 | AQ71: 7 | AR71: 28 | AS71: 28 | AT71: 67 | AV71: 43 | AW71: =AV71 -> 43
B72: E | C72: 68 | D72: =LOOKUP(C72,Names!$A$2:$A$161,Names!$B$2:$B$161) -> مصطفى إسماعيل | E72: 84 | F72: 0 | G72: 10 | H72: 10 | I72: 77 | J72: =LOOKUP(I72,Names!$A$2:$A$161,Names!$B$2:$B$161) -> محمد محمود شعبان | K72: 96 | L72: 0 | M72: 12 | N72: 12 | O72: 75 | P72: =LOOKUP(O72,Names!$A$2:$A$161,Names!$B$2:$B$161) -> محمود سليمان | Q72: 100 | R72: 0 | S72: 12 | T72: 12 | U72: 32 | V72: =LOOKUP(U72,Names!$A$2:$A$161,Names!$B$2:$B$161) -> حمزة أحمد محمد | W72: 8 | X72: 0 | Y72: 2 | Z72: 2 | AB72: 76 | AC72: =LOOKUP(AB72,Names!$A$2:$A$161,Names!$B$2:$B$161) -> محمد إبراهيم قطب | AD72: 8 | AE72: 52 | AF72: 90 | AG72: 55 | AH72: 205 | AI72: 0 | AJ72: 0 | AK72: 0 | AL72: 0 | AM72: 0 | AN72: 3 | AO72: 7 | AP72: 13.5 | AQ72: 4 | AR72: 27.5 | AS72: 27.5 | AT72: 68 | AV72: 32 | AW72: =AV72 -> 32
A73: Tabel ( 18 ) | B73: N | C73: 69 | D73: =LOOKUP(C73,Names!$A$2:$A$161,Names!$B$2:$B$161) -> أحمد علي السيد شرع | E73: 92 | F73: 0 | G73: 8.5 | H73: 8.5 | I73: 18 | J73: =LOOKUP(I73,Names!$A$2:$A$161,Names!$B$2:$B$161) -> أحمد ممدوح عبد الدايم | K73: 73 | L73: 0 | M73: 6 | N73: 6 | O73: 79 | P73: =LOOKUP(O73,Names!$A$2:$A$161,Names!$B$2:$B$161) -> محمد علي حسن طه الأمام | Q73: 46 | R73: 0 | S73: 2 | T73: 2 | U73: 58 | V73: =LOOKUP(U73,Names!$A$2:$A$161,Names!$B$2:$B$161) -> أحمد إبراهيم غانم | W73: 135 | X73: 0 | Y73: 19 | Z73: 19 | AB73: 1 | AC73: =LOOKUP(AB73,Names!$A$2:$A$161,Names!$B$2:$B$161) -> راجي صبحي | AD73: 95 | AE73: 47 | AF73: 76 | AG73: 89 | AH73: 307 | AI73: 0 | AJ73: 0 | AK73: 0 | AL73: 0 | AM73: 0 | AN73: 10 | AO73: 1 | AP73: 6 | AQ73: 10 | AR73: 27 | AS73: 27 | AT73: 69 | AV73: 69 | AW73: =AV74 -> 58
B74: W | C74: 70 | D74: =LOOKUP(C74,Names!$A$2:$A$161,Names!$B$2:$B$161) -> أحمد صلاح الدين دياب | E74: 105 | F74: 0 | G74: 12 | H74: 12 | I74: 38 | J74: =LOOKUP(I74,Names!$A$2:$A$161,Names!$B$2:$B$161) -> أسامة لطفي نجيب | K74: 107 | L74: 0 | M74: 6 | N74: 6 | O74: 76 | P74: =LOOKUP(O74,Names!$A$2:$A$161,Names!$B$2:$B$161) -> محمد إبراهيم قطب | Q74: 90 | R74: 0 | S74: 13.5 | T74: 13.5 | U74: 47 | V74: =LOOKUP(U74,Names!$A$2:$A$161,Names!$B$2:$B$161) -> هاني فكري المراكبي | W74: 9 | X74: 0 | Y74: 1 | Z74: 1 | AB74: 29 | AC74: =LOOKUP(AB74,Names!$A$2:$A$161,Names!$B$2:$B$161) -> عبد الرحمن عثمان | AD74: 103 | AE74: 114 | AF74: 39 | AG74: 73 | AH74: 329 | AI74: 0 | AJ74: 0 | AK74: 0 | AL74: 0 | AM74: 0 | AN74: 12 | AO74: 8 | AP74: 1 | AQ74: 5 | AR74: 26 | AS74: 26 | AT74: 70 | AV74: 58 | AW74: =AV75 -> 47
B75: S | C75: 71 | D75: =LOOKUP(C75,Names!$A$2:$A$161,Names!$B$2:$B$161) -> معتز محمد | E75: 82 | F75: 0 | G75: 5 | H75: 5 | I75: 58 | J75: =LOOKUP(I75,Names!$A$2:$A$161,Names!$B$2:$B$161) -> أحمد إبراهيم غانم | K75: 94 | L75: 0 | M75: 12 | N75: 12 | O75: 13 | P75: =LOOKUP(O75,Names!$A$2:$A$161,Names!$B$2:$B$161) -> أحمد جميل السيد | Q75: 96 | R75: 0 | S75: 9 | T75: 9 | U75: 36 | V75: =LOOKUP(U75,Names!$A$2:$A$161,Names!$B$2:$B$161) -> أحمد عبد الفتاح عرفه | W75: 82 | X75: 0 | Y75: 13 | Z75: 13 | AB75: 55 | AC75: =LOOKUP(AB75,Names!$A$2:$A$161,Names!$B$2:$B$161) -> ناجي بلبع | AD75: 143 | AE75: 18 | AF75: 4 | AG75: 38 | AH75: 203 | AI75: 0 | AJ75: 0 | AK75: 0 | AL75: 0 | AM75: 0 | AN75: 14 | AO75: 4 | AP75: 1 | AQ75: 7 | AR75: 26 | AS75: 26 | AT75: 71 | AV75: 47 | AW75: =AV76 -> 36
B76: E | C76: 72 | D76: =LOOKUP(C76,Names!$A$2:$A$161,Names!$B$2:$B$161) -> أحمد سمير خلف | E76: 140 | F76: 0 | G76: 17 | H76: 17 | I76: 78 | J76: =LOOKUP(I76,Names!$A$2:$A$161,Names!$B$2:$B$161) -> حسام الخلفاوي | K76: 115 | L76: 0 | M76: 16 | N76: 16 | O76: 66 | P76: =LOOKUP(O76,Names!$A$2:$A$161,Names!$B$2:$B$161) -> أحمد فؤاد حسنين | Q76: 98 | R76: 0 | S76: 11 | T76: 11 | U76: 69 | V76: =LOOKUP(U76,Names!$A$2:$A$161,Names!$B$2:$B$161) -> أحمد علي السيد شرع | W76: 140 | X76: 0 | Y76: 18 | Z76: 18 | AB76: 78 | AC76: =LOOKUP(AB76,Names!$A$2:$A$161,Names!$B$2:$B$161) -> حسام الخلفاوي | AD76: 39 | AE76: 115 | AF76: 8 | AG76: 20 | AH76: 182 | AI76: 0 | AJ76: 0 | AK76: 0 | AL76: 0 | AM76: 0 | AN76: 3 | AO76: 16 | AP76: 1 | AQ76: 5 | AR76: 25 | AS76: 25 | AT76: 72 | AV76: 36 | AW76: =AV73 -> 69
A77: Tabel ( 19 ) | B77: N | C77: 73 | D77: =LOOKUP(C77,Names!$A$2:$A$161,Names!$B$2:$B$161) -> مينا ناجح صبحي | E77: 180 | F77: 0 | G77: 19 | H77: 19 | I77: 19 | J77: =LOOKUP(I77,Names!$A$2:$A$161,Names!$B$2:$B$161) -> إبراهيم عنتر | K77: 106 | L77: 0 | M77: 10 | N77: 10 | O77: 17 | P77: =LOOKUP(O77,Names!$A$2:$A$161,Names!$B$2:$B$161) -> أحمد علي خليل حسن | Q77: 202 | R77: 0 | S77: 21 | T77: 21 | U77: 51 | V77: =LOOKUP(U77,Names!$A$2:$A$161,Names!$B$2:$B$161) -> أحمد أحمد مرسي عبد الله | W77: 132 | X77: 0 | Y77: 18 | Z77: 18 | AB77: 23 | AC77: =LOOKUP(AB77,Names!$A$2:$A$161,Names!$B$2:$B$161) -> مصطفى يوسف محمد | AD77: 107 | AE77: 69 | AF77: 136 | AG77: -40 | AH77: 272 | AI77: 0 | AJ77: 0 | AK77: 0 | AL77: 0 | AM77: 0 | AN77: 8 | AO77: 4 | AP77: 15 | AQ77: -6 | AR77: 21 | AS77: 21 | AT77: 73 | AV77: 73 | AW77: =AV79 -> 51
B78: W | C78: 74 | D78: =LOOKUP(C78,Names!$A$2:$A$161,Names!$B$2:$B$161) -> فريدة شكري | E78: 187 | F78: 0 | G78: 21 | H78: 21 | I78: 39 | J78: =LOOKUP(I78,Names!$A$2:$A$161,Names!$B$2:$B$161) -> إسلام أحمد السيد عمر | K78: 136 | L78: 0 | M78: 15 | N78: 15 | O78: 70 | P78: =LOOKUP(O78,Names!$A$2:$A$161,Names!$B$2:$B$161) -> أحمد صلاح الدين دياب | Q78: 95 | R78: 0 | S78: 15 | T78: 15 | U78: 40 | V78: =LOOKUP(U78,Names!$A$2:$A$161,Names!$B$2:$B$161) -> احمد محمود عبد الرزاق | W78: 36 | X78: 0 | Y78: 2 | Z78: 2 | AB78: 32 | AC78: =LOOKUP(AB78,Names!$A$2:$A$161,Names!$B$2:$B$161) -> حمزة أحمد محمد | AD78: 12 | AE78: 130 | AF78: 40 | AG78: 8 | AH78: 190 | AI78: 0 | AJ78: 0 | AK78: 0 | AL78: 0 | AM78: 0 | AN78: 4 | AO78: 12 | AP78: 3 | AQ78: 2 | AR78: 21 | AS78: 21 | AT78: 74 | AV78: 62 | AW78: =AV80 -> 40
B79: S | C79: 75 | D79: =LOOKUP(C79,Names!$A$2:$A$161,Names!$B$2:$B$161) -> محمود سليمان | E79: 48 | F79: 0 | G79: 4 | H79: 4 | I79: 59 | J79: =LOOKUP(I79,Names!$A$2:$A$161,Names!$B$2:$B$161) -> هشام أبوغربية | K79: 162 | L79: 0 | M79: 19 | N79: 19 | O79: 3 | P79: =LOOKUP(O79,Names!$A$2:$A$161,Names!$B$2:$B$161) -> إيهاب يوسف عمارة | Q79: 165 | R79: 0 | S79: 19 | T79: 19 | U79: 73 | V79: =LOOKUP(U79,Names!$A$2:$A$161,Names!$B$2:$B$161) -> مينا ناجح صبحي | W79: 107 | X79: 0 | Y79: 16 | Z79: 16 | AB79: 24 | AC79: =LOOKUP(AB79,Names!$A$2:$A$161,Names!$B$2:$B$161) -> هيثم محمد شبانة | AD79: -37 | AE79: 134 | AF79: 92 | AG79: 89 | AH79: 278 | AI79: 0 | AJ79: 0 | AK79: 0 | AL79: 0 | AM79: 0 | AN79: -6 | AO79: 13 | AP79: 6 | AQ79: 7 | AR79: 20 | AS79: 20 | AT79: 75 | AV79: 51 | AW79: =AV77 -> 73
B80: E | C80: 76 | D80: =LOOKUP(C80,Names!$A$2:$A$161,Names!$B$2:$B$161) -> محمد إبراهيم قطب | E80: 8 | F80: 0 | G80: 3 | H80: 3 | I80: 79 | J80: =LOOKUP(I80,Names!$A$2:$A$161,Names!$B$2:$B$161) -> محمد علي حسن طه الأمام | K80: 54 | L80: 0 | M80: 8 | N80: 8 | O80: 80 | P80: =LOOKUP(O80,Names!$A$2:$A$161,Names!$B$2:$B$161) -> أمن حسام | Q80: -83 | R80: 0 | S80: -6 | T80: -6 | U80: 62 | V80: =LOOKUP(U80,Names!$A$2:$A$161,Names!$B$2:$B$161) -> محمد محمود مسعود | W80: 37 | X80: 0 | Y80: 6 | Z80: 6 | AB80: 34 | AC80: =LOOKUP(AB80,Names!$A$2:$A$161,Names!$B$2:$B$161) -> عماد الدين جمعة هلال | AD80: -6 | AE80: 128 | AF80: 66 | AG80: 8 | AH80: 196 | AI80: 0 | AJ80: 0 | AK80: 0 | AL80: 0 | AM80: 0 | AN80: -5 | AO80: 10.5 | AP80: 10 | AQ80: 3 | AR80: 18.5 | AS80: 18.5 | AT80: 76 | AV80: 40 | AW80: =AV78 -> 62
A81: Tabel ( 20 ) | B81: N | C81: 77 | D81: =LOOKUP(C81,Names!$A$2:$A$161,Names!$B$2:$B$161) -> محمد محمود شعبان | E81: 92 | F81: 0 | G81: 8.5 | H81: 8.5 | I81: 20 | J81: =LOOKUP(I81,Names!$A$2:$A$161,Names!$B$2:$B$161) -> إسلام قاسم | K81: 146 | L81: 0 | M81: 17 | N81: 17 | O81: 74 | P81: =LOOKUP(O81,Names!$A$2:$A$161,Names!$B$2:$B$161) -> فريدة شكري | Q81: 82 | R81: 0 | S81: 7.5 | T81: 7.5 | U81: 44 | V81: =LOOKUP(U81,Names!$A$2:$A$161,Names!$B$2:$B$161) -> جمال السيد توفيق محمد | W81: 84 | X81: 0 | Y81: 8 | Z81: 8 | AB81: 27 | AC81: =LOOKUP(AB81,Names!$A$2:$A$161,Names!$B$2:$B$161) -> سمير الحوفي | AD81: -4 | AE81: 70 | AF81: 92 | AG81: 3 | AH81: 161 | AI81: 0 | AJ81: 0 | AK81: 0 | AL81: 0 | AM81: 0 | AN81: -5 | AO81: 5 | AP81: 9 | AQ81: 2 | AR81: 11 | AS81: 11 | AT81: 77 | AV81: 77 | AW81: =AV84 -> 44
B82: W | C82: 78 | D82: =LOOKUP(C82,Names!$A$2:$A$161,Names!$B$2:$B$161) -> حسام الخلفاوي | E82: 39 | F82: 0 | G82: 3 | H82: 3 | I82: 40 | J82: =LOOKUP(I82,Names!$A$2:$A$161,Names!$B$2:$B$161) -> احمد محمود عبد الرزاق | K82: 135 | L82: 0 | M82: 14 | N82: 14 | O82: 21 | P82: =LOOKUP(O82,Names!$A$2:$A$161,Names!$B$2:$B$161) -> أحمد محمد حمدي صالح | Q82: 77 | R82: 0 | S82: 12 | T82: 12 | U82: 77 | V82: =LOOKUP(U82,Names!$A$2:$A$161,Names!$B$2:$B$161) -> محمد محمود شعبان | W82: 119 | X82: 0 | Y82: 13 | Z82: 13 | AB82: 64 | AC82: =LOOKUP(AB82,Names!$A$2:$A$161,Names!$B$2:$B$161) -> وليد شعبان إسماعيل علي | AD82: 71 | AE82: -8 | AF82: 14 | AG82: 15 | AH82: 92 | AI82: 0 | AJ82: 0 | AK82: 0 | AL82: 0 | AM82: 0 | AN82: 8 | AO82: -5 | AP82: 4 | AQ82: 3 | AR82: 10 | AS82: 10 | AT82: 78 | AV82: 66 | AW82: =AV81 -> 77
B83: S | C83: 79 | D83: =LOOKUP(C83,Names!$A$2:$A$161,Names!$B$2:$B$161) -> محمد علي حسن طه الأمام | E83: 193 | F83: 0 | G83: 18 | H83: 18 | I83: 60 | J83: =LOOKUP(I83,Names!$A$2:$A$161,Names!$B$2:$B$161) -> عصام الدين حامد منصور | K83: 109 | L83: 0 | M83: 14 | N83: 14 | O83: 4 | P83: =LOOKUP(O83,Names!$A$2:$A$161,Names!$B$2:$B$161) -> محمد سعيد الفطاطري | Q83: 56 | R83: 0 | S83: 4 | T83: 4 | U83: 66 | V83: =LOOKUP(U83,Names!$A$2:$A$161,Names!$B$2:$B$161) -> أحمد فؤاد حسنين | W83: 63 | X83: 0 | Y83: 8 | Z83: 8 | AB83: 18 | AC83: =LOOKUP(AB83,Names!$A$2:$A$161,Names!$B$2:$B$161) -> أحمد ممدوح عبد الدايم | AD83: -19 | AE83: 73 | AF83: 78 | AG83: -22 | AH83: 110 | AI83: 0 | AJ83: 0 | AK83: 0 | AL83: 0 | AM83: 0 | AN83: -6 | AO83: 6 | AP83: 7 | AQ83: -6 | AR83: 1 | AS83: 1 | AT83: 79 | AV83: 55 | AW83: =AV82 -> 66
B84: E | C84: 80 | D84: =LOOKUP(C84,Names!$A$2:$A$161,Names!$B$2:$B$161) -> أمن حسام | E84: -28 | F84: 0 | G84: -5 | H84: -5 | I84: 80 | J84: =LOOKUP(I84,Names!$A$2:$A$161,Names!$B$2:$B$161) -> أمن حسام | K84: -41 | L84: 0 | M84: -6 | N84: -6 | O84: 7 | P84: =LOOKUP(O84,Names!$A$2:$A$161,Names!$B$2:$B$161) -> باسم أسحق صموائيل | Q84: 121 | R84: 0 | S84: 14 | T84: 14 | U84: 55 | V84: =LOOKUP(U84,Names!$A$2:$A$161,Names!$B$2:$B$161) -> ناجي بلبع | W84: 38 | X84: 0 | Y84: 7 | Z84: 7 | AB84: 80 | AC84: =LOOKUP(AB84,Names!$A$2:$A$161,Names!$B$2:$B$161) -> أمن حسام | AD84: -28 | AE84: -41 | AF84: -83 | AG84: 44 | AH84: -108 | AI84: 0 | AJ84: 0 | AK84: 0 | AL84: 0 | AM84: 0 | AN84: -5 | AO84: -6 | AP84: -6 | AQ84: 8 | AR84: -9 | AS84: -9 | AT84: 80 | AV84: 44 | AW84: =AV83 -> 55
A85: Tabel ( 21 ) | B85: N | C85: 81 | D85: =LOOKUP(C85,Names!$A$2:$A$161,Names!$B$2:$B$161) -> 0 | F85: 0 | G85: 0 | H85: 0 | J85: =LOOKUP(I85,Names!$A$2:$A$161,Names!$B$2:$B$161) ->  | L85: 0 | M85: 0 | N85: 0 | P85: =LOOKUP(O85,Names!$A$2:$A$161,Names!$B$2:$B$161) ->  | R85: 0 | S85: 0 | T85: 0 | V85: =LOOKUP(U85,Names!$A$2:$A$161,Names!$B$2:$B$161) ->  | X85: 0 | Y85: 0 | Z85: 0 | AB85: 81 | AC85: =LOOKUP(AB85,Names!$A$2:$A$161,Names!$B$2:$B$161) -> 0 | AD85: =IF(ISNA(VLOOKUP(AB85,$C$5:$H$164,3,FALSE))=TRUE,"",VLOOKUP(AB85,$C$5:$H$164,3,FALSE)) -> 0 | AE85: =IF(ISNA(VLOOKUP(AB85,$I$5:$N$164,3,FALSE))=TRUE,"",VLOOKUP(AB85,$I$5:$N$164,3,FALSE)) ->  | AF85: =IF(ISNA(VLOOKUP(AB85,$O$5:$T$164,3,FALSE))=TRUE,"",VLOOKUP(AB85,$O$5:$T$164,3,FALSE)) ->  | AG85: =IF(ISNA(VLOOKUP(AB85,$U$5:$Z$164,3,FALSE))=TRUE,"",VLOOKUP(AB85,$U$5:$Z$164,3,FALSE)) ->  | AH85: =SUM(AD85:AG85) -> 0 | AI85: =IF(ISNA(VLOOKUP(AB85,$C$5:$H$164,4,FALSE))=TRUE,"",VLOOKUP(AB85,$C$5:$H$164,4,FALSE)) -> 0 | AJ85: =IF(ISNA(VLOOKUP(AB85,$I$5:$N$164,4,FALSE))=TRUE,"",VLOOKUP(AB85,$I$5:$N$164,4,FALSE)) ->  | AK85: =IF(ISNA(VLOOKUP(AB85,$O$5:$T$164,4,FALSE))=TRUE,"",VLOOKUP(AB85,$O$5:$T$164,4,FALSE)) ->  | AL85: =IF(ISNA(VLOOKUP(AB85,$U$5:$Z$164,4,FALSE))=TRUE,"",VLOOKUP(AB85,$U$5:$Z$164,4,FALSE)) ->  | AM85: =SUM(AI85:AL85) -> 0 | AN85: =IF(ISNA(VLOOKUP(AB85,$C$5:$H$164,5,FALSE))=TRUE,"",VLOOKUP(AB85,$C$5:$H$164,5,FALSE)) -> 0 | AO85: =IF(ISNA(VLOOKUP(AB85,$I$5:$N$164,5,FALSE))=TRUE,"",VLOOKUP(AB85,$I$5:$N$164,5,FALSE)) ->  | AP85: =IF(ISNA(VLOOKUP(AB85,$O$5:$T$164,5,FALSE))=TRUE,"",VLOOKUP(AB85,$O$5:$T$164,5,FALSE)) ->  | AQ85: =IF(ISNA(VLOOKUP(AB85,$U$5:$Z$164,5,FALSE))=TRUE,"",VLOOKUP(AB85,$U$5:$Z$164,5,FALSE)) ->  | AR85: =SUM(AN85:AQ85) -> 0 | AS85: =AM85+AR85 -> 0 | AT85: 81
B86: W | C86: 82 | D86: =LOOKUP(C86,Names!$A$2:$A$161,Names!$B$2:$B$161) -> 0 | F86: 0 | G86: 2 | H86: 2 | J86: =LOOKUP(I86,Names!$A$2:$A$161,Names!$B$2:$B$161) ->  | L86: 0 | M86: 0 | N86: 0 | P86: =LOOKUP(O86,Names!$A$2:$A$161,Names!$B$2:$B$161) ->  | R86: 0 | S86: 0 | T86: 0 | V86: =LOOKUP(U86,Names!$A$2:$A$161,Names!$B$2:$B$161) ->  | X86: 0 | Y86: 0 | Z86: 0 | AB86: 82 | AC86: =LOOKUP(AB86,Names!$A$2:$A$161,Names!$B$2:$B$161) -> 0 | AD86: 0 | AH86: 0 | AI86: 0 | AM86: 0 | AN86: 2 | AR86: 2 | AS86: 2 | AT86: 82
B87: S | C87: 83 | D87: =LOOKUP(C87,Names!$A$2:$A$161,Names!$B$2:$B$161) -> 0 | F87: 0 | G87: 2 | H87: 2 | J87: =LOOKUP(I87,Names!$A$2:$A$161,Names!$B$2:$B$161) ->  | L87: 0 | M87: 3 | N87: 3 | P87: =LOOKUP(O87,Names!$A$2:$A$161,Names!$B$2:$B$161) ->  | R87: 0 | S87: 0 | T87: 0 | V87: =LOOKUP(U87,Names!$A$2:$A$161,Names!$B$2:$B$161) ->  | X87: 0 | Y87: 1 | Z87: 1 | AB87: 83 | AC87: =LOOKUP(AB87,Names!$A$2:$A$161,Names!$B$2:$B$161) -> 0 | AD87: 0 | AH87: 0 | AI87: 0 | AM87: 0 | AN87: 2 | AR87: 2 | AS87: 2 | AT87: 83
B88: E | C88: 84 | D88: =LOOKUP(C88,Names!$A$2:$A$161,Names!$B$2:$B$161) -> 0 | F88: 0 | G88: 2 | H88: 2 | J88: =LOOKUP(I88,Names!$A$2:$A$161,Names!$B$2:$B$161) ->  | L88: 0 | M88: 2 | N88: 2 | P88: =LOOKUP(O88,Names!$A$2:$A$161,Names!$B$2:$B$161) ->  | R88: 0 | S88: 1 | T88: 1 | V88: =LOOKUP(U88,Names!$A$2:$A$161,Names!$B$2:$B$161) ->  | X88: 0 | Y88: 1 | Z88: 1 | AB88: 84 | AC88: =LOOKUP(AB88,Names!$A$2:$A$161,Names!$B$2:$B$161) -> 0 | AD88: 0 | AH88: 0 | AI88: 0 | AM88: 0 | AN88: 2 | AR88: 2 | AS88: 2 | AT88: 84
A89: Tabel ( 22 ) | B89: N | C89: 85 | D89: =LOOKUP(C89,Names!$A$2:$A$161,Names!$B$2:$B$161) -> 0 | F89: 0 | G89: -1 | H89: -1 | J89: =LOOKUP(I89,Names!$A$2:$A$161,Names!$B$2:$B$161) ->  | L89: 0 | M89: -1 | N89: -1 | P89: =LOOKUP(O89,Names!$A$2:$A$161,Names!$B$2:$B$161) ->  | R89: 0 | S89: -1 | T89: -1 | V89: =LOOKUP(U89,Names!$A$2:$A$161,Names!$B$2:$B$161) ->  | X89: 0 | Y89: -1 | Z89: -1 | AB89: 85 | AC89: =LOOKUP(AB89,Names!$A$2:$A$161,Names!$B$2:$B$161) -> 0 | AD89: 0 | AH89: 0 | AI89: 0 | AM89: 0 | AN89: -1 | AR89: -1 | AS89: -1 | AT89: 85
B90: W | C90: 86 | D90: =LOOKUP(C90,Names!$A$2:$A$161,Names!$B$2:$B$161) -> 0 | F90: 0 | G90: 1 | H90: 1 | J90: =LOOKUP(I90,Names!$A$2:$A$161,Names!$B$2:$B$161) ->  | L90: 0 | M90: -1 | N90: -1 | P90: =LOOKUP(O90,Names!$A$2:$A$161,Names!$B$2:$B$161) ->  | R90: 0 | S90: -1 | T90: -1 | V90: =LOOKUP(U90,Names!$A$2:$A$161,Names!$B$2:$B$161) ->  | X90: 0 | Y90: -1 | Z90: -1 | AB90: 86 | AC90: =LOOKUP(AB90,Names!$A$2:$A$161,Names!$B$2:$B$161) -> 0 | AD90: 0 | AH90: 0 | AI90: 0 | AM90: 0 | AN90: 1 | AR90: 1 | AS90: 1 | AT90: 86
B91: S | C91: 87 | D91: =LOOKUP(C91,Names!$A$2:$A$161,Names!$B$2:$B$161) -> 0 | F91: 0 | G91: 1 | H91: 1 | J91: =LOOKUP(I91,Names!$A$2:$A$161,Names!$B$2:$B$161) ->  | L91: 0 | M91: 2 | N91: 2 | P91: =LOOKUP(O91,Names!$A$2:$A$161,Names!$B$2:$B$161) ->  | R91: 0 | S91: -1 | T91: -1 | V91: =LOOKUP(U91,Names!$A$2:$A$161,Names!$B$2:$B$161) ->  | X91: 0 | Y91: 0 | Z91: 0 | AB91: 87 | AC91: =LOOKUP(AB91,Names!$A$2:$A$161,Names!$B$2:$B$161) -> 0 | AD91: 0 | AH91: 0 | AI91: 0 | AM91: 0 | AN91: 1 | AR91: 1 | AS91: 1 | AT91: 87
B92: E | C92: 88 | D92: =LOOKUP(C92,Names!$A$2:$A$161,Names!$B$2:$B$161) -> 0 | F92: 0 | G92: 1 | H92: 1 | J92: =LOOKUP(I92,Names!$A$2:$A$161,Names!$B$2:$B$161) ->  | L92: 0 | M92: 1 | N92: 1 | P92: =LOOKUP(O92,Names!$A$2:$A$161,Names!$B$2:$B$161) ->  | R92: 0 | S92: 0 | T92: 0 | V92: =LOOKUP(U92,Names!$A$2:$A$161,Names!$B$2:$B$161) ->  | X92: 0 | Y92: 0 | Z92: 0 | AB92: 88 | AC92: =LOOKUP(AB92,Names!$A$2:$A$161,Names!$B$2:$B$161) -> 0 | AD92: 0 | AE92: 0 | AH92: 0 | AI92: 0 | AJ92: 0 | AM92: 0 | AN92: 1 | AO92: 0 | AR92: 1 | AS92: 1 | AT92: 88
A93: Tabel ( 23 ) | B93: N | C93: 89 | D93: =LOOKUP(C93,Names!$A$2:$A$161,Names!$B$2:$B$161) -> 0 | F93: 0 | G93: -2 | H93: -2 | J93: =LOOKUP(I93,Names!$A$2:$A$161,Names!$B$2:$B$161) ->  | L93: 0 | M93: -2 | N93: -2 | P93: =LOOKUP(O93,Names!$A$2:$A$161,Names!$B$2:$B$161) ->  | R93: 0 | S93: -2 | T93: -2 | V93: =LOOKUP(U93,Names!$A$2:$A$161,Names!$B$2:$B$161) ->  | X93: 0 | Y93: -2 | Z93: -2 | AB93: 89 | AC93: =LOOKUP(AB93,Names!$A$2:$A$161,Names!$B$2:$B$161) -> 0 | AD93: 0 | AE93: 0 | AH93: 0 | AI93: 0 | AJ93: 0 | AM93: 0 | AN93: -2 | AO93: 0 | AR93: -2 | AS93: -2 | AT93: 89
B94: W | C94: 90 | D94: =LOOKUP(C94,Names!$A$2:$A$161,Names!$B$2:$B$161) -> 0 | F94: 0 | G94: 0 | H94: 0 | J94: =LOOKUP(I94,Names!$A$2:$A$161,Names!$B$2:$B$161) ->  | L94: 0 | M94: -2 | N94: -2 | P94: =LOOKUP(O94,Names!$A$2:$A$161,Names!$B$2:$B$161) ->  | R94: 0 | S94: -2 | T94: -2 | V94: =LOOKUP(U94,Names!$A$2:$A$161,Names!$B$2:$B$161) ->  | X94: 0 | Y94: -2 | Z94: -2 | AB94: 90 | AC94: =LOOKUP(AB94,Names!$A$2:$A$161,Names!$B$2:$B$161) -> 0 | AD94: 0 | AE94: 0 | AH94: 0 | AI94: 0 | AJ94: 0 | AM94: 0 | AN94: 0 | AO94: 0 | AR94: 0 | AS94: 0 | AT94: 90
B95: S | C95: 91 | D95: =LOOKUP(C95,Names!$A$2:$A$161,Names!$B$2:$B$161) -> 0 | F95: 0 | G95: 0 | H95: 0 | J95: =LOOKUP(I95,Names!$A$2:$A$161,Names!$B$2:$B$161) ->  | L95: 0 | M95: 1 | N95: 1 | P95: =LOOKUP(O95,Names!$A$2:$A$161,Names!$B$2:$B$161) ->  | R95: 0 | S95: -2 | T95: -2 | V95: =LOOKUP(U95,Names!$A$2:$A$161,Names!$B$2:$B$161) ->  | X95: 0 | Y95: -1 | Z95: -1 | AB95: 91 | AC95: =LOOKUP(AB95,Names!$A$2:$A$161,Names!$B$2:$B$161) -> 0 | AD95: 0 | AE95: 0 | AH95: 0 | AI95: 0 | AJ95: 0 | AM95: 0 | AN95: 0 | AO95: 0 | AR95: 0 | AS95: 0 | AT95: 91
B96: E | C96: 92 | D96: =LOOKUP(C96,Names!$A$2:$A$161,Names!$B$2:$B$161) -> 0 | F96: 0 | G96: 0 | H96: 0 | J96: =LOOKUP(I96,Names!$A$2:$A$161,Names!$B$2:$B$161) ->  | L96: 0 | M96: 0 | N96: 0 | P96: =LOOKUP(O96,Names!$A$2:$A$161,Names!$B$2:$B$161) ->  | R96: 0 | S96: -1 | T96: -1 | V96: =LOOKUP(U96,Names!$A$2:$A$161,Names!$B$2:$B$161) ->  | X96: 0 | Y96: -1 | Z96: -1 | AB96: 92 | AC96: =LOOKUP(AB96,Names!$A$2:$A$161,Names!$B$2:$B$161) -> 0 | AD96: 0 | AE96: 0 | AH96: 0 | AI96: 0 | AJ96: 0 | AM96: 0 | AN96: 0 | AO96: 0 | AR96: 0 | AS96: 0 | AT96: 92
A97: Tabel ( 24 ) | B97: N | C97: 93 | D97: =LOOKUP(C97,Names!$A$2:$A$161,Names!$B$2:$B$161) -> 0 | F97: 0 | G97: -3 | H97: -3 | J97: =LOOKUP(I97,Names!$A$2:$A$161,Names!$B$2:$B$161) ->  | L97: 0 | M97: -3 | N97: -3 | P97: =LOOKUP(O97,Names!$A$2:$A$161,Names!$B$2:$B$161) ->  | R97: 0 | S97: -3 | T97: -3 | V97: =LOOKUP(U97,Names!$A$2:$A$161,Names!$B$2:$B$161) ->  | X97: 0 | Y97: -3 | Z97: -3 | AB97: 93 | AC97: =LOOKUP(AB97,Names!$A$2:$A$161,Names!$B$2:$B$161) -> 0 | AD97: 0 | AE97: 0 | AH97: 0 | AI97: 0 | AJ97: 0 | AM97: 0 | AN97: -3 | AO97: 0 | AR97: -3 | AS97: -3 | AT97: 93
B98: W | C98: 94 | D98: =LOOKUP(C98,Names!$A$2:$A$161,Names!$B$2:$B$161) -> 0 | F98: 0 | G98: -1 | H98: -1 | J98: =LOOKUP(I98,Names!$A$2:$A$161,Names!$B$2:$B$161) ->  | L98: 0 | M98: -3 | N98: -3 | P98: =LOOKUP(O98,Names!$A$2:$A$161,Names!$B$2:$B$161) ->  | R98: 0 | S98: -3 | T98: -3 | V98: =LOOKUP(U98,Names!$A$2:$A$161,Names!$B$2:$B$161) ->  | X98: 0 | Y98: -3 | Z98: -3 | AB98: 94 | AC98: =LOOKUP(AB98,Names!$A$2:$A$161,Names!$B$2:$B$161) -> 0 | AD98: 0 | AE98: 0 | AH98: 0 | AI98: 0 | AJ98: 0 | AM98: 0 | AN98: -1 | AO98: 0 | AR98: -1 | AS98: -1 | AT98: 94
B99: S | C99: 95 | D99: =LOOKUP(C99,Names!$A$2:$A$161,Names!$B$2:$B$161) -> 0 | F99: 0 | G99: -1 | H99: -1 | J99: =LOOKUP(I99,Names!$A$2:$A$161,Names!$B$2:$B$161) ->  | L99: 0 | M99: 0 | N99: 0 | P99: =LOOKUP(O99,Names!$A$2:$A$161,Names!$B$2:$B$161) ->  | R99: 0 | S99: -3 | T99: -3 | V99: =LOOKUP(U99,Names!$A$2:$A$161,Names!$B$2:$B$161) ->  | X99: 0 | Y99: -2 | Z99: -2 | AB99: 95 | AC99: =LOOKUP(AB99,Names!$A$2:$A$161,Names!$B$2:$B$161) -> 0 | AD99: 0 | AE99: 0 | AH99: 0 | AI99: 0 | AJ99: 0 | AM99: 0 | AN99: -1 | AO99: 0 | AR99: -1 | AS99: -1 | AT99: 95
B100: E | C100: 96 | D100: =LOOKUP(C100,Names!$A$2:$A$161,Names!$B$2:$B$161) -> 0 | F100: 0 | G100: -1 | H100: -1 | J100: =LOOKUP(I100,Names!$A$2:$A$161,Names!$B$2:$B$161) ->  | L100: 0 | M100: -1 | N100: -1 | P100: =LOOKUP(O100,Names!$A$2:$A$161,Names!$B$2:$B$161) ->  | R100: 0 | S100: -2 | T100: -2 | V100: =LOOKUP(U100,Names!$A$2:$A$161,Names!$B$2:$B$161) ->  | X100: 0 | Y100: -2 | Z100: -2 | AB100: 96 | AC100: =LOOKUP(AB100,Names!$A$2:$A$161,Names!$B$2:$B$161) -> 0 | AD100: 0 | AE100: 0 | AH100: 0 | AI100: 0 | AJ100: 0 | AM100: 0 | AN100: -1 | AO100: 0 | AR100: -1 | AS100: -1 | AT100: 96
A101: Tabel ( B1 ) | B101: N | C101: 97 | D101: =LOOKUP(C101,Names!$A$2:$A$161,Names!$B$2:$B$161) -> 0 | F101: 0 | G101: -4 | H101: -4 | J101: =LOOKUP(I101,Names!$A$2:$A$161,Names!$B$2:$B$161) ->  | L101: 0 | M101: -4 | N101: -4 | P101: =LOOKUP(O101,Names!$A$2:$A$161,Names!$B$2:$B$161) ->  | R101: 0 | S101: -4 | T101: -4 | V101: =LOOKUP(U101,Names!$A$2:$A$161,Names!$B$2:$B$161) ->  | X101: 0 | Y101: -4 | Z101: =X101+Y101 -> -4 | AB101: 97 | AC101: =LOOKUP(AB101,Names!$A$2:$A$161,Names!$B$2:$B$161) -> 0 | AD101: =IF(ISNA(VLOOKUP(AB101,$C$5:$H$164,3,FALSE))=TRUE,"",VLOOKUP(AB101,$C$5:$H$164,3,FALSE)) -> 0 | AE101: =IF(ISNA(VLOOKUP(AB101,$I$5:$N$164,3,FALSE))=TRUE,"",VLOOKUP(AB101,$I$5:$N$164,3,FALSE)) -> 0 | AF101: =IF(ISNA(VLOOKUP(AB101,$O$5:$T$164,3,FALSE))=TRUE,"",VLOOKUP(AB101,$O$5:$T$164,3,FALSE)) ->  | AG101: =IF(ISNA(VLOOKUP(AB101,$U$5:$Z$164,3,FALSE))=TRUE,"",VLOOKUP(AB101,$U$5:$Z$164,3,FALSE)) ->  | AH101: =SUM(AD101:AG101) -> 0 | AI101: =IF(ISNA(VLOOKUP(AB101,$C$5:$H$164,4,FALSE))=TRUE,"",VLOOKUP(AB101,$C$5:$H$164,4,FALSE)) -> 0 | AJ101: =IF(ISNA(VLOOKUP(AB101,$I$5:$N$164,4,FALSE))=TRUE,"",VLOOKUP(AB101,$I$5:$N$164,4,FALSE)) -> 0 | AK101: =IF(ISNA(VLOOKUP(AB101,$O$5:$T$164,4,FALSE))=TRUE,"",VLOOKUP(AB101,$O$5:$T$164,4,FALSE)) ->  | AL101: =IF(ISNA(VLOOKUP(AB101,$U$5:$Z$164,4,FALSE))=TRUE,"",VLOOKUP(AB101,$U$5:$Z$164,4,FALSE)) ->  | AM101: =SUM(AI101:AL101) -> 0 | AN101: =IF(ISNA(VLOOKUP(AB101,$C$5:$H$164,5,FALSE))=TRUE,"",VLOOKUP(AB101,$C$5:$H$164,5,FALSE)) -> -4 | AO101: =IF(ISNA(VLOOKUP(AB101,$I$5:$N$164,5,FALSE))=TRUE,"",VLOOKUP(AB101,$I$5:$N$164,5,FALSE)) -> 0 | AP101: =IF(ISNA(VLOOKUP(AB101,$O$5:$T$164,5,FALSE))=TRUE,"",VLOOKUP(AB101,$O$5:$T$164,5,FALSE)) ->  | AQ101: =IF(ISNA(VLOOKUP(AB101,$U$5:$Z$164,5,FALSE))=TRUE,"",VLOOKUP(AB101,$U$5:$Z$164,5,FALSE)) ->  | AR101: =SUM(AN101:AQ101) -> -4 | AS101: =AM101+AR101 -> -4 | AT101: 97
B102: W | C102: 98 | D102: =LOOKUP(C102,Names!$A$2:$A$161,Names!$B$2:$B$161) -> 0 | F102: 0 | G102: -2 | H102: -2 | J102: =LOOKUP(I102,Names!$A$2:$A$161,Names!$B$2:$B$161) ->  | L102: 0 | M102: -4 | N102: -4 | P102: =LOOKUP(O102,Names!$A$2:$A$161,Names!$B$2:$B$161) ->  | R102: 0 | S102: -4 | T102: -4 | V102: =LOOKUP(U102,Names!$A$2:$A$161,Names!$B$2:$B$161) ->  | X102: 0 | Y102: -4 | Z102: -4 | AB102: 98 | AC102: =LOOKUP(AB102,Names!$A$2:$A$161,Names!$B$2:$B$161) -> 0 | AD102: 0 | AE102: 0 | AH102: 0 | AI102: 0 | AJ102: 0 | AM102: 0 | AN102: -2 | AO102: 0 | AR102: -2 | AS102: -2 | AT102: 98
B103: S | C103: 99 | D103: =LOOKUP(C103,Names!$A$2:$A$161,Names!$B$2:$B$161) -> 0 | F103: 0 | G103: -2 | H103: -2 | J103: =LOOKUP(I103,Names!$A$2:$A$161,Names!$B$2:$B$161) ->  | L103: 0 | M103: -1 | N103: -1 | P103: =LOOKUP(O103,Names!$A$2:$A$161,Names!$B$2:$B$161) ->  | R103: 0 | S103: -4 | T103: -4 | V103: =LOOKUP(U103,Names!$A$2:$A$161,Names!$B$2:$B$161) ->  | X103: 0 | Y103: -3 | Z103: -3 | AB103: 99 | AC103: =LOOKUP(AB103,Names!$A$2:$A$161,Names!$B$2:$B$161) -> 0 | AD103: 0 | AE103: 0 | AH103: 0 | AI103: 0 | AJ103: 0 | AM103: 0 | AN103: -2 | AO103: 0 | AR103: -2 | AS103: -2 | AT103: 99
B104: E | C104: 100 | D104: =LOOKUP(C104,Names!$A$2:$A$161,Names!$B$2:$B$161) -> 0 | F104: 0 | G104: -2 | H104: -2 | J104: =LOOKUP(I104,Names!$A$2:$A$161,Names!$B$2:$B$161) ->  | L104: 0 | M104: -2 | N104: -2 | P104: =LOOKUP(O104,Names!$A$2:$A$161,Names!$B$2:$B$161) ->  | R104: 0 | S104: -3 | T104: -3 | V104: =LOOKUP(U104,Names!$A$2:$A$161,Names!$B$2:$B$161) ->  | X104: 0 | Y104: -3 | Z104: -3 | AB104: 100 | AC104: =LOOKUP(AB104,Names!$A$2:$A$161,Names!$B$2:$B$161) -> 0 | AD104: 0 | AE104: 0 | AH104: 0 | AI104: 0 | AJ104: 0 | AM104: 0 | AN104: -2 | AO104: 0 | AR104: -2 | AS104: -2 | AT104: 100
A105: Tabel ( B2 ) | B105: N | C105: 101 | D105: =LOOKUP(C105,Names!$A$2:$A$161,Names!$B$2:$B$161) -> 0 | F105: 0 | G105: -5 | H105: -5 | J105: =LOOKUP(I105,Names!$A$2:$A$161,Names!$B$2:$B$161) ->  | L105: 0 | M105: -5 | N105: -5 | P105: =LOOKUP(O105,Names!$A$2:$A$161,Names!$B$2:$B$161) ->  | R105: 0 | S105: -5 | T105: -5 | V105: =LOOKUP(U105,Names!$A$2:$A$161,Names!$B$2:$B$161) ->  | X105: 0 | Y105: -5 | Z105: -5 | AB105: 101 | AC105: =LOOKUP(AB105,Names!$A$2:$A$161,Names!$B$2:$B$161) -> 0 | AD105: 0 | AH105: 0 | AI105: 0 | AM105: 0 | AN105: -5 | AR105: -5 | AS105: -5 | AT105: 101
B106: W | C106: 102 | D106: =LOOKUP(C106,Names!$A$2:$A$161,Names!$B$2:$B$161) -> 0 | F106: 0 | G106: -3 | H106: -3 | J106: =LOOKUP(I106,Names!$A$2:$A$161,Names!$B$2:$B$161) ->  | L106: 0 | M106: -5 | N106: -5 | P106: =LOOKUP(O106,Names!$A$2:$A$161,Names!$B$2:$B$161) ->  | R106: 0 | S106: -5 | T106: -5 | V106: =LOOKUP(U106,Names!$A$2:$A$161,Names!$B$2:$B$161) ->  | X106: 0 | Y106: -5 | Z106: -5 | AB106: 102 | AC106: =LOOKUP(AB106,Names!$A$2:$A$161,Names!$B$2:$B$161) -> 0 | AD106: 0 | AH106: 0 | AI106: 0 | AM106: 0 | AN106: -3 | AR106: -3 | AS106: -3 | AT106: 102
B107: S | C107: 103 | D107: =LOOKUP(C107,Names!$A$2:$A$161,Names!$B$2:$B$161) -> 0 | F107: 0 | G107: -3 | H107: -3 | J107: =LOOKUP(I107,Names!$A$2:$A$161,Names!$B$2:$B$161) ->  | L107: 0 | M107: -2 | N107: -2 | P107: =LOOKUP(O107,Names!$A$2:$A$161,Names!$B$2:$B$161) ->  | R107: 0 | S107: -5 | T107: -5 | V107: =LOOKUP(U107,Names!$A$2:$A$161,Names!$B$2:$B$161) ->  | X107: 0 | Y107: -4 | Z107: -4 | AB107: 103 | AC107: =LOOKUP(AB107,Names!$A$2:$A$161,Names!$B$2:$B$161) -> 0 | AD107: 0 | AH107: 0 | AI107: 0 | AM107: 0 | AN107: -3 | AR107: -3 | AS107: -3 | AT107: 103
B108: E | C108: 104 | D108: =LOOKUP(C108,Names!$A$2:$A$161,Names!$B$2:$B$161) -> 0 | F108: 0 | G108: -3 | H108: -3 | J108: =LOOKUP(I108,Names!$A$2:$A$161,Names!$B$2:$B$161) ->  | L108: 0 | M108: -3 | N108: -3 | P108: =LOOKUP(O108,Names!$A$2:$A$161,Names!$B$2:$B$161) ->  | R108: 0 | S108: -4 | T108: -4 | V108: =LOOKUP(U108,Names!$A$2:$A$161,Names!$B$2:$B$161) ->  | X108: 0 | Y108: -4 | Z108: -4 | AB108: 104 | AC108: =LOOKUP(AB108,Names!$A$2:$A$161,Names!$B$2:$B$161) -> 0 | AD108: 0 | AH108: 0 | AI108: 0 | AM108: 0 | AN108: -3 | AR108: -3 | AS108: -3 | AT108: 104
A109: Tabel ( B3 ) | B109: N | C109: 105 | D109: =LOOKUP(C109,Names!$A$2:$A$161,Names!$B$2:$B$161) -> 0 | F109: 0 | G109: -6 | H109: -6 | J109: =LOOKUP(I109,Names!$A$2:$A$161,Names!$B$2:$B$161) ->  | L109: 0 | M109: -6 | N109: -6 | P109: =LOOKUP(O109,Names!$A$2:$A$161,Names!$B$2:$B$161) ->  | R109: 0 | S109: -6 | T109: -6 | V109: =LOOKUP(U109,Names!$A$2:$A$161,Names!$B$2:$B$161) ->  | X109: 0 | Y109: -6 | Z109: -6 | AB109: 105 | AC109: =LOOKUP(AB109,Names!$A$2:$A$161,Names!$B$2:$B$161) -> 0 | AD109: 0 | AH109: 0 | AI109: 0 | AM109: 0 | AN109: -6 | AR109: -6 | AS109: -6 | AT109: 105
B110: W | C110: 106 | D110: =LOOKUP(C110,Names!$A$2:$A$161,Names!$B$2:$B$161) -> 0 | F110: 0 | G110: -4 | H110: -4 | J110: =LOOKUP(I110,Names!$A$2:$A$161,Names!$B$2:$B$161) ->  | L110: 0 | M110: -6 | N110: -6 | P110: =LOOKUP(O110,Names!$A$2:$A$161,Names!$B$2:$B$161) ->  | R110: 0 | S110: -6 | T110: -6 | V110: =LOOKUP(U110,Names!$A$2:$A$161,Names!$B$2:$B$161) ->  | X110: 0 | Y110: -6 | Z110: -6 | AB110: 106 | AC110: =LOOKUP(AB110,Names!$A$2:$A$161,Names!$B$2:$B$161) -> 0 | AD110: 0 | AH110: 0 | AI110: 0 | AM110: 0 | AN110: -4 | AR110: -4 | AS110: -4 | AT110: 106
B111: S | C111: 107 | D111: =LOOKUP(C111,Names!$A$2:$A$161,Names!$B$2:$B$161) -> 0 | F111: 0 | G111: -4 | H111: -4 | J111: =LOOKUP(I111,Names!$A$2:$A$161,Names!$B$2:$B$161) ->  | L111: 0 | M111: -3 | N111: -3 | P111: =LOOKUP(O111,Names!$A$2:$A$161,Names!$B$2:$B$161) ->  | R111: 0 | S111: -6 | T111: -6 | V111: =LOOKUP(U111,Names!$A$2:$A$161,Names!$B$2:$B$161) ->  | X111: 0 | Y111: -5 | Z111: -5 | AB111: 107 | AC111: =LOOKUP(AB111,Names!$A$2:$A$161,Names!$B$2:$B$161) -> 0 | AD111: 0 | AH111: 0 | AI111: 0 | AM111: 0 | AN111: -4 | AR111: -4 | AS111: -4 | AT111: 107
B112: E | C112: 108 | D112: =LOOKUP(C112,Names!$A$2:$A$161,Names!$B$2:$B$161) -> 0 | F112: 0 | G112: -4 | H112: -4 | J112: =LOOKUP(I112,Names!$A$2:$A$161,Names!$B$2:$B$161) ->  | L112: 0 | M112: -4 | N112: -4 | P112: =LOOKUP(O112,Names!$A$2:$A$161,Names!$B$2:$B$161) ->  | R112: 0 | S112: -5 | T112: -5 | V112: =LOOKUP(U112,Names!$A$2:$A$161,Names!$B$2:$B$161) ->  | X112: 0 | Y112: -5 | Z112: -5 | AB112: 108 | AC112: =LOOKUP(AB112,Names!$A$2:$A$161,Names!$B$2:$B$161) -> 0 | AD112: 0 | AE112: 0 | AH112: 0 | AI112: 0 | AJ112: 0 | AM112: 0 | AN112: -4 | AO112: 0 | AR112: -4 | AS112: -4 | AT112: 108
A113: Tabel ( B4 ) | B113: N | C113: 109 | D113: =LOOKUP(C113,Names!$A$2:$A$161,Names!$B$2:$B$161) -> 0 | F113: 0 | G113: 0 | H113: 0 | I113: 88 | J113: =LOOKUP(I113,Names!$A$2:$A$161,Names!$B$2:$B$161) -> 0 | L113: 0 | M113: 0 | N113: 0 | P113: =LOOKUP(O113,Names!$A$2:$A$161,Names!$B$2:$B$161) ->  | R113: 0 | S113: 0 | T113: 0 | V113: =LOOKUP(U113,Names!$A$2:$A$161,Names!$B$2:$B$161) ->  | X113: 0 | Y113: 0 | Z113: 0 | AB113: 109 | AC113: =LOOKUP(AB113,Names!$A$2:$A$161,Names!$B$2:$B$161) -> 0 | AD113: =IF(ISNA(VLOOKUP(AB113,$C$5:$H$164,3,FALSE))=TRUE,"",VLOOKUP(AB113,$C$5:$H$164,3,FALSE)) -> 0 | AE113: =IF(ISNA(VLOOKUP(AB113,$I$5:$N$164,3,FALSE))=TRUE,"",VLOOKUP(AB113,$I$5:$N$164,3,FALSE)) -> 0 | AF113: =IF(ISNA(VLOOKUP(AB113,$O$5:$T$164,3,FALSE))=TRUE,"",VLOOKUP(AB113,$O$5:$T$164,3,FALSE)) ->  | AG113: =IF(ISNA(VLOOKUP(AB113,$U$5:$Z$164,3,FALSE))=TRUE,"",VLOOKUP(AB113,$U$5:$Z$164,3,FALSE)) ->  | AH113: =SUM(AD113:AG113) -> 0 | AI113: =IF(ISNA(VLOOKUP(AB113,$C$5:$H$164,4,FALSE))=TRUE,"",VLOOKUP(AB113,$C$5:$H$164,4,FALSE)) -> 0 | AJ113: =IF(ISNA(VLOOKUP(AB113,$I$5:$N$164,4,FALSE))=TRUE,"",VLOOKUP(AB113,$I$5:$N$164,4,FALSE)) -> 0 | AK113: =IF(ISNA(VLOOKUP(AB113,$O$5:$T$164,4,FALSE))=TRUE,"",VLOOKUP(AB113,$O$5:$T$164,4,FALSE)) ->  | AL113: =IF(ISNA(VLOOKUP(AB113,$U$5:$Z$164,4,FALSE))=TRUE,"",VLOOKUP(AB113,$U$5:$Z$164,4,FALSE)) ->  | AM113: =SUM(AI113:AL113) -> 0 | AN113: =IF(ISNA(VLOOKUP(AB113,$C$5:$H$164,5,FALSE))=TRUE,"",VLOOKUP(AB113,$C$5:$H$164,5,FALSE)) -> 0 | AO113: =IF(ISNA(VLOOKUP(AB113,$I$5:$N$164,5,FALSE))=TRUE,"",VLOOKUP(AB113,$I$5:$N$164,5,FALSE)) -> 0 | AP113: =IF(ISNA(VLOOKUP(AB113,$O$5:$T$164,5,FALSE))=TRUE,"",VLOOKUP(AB113,$O$5:$T$164,5,FALSE)) ->  | AQ113: =IF(ISNA(VLOOKUP(AB113,$U$5:$Z$164,5,FALSE))=TRUE,"",VLOOKUP(AB113,$U$5:$Z$164,5,FALSE)) ->  | AR113: =SUM(AN113:AQ113) -> 0 | AS113: =AM113+AR113 -> 0 | AT113: 109
B114: W | C114: 110 | D114: =LOOKUP(C114,Names!$A$2:$A$161,Names!$B$2:$B$161) -> 0 | F114: 0 | G114: 0 | H114: 0 | I114: 108 | J114: =LOOKUP(I114,Names!$A$2:$A$161,Names!$B$2:$B$161) -> 0 | L114: 0 | M114: 0 | N114: 0 | P114: =LOOKUP(O114,Names!$A$2:$A$161,Names!$B$2:$B$161) ->  | R114: 0 | S114: 0 | T114: 0 | V114: =LOOKUP(U114,Names!$A$2:$A$161,Names!$B$2:$B$161) ->  | X114: 0 | Y114: 0 | Z114: 0 | AB114: 110 | AC114: =LOOKUP(AB114,Names!$A$2:$A$161,Names!$B$2:$B$161) -> 0 | AD114: 0 | AE114: 0 | AH114: 0 | AI114: 0 | AJ114: 0 | AM114: 0 | AN114: 0 | AO114: 0 | AR114: 0 | AS114: 0 | AT114: 110
B115: S | C115: 111 | D115: =LOOKUP(C115,Names!$A$2:$A$161,Names!$B$2:$B$161) -> 0 | F115: 0 | G115: 0 | H115: 0 | I115: 128 | J115: =LOOKUP(I115,Names!$A$2:$A$161,Names!$B$2:$B$161) -> 0 | L115: 0 | M115: 0 | N115: 0 | P115: =LOOKUP(O115,Names!$A$2:$A$161,Names!$B$2:$B$161) ->  | R115: 0 | S115: 0 | T115: 0 | V115: =LOOKUP(U115,Names!$A$2:$A$161,Names!$B$2:$B$161) ->  | X115: 0 | Y115: 0 | Z115: 0 | AB115: 111 | AC115: =LOOKUP(AB115,Names!$A$2:$A$161,Names!$B$2:$B$161) -> 0 | AD115: 0 | AE115: 0 | AH115: 0 | AI115: 0 | AJ115: 0 | AM115: 0 | AN115: 0 | AO115: 0 | AR115: 0 | AS115: 0 | AT115: 111
B116: E | C116: 112 | D116: =LOOKUP(C116,Names!$A$2:$A$161,Names!$B$2:$B$161) -> 0 | F116: 0 | G116: 0 | H116: 0 | I116: 148 | J116: =LOOKUP(I116,Names!$A$2:$A$161,Names!$B$2:$B$161) -> 0 | L116: 0 | M116: 0 | N116: 0 | P116: =LOOKUP(O116,Names!$A$2:$A$161,Names!$B$2:$B$161) ->  | R116: 0 | S116: 0 | T116: 0 | V116: =LOOKUP(U116,Names!$A$2:$A$161,Names!$B$2:$B$161) ->  | X116: 0 | Y116: 0 | Z116: 0 | AB116: 112 | AC116: =LOOKUP(AB116,Names!$A$2:$A$161,Names!$B$2:$B$161) -> 0 | AD116: 0 | AE116: 0 | AH116: 0 | AI116: 0 | AJ116: 0 | AM116: 0 | AN116: 0 | AO116: 0 | AR116: 0 | AS116: 0 | AT116: 112
A117: Tabel ( B5 ) | B117: N | C117: 113 | D117: =LOOKUP(C117,Names!$A$2:$A$161,Names!$B$2:$B$161) -> 0 | F117: 0 | G117: 0 | H117: 0 | I117: 89 | J117: =LOOKUP(I117,Names!$A$2:$A$161,Names!$B$2:$B$161) -> 0 | L117: 0 | M117: 0 | N117: 0 | P117: =LOOKUP(O117,Names!$A$2:$A$161,Names!$B$2:$B$161) ->  | R117: 0 | S117: 0 | T117: 0 | V117: =LOOKUP(U117,Names!$A$2:$A$161,Names!$B$2:$B$161) ->  | X117: 0 | Y117: 0 | Z117: 0 | AB117: 113 | AC117: =LOOKUP(AB117,Names!$A$2:$A$161,Names!$B$2:$B$161) -> 0 | AD117: 0 | AE117: 0 | AH117: 0 | AI117: 0 | AJ117: 0 | AM117: 0 | AN117: 0 | AO117: 0 | AR117: 0 | AS117: 0 | AT117: 113
B118: W | C118: 114 | D118: =LOOKUP(C118,Names!$A$2:$A$161,Names!$B$2:$B$161) -> 0 | F118: 0 | G118: 0 | H118: 0 | I118: 109 | J118: =LOOKUP(I118,Names!$A$2:$A$161,Names!$B$2:$B$161) -> 0 | L118: 0 | M118: 0 | N118: 0 | P118: =LOOKUP(O118,Names!$A$2:$A$161,Names!$B$2:$B$161) ->  | R118: 0 | S118: 0 | T118: 0 | V118: =LOOKUP(U118,Names!$A$2:$A$161,Names!$B$2:$B$161) ->  | X118: 0 | Y118: 0 | Z118: 0 | AB118: 114 | AC118: =LOOKUP(AB118,Names!$A$2:$A$161,Names!$B$2:$B$161) -> 0 | AD118: 0 | AE118: 0 | AH118: 0 | AI118: 0 | AJ118: 0 | AM118: 0 | AN118: 0 | AO118: 0 | AR118: 0 | AS118: 0 | AT118: 114
B119: S | C119: 115 | D119: =LOOKUP(C119,Names!$A$2:$A$161,Names!$B$2:$B$161) -> 0 | F119: 0 | G119: 0 | H119: 0 | I119: 129 | J119: =LOOKUP(I119,Names!$A$2:$A$161,Names!$B$2:$B$161) -> 0 | L119: 0 | M119: 0 | N119: 0 | P119: =LOOKUP(O119,Names!$A$2:$A$161,Names!$B$2:$B$161) ->  | R119: 0 | S119: 0 | T119: 0 | V119: =LOOKUP(U119,Names!$A$2:$A$161,Names!$B$2:$B$161) ->  | X119: 0 | Y119: 0 | Z119: 0 | AB119: 115 | AC119: =LOOKUP(AB119,Names!$A$2:$A$161,Names!$B$2:$B$161) -> 0 | AD119: 0 | AE119: 0 | AH119: 0 | AI119: 0 | AJ119: 0 | AM119: 0 | AN119: 0 | AO119: 0 | AR119: 0 | AS119: 0 | AT119: 115
B120: E | C120: 116 | D120: =LOOKUP(C120,Names!$A$2:$A$161,Names!$B$2:$B$161) -> 0 | F120: 0 | G120: 0 | H120: 0 | I120: 149 | J120: =LOOKUP(I120,Names!$A$2:$A$161,Names!$B$2:$B$161) -> 0 | L120: 0 | M120: 0 | N120: 0 | P120: =LOOKUP(O120,Names!$A$2:$A$161,Names!$B$2:$B$161) ->  | R120: 0 | S120: 0 | T120: 0 | V120: =LOOKUP(U120,Names!$A$2:$A$161,Names!$B$2:$B$161) ->  | X120: 0 | Y120: 0 | Z120: 0 | AB120: 116 | AC120: =LOOKUP(AB120,Names!$A$2:$A$161,Names!$B$2:$B$161) -> 0 | AD120: 0 | AE120: 0 | AH120: 0 | AI120: 0 | AJ120: 0 | AM120: 0 | AN120: 0 | AO120: 0 | AR120: 0 | AS120: 0 | AT120: 116
A121: Tabel ( B6 ) | B121: N | C121: 117 | D121: =LOOKUP(C121,Names!$A$2:$A$161,Names!$B$2:$B$161) -> 0 | F121: 0 | G121: 0 | H121: 0 | I121: 90 | J121: =LOOKUP(I121,Names!$A$2:$A$161,Names!$B$2:$B$161) -> 0 | L121: 0 | M121: 0 | N121: 0 | P121: =LOOKUP(O121,Names!$A$2:$A$161,Names!$B$2:$B$161) ->  | R121: 0 | S121: 0 | T121: 0 | V121: =LOOKUP(U121,Names!$A$2:$A$161,Names!$B$2:$B$161) ->  | X121: 0 | Y121: 0 | Z121: 0 | AB121: 117 | AC121: =LOOKUP(AB121,Names!$A$2:$A$161,Names!$B$2:$B$161) -> 0 | AD121: 0 | AE121: 0 | AH121: 0 | AI121: 0 | AJ121: 0 | AM121: 0 | AN121: 0 | AO121: 0 | AR121: 0 | AS121: 0 | AT121: 117
B122: W | C122: 118 | D122: =LOOKUP(C122,Names!$A$2:$A$161,Names!$B$2:$B$161) -> 0 | F122: 0 | G122: 0 | H122: 0 | I122: 110 | J122: =LOOKUP(I122,Names!$A$2:$A$161,Names!$B$2:$B$161) -> 0 | L122: 0 | M122: 0 | N122: 0 | P122: =LOOKUP(O122,Names!$A$2:$A$161,Names!$B$2:$B$161) ->  | R122: 0 | S122: 0 | T122: 0 | V122: =LOOKUP(U122,Names!$A$2:$A$161,Names!$B$2:$B$161) ->  | X122: 0 | Y122: 0 | Z122: 0 | AB122: 118 | AC122: =LOOKUP(AB122,Names!$A$2:$A$161,Names!$B$2:$B$161) -> 0 | AD122: 0 | AE122: 0 | AH122: 0 | AI122: 0 | AJ122: 0 | AM122: 0 | AN122: 0 | AO122: 0 | AR122: 0 | AS122: 0 | AT122: 118
B123: S | C123: 119 | D123: =LOOKUP(C123,Names!$A$2:$A$161,Names!$B$2:$B$161) -> 0 | F123: 0 | G123: 0 | H123: 0 | I123: 130 | J123: =LOOKUP(I123,Names!$A$2:$A$161,Names!$B$2:$B$161) -> 0 | L123: 0 | M123: 0 | N123: 0 | P123: =LOOKUP(O123,Names!$A$2:$A$161,Names!$B$2:$B$161) ->  | R123: 0 | S123: 0 | T123: 0 | V123: =LOOKUP(U123,Names!$A$2:$A$161,Names!$B$2:$B$161) ->  | X123: 0 | Y123: 0 | Z123: 0 | AB123: 119 | AC123: =LOOKUP(AB123,Names!$A$2:$A$161,Names!$B$2:$B$161) -> 0 | AD123: 0 | AE123: 0 | AH123: 0 | AI123: 0 | AJ123: 0 | AM123: 0 | AN123: 0 | AO123: 0 | AR123: 0 | AS123: 0 | AT123: 119
B124: E | C124: 120 | D124: =LOOKUP(C124,Names!$A$2:$A$161,Names!$B$2:$B$161) -> 0 | F124: 0 | G124: 0 | H124: 0 | I124: 150 | J124: =LOOKUP(I124,Names!$A$2:$A$161,Names!$B$2:$B$161) -> 0 | L124: 0 | M124: 0 | N124: 0 | P124: =LOOKUP(O124,Names!$A$2:$A$161,Names!$B$2:$B$161) ->  | R124: 0 | S124: 0 | T124: 0 | V124: =LOOKUP(U124,Names!$A$2:$A$161,Names!$B$2:$B$161) ->  | X124: 0 | Y124: 0 | Z124: 0 | AB124: 120 | AC124: =LOOKUP(AB124,Names!$A$2:$A$161,Names!$B$2:$B$161) -> 0 | AD124: 0 | AE124: 0 | AH124: 0 | AI124: 0 | AJ124: 0 | AM124: 0 | AN124: 0 | AO124: 0 | AR124: 0 | AS124: 0 | AT124: 120
A125: Tabel ( 31 ) | B125: N | C125: 121 | D125: =LOOKUP(C125,Names!$A$2:$A$161,Names!$B$2:$B$161) -> 0 | F125: 0 | G125: 0 | H125: 0 | I125: 91 | J125: =LOOKUP(I125,Names!$A$2:$A$161,Names!$B$2:$B$161) -> 0 | L125: 0 | M125: 0 | N125: 0 | P125: =LOOKUP(O125,Names!$A$2:$A$161,Names!$B$2:$B$161) ->  | R125: 0 | S125: 0 | T125: 0 | V125: =LOOKUP(U125,Names!$A$2:$A$161,Names!$B$2:$B$161) ->  | X125: 0 | Y125: 0 | Z125: 0 | AB125: 121 | AC125: =LOOKUP(AB125,Names!$A$2:$A$161,Names!$B$2:$B$161) -> 0 | AD125: 0 | AH125: 0 | AI125: 0 | AM125: 0 | AN125: 0 | AR125: 0 | AS125: 0 | AT125: 121
B126: W | C126: 122 | D126: =LOOKUP(C126,Names!$A$2:$A$161,Names!$B$2:$B$161) -> 0 | F126: 0 | G126: 0 | H126: 0 | I126: 111 | J126: =LOOKUP(I126,Names!$A$2:$A$161,Names!$B$2:$B$161) -> 0 | L126: 0 | M126: 0 | N126: 0 | P126: =LOOKUP(O126,Names!$A$2:$A$161,Names!$B$2:$B$161) ->  | R126: 0 | S126: 0 | T126: 0 | V126: =LOOKUP(U126,Names!$A$2:$A$161,Names!$B$2:$B$161) ->  | X126: 0 | Y126: 0 | Z126: 0 | AB126: 122 | AC126: =LOOKUP(AB126,Names!$A$2:$A$161,Names!$B$2:$B$161) -> 0 | AD126: 0 | AH126: 0 | AI126: 0 | AM126: 0 | AN126: 0 | AR126: 0 | AS126: 0 | AT126: 122
B127: S | C127: 123 | D127: =LOOKUP(C127,Names!$A$2:$A$161,Names!$B$2:$B$161) -> 0 | F127: 0 | G127: 0 | H127: 0 | I127: 131 | J127: =LOOKUP(I127,Names!$A$2:$A$161,Names!$B$2:$B$161) -> 0 | L127: 0 | M127: 0 | N127: 0 | P127: =LOOKUP(O127,Names!$A$2:$A$161,Names!$B$2:$B$161) ->  | R127: 0 | S127: 0 | T127: 0 | V127: =LOOKUP(U127,Names!$A$2:$A$161,Names!$B$2:$B$161) ->  | X127: 0 | Y127: 0 | Z127: 0 | AB127: 123 | AC127: =LOOKUP(AB127,Names!$A$2:$A$161,Names!$B$2:$B$161) -> 0 | AD127: 0 | AH127: 0 | AI127: 0 | AM127: 0 | AN127: 0 | AR127: 0 | AS127: 0 | AT127: 123
B128: E | C128: 124 | D128: =LOOKUP(C128,Names!$A$2:$A$161,Names!$B$2:$B$161) -> 0 | F128: 0 | G128: 0 | H128: 0 | I128: 151 | J128: =LOOKUP(I128,Names!$A$2:$A$161,Names!$B$2:$B$161) -> 0 | L128: 0 | M128: 0 | N128: 0 | P128: =LOOKUP(O128,Names!$A$2:$A$161,Names!$B$2:$B$161) ->  | R128: 0 | S128: 0 | T128: 0 | V128: =LOOKUP(U128,Names!$A$2:$A$161,Names!$B$2:$B$161) ->  | X128: 0 | Y128: 0 | Z128: 0 | AB128: 124 | AC128: =LOOKUP(AB128,Names!$A$2:$A$161,Names!$B$2:$B$161) -> 0 | AD128: 0 | AH128: 0 | AI128: 0 | AM128: 0 | AN128: 0 | AR128: 0 | AS128: 0 | AT128: 124
A129: Tabel ( 32 ) | B129: N | C129: 125 | D129: =LOOKUP(C129,Names!$A$2:$A$161,Names!$B$2:$B$161) -> 0 | F129: 0 | G129: 0 | H129: 0 | I129: 92 | J129: =LOOKUP(I129,Names!$A$2:$A$161,Names!$B$2:$B$161) -> 0 | L129: 0 | M129: 0 | N129: 0 | P129: =LOOKUP(O129,Names!$A$2:$A$161,Names!$B$2:$B$161) ->  | R129: 0 | S129: 0 | T129: 0 | V129: =LOOKUP(U129,Names!$A$2:$A$161,Names!$B$2:$B$161) ->  | X129: 0 | Y129: 0 | Z129: 0 | AB129: 125 | AC129: =LOOKUP(AB129,Names!$A$2:$A$161,Names!$B$2:$B$161) -> 0 | AD129: 0 | AH129: 0 | AI129: 0 | AM129: 0 | AN129: 0 | AR129: 0 | AS129: 0 | AT129: 125
B130: W | C130: 126 | D130: =LOOKUP(C130,Names!$A$2:$A$161,Names!$B$2:$B$161) -> 0 | F130: 0 | G130: 0 | H130: 0 | I130: 112 | J130: =LOOKUP(I130,Names!$A$2:$A$161,Names!$B$2:$B$161) -> 0 | L130: 0 | M130: 0 | N130: 0 | P130: =LOOKUP(O130,Names!$A$2:$A$161,Names!$B$2:$B$161) ->  | R130: 0 | S130: 0 | T130: 0 | V130: =LOOKUP(U130,Names!$A$2:$A$161,Names!$B$2:$B$161) ->  | X130: 0 | Y130: 0 | Z130: 0 | AB130: 126 | AC130: =LOOKUP(AB130,Names!$A$2:$A$161,Names!$B$2:$B$161) -> 0 | AD130: 0 | AH130: 0 | AI130: 0 | AM130: 0 | AN130: 0 | AR130: 0 | AS130: 0 | AT130: 126
B131: S | C131: 127 | D131: =LOOKUP(C131,Names!$A$2:$A$161,Names!$B$2:$B$161) -> 0 | F131: 0 | G131: 0 | H131: 0 | I131: 132 | J131: =LOOKUP(I131,Names!$A$2:$A$161,Names!$B$2:$B$161) -> 0 | L131: 0 | M131: 0 | N131: 0 | P131: =LOOKUP(O131,Names!$A$2:$A$161,Names!$B$2:$B$161) ->  | R131: 0 | S131: 0 | T131: 0 | V131: =LOOKUP(U131,Names!$A$2:$A$161,Names!$B$2:$B$161) ->  | X131: 0 | Y131: 0 | Z131: 0 | AB131: 127 | AC131: =LOOKUP(AB131,Names!$A$2:$A$161,Names!$B$2:$B$161) -> 0 | AD131: 0 | AH131: 0 | AI131: 0 | AM131: 0 | AN131: 0 | AR131: 0 | AS131: 0 | AT131: 127
B132: E | C132: 128 | D132: =LOOKUP(C132,Names!$A$2:$A$161,Names!$B$2:$B$161) -> 0 | F132: 0 | G132: 0 | H132: 0 | I132: 152 | J132: =LOOKUP(I132,Names!$A$2:$A$161,Names!$B$2:$B$161) -> 0 | L132: 0 | M132: 0 | N132: 0 | P132: =LOOKUP(O132,Names!$A$2:$A$161,Names!$B$2:$B$161) ->  | R132: 0 | S132: 0 | T132: 0 | V132: =LOOKUP(U132,Names!$A$2:$A$161,Names!$B$2:$B$161) ->  | X132: 0 | Y132: 0 | Z132: 0 | AB132: 128 | AC132: =LOOKUP(AB132,Names!$A$2:$A$161,Names!$B$2:$B$161) -> 0 | AD132: 0 | AE132: 0 | AH132: 0 | AI132: 0 | AJ132: 0 | AM132: 0 | AN132: 0 | AO132: 0 | AR132: 0 | AS132: 0 | AT132: 128
A133: Tabel ( 33 ) | B133: N | C133: 129 | D133: =LOOKUP(C133,Names!$A$2:$A$161,Names!$B$2:$B$161) -> 0 | F133: 0 | G133: 0 | H133: =F133+G133 -> 0 | I133: 93 | J133: =LOOKUP(I133,Names!$A$2:$A$161,Names!$B$2:$B$161) -> 0 | L133: 0 | M133: 0 | N133: =L133+M133 -> 0 | P133: =LOOKUP(O133,Names!$A$2:$A$161,Names!$B$2:$B$161) ->  | R133: 0 | S133: 0 | T133: =R133+S133 -> 0 | V133: =LOOKUP(U133,Names!$A$2:$A$161,Names!$B$2:$B$161) ->  | X133: 0 | Y133: 0 | Z133: =X133+Y133 -> 0 | AB133: 129 | AC133: =LOOKUP(AB133,Names!$A$2:$A$161,Names!$B$2:$B$161) -> 0 | AD133: =IF(ISNA(VLOOKUP(AB133,$C$5:$H$164,3,FALSE))=TRUE,"",VLOOKUP(AB133,$C$5:$H$164,3,FALSE)) -> 0 | AE133: =IF(ISNA(VLOOKUP(AB133,$I$5:$N$164,3,FALSE))=TRUE,"",VLOOKUP(AB133,$I$5:$N$164,3,FALSE)) -> 0 | AF133: =IF(ISNA(VLOOKUP(AB133,$O$5:$T$164,3,FALSE))=TRUE,"",VLOOKUP(AB133,$O$5:$T$164,3,FALSE)) ->  | AG133: =IF(ISNA(VLOOKUP(AB133,$U$5:$Z$164,3,FALSE))=TRUE,"",VLOOKUP(AB133,$U$5:$Z$164,3,FALSE)) ->  | AH133: =SUM(AD133:AG133) -> 0 | AI133: =IF(ISNA(VLOOKUP(AB133,$C$5:$H$164,4,FALSE))=TRUE,"",VLOOKUP(AB133,$C$5:$H$164,4,FALSE)) -> 0 | AJ133: =IF(ISNA(VLOOKUP(AB133,$I$5:$N$164,4,FALSE))=TRUE,"",VLOOKUP(AB133,$I$5:$N$164,4,FALSE)) -> 0 | AK133: =IF(ISNA(VLOOKUP(AB133,$O$5:$T$164,4,FALSE))=TRUE,"",VLOOKUP(AB133,$O$5:$T$164,4,FALSE)) ->  | AL133: =IF(ISNA(VLOOKUP(AB133,$U$5:$Z$164,4,FALSE))=TRUE,"",VLOOKUP(AB133,$U$5:$Z$164,4,FALSE)) ->  | AM133: =SUM(AI133:AL133) -> 0 | AN133: =IF(ISNA(VLOOKUP(AB133,$C$5:$H$164,5,FALSE))=TRUE,"",VLOOKUP(AB133,$C$5:$H$164,5,FALSE)) -> 0 | AO133: =IF(ISNA(VLOOKUP(AB133,$I$5:$N$164,5,FALSE))=TRUE,"",VLOOKUP(AB133,$I$5:$N$164,5,FALSE)) -> 0 | AP133: =IF(ISNA(VLOOKUP(AB133,$O$5:$T$164,5,FALSE))=TRUE,"",VLOOKUP(AB133,$O$5:$T$164,5,FALSE)) ->  | AQ133: =IF(ISNA(VLOOKUP(AB133,$U$5:$Z$164,5,FALSE))=TRUE,"",VLOOKUP(AB133,$U$5:$Z$164,5,FALSE)) ->  | AR133: =SUM(AN133:AQ133) -> 0 | AS133: =AM133+AR133 -> 0 | AT133: 129
B134: W | C134: 130 | D134: =LOOKUP(C134,Names!$A$2:$A$161,Names!$B$2:$B$161) -> 0 | F134: 0 | G134: 0 | H134: 0 | I134: 113 | J134: =LOOKUP(I134,Names!$A$2:$A$161,Names!$B$2:$B$161) -> 0 | L134: 0 | M134: 0 | N134: 0 | P134: =LOOKUP(O134,Names!$A$2:$A$161,Names!$B$2:$B$161) ->  | R134: 0 | S134: 0 | T134: 0 | V134: =LOOKUP(U134,Names!$A$2:$A$161,Names!$B$2:$B$161) ->  | X134: 0 | Y134: 0 | Z134: 0 | AB134: 130 | AC134: =LOOKUP(AB134,Names!$A$2:$A$161,Names!$B$2:$B$161) -> 0 | AD134: 0 | AE134: 0 | AH134: 0 | AI134: 0 | AJ134: 0 | AM134: 0 | AN134: 0 | AO134: 0 | AR134: 0 | AS134: 0 | AT134: 130
B135: S | C135: 131 | D135: =LOOKUP(C135,Names!$A$2:$A$161,Names!$B$2:$B$161) -> 0 | F135: 0 | G135: 0 | H135: 0 | I135: 133 | J135: =LOOKUP(I135,Names!$A$2:$A$161,Names!$B$2:$B$161) -> 0 | L135: 0 | M135: 0 | N135: 0 | P135: =LOOKUP(O135,Names!$A$2:$A$161,Names!$B$2:$B$161) ->  | R135: 0 | S135: 0 | T135: 0 | V135: =LOOKUP(U135,Names!$A$2:$A$161,Names!$B$2:$B$161) ->  | X135: 0 | Y135: 0 | Z135: 0 | AB135: 131 | AC135: =LOOKUP(AB135,Names!$A$2:$A$161,Names!$B$2:$B$161) -> 0 | AD135: 0 | AE135: 0 | AH135: 0 | AI135: 0 | AJ135: 0 | AM135: 0 | AN135: 0 | AO135: 0 | AR135: 0 | AS135: 0 | AT135: 131
B136: E | C136: 132 | D136: =LOOKUP(C136,Names!$A$2:$A$161,Names!$B$2:$B$161) -> 0 | F136: 0 | G136: 0 | H136: 0 | I136: 153 | J136: =LOOKUP(I136,Names!$A$2:$A$161,Names!$B$2:$B$161) -> 0 | L136: 0 | M136: 0 | N136: 0 | P136: =LOOKUP(O136,Names!$A$2:$A$161,Names!$B$2:$B$161) ->  | R136: 0 | S136: 0 | T136: 0 | V136: =LOOKUP(U136,Names!$A$2:$A$161,Names!$B$2:$B$161) ->  | X136: 0 | Y136: 0 | Z136: 0 | AB136: 132 | AC136: =LOOKUP(AB136,Names!$A$2:$A$161,Names!$B$2:$B$161) -> 0 | AD136: 0 | AE136: 0 | AH136: 0 | AI136: 0 | AJ136: 0 | AM136: 0 | AN136: 0 | AO136: 0 | AR136: 0 | AS136: 0 | AT136: 132
A137: Tabel ( 34 ) | B137: N | C137: 133 | D137: =LOOKUP(C137,Names!$A$2:$A$161,Names!$B$2:$B$161) -> 0 | F137: 0 | G137: 0 | H137: 0 | I137: 94 | J137: =LOOKUP(I137,Names!$A$2:$A$161,Names!$B$2:$B$161) -> 0 | L137: 0 | M137: 0 | N137: 0 | P137: =LOOKUP(O137,Names!$A$2:$A$161,Names!$B$2:$B$161) ->  | R137: 0 | S137: 0 | T137: 0 | V137: =LOOKUP(U137,Names!$A$2:$A$161,Names!$B$2:$B$161) ->  | X137: 0 | Y137: 0 | Z137: 0 | AB137: 133 | AC137: =LOOKUP(AB137,Names!$A$2:$A$161,Names!$B$2:$B$161) -> 0 | AD137: 0 | AE137: 0 | AH137: 0 | AI137: 0 | AJ137: 0 | AM137: 0 | AN137: 0 | AO137: 0 | AR137: 0 | AS137: 0 | AT137: 133
B138: W | C138: 134 | D138: =LOOKUP(C138,Names!$A$2:$A$161,Names!$B$2:$B$161) -> 0 | F138: 0 | G138: 0 | H138: 0 | I138: 114 | J138: =LOOKUP(I138,Names!$A$2:$A$161,Names!$B$2:$B$161) -> 0 | L138: 0 | M138: 0 | N138: 0 | P138: =LOOKUP(O138,Names!$A$2:$A$161,Names!$B$2:$B$161) ->  | R138: 0 | S138: 0 | T138: 0 | V138: =LOOKUP(U138,Names!$A$2:$A$161,Names!$B$2:$B$161) ->  | X138: 0 | Y138: 0 | Z138: 0 | AB138: 134 | AC138: =LOOKUP(AB138,Names!$A$2:$A$161,Names!$B$2:$B$161) -> 0 | AD138: 0 | AE138: 0 | AH138: 0 | AI138: 0 | AJ138: 0 | AM138: 0 | AN138: 0 | AO138: 0 | AR138: 0 | AS138: 0 | AT138: 134
B139: S | C139: 135 | D139: =LOOKUP(C139,Names!$A$2:$A$161,Names!$B$2:$B$161) -> 0 | F139: 0 | G139: 0 | H139: 0 | I139: 134 | J139: =LOOKUP(I139,Names!$A$2:$A$161,Names!$B$2:$B$161) -> 0 | L139: 0 | M139: 0 | N139: 0 | P139: =LOOKUP(O139,Names!$A$2:$A$161,Names!$B$2:$B$161) ->  | R139: 0 | S139: 0 | T139: 0 | V139: =LOOKUP(U139,Names!$A$2:$A$161,Names!$B$2:$B$161) ->  | X139: 0 | Y139: 0 | Z139: 0 | AB139: 135 | AC139: =LOOKUP(AB139,Names!$A$2:$A$161,Names!$B$2:$B$161) -> 0 | AD139: 0 | AE139: 0 | AH139: 0 | AI139: 0 | AJ139: 0 | AM139: 0 | AN139: 0 | AO139: 0 | AR139: 0 | AS139: 0 | AT139: 135
B140: E | C140: 136 | D140: =LOOKUP(C140,Names!$A$2:$A$161,Names!$B$2:$B$161) -> 0 | F140: 0 | G140: 0 | H140: 0 | I140: 154 | J140: =LOOKUP(I140,Names!$A$2:$A$161,Names!$B$2:$B$161) -> 0 | L140: 0 | M140: 0 | N140: 0 | P140: =LOOKUP(O140,Names!$A$2:$A$161,Names!$B$2:$B$161) ->  | R140: 0 | S140: 0 | T140: 0 | V140: =LOOKUP(U140,Names!$A$2:$A$161,Names!$B$2:$B$161) ->  | X140: 0 | Y140: 0 | Z140: 0 | AB140: 136 | AC140: =LOOKUP(AB140,Names!$A$2:$A$161,Names!$B$2:$B$161) -> 0 | AD140: 0 | AE140: 0 | AH140: 0 | AI140: 0 | AJ140: 0 | AM140: 0 | AN140: 0 | AO140: 0 | AR140: 0 | AS140: 0 | AT140: 136
A141: Tabel ( 35 ) | B141: N | C141: 137 | D141: =LOOKUP(C141,Names!$A$2:$A$161,Names!$B$2:$B$161) -> 0 | F141: 0 | G141: 0 | H141: 0 | I141: 95 | J141: =LOOKUP(I141,Names!$A$2:$A$161,Names!$B$2:$B$161) -> 0 | L141: 0 | M141: 0 | N141: 0 | P141: =LOOKUP(O141,Names!$A$2:$A$161,Names!$B$2:$B$161) ->  | R141: 0 | S141: 0 | T141: 0 | V141: =LOOKUP(U141,Names!$A$2:$A$161,Names!$B$2:$B$161) ->  | X141: 0 | Y141: 0 | Z141: 0 | AB141: 137 | AC141: =LOOKUP(AB141,Names!$A$2:$A$161,Names!$B$2:$B$161) -> 0 | AD141: 0 | AE141: 0 | AH141: 0 | AI141: 0 | AJ141: 0 | AM141: 0 | AN141: 0 | AO141: 0 | AR141: 0 | AS141: 0 | AT141: 137
B142: W | C142: 138 | D142: =LOOKUP(C142,Names!$A$2:$A$161,Names!$B$2:$B$161) -> 0 | F142: 0 | G142: 0 | H142: 0 | I142: 115 | J142: =LOOKUP(I142,Names!$A$2:$A$161,Names!$B$2:$B$161) -> 0 | L142: 0 | M142: 0 | N142: 0 | P142: =LOOKUP(O142,Names!$A$2:$A$161,Names!$B$2:$B$161) ->  | R142: 0 | S142: 0 | T142: 0 | V142: =LOOKUP(U142,Names!$A$2:$A$161,Names!$B$2:$B$161) ->  | X142: 0 | Y142: 0 | Z142: 0 | AB142: 138 | AC142: =LOOKUP(AB142,Names!$A$2:$A$161,Names!$B$2:$B$161) -> 0 | AD142: 0 | AE142: 0 | AH142: 0 | AI142: 0 | AJ142: 0 | AM142: 0 | AN142: 0 | AO142: 0 | AR142: 0 | AS142: 0 | AT142: 138
B143: S | C143: 139 | D143: =LOOKUP(C143,Names!$A$2:$A$161,Names!$B$2:$B$161) -> 0 | F143: 0 | G143: 0 | H143: 0 | I143: 135 | J143: =LOOKUP(I143,Names!$A$2:$A$161,Names!$B$2:$B$161) -> 0 | L143: 0 | M143: 0 | N143: 0 | P143: =LOOKUP(O143,Names!$A$2:$A$161,Names!$B$2:$B$161) ->  | R143: 0 | S143: 0 | T143: 0 | V143: =LOOKUP(U143,Names!$A$2:$A$161,Names!$B$2:$B$161) ->  | X143: 0 | Y143: 0 | Z143: 0 | AB143: 139 | AC143: =LOOKUP(AB143,Names!$A$2:$A$161,Names!$B$2:$B$161) -> 0 | AD143: 0 | AE143: 0 | AH143: 0 | AI143: 0 | AJ143: 0 | AM143: 0 | AN143: 0 | AO143: 0 | AR143: 0 | AS143: 0 | AT143: 139
B144: E | C144: 140 | D144: =LOOKUP(C144,Names!$A$2:$A$161,Names!$B$2:$B$161) -> 0 | F144: 0 | G144: 0 | H144: 0 | I144: 155 | J144: =LOOKUP(I144,Names!$A$2:$A$161,Names!$B$2:$B$161) -> 0 | L144: 0 | M144: 0 | N144: 0 | P144: =LOOKUP(O144,Names!$A$2:$A$161,Names!$B$2:$B$161) ->  | R144: 0 | S144: 0 | T144: 0 | V144: =LOOKUP(U144,Names!$A$2:$A$161,Names!$B$2:$B$161) ->  | X144: 0 | Y144: 0 | Z144: 0 | AB144: 140 | AC144: =LOOKUP(AB144,Names!$A$2:$A$161,Names!$B$2:$B$161) -> 0 | AD144: 0 | AE144: 0 | AH144: 0 | AI144: 0 | AJ144: 0 | AM144: 0 | AN144: 0 | AO144: 0 | AR144: 0 | AS144: 0 | AT144: 140
A145: Tabel ( 36 ) | B145: N | C145: 141 | D145: =LOOKUP(C145,Names!$A$2:$A$161,Names!$B$2:$B$161) -> 0 | F145: 0 | G145: 0 | H145: 0 | I145: 96 | J145: =LOOKUP(I145,Names!$A$2:$A$161,Names!$B$2:$B$161) -> 0 | L145: 0 | M145: 0 | N145: 0 | P145: =LOOKUP(O145,Names!$A$2:$A$161,Names!$B$2:$B$161) ->  | R145: 0 | S145: 0 | T145: 0 | V145: =LOOKUP(U145,Names!$A$2:$A$161,Names!$B$2:$B$161) ->  | X145: 0 | Y145: 0 | Z145: 0 | AB145: 141 | AC145: =LOOKUP(AB145,Names!$A$2:$A$161,Names!$B$2:$B$161) -> 0 | AD145: 0 | AH145: 0 | AI145: 0 | AM145: 0 | AN145: 0 | AR145: 0 | AS145: 0 | AT145: 141
B146: W | C146: 142 | D146: =LOOKUP(C146,Names!$A$2:$A$161,Names!$B$2:$B$161) -> 0 | F146: 0 | G146: 0 | H146: 0 | I146: 116 | J146: =LOOKUP(I146,Names!$A$2:$A$161,Names!$B$2:$B$161) -> 0 | L146: 0 | M146: 0 | N146: 0 | P146: =LOOKUP(O146,Names!$A$2:$A$161,Names!$B$2:$B$161) ->  | R146: 0 | S146: 0 | T146: 0 | V146: =LOOKUP(U146,Names!$A$2:$A$161,Names!$B$2:$B$161) ->  | X146: 0 | Y146: 0 | Z146: 0 | AB146: 142 | AC146: =LOOKUP(AB146,Names!$A$2:$A$161,Names!$B$2:$B$161) -> 0 | AD146: 0 | AH146: 0 | AI146: 0 | AM146: 0 | AN146: 0 | AR146: 0 | AS146: 0 | AT146: 142
B147: S | C147: 143 | D147: =LOOKUP(C147,Names!$A$2:$A$161,Names!$B$2:$B$161) -> 0 | F147: 0 | G147: 0 | H147: 0 | I147: 136 | J147: =LOOKUP(I147,Names!$A$2:$A$161,Names!$B$2:$B$161) -> 0 | L147: 0 | M147: 0 | N147: 0 | P147: =LOOKUP(O147,Names!$A$2:$A$161,Names!$B$2:$B$161) ->  | R147: 0 | S147: 0 | T147: 0 | V147: =LOOKUP(U147,Names!$A$2:$A$161,Names!$B$2:$B$161) ->  | X147: 0 | Y147: 0 | Z147: 0 | AB147: 143 | AC147: =LOOKUP(AB147,Names!$A$2:$A$161,Names!$B$2:$B$161) -> 0 | AD147: 0 | AH147: 0 | AI147: 0 | AM147: 0 | AN147: 0 | AR147: 0 | AS147: 0 | AT147: 143
B148: E | C148: 144 | D148: =LOOKUP(C148,Names!$A$2:$A$161,Names!$B$2:$B$161) -> 0 | F148: 0 | G148: 0 | H148: 0 | I148: 156 | J148: =LOOKUP(I148,Names!$A$2:$A$161,Names!$B$2:$B$161) -> 0 | L148: 0 | M148: 0 | N148: 0 | P148: =LOOKUP(O148,Names!$A$2:$A$161,Names!$B$2:$B$161) ->  | R148: 0 | S148: 0 | T148: 0 | V148: =LOOKUP(U148,Names!$A$2:$A$161,Names!$B$2:$B$161) ->  | X148: 0 | Y148: 0 | Z148: 0 | AB148: 144 | AC148: =LOOKUP(AB148,Names!$A$2:$A$161,Names!$B$2:$B$161) -> 0 | AD148: 0 | AH148: 0 | AI148: 0 | AM148: 0 | AN148: 0 | AR148: 0 | AS148: 0 | AT148: 144
A149: Tabel ( 37 ) | B149: N | C149: 145 | D149: =LOOKUP(C149,Names!$A$2:$A$161,Names!$B$2:$B$161) -> 0 | F149: 0 | G149: 0 | H149: 0 | I149: 97 | J149: =LOOKUP(I149,Names!$A$2:$A$161,Names!$B$2:$B$161) -> 0 | L149: 0 | M149: 0 | N149: 0 | P149: =LOOKUP(O149,Names!$A$2:$A$161,Names!$B$2:$B$161) ->  | R149: 0 | S149: 0 | T149: 0 | V149: =LOOKUP(U149,Names!$A$2:$A$161,Names!$B$2:$B$161) ->  | X149: 0 | Y149: 0 | Z149: 0 | AB149: 145 | AC149: =LOOKUP(AB149,Names!$A$2:$A$161,Names!$B$2:$B$161) -> 0 | AD149: 0 | AH149: 0 | AI149: 0 | AM149: 0 | AN149: 0 | AR149: 0 | AS149: 0 | AT149: 145
B150: W | C150: 146 | D150: =LOOKUP(C150,Names!$A$2:$A$161,Names!$B$2:$B$161) -> 0 | F150: 0 | G150: 0 | H150: 0 | I150: 117 | J150: =LOOKUP(I150,Names!$A$2:$A$161,Names!$B$2:$B$161) -> 0 | L150: 0 | M150: 0 | N150: 0 | P150: =LOOKUP(O150,Names!$A$2:$A$161,Names!$B$2:$B$161) ->  | R150: 0 | S150: 0 | T150: 0 | V150: =LOOKUP(U150,Names!$A$2:$A$161,Names!$B$2:$B$161) ->  | X150: 0 | Y150: 0 | Z150: 0 | AB150: 146 | AC150: =LOOKUP(AB150,Names!$A$2:$A$161,Names!$B$2:$B$161) -> 0 | AD150: 0 | AH150: 0 | AI150: 0 | AM150: 0 | AN150: 0 | AR150: 0 | AS150: 0 | AT150: 146
B151: S | C151: 147 | D151: =LOOKUP(C151,Names!$A$2:$A$161,Names!$B$2:$B$161) -> 0 | F151: 0 | G151: 0 | H151: 0 | I151: 137 | J151: =LOOKUP(I151,Names!$A$2:$A$161,Names!$B$2:$B$161) -> 0 | L151: 0 | M151: 0 | N151: 0 | P151: =LOOKUP(O151,Names!$A$2:$A$161,Names!$B$2:$B$161) ->  | R151: 0 | S151: 0 | T151: 0 | V151: =LOOKUP(U151,Names!$A$2:$A$161,Names!$B$2:$B$161) ->  | X151: 0 | Y151: 0 | Z151: 0 | AB151: 147 | AC151: =LOOKUP(AB151,Names!$A$2:$A$161,Names!$B$2:$B$161) -> 0 | AD151: 0 | AH151: 0 | AI151: 0 | AM151: 0 | AN151: 0 | AR151: 0 | AS151: 0 | AT151: 147
B152: E | C152: 148 | D152: =LOOKUP(C152,Names!$A$2:$A$161,Names!$B$2:$B$161) -> 0 | F152: 0 | G152: 0 | H152: 0 | I152: 157 | J152: =LOOKUP(I152,Names!$A$2:$A$161,Names!$B$2:$B$161) -> 0 | L152: 0 | M152: 0 | N152: 0 | P152: =LOOKUP(O152,Names!$A$2:$A$161,Names!$B$2:$B$161) ->  | R152: 0 | S152: 0 | T152: 0 | V152: =LOOKUP(U152,Names!$A$2:$A$161,Names!$B$2:$B$161) ->  | X152: 0 | Y152: 0 | Z152: 0 | AB152: 148 | AC152: =LOOKUP(AB152,Names!$A$2:$A$161,Names!$B$2:$B$161) -> 0 | AD152: 0 | AE152: 0 | AH152: 0 | AI152: 0 | AJ152: 0 | AM152: 0 | AN152: 0 | AO152: 0 | AR152: 0 | AS152: 0 | AT152: 148
A153: Tabel ( 38 ) | B153: N | C153: 149 | D153: =LOOKUP(C153,Names!$A$2:$A$161,Names!$B$2:$B$161) -> 0 | F153: 0 | G153: 0 | H153: 0 | I153: 98 | J153: =LOOKUP(I153,Names!$A$2:$A$161,Names!$B$2:$B$161) -> 0 | L153: 0 | M153: 0 | N153: 0 | P153: =LOOKUP(O153,Names!$A$2:$A$161,Names!$B$2:$B$161) ->  | R153: 0 | S153: 0 | T153: 0 | V153: =LOOKUP(U153,Names!$A$2:$A$161,Names!$B$2:$B$161) ->  | X153: 0 | Y153: 0 | Z153: 0 | AB153: 149 | AC153: =LOOKUP(AB153,Names!$A$2:$A$161,Names!$B$2:$B$161) -> 0 | AD153: 0 | AE153: 0 | AH153: 0 | AI153: 0 | AJ153: 0 | AM153: 0 | AN153: 0 | AO153: 0 | AR153: 0 | AS153: 0 | AT153: 149
B154: W | C154: 150 | D154: =LOOKUP(C154,Names!$A$2:$A$161,Names!$B$2:$B$161) -> 0 | F154: 0 | G154: 0 | H154: 0 | I154: 118 | J154: =LOOKUP(I154,Names!$A$2:$A$161,Names!$B$2:$B$161) -> 0 | L154: 0 | M154: 0 | N154: 0 | P154: =LOOKUP(O154,Names!$A$2:$A$161,Names!$B$2:$B$161) ->  | R154: 0 | S154: 0 | T154: 0 | V154: =LOOKUP(U154,Names!$A$2:$A$161,Names!$B$2:$B$161) ->  | X154: 0 | Y154: 0 | Z154: 0 | AB154: 150 | AC154: =LOOKUP(AB154,Names!$A$2:$A$161,Names!$B$2:$B$161) -> 0 | AD154: 0 | AE154: 0 | AH154: 0 | AI154: 0 | AJ154: 0 | AM154: 0 | AN154: 0 | AO154: 0 | AR154: 0 | AS154: 0 | AT154: 150
B155: S | C155: 151 | D155: =LOOKUP(C155,Names!$A$2:$A$161,Names!$B$2:$B$161) -> 0 | F155: 0 | G155: 0 | H155: 0 | I155: 138 | J155: =LOOKUP(I155,Names!$A$2:$A$161,Names!$B$2:$B$161) -> 0 | L155: 0 | M155: 0 | N155: 0 | P155: =LOOKUP(O155,Names!$A$2:$A$161,Names!$B$2:$B$161) ->  | R155: 0 | S155: 0 | T155: 0 | V155: =LOOKUP(U155,Names!$A$2:$A$161,Names!$B$2:$B$161) ->  | X155: 0 | Y155: 0 | Z155: 0 | AB155: 151 | AC155: =LOOKUP(AB155,Names!$A$2:$A$161,Names!$B$2:$B$161) -> 0 | AD155: 0 | AE155: 0 | AH155: 0 | AI155: 0 | AJ155: 0 | AM155: 0 | AN155: 0 | AO155: 0 | AR155: 0 | AS155: 0 | AT155: 151
B156: E | C156: 152 | D156: =LOOKUP(C156,Names!$A$2:$A$161,Names!$B$2:$B$161) -> 0 | F156: 0 | G156: 0 | H156: 0 | I156: 158 | J156: =LOOKUP(I156,Names!$A$2:$A$161,Names!$B$2:$B$161) -> 0 | L156: 0 | M156: 0 | N156: 0 | P156: =LOOKUP(O156,Names!$A$2:$A$161,Names!$B$2:$B$161) ->  | R156: 0 | S156: 0 | T156: 0 | V156: =LOOKUP(U156,Names!$A$2:$A$161,Names!$B$2:$B$161) ->  | X156: 0 | Y156: 0 | Z156: 0 | AB156: 152 | AC156: =LOOKUP(AB156,Names!$A$2:$A$161,Names!$B$2:$B$161) -> 0 | AD156: 0 | AE156: 0 | AH156: 0 | AI156: 0 | AJ156: 0 | AM156: 0 | AN156: 0 | AO156: 0 | AR156: 0 | AS156: 0 | AT156: 152
A157: Tabel ( 39 ) | B157: N | C157: 153 | D157: =LOOKUP(C157,Names!$A$2:$A$161,Names!$B$2:$B$161) -> 0 | F157: 0 | G157: 0 | H157: 0 | I157: 99 | J157: =LOOKUP(I157,Names!$A$2:$A$161,Names!$B$2:$B$161) -> 0 | L157: 0 | M157: 0 | N157: 0 | P157: =LOOKUP(O157,Names!$A$2:$A$161,Names!$B$2:$B$161) ->  | R157: 0 | S157: 0 | T157: 0 | V157: =LOOKUP(U157,Names!$A$2:$A$161,Names!$B$2:$B$161) ->  | X157: 0 | Y157: 0 | Z157: 0 | AB157: 153 | AC157: =LOOKUP(AB157,Names!$A$2:$A$161,Names!$B$2:$B$161) -> 0 | AD157: 0 | AE157: 0 | AH157: 0 | AI157: 0 | AJ157: 0 | AM157: 0 | AN157: 0 | AO157: 0 | AR157: 0 | AS157: 0 | AT157: 153
B158: W | C158: 154 | D158: =LOOKUP(C158,Names!$A$2:$A$161,Names!$B$2:$B$161) -> 0 | F158: 0 | G158: 0 | H158: 0 | I158: 119 | J158: =LOOKUP(I158,Names!$A$2:$A$161,Names!$B$2:$B$161) -> 0 | L158: 0 | M158: 0 | N158: 0 | P158: =LOOKUP(O158,Names!$A$2:$A$161,Names!$B$2:$B$161) ->  | R158: 0 | S158: 0 | T158: 0 | V158: =LOOKUP(U158,Names!$A$2:$A$161,Names!$B$2:$B$161) ->  | X158: 0 | Y158: 0 | Z158: 0 | AB158: 154 | AC158: =LOOKUP(AB158,Names!$A$2:$A$161,Names!$B$2:$B$161) -> 0 | AD158: 0 | AE158: 0 | AH158: 0 | AI158: 0 | AJ158: 0 | AM158: 0 | AN158: 0 | AO158: 0 | AR158: 0 | AS158: 0 | AT158: 154
B159: S | C159: 155 | D159: =LOOKUP(C159,Names!$A$2:$A$161,Names!$B$2:$B$161) -> 0 | F159: 0 | G159: 0 | H159: 0 | I159: 139 | J159: =LOOKUP(I159,Names!$A$2:$A$161,Names!$B$2:$B$161) -> 0 | L159: 0 | M159: 0 | N159: 0 | P159: =LOOKUP(O159,Names!$A$2:$A$161,Names!$B$2:$B$161) ->  | R159: 0 | S159: 0 | T159: 0 | V159: =LOOKUP(U159,Names!$A$2:$A$161,Names!$B$2:$B$161) ->  | X159: 0 | Y159: 0 | Z159: 0 | AB159: 155 | AC159: =LOOKUP(AB159,Names!$A$2:$A$161,Names!$B$2:$B$161) -> 0 | AD159: 0 | AE159: 0 | AH159: 0 | AI159: 0 | AJ159: 0 | AM159: 0 | AN159: 0 | AO159: 0 | AR159: 0 | AS159: 0 | AT159: 155
B160: E | C160: 156 | D160: =LOOKUP(C160,Names!$A$2:$A$161,Names!$B$2:$B$161) -> 0 | F160: 0 | G160: 0 | H160: 0 | I160: 159 | J160: =LOOKUP(I160,Names!$A$2:$A$161,Names!$B$2:$B$161) -> 0 | L160: 0 | M160: 0 | N160: 0 | P160: =LOOKUP(O160,Names!$A$2:$A$161,Names!$B$2:$B$161) ->  | R160: 0 | S160: 0 | T160: 0 | V160: =LOOKUP(U160,Names!$A$2:$A$161,Names!$B$2:$B$161) ->  | X160: 0 | Y160: 0 | Z160: 0 | AB160: 156 | AC160: =LOOKUP(AB160,Names!$A$2:$A$161,Names!$B$2:$B$161) -> 0 | AD160: 0 | AE160: 0 | AH160: 0 | AI160: 0 | AJ160: 0 | AM160: 0 | AN160: 0 | AO160: 0 | AR160: 0 | AS160: 0 | AT160: 156
A161: Tabel ( 40 ) | B161: N | C161: 157 | D161: =LOOKUP(C161,Names!$A$2:$A$161,Names!$B$2:$B$161) -> 0 | F161: 0 | G161: 0 | H161: 0 | I161: 100 | J161: =LOOKUP(I161,Names!$A$2:$A$161,Names!$B$2:$B$161) -> 0 | L161: 0 | M161: 0 | N161: 0 | P161: =LOOKUP(O161,Names!$A$2:$A$161,Names!$B$2:$B$161) ->  | R161: 0 | S161: 0 | T161: 0 | V161: =LOOKUP(U161,Names!$A$2:$A$161,Names!$B$2:$B$161) ->  | X161: 0 | Y161: 0 | Z161: 0 | AB161: 157 | AC161: =LOOKUP(AB161,Names!$A$2:$A$161,Names!$B$2:$B$161) -> 0 | AD161: 0 | AE161: 0 | AH161: 0 | AI161: 0 | AJ161: 0 | AM161: 0 | AN161: 0 | AO161: 0 | AR161: 0 | AS161: 0 | AT161: 157
B162: W | C162: 158 | D162: =LOOKUP(C162,Names!$A$2:$A$161,Names!$B$2:$B$161) -> 0 | F162: 0 | G162: 0 | H162: 0 | I162: 120 | J162: =LOOKUP(I162,Names!$A$2:$A$161,Names!$B$2:$B$161) -> 0 | L162: 0 | M162: 0 | N162: 0 | P162: =LOOKUP(O162,Names!$A$2:$A$161,Names!$B$2:$B$161) ->  | R162: 0 | S162: 0 | T162: 0 | V162: =LOOKUP(U162,Names!$A$2:$A$161,Names!$B$2:$B$161) ->  | X162: 0 | Y162: 0 | Z162: 0 | AB162: 158 | AC162: =LOOKUP(AB162,Names!$A$2:$A$161,Names!$B$2:$B$161) -> 0 | AD162: 0 | AE162: 0 | AH162: 0 | AI162: 0 | AJ162: 0 | AM162: 0 | AN162: 0 | AO162: 0 | AR162: 0 | AS162: 0 | AT162: 158
B163: S | C163: 159 | D163: =LOOKUP(C163,Names!$A$2:$A$161,Names!$B$2:$B$161) -> 0 | F163: 0 | G163: 0 | H163: 0 | I163: 140 | J163: =LOOKUP(I163,Names!$A$2:$A$161,Names!$B$2:$B$161) -> 0 | L163: 0 | M163: 0 | N163: 0 | P163: =LOOKUP(O163,Names!$A$2:$A$161,Names!$B$2:$B$161) ->  | R163: 0 | S163: 0 | T163: 0 | V163: =LOOKUP(U163,Names!$A$2:$A$161,Names!$B$2:$B$161) ->  | X163: 0 | Y163: 0 | Z163: 0 | AB163: 159 | AC163: =LOOKUP(AB163,Names!$A$2:$A$161,Names!$B$2:$B$161) -> 0 | AD163: 0 | AE163: 0 | AH163: 0 | AI163: 0 | AJ163: 0 | AM163: 0 | AN163: 0 | AO163: 0 | AR163: 0 | AS163: 0 | AT163: 159
B164: E | C164: 160 | D164: =LOOKUP(C164,Names!$A$2:$A$161,Names!$B$2:$B$161) -> 0 | F164: 0 | G164: 0 | H164: 0 | I164: 160 | J164: =LOOKUP(I164,Names!$A$2:$A$161,Names!$B$2:$B$161) -> 0 | L164: 0 | M164: 0 | N164: 0 | P164: =LOOKUP(O164,Names!$A$2:$A$161,Names!$B$2:$B$161) ->  | R164: 0 | S164: 0 | T164: 0 | V164: =LOOKUP(U164,Names!$A$2:$A$161,Names!$B$2:$B$161) ->  | X164: 0 | Y164: 0 | Z164: 0 | AB164: 160 | AC164: =LOOKUP(AB164,Names!$A$2:$A$161,Names!$B$2:$B$161) -> 0 | AD164: 0 | AE164: 0 | AH164: 0 | AI164: 0 | AJ164: 0 | AM164: 0 | AN164: 0 | AO164: 0 | AR164: 0 | AS164: 0 | AT164: 160

Sheet R1
K1: التوقيت : | L1: Round ( 1 ) | Y1: =Score!T1 -> بطولة الجمهورية الثانية للفردي المفتوح
K3: 2.00 PM | L3: Tab.
D4: 1 | K4: 2 | R4: 3 | Y4: 4
D5: Names | E5: Sc. | F5: Tab | K5: Names | L5: Sc. | M5: Tab | R5: Names | S5: Sc. | T5: Tab | Y5: Names | Z5: Sc. | AA5: Tab
A6: N | B6: 1 | C6: =Score!C5 -> 1 | D6: =LOOKUP(C6,Names!$A$2:$A$161,Names!$B$2:$B$161) -> راجي صبحي | E6: 95 | F6: =Sheet1!$M$4 -> 0 | G6: =F69 -> 21 | H6: N | I6: 1 | J6: =Score!C9 -> 5 | K6: =LOOKUP(J6,Names!$A$2:$A$161,Names!$B$2:$B$161) -> محمد عصام الدين القاضي | L6: 136 | M6: =Sheet1!$M$4 -> 0 | N6: =F70 -> 19 | O6: N | P6: 1 | Q6: =Score!C13 -> 9 | R6: =LOOKUP(Q6,Names!$A$2:$A$161,Names!$B$2:$B$161) -> رأفت الصياد | S6: 36 | T6: =Sheet1!$M$4 -> 0 | U6: =F71 -> 18 | V6: N | W6: 1 | X6: =Score!C17 -> 13 | Y6: =LOOKUP(X6,Names!$A$2:$A$161,Names!$B$2:$B$161) -> أحمد جميل السيد | Z6: 83 | AA6: =Sheet1!$M$4 -> 0 | AB6: =F72 -> 17
A7: W | B7: 2 | C7: =Score!C6 -> 2 | D7: =LOOKUP(C7,Names!$A$2:$A$161,Names!$B$2:$B$161) -> شريف أحمد محمد حمروش | E7: 65 | F7: =Sheet1!$M$5 -> 0 | G7: =M69 -> 21 | H7: W | I7: 2 | J7: =Score!C10 -> 6 | K7: =LOOKUP(J7,Names!$A$2:$A$161,Names!$B$2:$B$161) -> إبراهيم عرفان السقا | L7: 126 | M7: =Sheet1!$M$5 -> 0 | N7: =M70 -> 19 | O7: W | P7: 2 | Q7: =Score!C14 -> 10 | R7: =LOOKUP(Q7,Names!$A$2:$A$161,Names!$B$2:$B$161) -> نبيل خلف زكي حسنين | S7: 165 | T7: =Sheet1!$M$5 -> 0 | U7: =M71 -> 18 | V7: W | W7: 2 | X7: =Score!C18 -> 14 | Y7: =LOOKUP(X7,Names!$A$2:$A$161,Names!$B$2:$B$161) -> عماد محمد فؤاد | Z7: 56 | AA7: =Sheet1!$M$5 -> 0 | AB7: =M72 -> 17
A8: S | B8: 3 | C8: =Score!C7 -> 3 | D8: =LOOKUP(C8,Names!$A$2:$A$161,Names!$B$2:$B$161) -> إيهاب يوسف عمارة | E8: 133 | F8: =Sheet1!$M$6 -> 0 | G8: =T69 -> 21 | H8: S | I8: 3 | J8: =Score!C11 -> 7 | K8: =LOOKUP(J8,Names!$A$2:$A$161,Names!$B$2:$B$161) -> باسم أسحق صموائيل | L8: 87 | M8: =Sheet1!$M$6 -> 0 | N8: =T70 -> 19 | O8: S | P8: 3 | Q8: =Score!C15 -> 11 | R8: =LOOKUP(Q8,Names!$A$2:$A$161,Names!$B$2:$B$161) -> معتز محمد مدبولي | S8: 17 | T8: =Sheet1!$M$6 -> 0 | U8: =T71 -> 18 | V8: S | W8: 3 | X8: =Score!C19 -> 15 | Y8: =LOOKUP(X8,Names!$A$2:$A$161,Names!$B$2:$B$161) -> أحمد رمزي الديب | Z8: 190 | AA8: =Sheet1!$M$6 -> 0 | AB8: =T72 -> 17
A9: E | B9: 4 | C9: =Score!C8 -> 4 | D9: =LOOKUP(C9,Names!$A$2:$A$161,Names!$B$2:$B$161) -> محمد سعيد الفطاطري | E9: 103 | F9: =Sheet1!$M$7 -> 0 | G9: =AA69 -> 21 | H9: E | I9: 4 | J9: =Score!C12 -> 8 | K9: =LOOKUP(J9,Names!$A$2:$A$161,Names!$B$2:$B$161) -> إيهاب محمد الزهيري | L9: 78 | M9: =Sheet1!$M$7 -> 0 | N9: =AA70 -> 19 | O9: E | P9: 4 | Q9: =Score!C16 -> 12 | R9: =LOOKUP(Q9,Names!$A$2:$A$161,Names!$B$2:$B$161) -> أمير كمال جميل | S9: 98 | T9: =Sheet1!$M$7 -> 0 | U9: =AA71 -> 18 | V9: E | W9: 4 | X9: =Score!C20 -> 16 | Y9: =LOOKUP(X9,Names!$A$2:$A$161,Names!$B$2:$B$161) -> عبد الرحمن سعد موسى | Z9: 46 | AA9: =Sheet1!$M$7 -> 0 | AB9: =AA72 -> 17
D10: 5 | K10: 6 | R10: 7 | Y10: 8
D11: Names | E11: Sc. | F11: Tab | K11: Names | L11: Sc. | M11: Tab | R11: Names | S11: Sc. | T11: Tab | Y11: Names | Z11: Sc. | AA11: Tab
A12: N | B12: 1 | C12: =Score!C21 -> 17 | D12: =LOOKUP(C12,Names!$A$2:$A$161,Names!$B$2:$B$161) -> أحمد علي خليل حسن | E12: 38 | F12: =Sheet1!$M$4 -> 0 | G12: =F73 -> 16 | H12: N | I12: 1 | J12: =Score!C25 -> 21 | K12: =LOOKUP(J12,Names!$A$2:$A$161,Names!$B$2:$B$161) -> أحمد محمد حمدي صالح | L12: 196 | M12: =Sheet1!$M$4 -> 0 | N12: =F74 -> 15 | O12: N | P12: 1 | Q12: =Score!C29 -> 25 | R12: =LOOKUP(Q12,Names!$A$2:$A$161,Names!$B$2:$B$161) -> خالد شباره | S12: 149 | T12: =Sheet1!$M$4 -> 0 | U12: =F75 -> 14 | V12: N | W12: 1 | X12: =Score!C33 -> 29 | Y12: =LOOKUP(X12,Names!$A$2:$A$161,Names!$B$2:$B$161) -> عبد الرحمن عثمان | Z12: 103 | AA12: =Sheet1!$M$4 -> 0 | AB12: =F76 -> 13
A13: W | B13: 2 | C13: =Score!C22 -> 18 | D13: =LOOKUP(C13,Names!$A$2:$A$161,Names!$B$2:$B$161) -> أحمد ممدوح عبد الدايم | E13: -19 | F13: =Sheet1!$M$5 -> 0 | G13: =M73 -> 16 | H13: W | I13: 2 | J13: =Score!C26 -> 22 | K13: =LOOKUP(J13,Names!$A$2:$A$161,Names!$B$2:$B$161) -> طه إبراهيم طه | L13: 56 | M13: =Sheet1!$M$5 -> 0 | N13: =M74 -> 15 | O13: W | P13: 2 | Q13: =Score!C30 -> 26 | R13: =LOOKUP(Q13,Names!$A$2:$A$161,Names!$B$2:$B$161) -> أحمد الطنطاوي | S13: 85 | T13: =Sheet1!$M$5 -> 0 | U13: =M75 -> 14 | V13: W | W13: 2 | X13: =Score!C34 -> 30 | Y13: =LOOKUP(X13,Names!$A$2:$A$161,Names!$B$2:$B$161) -> شريف جلال سماحة | Z13: 180 | AA13: =Sheet1!$M$5 -> 0 | AB13: =M76 -> 13
A14: S | B14: 3 | C14: =Score!C23 -> 19 | D14: =LOOKUP(C14,Names!$A$2:$A$161,Names!$B$2:$B$161) -> إبراهيم عنتر | E14: 167 | F14: =Sheet1!$M$6 -> 0 | G14: =T73 -> 16 | H14: S | I14: 3 | J14: =Score!C27 -> 23 | K14: =LOOKUP(J14,Names!$A$2:$A$161,Names!$B$2:$B$161) -> مصطفى يوسف محمد | L14: 107 | M14: =Sheet1!$M$6 -> 0 | N14: =T74 -> 15 | O14: S | P14: 3 | Q14: =Score!C31 -> 27 | R14: =LOOKUP(Q14,Names!$A$2:$A$161,Names!$B$2:$B$161) -> سمير الحوفي | S14: -4 | T14: =Sheet1!$M$6 -> 0 | U14: =T75 -> 14 | V14: S | W14: 3 | X14: =Score!C35 -> 31 | Y14: =LOOKUP(X14,Names!$A$2:$A$161,Names!$B$2:$B$161) -> ماجد محمد فكري | Z14: 166 | AA14: =Sheet1!$M$6 -> 0 | AB14: =T76 -> 13
A15: E | B15: 4 | C15: =Score!C24 -> 20 | D15: =LOOKUP(C15,Names!$A$2:$A$161,Names!$B$2:$B$161) -> إسلام قاسم | E15: 106 | F15: =Sheet1!$M$7 -> 0 | G15: =AA73 -> 16 | H15: E | I15: 4 | J15: =Score!C28 -> 24 | K15: =LOOKUP(J15,Names!$A$2:$A$161,Names!$B$2:$B$161) -> هيثم محمد شبانة | L15: -37 | M15: =Sheet1!$M$7 -> 0 | N15: =AA74 -> 15 | O15: E | P15: 4 | Q15: =Score!C32 -> 28 | R15: =LOOKUP(Q15,Names!$A$2:$A$161,Names!$B$2:$B$161) -> عمرو محسن فرج | S15: 121 | T15: =Sheet1!$M$7 -> 0 | U15: =AA75 -> 14 | V15: E | W15: 4 | X15: =Score!C36 -> 32 | Y15: =LOOKUP(X15,Names!$A$2:$A$161,Names!$B$2:$B$161) -> حمزة أحمد محمد | Z15: 12 | AA15: =Sheet1!$M$7 -> 0 | AB15: =AA76 -> 13
D16: 9 | K16: 10 | R16: 11 | Y16: 12
D17: Names | E17: Sc. | F17: Tab | K17: Names | L17: Sc. | M17: Tab | R17: Names | S17: Sc. | T17: Tab | Y17: Names | Z17: Sc. | AA17: Tab
A18: N | B18: 1 | C18: =Score!C37 -> 33 | D18: =LOOKUP(C18,Names!$A$2:$A$161,Names!$B$2:$B$161) -> أحمد بسيوني | E18: 131 | F18: =Sheet1!$M$4 -> 0 | G18: =F77 -> 12 | H18: N | I18: 1 | J18: =Score!C41 -> 37 | K18: =LOOKUP(J18,Names!$A$2:$A$161,Names!$B$2:$B$161) -> حمدي محمود عبد العزيز | L18: 91 | M18: =Sheet1!$M$4 -> 0 | N18: =F78 -> 11 | O18: N | P18: 1 | Q18: =Score!C45 -> 41 | R18: =LOOKUP(Q18,Names!$A$2:$A$161,Names!$B$2:$B$161) -> خالد مصطفى عزت | S18: 133 | T18: =Sheet1!$M$4 -> 0 | U18: =F79 -> 10 | V18: N | W18: 1 | X18: =Score!C49 -> 45 | Y18: =LOOKUP(X18,Names!$A$2:$A$161,Names!$B$2:$B$161) -> رضا هنري | Z18: 25 | AA18: =Sheet1!$M$4 -> 0 | AB18: =F80 -> 9
A19: W | B19: 2 | C19: =Score!C38 -> 34 | D19: =LOOKUP(C19,Names!$A$2:$A$161,Names!$B$2:$B$161) -> عماد الدين جمعة هلال | E19: -6 | F19: =Sheet1!$M$5 -> 0 | G19: =M77 -> 12 | H19: W | I19: 2 | J19: =Score!C42 -> 38 | K19: =LOOKUP(J19,Names!$A$2:$A$161,Names!$B$2:$B$161) -> أسامة لطفي نجيب | L19: 124 | M19: =Sheet1!$M$5 -> 0 | N19: =M78 -> 11 | O19: W | P19: 2 | Q19: =Score!C46 -> 42 | R19: =LOOKUP(Q19,Names!$A$2:$A$161,Names!$B$2:$B$161) -> محمد عبد الهادي أبو القاسم | S19: 55 | T19: =Sheet1!$M$5 -> 0 | U19: =M79 -> 10 | V19: W | W19: 2 | X19: =Score!C50 -> 46 | Y19: =LOOKUP(X19,Names!$A$2:$A$161,Names!$B$2:$B$161) -> علاء شوقي جبريل | Z19: 165 | AA19: =Sheet1!$M$5 -> 0 | AB19: =M80 -> 9
A20: S | B20: 3 | C20: =Score!C39 -> 35 | D20: =LOOKUP(C20,Names!$A$2:$A$161,Names!$B$2:$B$161) -> عمرو عماد الدين أبوالعلا | E20: 142 | F20: =Sheet1!$M$6 -> 0 | G20: =T77 -> 12 | H20: S | I20: 3 | J20: =Score!C43 -> 39 | K20: =LOOKUP(J20,Names!$A$2:$A$161,Names!$B$2:$B$161) -> إسلام أحمد السيد عمر | L20: 115 | M20: =Sheet1!$M$6 -> 0 | N20: =T78 -> 11 | O20: S | P20: 3 | Q20: =Score!C47 -> 43 | R20: =LOOKUP(Q20,Names!$A$2:$A$161,Names!$B$2:$B$161) -> أمير محمد خطاب | S20: 203 | T20: =Sheet1!$M$6 -> 0 | U20: =T79 -> 10 | V20: S | W20: 3 | X20: =Score!C51 -> 47 | Y20: =LOOKUP(X20,Names!$A$2:$A$161,Names!$B$2:$B$161) -> هاني فكري المراكبي | Z20: -11 | AA20: =Sheet1!$M$6 -> 0 | AB20: =T80 -> 9
A21: E | B21: 4 | C21: =Score!C40 -> 36 | D21: =LOOKUP(C21,Names!$A$2:$A$161,Names!$B$2:$B$161) -> أحمد عبد الفتاح عرفه | E21: 100 | F21: =Sheet1!$M$7 -> 0 | G21: =AA77 -> 12 | H21: E | I21: 4 | J21: =Score!C44 -> 40 | K21: =LOOKUP(J21,Names!$A$2:$A$161,Names!$B$2:$B$161) -> احمد محمود عبد الرزاق | L21: 150 | M21: =Sheet1!$M$7 -> 0 | N21: =AA78 -> 11 | O21: E | P21: 4 | Q21: =Score!C48 -> 44 | R21: =LOOKUP(Q21,Names!$A$2:$A$161,Names!$B$2:$B$161) -> جمال السيد توفيق محمد | S21: 87 | T21: =Sheet1!$M$7 -> 0 | U21: =AA79 -> 10 | V21: E | W21: 4 | X21: =Score!C52 -> 48 | Y21: =LOOKUP(X21,Names!$A$2:$A$161,Names!$B$2:$B$161) -> محمد ناجي زاهر بلبع | Z21: 182 | AA21: =Sheet1!$M$7 -> 0 | AB21: =AA80 -> 9
D22: 13 | K22: 14 | R22: 15 | Y22: 16
D23: Names | E23: Sc. | F23: Tab | K23: Names | L23: Sc. | M23: Tab | R23: Names | S23: Sc. | T23: Tab | Y23: Names | Z23: Sc. | AA23: Tab
A24: N | B24: 1 | C24: =Score!C53 -> 49 | D24: =LOOKUP(C24,Names!$A$2:$A$161,Names!$B$2:$B$161) -> هيثم العشماوي | E24: 126 | F24: =Sheet1!$M$4 -> 0 | G24: =F81 -> 8 | H24: N | I24: 1 | J24: =Score!C57 -> 53 | K24: =LOOKUP(J24,Names!$A$2:$A$161,Names!$B$2:$B$161) -> أحمد محمد شوقي هيبه | L24: 104 | M24: =Sheet1!$M$4 -> 0 | N24: =F82 -> 7 | O24: N | P24: 1 | Q24: =Score!C61 -> 57 | R24: =LOOKUP(Q24,Names!$A$2:$A$161,Names!$B$2:$B$161) -> مصطفى كامل الشحري | S24: 50 | T24: =Sheet1!$M$4 -> 0 | U24: =F83 -> 6 | V24: N | W24: 1 | X24: =Score!C65 -> 61 | Y24: =LOOKUP(X24,Names!$A$2:$A$161,Names!$B$2:$B$161) -> كريم إيهاب عامر | Z24: 75 | AA24: =Sheet1!$M$4 -> 0 | AB24: =F84 -> 5
A25: W | B25: 2 | C25: =Score!C54 -> 50 | D25: =LOOKUP(C25,Names!$A$2:$A$161,Names!$B$2:$B$161) -> فادي ناجح | E25: 101 | F25: =Sheet1!$M$5 -> 0 | G25: =M81 -> 8 | H25: W | I25: 2 | J25: =Score!C58 -> 54 | K25: =LOOKUP(J25,Names!$A$2:$A$161,Names!$B$2:$B$161) -> تامر رشاد | L25: 100 | M25: =Sheet1!$M$5 -> 0 | N25: =M82 -> 7 | O25: W | P25: 2 | Q25: =Score!C62 -> 58 | R25: =LOOKUP(Q25,Names!$A$2:$A$161,Names!$B$2:$B$161) -> أحمد إبراهيم غانم | S25: 165 | T25: =Sheet1!$M$5 -> 0 | U25: =M83 -> 6 | V25: W | W25: 2 | X25: =Score!C66 -> 62 | Y25: =LOOKUP(X25,Names!$A$2:$A$161,Names!$B$2:$B$161) -> محمد محمود مسعود | Z25: 77 | AA25: =Sheet1!$M$5 -> 0 | AB25: =M84 -> 5
A26: S | B26: 3 | C26: =Score!C55 -> 51 | D26: =LOOKUP(C26,Names!$A$2:$A$161,Names!$B$2:$B$161) -> أحمد أحمد مرسي عبد الله | E26: 111 | F26: =Sheet1!$M$6 -> 0 | G26: =T81 -> 8 | H26: S | I26: 3 | J26: =Score!C59 -> 55 | K26: =LOOKUP(J26,Names!$A$2:$A$161,Names!$B$2:$B$161) -> ناجي بلبع | L26: 143 | M26: =Sheet1!$M$6 -> 0 | N26: =T82 -> 7 | O26: S | P26: 3 | Q26: =Score!C63 -> 59 | R26: =LOOKUP(Q26,Names!$A$2:$A$161,Names!$B$2:$B$161) -> هشام أبوغربية | S26: 195 | T26: =Sheet1!$M$6 -> 0 | U26: =T83 -> 6 | V26: S | W26: 3 | X26: =Score!C67 -> 63 | Y26: =LOOKUP(X26,Names!$A$2:$A$161,Names!$B$2:$B$161) -> محمد أحمد محمد عبد الله | Z26: 97 | AA26: =Sheet1!$M$6 -> 0 | AB26: =T84 -> 5
A27: E | B27: 4 | C27: =Score!C56 -> 52 | D27: =LOOKUP(C27,Names!$A$2:$A$161,Names!$B$2:$B$161) -> يامن محمد حسن | E27: 142 | F27: =Sheet1!$M$7 -> 0 | G27: =AA81 -> 8 | H27: E | I27: 4 | J27: =Score!C60 -> 56 | K27: =LOOKUP(J27,Names!$A$2:$A$161,Names!$B$2:$B$161) -> جاسر محمد | L27: 70 | M27: =Sheet1!$M$7 -> 0 | N27: =AA82 -> 7 | O27: E | P27: 4 | Q27: =Score!C64 -> 60 | R27: =LOOKUP(Q27,Names!$A$2:$A$161,Names!$B$2:$B$161) -> عصام الدين حامد منصور | S27: 69 | T27: =Sheet1!$M$7 -> 0 | U27: =AA83 -> 6 | V27: E | W27: 4 | X27: =Score!C68 -> 64 | Y27: =LOOKUP(X27,Names!$A$2:$A$161,Names!$B$2:$B$161) -> وليد شعبان إسماعيل علي | Z27: 71 | AA27: =Sheet1!$M$7 -> 0 | AB27: =AA84 -> 5
D28: 17 | K28: 18 | R28: 19 | Y28: 20
D29: Names | E29: Sc. | F29: Tab | K29: Names | L29: Sc. | M29: Tab | R29: Names | S29: Sc. | T29: Tab | Y29: Names | Z29: Sc. | AA29: Tab
A30: N | B30: 1 | C30: =Score!C69 -> 65 | D30: =LOOKUP(C30,Names!$A$2:$A$161,Names!$B$2:$B$161) -> أحمد طارق | E30: 98 | F30: =Sheet1!$M$4 -> 0 | G30: =F85 -> 4 | H30: N | I30: 1 | J30: =Score!C73 -> 69 | K30: =LOOKUP(J30,Names!$A$2:$A$161,Names!$B$2:$B$161) -> أحمد علي السيد شرع | L30: 92 | M30: =Sheet1!$M$4 -> 0 | N30: =F86 -> 3 | O30: N | P30: 1 | Q30: =Score!C77 -> 73 | R30: =LOOKUP(Q30,Names!$A$2:$A$161,Names!$B$2:$B$161) -> مينا ناجح صبحي | S30: 180 | T30: =Sheet1!$M$4 -> 0 | U30: =F87 -> 2 | V30: N | W30: 1 | X30: =Score!C81 -> 77 | Y30: =LOOKUP(X30,Names!$A$2:$A$161,Names!$B$2:$B$161) -> محمد محمود شعبان | Z30: 92 | AA30: =Sheet1!$M$4 -> 0 | AB30: =F88 -> 1
A31: W | B31: 2 | C31: =Score!C70 -> 66 | D31: =LOOKUP(C31,Names!$A$2:$A$161,Names!$B$2:$B$161) -> أحمد فؤاد حسنين | E31: 174 | F31: =Sheet1!$M$5 -> 0 | G31: =M85 -> 4 | H31: W | I31: 2 | J31: =Score!C74 -> 70 | K31: =LOOKUP(J31,Names!$A$2:$A$161,Names!$B$2:$B$161) -> أحمد صلاح الدين دياب | L31: 105 | M31: =Sheet1!$M$5 -> 0 | N31: =M86 -> 3 | O31: W | P31: 2 | Q31: =Score!C78 -> 74 | R31: =LOOKUP(Q31,Names!$A$2:$A$161,Names!$B$2:$B$161) -> فريدة شكري | S31: 187 | T31: =Sheet1!$M$5 -> 0 | U31: =M87 -> 2 | V31: W | W31: 2 | X31: =Score!C82 -> 78 | Y31: =LOOKUP(X31,Names!$A$2:$A$161,Names!$B$2:$B$161) -> حسام الخلفاوي | Z31: 39 | AA31: =Sheet1!$M$5 -> 0 | AB31: =M88 -> 1
A32: S | B32: 3 | C32: =Score!C71 -> 67 | D32: =LOOKUP(C32,Names!$A$2:$A$161,Names!$B$2:$B$161) -> محمد محمود فضل | E32: 118 | F32: =Sheet1!$M$6 -> 0 | G32: =T85 -> 4 | H32: S | I32: 3 | J32: =Score!C75 -> 71 | K32: =LOOKUP(J32,Names!$A$2:$A$161,Names!$B$2:$B$161) -> معتز محمد | L32: 82 | M32: =Sheet1!$M$6 -> 0 | N32: =T86 -> 3 | O32: S | P32: 3 | Q32: =Score!C79 -> 75 | R32: =LOOKUP(Q32,Names!$A$2:$A$161,Names!$B$2:$B$161) -> محمود سليمان | S32: 48 | T32: =Sheet1!$M$6 -> 0 | U32: =T87 -> 2 | V32: S | W32: 3 | X32: =Score!C83 -> 79 | Y32: =LOOKUP(X32,Names!$A$2:$A$161,Names!$B$2:$B$161) -> محمد علي حسن طه الأمام | Z32: 193 | AA32: =Sheet1!$M$6 -> 0 | AB32: =T88 -> 1
A33: E | B33: 4 | C33: =Score!C72 -> 68 | D33: =LOOKUP(C33,Names!$A$2:$A$161,Names!$B$2:$B$161) -> مصطفى إسماعيل | E33: 84 | F33: =Sheet1!$M$7 -> 0 | G33: =AA85 -> 4 | H33: E | I33: 4 | J33: =Score!C76 -> 72 | K33: =LOOKUP(J33,Names!$A$2:$A$161,Names!$B$2:$B$161) -> أحمد سمير خلف | L33: 140 | M33: =Sheet1!$M$7 -> 0 | N33: =AA86 -> 3 | O33: E | P33: 4 | Q33: =Score!C80 -> 76 | R33: =LOOKUP(Q33,Names!$A$2:$A$161,Names!$B$2:$B$161) -> محمد إبراهيم قطب | S33: 8 | T33: =Sheet1!$M$7 -> 0 | U33: =AA87 -> 2 | V33: E | W33: 4 | X33: =Score!C84 -> 80 | Y33: =LOOKUP(X33,Names!$A$2:$A$161,Names!$B$2:$B$161) -> أمن حسام | Z33: -28 | AA33: =Sheet1!$M$7 -> 0 | AB33: =AA88 -> 1
D35: 21 | K35: 22 | R35: 23 | Y35: 24
D36: Names | E36: Sc. | F36: Tab | K36: Names | L36: Sc. | M36: Tab | R36: Names | S36: Sc. | T36: Tab | Y36: Names | Z36: Sc. | AA36: Tab
A37: N | B37: 1 | C37: =Score!C85 -> 81 | D37: =LOOKUP(C37,Names!$A$2:$A$161,Names!$B$2:$B$161) -> 0 | F37: =Sheet1!$M$4 -> 0 | G37: =F89 -> 0 | H37: N | I37: 1 | J37: =Score!C89 -> 85 | K37: =LOOKUP(J37,Names!$A$2:$A$161,Names!$B$2:$B$161) -> 0 | M37: =Sheet1!$M$4 -> 0 | N37: =F90 -> 0 | O37: N | P37: 1 | Q37: =Score!C93 -> 89 | R37: =LOOKUP(Q37,Names!$A$2:$A$161,Names!$B$2:$B$161) -> 0 | T37: =Sheet1!$M$4 -> 0 | U37: =F91 -> 0 | V37: N | W37: 1 | X37: =Score!C97 -> 93 | Y37: =LOOKUP(X37,Names!$A$2:$A$161,Names!$B$2:$B$161) -> 0 | AA37: =Sheet1!$M$4 -> 0 | AB37: =F92 -> 0
A38: W | B38: 2 | C38: =Score!C86 -> 82 | D38: =LOOKUP(C38,Names!$A$2:$A$161,Names!$B$2:$B$161) -> 0 | F38: =Sheet1!$M$5 -> 0 | G38: =M89 -> 0 | H38: W | I38: 2 | J38: =Score!C90 -> 86 | K38: =LOOKUP(J38,Names!$A$2:$A$161,Names!$B$2:$B$161) -> 0 | M38: =Sheet1!$M$5 -> 0 | N38: =M90 -> 0 | O38: W | P38: 2 | Q38: =Score!C94 -> 90 | R38: =LOOKUP(Q38,Names!$A$2:$A$161,Names!$B$2:$B$161) -> 0 | T38: =Sheet1!$M$5 -> 0 | U38: =M91 -> 0 | V38: W | W38: 2 | X38: =Score!C98 -> 94 | Y38: =LOOKUP(X38,Names!$A$2:$A$161,Names!$B$2:$B$161) -> 0 | AA38: =Sheet1!$M$5 -> 0 | AB38: =M92 -> 0
A39: S | B39: 3 | C39: =Score!C87 -> 83 | D39: =LOOKUP(C39,Names!$A$2:$A$161,Names!$B$2:$B$161) -> 0 | F39: =Sheet1!$M$6 -> 0 | G39: =T89 -> 0 | H39: S | I39: 3 | J39: =Score!C91 -> 87 | K39: =LOOKUP(J39,Names!$A$2:$A$161,Names!$B$2:$B$161) -> 0 | M39: =Sheet1!$M$6 -> 0 | N39: =T90 -> 0 | O39: S | P39: 3 | Q39: =Score!C95 -> 91 | R39: =LOOKUP(Q39,Names!$A$2:$A$161,Names!$B$2:$B$161) -> 0 | T39: =Sheet1!$M$6 -> 0 | U39: =T91 -> 0 | V39: S | W39: 3 | X39: =Score!C99 -> 95 | Y39: =LOOKUP(X39,Names!$A$2:$A$161,Names!$B$2:$B$161) -> 0 | AA39: =Sheet1!$M$6 -> 0 | AB39: =T92 -> 0
A40: E | B40: 4 | C40: =Score!C88 -> 84 | D40: =LOOKUP(C40,Names!$A$2:$A$161,Names!$B$2:$B$161) -> 0 | F40: =Sheet1!$M$7 -> 0 | G40: =AA89 -> 0 | H40: E | I40: 4 | J40: =Score!C92 -> 88 | K40: =LOOKUP(J40,Names!$A$2:$A$161,Names!$B$2:$B$161) -> 0 | M40: =Sheet1!$M$7 -> 0 | N40: =AA90 -> 0 | O40: E | P40: 4 | Q40: =Score!C96 -> 92 | R40: =LOOKUP(Q40,Names!$A$2:$A$161,Names!$B$2:$B$161) -> 0 | T40: =Sheet1!$M$7 -> 0 | U40: =AA91 -> 0 | V40: E | W40: 4 | X40: =Score!C100 -> 96 | Y40: =LOOKUP(X40,Names!$A$2:$A$161,Names!$B$2:$B$161) -> 0 | AA40: =Sheet1!$M$7 -> 0 | AB40: =AA92 -> 0
D41: B1 | K41: B2 | R41: B3 | Y41: B4
D42: Names | E42: Sc. | F42: Tab | K42: Names | L42: Sc. | M42: Tab | R42: Names | S42: Sc. | T42: Tab | Y42: Names | Z42: Sc. | AA42: Tab
A43: N | B43: 1 | C43: =Score!C101 -> 97 | D43: =LOOKUP(C43,Names!$A$2:$A$161,Names!$B$2:$B$161) -> 0 | F43: =Sheet1!$M$4 -> 0 | G43: =F93 -> 0 | H43: N | I43: 1 | J43: =Score!C105 -> 101 | K43: =LOOKUP(J43,Names!$A$2:$A$161,Names!$B$2:$B$161) -> 0 | M43: =Sheet1!$M$4 -> 0 | N43: =F94 -> 0 | O43: N | P43: 1 | Q43: =Score!C109 -> 105 | R43: =LOOKUP(Q43,Names!$A$2:$A$161,Names!$B$2:$B$161) -> 0 | T43: =Sheet1!$M$4 -> 0 | U43: =F95 -> 0 | V43: N | W43: 1 | X43: =Score!C113 -> 109 | Y43: =LOOKUP(X43,Names!$A$2:$A$161,Names!$B$2:$B$161) -> 0 | AA43: =Sheet1!$M$4 -> 0 | AB43: =F96 -> 0
A44: W | B44: 2 | C44: =Score!C102 -> 98 | D44: =LOOKUP(C44,Names!$A$2:$A$161,Names!$B$2:$B$161) -> 0 | F44: =Sheet1!$M$5 -> 0 | G44: =M93 -> 0 | H44: W | I44: 2 | J44: =Score!C106 -> 102 | K44: =LOOKUP(J44,Names!$A$2:$A$161,Names!$B$2:$B$161) -> 0 | M44: =Sheet1!$M$5 -> 0 | N44: =M94 -> 0 | O44: W | P44: 2 | Q44: =Score!C110 -> 106 | R44: =LOOKUP(Q44,Names!$A$2:$A$161,Names!$B$2:$B$161) -> 0 | T44: =Sheet1!$M$5 -> 0 | U44: =M95 -> 0 | V44: W | W44: 2 | X44: =Score!C114 -> 110 | Y44: =LOOKUP(X44,Names!$A$2:$A$161,Names!$B$2:$B$161) -> 0 | AA44: =Sheet1!$M$5 -> 0 | AB44: =M96 -> 0
A45: S | B45: 3 | C45: =Score!C103 -> 99 | D45: =LOOKUP(C45,Names!$A$2:$A$161,Names!$B$2:$B$161) -> 0 | F45: =Sheet1!$M$6 -> 0 | G45: =T93 -> 0 | H45: S | I45: 3 | J45: =Score!C107 -> 103 | K45: =LOOKUP(J45,Names!$A$2:$A$161,Names!$B$2:$B$161) -> 0 | M45: =Sheet1!$M$6 -> 0 | N45: =T94 -> 0 | O45: S | P45: 3 | Q45: =Score!C111 -> 107 | R45: =LOOKUP(Q45,Names!$A$2:$A$161,Names!$B$2:$B$161) -> 0 | T45: =Sheet1!$M$6 -> 0 | U45: =T95 -> 0 | V45: S | W45: 3 | X45: =Score!C115 -> 111 | Y45: =LOOKUP(X45,Names!$A$2:$A$161,Names!$B$2:$B$161) -> 0 | AA45: =Sheet1!$M$6 -> 0 | AB45: =T96 -> 0
A46: E | B46: 4 | C46: =Score!C104 -> 100 | D46: =LOOKUP(C46,Names!$A$2:$A$161,Names!$B$2:$B$161) -> 0 | F46: =Sheet1!$M$7 -> 0 | G46: =AA93 -> 0 | H46: E | I46: 4 | J46: =Score!C108 -> 104 | K46: =LOOKUP(J46,Names!$A$2:$A$161,Names!$B$2:$B$161) -> 0 | M46: =Sheet1!$M$7 -> 0 | N46: =AA94 -> 0 | O46: E | P46: 4 | Q46: =Score!C112 -> 108 | R46: =LOOKUP(Q46,Names!$A$2:$A$161,Names!$B$2:$B$161) -> 0 | T46: =Sheet1!$M$7 -> 0 | U46: =AA95 -> 0 | V46: E | W46: 4 | X46: =Score!C116 -> 112 | Y46: =LOOKUP(X46,Names!$A$2:$A$161,Names!$B$2:$B$161) -> 0 | AA46: =Sheet1!$M$7 -> 0 | AB46: =AA96 -> 0
D47: B5 | K47: B6 | R47: B7 | Y47: B8
D48: Names | E48: Sc. | F48: Tab | K48: Names | L48: Sc. | M48: Tab | R48: Names | S48: Sc. | T48: Tab | Y48: Names | Z48: Sc. | AA48: Tab
A49: N | B49: 1 | C49: =Score!C117 -> 113 | D49: =LOOKUP(C49,Names!$A$2:$A$161,Names!$B$2:$B$161) -> 0 | F49: =Sheet1!$M$4 -> 0 | G49: =F97 -> 0 | H49: N | I49: 1 | J49: =Score!C121 -> 117 | K49: =LOOKUP(J49,Names!$A$2:$A$161,Names!$B$2:$B$161) -> 0 | M49: =Sheet1!$M$4 -> 0 | N49: =F98 -> 0 | O49: N | P49: 1 | Q49: =Score!C125 -> 121 | R49: =LOOKUP(Q49,Names!$A$2:$A$161,Names!$B$2:$B$161) -> 0 | T49: =Sheet1!$M$4 -> 0 | U49: =F99 -> 0 | V49: N | W49: 1 | X49: =Score!C129 -> 125 | Y49: =LOOKUP(X49,Names!$A$2:$A$161,Names!$B$2:$B$161) -> 0 | AA49: =Sheet1!$M$4 -> 0 | AB49: =F100 -> 0
A50: W | B50: 2 | C50: =Score!C118 -> 114 | D50: =LOOKUP(C50,Names!$A$2:$A$161,Names!$B$2:$B$161) -> 0 | F50: =Sheet1!$M$5 -> 0 | G50: =M97 -> 0 | H50: W | I50: 2 | J50: =Score!C122 -> 118 | K50: =LOOKUP(J50,Names!$A$2:$A$161,Names!$B$2:$B$161) -> 0 | M50: =Sheet1!$M$5 -> 0 | N50: =M98 -> 0 | O50: W | P50: 2 | Q50: =Score!C126 -> 122 | R50: =LOOKUP(Q50,Names!$A$2:$A$161,Names!$B$2:$B$161) -> 0 | T50: =Sheet1!$M$5 -> 0 | U50: =M99 -> 0 | V50: W | W50: 2 | X50: =Score!C130 -> 126 | Y50: =LOOKUP(X50,Names!$A$2:$A$161,Names!$B$2:$B$161) -> 0 | AA50: =Sheet1!$M$5 -> 0 | AB50: =M100 -> 0
A51: S | B51: 3 | C51: =Score!C119 -> 115 | D51: =LOOKUP(C51,Names!$A$2:$A$161,Names!$B$2:$B$161) -> 0 | F51: =Sheet1!$M$6 -> 0 | G51: =T97 -> 0 | H51: S | I51: 3 | J51: =Score!C123 -> 119 | K51: =LOOKUP(J51,Names!$A$2:$A$161,Names!$B$2:$B$161) -> 0 | M51: =Sheet1!$M$6 -> 0 | N51: =T98 -> 0 | O51: S | P51: 3 | Q51: =Score!C127 -> 123 | R51: =LOOKUP(Q51,Names!$A$2:$A$161,Names!$B$2:$B$161) -> 0 | T51: =Sheet1!$M$6 -> 0 | U51: =T99 -> 0 | V51: S | W51: 3 | X51: =Score!C131 -> 127 | Y51: =LOOKUP(X51,Names!$A$2:$A$161,Names!$B$2:$B$161) -> 0 | AA51: =Sheet1!$M$6 -> 0 | AB51: =T100 -> 0
A52: E | B52: 4 | C52: =Score!C120 -> 116 | D52: =LOOKUP(C52,Names!$A$2:$A$161,Names!$B$2:$B$161) -> 0 | F52: =Sheet1!$M$7 -> 0 | G52: =AA97 -> 0 | H52: E | I52: 4 | J52: =Score!C124 -> 120 | K52: =LOOKUP(J52,Names!$A$2:$A$161,Names!$B$2:$B$161) -> 0 | M52: =Sheet1!$M$7 -> 0 | N52: =AA98 -> 0 | O52: E | P52: 4 | Q52: =Score!C128 -> 124 | R52: =LOOKUP(Q52,Names!$A$2:$A$161,Names!$B$2:$B$161) -> 0 | T52: =Sheet1!$M$7 -> 0 | U52: =AA99 -> 0 | V52: E | W52: 4 | X52: =Score!C132 -> 128 | Y52: =LOOKUP(X52,Names!$A$2:$A$161,Names!$B$2:$B$161) -> 0 | AA52: =Sheet1!$M$7 -> 0 | AB52: =AA100 -> 0
D53: 33 | K53: 34 | R53: 35 | Y53: 36
D54: Names | E54: Sc. | F54: Tab | K54: Names | L54: Sc. | M54: Tab | R54: Names | S54: Sc. | T54: Tab | Y54: Names | Z54: Sc. | AA54: Tab
A55: N | B55: 1 | C55: =Score!C133 -> 129 | D55: =LOOKUP(C55,Names!$A$2:$A$161,Names!$B$2:$B$161) -> 0 | F55: =Sheet1!$M$4 -> 0 | G55: =F101 -> 0 | H55: N | I55: 1 | J55: =Score!C137 -> 133 | K55: =LOOKUP(J55,Names!$A$2:$A$161,Names!$B$2:$B$161) -> 0 | M55: =Sheet1!$M$4 -> 0 | N55: =F102 -> 0 | O55: N | P55: 1 | Q55: =Score!C141 -> 137 | R55: =LOOKUP(Q55,Names!$A$2:$A$161,Names!$B$2:$B$161) -> 0 | T55: =Sheet1!$M$4 -> 0 | U55: =F103 -> 0 | V55: N | W55: 1 | X55: =Score!C145 -> 141 | Y55: =LOOKUP(X55,Names!$A$2:$A$161,Names!$B$2:$B$161) -> 0 | AA55: =Sheet1!$M$4 -> 0 | AB55: =F104 -> 0
A56: W | B56: 2 | C56: =Score!C134 -> 130 | D56: =LOOKUP(C56,Names!$A$2:$A$161,Names!$B$2:$B$161) -> 0 | F56: =Sheet1!$M$5 -> 0 | G56: =M101 -> 0 | H56: W | I56: 2 | J56: =Score!C138 -> 134 | K56: =LOOKUP(J56,Names!$A$2:$A$161,Names!$B$2:$B$161) -> 0 | M56: =Sheet1!$M$5 -> 0 | N56: =M102 -> 0 | O56: W | P56: 2 | Q56: =Score!C142 -> 138 | R56: =LOOKUP(Q56,Names!$A$2:$A$161,Names!$B$2:$B$161) -> 0 | T56: =Sheet1!$M$5 -> 0 | U56: =M103 -> 0 | V56: W | W56: 2 | X56: =Score!C146 -> 142 | Y56: =LOOKUP(X56,Names!$A$2:$A$161,Names!$B$2:$B$161) -> 0 | AA56: =Sheet1!$M$5 -> 0 | AB56: =M104 -> 0
A57: S | B57: 3 | C57: =Score!C135 -> 131 | D57: =LOOKUP(C57,Names!$A$2:$A$161,Names!$B$2:$B$161) -> 0 | F57: =Sheet1!$M$6 -> 0 | G57: =T101 -> 0 | H57: S | I57: 3 | J57: =Score!C139 -> 135 | K57: =LOOKUP(J57,Names!$A$2:$A$161,Names!$B$2:$B$161) -> 0 | M57: =Sheet1!$M$6 -> 0 | N57: =T102 -> 0 | O57: S | P57: 3 | Q57: =Score!C143 -> 139 | R57: =LOOKUP(Q57,Names!$A$2:$A$161,Names!$B$2:$B$161) -> 0 | T57: =Sheet1!$M$6 -> 0 | U57: =T103 -> 0 | V57: S | W57: 3 | X57: =Score!C147 -> 143 | Y57: =LOOKUP(X57,Names!$A$2:$A$161,Names!$B$2:$B$161) -> 0 | AA57: =Sheet1!$M$6 -> 0 | AB57: =T104 -> 0
A58: E | B58: 4 | C58: =Score!C136 -> 132 | D58: =LOOKUP(C58,Names!$A$2:$A$161,Names!$B$2:$B$161) -> 0 | F58: =Sheet1!$M$7 -> 0 | G58: =AA101 -> 0 | H58: E | I58: 4 | J58: =Score!C140 -> 136 | K58: =LOOKUP(J58,Names!$A$2:$A$161,Names!$B$2:$B$161) -> 0 | M58: =Sheet1!$M$7 -> 0 | N58: =AA102 -> 0 | O58: E | P58: 4 | Q58: =Score!C144 -> 140 | R58: =LOOKUP(Q58,Names!$A$2:$A$161,Names!$B$2:$B$161) -> 0 | T58: =Sheet1!$M$7 -> 0 | U58: =AA103 -> 0 | V58: E | W58: 4 | X58: =Score!C148 -> 144 | Y58: =LOOKUP(X58,Names!$A$2:$A$161,Names!$B$2:$B$161) -> 0 | AA58: =Sheet1!$M$7 -> 0 | AB58: =AA104 -> 0
D59: 37 | K59: 38 | R59: 39 | Y59: 40
D60: Names | E60: Sc. | F60: Tab | K60: Names | L60: Sc. | M60: Tab | R60: Names | S60: Sc. | T60: Tab | Y60: Names | Z60: Sc. | AA60: Tab
A61: N | B61: 1 | C61: =Score!C149 -> 145 | D61: =LOOKUP(C61,Names!$A$2:$A$161,Names!$B$2:$B$161) -> 0 | F61: =Sheet1!$M$4 -> 0 | G61: =F105 -> 0 | H61: N | I61: 1 | J61: =Score!C153 -> 149 | K61: =LOOKUP(J61,Names!$A$2:$A$161,Names!$B$2:$B$161) -> 0 | M61: =Sheet1!$M$4 -> 0 | N61: =F106 -> 0 | O61: N | P61: 1 | Q61: =Score!C157 -> 153 | R61: =LOOKUP(Q61,Names!$A$2:$A$161,Names!$B$2:$B$161) -> 0 | T61: =Sheet1!$M$4 -> 0 | U61: =F107 -> 0 | V61: N | W61: 1 | X61: =Score!C161 -> 157 | Y61: =LOOKUP(X61,Names!$A$2:$A$161,Names!$B$2:$B$161) -> 0 | AA61: =Sheet1!$M$4 -> 0 | AB61: =F108 -> 0
A62: W | B62: 2 | C62: =Score!C150 -> 146 | D62: =LOOKUP(C62,Names!$A$2:$A$161,Names!$B$2:$B$161) -> 0 | F62: =Sheet1!$M$5 -> 0 | G62: =M105 -> 0 | H62: W | I62: 2 | J62: =Score!C154 -> 150 | K62: =LOOKUP(J62,Names!$A$2:$A$161,Names!$B$2:$B$161) -> 0 | M62: =Sheet1!$M$5 -> 0 | N62: =M106 -> 0 | O62: W | P62: 2 | Q62: =Score!C158 -> 154 | R62: =LOOKUP(Q62,Names!$A$2:$A$161,Names!$B$2:$B$161) -> 0 | T62: =Sheet1!$M$5 -> 0 | U62: =M107 -> 0 | V62: W | W62: 2 | X62: =Score!C162 -> 158 | Y62: =LOOKUP(X62,Names!$A$2:$A$161,Names!$B$2:$B$161) -> 0 | AA62: =Sheet1!$M$5 -> 0 | AB62: =M108 -> 0
A63: S | B63: 3 | C63: =Score!C151 -> 147 | D63: =LOOKUP(C63,Names!$A$2:$A$161,Names!$B$2:$B$161) -> 0 | F63: =Sheet1!$M$6 -> 0 | G63: =T105 -> 0 | H63: S | I63: 3 | J63: =Score!C155 -> 151 | K63: =LOOKUP(J63,Names!$A$2:$A$161,Names!$B$2:$B$161) -> 0 | M63: =Sheet1!$M$6 -> 0 | N63: =T106 -> 0 | O63: S | P63: 3 | Q63: =Score!C159 -> 155 | R63: =LOOKUP(Q63,Names!$A$2:$A$161,Names!$B$2:$B$161) -> 0 | T63: =Sheet1!$M$6 -> 0 | U63: =T107 -> 0 | V63: S | W63: 3 | X63: =Score!C163 -> 159 | Y63: =LOOKUP(X63,Names!$A$2:$A$161,Names!$B$2:$B$161) -> 0 | AA63: =Sheet1!$M$6 -> 0 | AB63: =T108 -> 0
A64: E | B64: 4 | C64: =Score!C152 -> 148 | D64: =LOOKUP(C64,Names!$A$2:$A$161,Names!$B$2:$B$161) -> 0 | F64: =Sheet1!$M$7 -> 0 | G64: =AA105 -> 0 | H64: E | I64: 4 | J64: =Score!C156 -> 152 | K64: =LOOKUP(J64,Names!$A$2:$A$161,Names!$B$2:$B$161) -> 0 | M64: =Sheet1!$M$7 -> 0 | N64: =AA106 -> 0 | O64: E | P64: 4 | Q64: =Score!C160 -> 156 | R64: =LOOKUP(Q64,Names!$A$2:$A$161,Names!$B$2:$B$161) -> 0 | T64: =Sheet1!$M$7 -> 0 | U64: =AA107 -> 0 | V64: E | W64: 4 | X64: =Score!C164 -> 160 | Y64: =LOOKUP(X64,Names!$A$2:$A$161,Names!$B$2:$B$161) -> 0 | AA64: =Sheet1!$M$7 -> 0 | AB64: =AA108 -> 0
K66: Axe
D67: North | K67: West | R67: South | Y67: East
D68: Names | E68: Sc. | F68: Axe | K68: Names | L68: Sc. | M68: Axe | R68: Names | S68: Sc. | T68: Axe | Y68: Names | Z68: Sc. | AA68: Axe
A69: 1 | B69: 1 | C69: =$C$6 -> 1 | D69: =LOOKUP(C69,Names!$A$2:$A$161,Names!$B$2:$B$161) -> راجي صبحي | E69: =$E$6 -> 95 | F69: =Sheet1!L3 -> 21 | I69: 1 | J69: =$C$7 -> 2 | K69: =LOOKUP(J69,Names!$A$2:$A$161,Names!$B$2:$B$161) -> شريف أحمد محمد حمروش | L69: =$E$7 -> 65 | M69: =Sheet1!L3 -> 21 | P69: 1 | Q69: =$C$8 -> 3 | R69: =LOOKUP(Q69,Names!$A$2:$A$161,Names!$B$2:$B$161) -> إيهاب يوسف عمارة | S69: =$E$8 -> 133 | T69: =Sheet1!L3 -> 21 | W69: 1 | X69: =$C$9 -> 4 | Y69: =LOOKUP(X69,Names!$A$2:$A$161,Names!$B$2:$B$161) -> محمد سعيد الفطاطري | Z69: =$E$9 -> 103 | AA69: =Sheet1!L3 -> 21
A70: 2 | B70: 2 | C70: =$J$6 -> 5 | D70: =LOOKUP(C70,Names!$A$2:$A$161,Names!$B$2:$B$161) -> محمد عصام الدين القاضي | E70: =$L$6 -> 136 | F70: =Sheet1!L4 -> 19 | I70: 2 | J70: =$J$7 -> 6 | K70: =LOOKUP(J70,Names!$A$2:$A$161,Names!$B$2:$B$161) -> إبراهيم عرفان السقا | L70: =$L$7 -> 126 | M70: =Sheet1!L4 -> 19 | P70: 2 | Q70: =$J$8 -> 7 | R70: =LOOKUP(Q70,Names!$A$2:$A$161,Names!$B$2:$B$161) -> باسم أسحق صموائيل | S70: =$L$8 -> 87 | T70: =Sheet1!L4 -> 19 | W70: 2 | X70: =$J$9 -> 8 | Y70: =LOOKUP(X70,Names!$A$2:$A$161,Names!$B$2:$B$161) -> إيهاب محمد الزهيري | Z70: =$L$9 -> 78 | AA70: =Sheet1!L4 -> 19
A71: 3 | B71: 3 | C71: =$Q$6 -> 9 | D71: =LOOKUP(C71,Names!$A$2:$A$161,Names!$B$2:$B$161) -> رأفت الصياد | E71: =$S$6 -> 36 | F71: =Sheet1!L5 -> 18 | I71: 3 | J71: =$Q$7 -> 10 | K71: =LOOKUP(J71,Names!$A$2:$A$161,Names!$B$2:$B$161) -> نبيل خلف زكي حسنين | L71: =$S$7 -> 165 | M71: =Sheet1!L5 -> 18 | P71: 3 | Q71: =$Q$8 -> 11 | R71: =LOOKUP(Q71,Names!$A$2:$A$161,Names!$B$2:$B$161) -> معتز محمد مدبولي | S71: =$S$8 -> 17 | T71: =Sheet1!L5 -> 18 | W71: 3 | X71: =$Q$9 -> 12 | Y71: =LOOKUP(X71,Names!$A$2:$A$161,Names!$B$2:$B$161) -> أمير كمال جميل | Z71: =$S$9 -> 98 | AA71: =Sheet1!L5 -> 18
A72: 4 | B72: 4 | C72: =$X$6 -> 13 | D72: =LOOKUP(C72,Names!$A$2:$A$161,Names!$B$2:$B$161) -> أحمد جميل السيد | E72: =$Z$6 -> 83 | F72: =Sheet1!L6 -> 17 | I72: 4 | J72: =$X$7 -> 14 | K72: =LOOKUP(J72,Names!$A$2:$A$161,Names!$B$2:$B$161) -> عماد محمد فؤاد | L72: =$Z$7 -> 56 | M72: =Sheet1!L6 -> 17 | P72: 4 | Q72: =$X$8 -> 15 | R72: =LOOKUP(Q72,Names!$A$2:$A$161,Names!$B$2:$B$161) -> أحمد رمزي الديب | S72: =$Z$8 -> 190 | T72: =Sheet1!L6 -> 17 | W72: 4 | X72: =$X$9 -> 16 | Y72: =LOOKUP(X72,Names!$A$2:$A$161,Names!$B$2:$B$161) -> عبد الرحمن سعد موسى | Z72: =$Z$9 -> 46 | AA72: =Sheet1!L6 -> 17
A73: 5 | B73: 5 | C73: =$C$12 -> 17 | D73: =LOOKUP(C73,Names!$A$2:$A$161,Names!$B$2:$B$161) -> أحمد علي خليل حسن | E73: =$E$12 -> 38 | F73: =Sheet1!L7 -> 16 | I73: 5 | J73: =$C$13 -> 18 | K73: =LOOKUP(J73,Names!$A$2:$A$161,Names!$B$2:$B$161) -> أحمد ممدوح عبد الدايم | L73: =$E$13 -> -19 | M73: =Sheet1!L7 -> 16 | P73: 5 | Q73: =$C$14 -> 19 | R73: =LOOKUP(Q73,Names!$A$2:$A$161,Names!$B$2:$B$161) -> إبراهيم عنتر | S73: =$E$14 -> 167 | T73: =Sheet1!L7 -> 16 | W73: 5 | X73: =$C$15 -> 20 | Y73: =LOOKUP(X73,Names!$A$2:$A$161,Names!$B$2:$B$161) -> إسلام قاسم | Z73: =$E$15 -> 106 | AA73: =Sheet1!L7 -> 16
A74: 6 | B74: 6 | C74: =$J$12 -> 21 | D74: =LOOKUP(C74,Names!$A$2:$A$161,Names!$B$2:$B$161) -> أحمد محمد حمدي صالح | E74: =$L$12 -> 196 | F74: =Sheet1!L8 -> 15 | I74: 6 | J74: =$J$13 -> 22 | K74: =LOOKUP(J74,Names!$A$2:$A$161,Names!$B$2:$B$161) -> طه إبراهيم طه | L74: =$L$13 -> 56 | M74: =Sheet1!L8 -> 15 | P74: 6 | Q74: =$J$14 -> 23 | R74: =LOOKUP(Q74,Names!$A$2:$A$161,Names!$B$2:$B$161) -> مصطفى يوسف محمد | S74: =$L$14 -> 107 | T74: =Sheet1!L8 -> 15 | W74: 6 | X74: =$J$15 -> 24 | Y74: =LOOKUP(X74,Names!$A$2:$A$161,Names!$B$2:$B$161) -> هيثم محمد شبانة | Z74: =$L$15 -> -37 | AA74: =Sheet1!L8 -> 15
A75: 7 | B75: 7 | C75: =$Q$12 -> 25 | D75: =LOOKUP(C75,Names!$A$2:$A$161,Names!$B$2:$B$161) -> خالد شباره | E75: =$S$12 -> 149 | F75: =Sheet1!L9 -> 14 | I75: 7 | J75: =$Q$13 -> 26 | K75: =LOOKUP(J75,Names!$A$2:$A$161,Names!$B$2:$B$161) -> أحمد الطنطاوي | L75: =$S$13 -> 85 | M75: =Sheet1!L9 -> 14 | P75: 7 | Q75: =$Q$14 -> 27 | R75: =LOOKUP(Q75,Names!$A$2:$A$161,Names!$B$2:$B$161) -> سمير الحوفي | S75: =$S$14 -> -4 | T75: =Sheet1!L9 -> 14 | W75: 7 | X75: =$Q$15 -> 28 | Y75: =LOOKUP(X75,Names!$A$2:$A$161,Names!$B$2:$B$161) -> عمرو محسن فرج | Z75: =$S$15 -> 121 | AA75: =Sheet1!L9 -> 14
A76: 8 | B76: 8 | C76: =$X$12 -> 29 | D76: =LOOKUP(C76,Names!$A$2:$A$161,Names!$B$2:$B$161) -> عبد الرحمن عثمان | E76: =$Z$12 -> 103 | F76: =Sheet1!L10 -> 13 | I76: 8 | J76: =$X$13 -> 30 | K76: =LOOKUP(J76,Names!$A$2:$A$161,Names!$B$2:$B$161) -> شريف جلال سماحة | L76: =$Z$13 -> 180 | M76: =Sheet1!L10 -> 13 | P76: 8 | Q76: =$X$14 -> 31 | R76: =LOOKUP(Q76,Names!$A$2:$A$161,Names!$B$2:$B$161) -> ماجد محمد فكري | S76: =$Z$14 -> 166 | T76: =Sheet1!L10 -> 13 | W76: 8 | X76: =$X$15 -> 32 | Y76: =LOOKUP(X76,Names!$A$2:$A$161,Names!$B$2:$B$161) -> حمزة أحمد محمد | Z76: =$Z$15 -> 12 | AA76: =Sheet1!L10 -> 13
A77: 9 | B77: 9 | C77: =$C$18 -> 33 | D77: =LOOKUP(C77,Names!$A$2:$A$161,Names!$B$2:$B$161) -> أحمد بسيوني | E77: =$E$18 -> 131 | F77: =Sheet1!L11 -> 12 | I77: 9 | J77: =$C$19 -> 34 | K77: =LOOKUP(J77,Names!$A$2:$A$161,Names!$B$2:$B$161) -> عماد الدين جمعة هلال | L77: =$E$19 -> -6 | M77: =Sheet1!L11 -> 12 | P77: 9 | Q77: =$C$20 -> 35 | R77: =LOOKUP(Q77,Names!$A$2:$A$161,Names!$B$2:$B$161) -> عمرو عماد الدين أبوالعلا | S77: =$E$20 -> 142 | T77: =Sheet1!L11 -> 12 | W77: 9 | X77: =$C$21 -> 36 | Y77: =LOOKUP(X77,Names!$A$2:$A$161,Names!$B$2:$B$161) -> أحمد عبد الفتاح عرفه | Z77: =$E$21 -> 100 | AA77: =Sheet1!L11 -> 12
A78: 10 | B78: 10 | C78: =$J$18 -> 37 | D78: =LOOKUP(C78,Names!$A$2:$A$161,Names!$B$2:$B$161) -> حمدي محمود عبد العزيز | E78: =$L$18 -> 91 | F78: =Sheet1!L12 -> 11 | I78: 10 | J78: =$J$19 -> 38 | K78: =LOOKUP(J78,Names!$A$2:$A$161,Names!$B$2:$B$161) -> أسامة لطفي نجيب | L78: =$L$19 -> 124 | M78: =Sheet1!L12 -> 11 | P78: 10 | Q78: =$J$20 -> 39 | R78: =LOOKUP(Q78,Names!$A$2:$A$161,Names!$B$2:$B$161) -> إسلام أحمد السيد عمر | S78: =$L$20 -> 115 | T78: =Sheet1!L12 -> 11 | W78: 10 | X78: =$J$21 -> 40 | Y78: =LOOKUP(X78,Names!$A$2:$A$161,Names!$B$2:$B$161) -> احمد محمود عبد الرزاق | Z78: =$L$21 -> 150 | AA78: =Sheet1!L12 -> 11
A79: 11 | B79: 11 | C79: =$Q$18 -> 41 | D79: =LOOKUP(C79,Names!$A$2:$A$161,Names!$B$2:$B$161) -> خالد مصطفى عزت | E79: =$S$18 -> 133 | F79: =Sheet1!L13 -> 10 | I79: 11 | J79: =$Q$19 -> 42 | K79: =LOOKUP(J79,Names!$A$2:$A$161,Names!$B$2:$B$161) -> محمد عبد الهادي أبو القاسم | L79: =$S$19 -> 55 | M79: =Sheet1!L13 -> 10 | P79: 11 | Q79: =$Q$20 -> 43 | R79: =LOOKUP(Q79,Names!$A$2:$A$161,Names!$B$2:$B$161) -> أمير محمد خطاب | S79: =$S$20 -> 203 | T79: =Sheet1!L13 -> 10 | W79: 11 | X79: =$Q$21 -> 44 | Y79: =LOOKUP(X79,Names!$A$2:$A$161,Names!$B$2:$B$161) -> جمال السيد توفيق محمد | Z79: =$S$21 -> 87 | AA79: =Sheet1!L13 -> 10
A80: 12 | B80: 12 | C80: =$X$18 -> 45 | D80: =LOOKUP(C80,Names!$A$2:$A$161,Names!$B$2:$B$161) -> رضا هنري | E80: =$Z$18 -> 25 | F80: =Sheet1!L14 -> 9 | I80: 12 | J80: =$X$19 -> 46 | K80: =LOOKUP(J80,Names!$A$2:$A$161,Names!$B$2:$B$161) -> علاء شوقي جبريل | L80: =$Z$19 -> 165 | M80: =Sheet1!L14 -> 9 | P80: 12 | Q80: =$X$20 -> 47 | R80: =LOOKUP(Q80,Names!$A$2:$A$161,Names!$B$2:$B$161) -> هاني فكري المراكبي | S80: =$Z$20 -> -11 | T80: =Sheet1!L14 -> 9 | W80: 12 | X80: =$X$21 -> 48 | Y80: =LOOKUP(X80,Names!$A$2:$A$161,Names!$B$2:$B$161) -> محمد ناجي زاهر بلبع | Z80: =$Z$21 -> 182 | AA80: =Sheet1!L14 -> 9
A81: 13 | B81: 13 | C81: =$C$24 -> 49 | D81: =LOOKUP(C81,Names!$A$2:$A$161,Names!$B$2:$B$161) -> هيثم العشماوي | E81: =$E$24 -> 126 | F81: =Sheet1!L15 -> 8 | I81: 13 | J81: =$C$25 -> 50 | K81: =LOOKUP(J81,Names!$A$2:$A$161,Names!$B$2:$B$161) -> فادي ناجح | L81: =$E$25 -> 101 | M81: =Sheet1!L15 -> 8 | P81: 13 | Q81: =$C$26 -> 51 | R81: =LOOKUP(Q81,Names!$A$2:$A$161,Names!$B$2:$B$161) -> أحمد أحمد مرسي عبد الله | S81: =$E$26 -> 111 | T81: =Sheet1!L15 -> 8 | W81: 13 | X81: =$C$27 -> 52 | Y81: =LOOKUP(X81,Names!$A$2:$A$161,Names!$B$2:$B$161) -> يامن محمد حسن | Z81: =$E$27 -> 142 | AA81: =Sheet1!L15 -> 8
A82: 14 | B82: 14 | C82: =$J$24 -> 53 | D82: =LOOKUP(C82,Names!$A$2:$A$161,Names!$B$2:$B$161) -> أحمد محمد شوقي هيبه | E82: =$L$24 -> 104 | F82: =Sheet1!L16 -> 7 | I82: 14 | J82: =$J$25 -> 54 | K82: =LOOKUP(J82,Names!$A$2:$A$161,Names!$B$2:$B$161) -> تامر رشاد | L82: =$L$25 -> 100 | M82: =Sheet1!L16 -> 7 | P82: 14 | Q82: =$J$26 -> 55 | R82: =LOOKUP(Q82,Names!$A$2:$A$161,Names!$B$2:$B$161) -> ناجي بلبع | S82: =$L$26 -> 143 | T82: =Sheet1!L16 -> 7 | W82: 14 | X82: =$J$27 -> 56 | Y82: =LOOKUP(X82,Names!$A$2:$A$161,Names!$B$2:$B$161) -> جاسر محمد | Z82: =$L$27 -> 70 | AA82: =Sheet1!L16 -> 7
A83: 15 | B83: 15 | C83: =$Q$24 -> 57 | D83: =LOOKUP(C83,Names!$A$2:$A$161,Names!$B$2:$B$161) -> مصطفى كامل الشحري | E83: =$S$24 -> 50 | F83: =Sheet1!L17 -> 6 | I83: 15 | J83: =$Q$25 -> 58 | K83: =LOOKUP(J83,Names!$A$2:$A$161,Names!$B$2:$B$161) -> أحمد إبراهيم غانم | L83: =$S$25 -> 165 | M83: =Sheet1!L17 -> 6 | P83: 15 | Q83: =$Q$26 -> 59 | R83: =LOOKUP(Q83,Names!$A$2:$A$161,Names!$B$2:$B$161) -> هشام أبوغربية | S83: =$S$26 -> 195 | T83: =Sheet1!L17 -> 6 | W83: 15 | X83: =$Q$27 -> 60 | Y83: =LOOKUP(X83,Names!$A$2:$A$161,Names!$B$2:$B$161) -> عصام الدين حامد منصور | Z83: =$S$27 -> 69 | AA83: =Sheet1!L17 -> 6
A84: 16 | B84: 16 | C84: =$X$24 -> 61 | D84: =LOOKUP(C84,Names!$A$2:$A$161,Names!$B$2:$B$161) -> كريم إيهاب عامر | E84: =$Z$24 -> 75 | F84: =Sheet1!L18 -> 5 | I84: 16 | J84: =$X$25 -> 62 | K84: =LOOKUP(J84,Names!$A$2:$A$161,Names!$B$2:$B$161) -> محمد محمود مسعود | L84: =$Z$25 -> 77 | M84: =Sheet1!L18 -> 5 | P84: 16 | Q84: =$X$26 -> 63 | R84: =LOOKUP(Q84,Names!$A$2:$A$161,Names!$B$2:$B$161) -> محمد أحمد محمد عبد الله | S84: =$Z$26 -> 97 | T84: =Sheet1!L18 -> 5 | W84: 16 | X84: =$X$27 -> 64 | Y84: =LOOKUP(X84,Names!$A$2:$A$161,Names!$B$2:$B$161) -> وليد شعبان إسماعيل علي | Z84: =$Z$27 -> 71 | AA84: =Sheet1!L18 -> 5
A85: 17 | B85: 17 | C85: =$C$30 -> 65 | D85: =LOOKUP(C85,Names!$A$2:$A$161,Names!$B$2:$B$161) -> أحمد طارق | E85: =$E$30 -> 98 | F85: =Sheet1!L19 -> 4 | I85: 17 | J85: =$C$31 -> 66 | K85: =LOOKUP(J85,Names!$A$2:$A$161,Names!$B$2:$B$161) -> أحمد فؤاد حسنين | L85: =$E$31 -> 174 | M85: =Sheet1!L19 -> 4 | P85: 17 | Q85: =$C$32 -> 67 | R85: =LOOKUP(Q85,Names!$A$2:$A$161,Names!$B$2:$B$161) -> محمد محمود فضل | S85: =$E$32 -> 118 | T85: =Sheet1!L19 -> 4 | W85: 17 | X85: =$C$33 -> 68 | Y85: =LOOKUP(X85,Names!$A$2:$A$161,Names!$B$2:$B$161) -> مصطفى إسماعيل | Z85: =$E$33 -> 84 | AA85: =Sheet1!L19 -> 4
A86: 18 | B86: 18 | C86: =$J$30 -> 69 | D86: =LOOKUP(C86,Names!$A$2:$A$161,Names!$B$2:$B$161) -> أحمد علي السيد شرع | E86: =$L$30 -> 92 | F86: =Sheet1!L20 -> 3 | I86: 18 | J86: =$J$31 -> 70 | K86: =LOOKUP(J86,Names!$A$2:$A$161,Names!$B$2:$B$161) -> أحمد صلاح الدين دياب | L86: =$L$31 -> 105 | M86: =Sheet1!L20 -> 3 | P86: 18 | Q86: =$J$32 -> 71 | R86: =LOOKUP(Q86,Names!$A$2:$A$161,Names!$B$2:$B$161) -> معتز محمد | S86: =$L$32 -> 82 | T86: =Sheet1!L20 -> 3 | W86: 18 | X86: =$J$33 -> 72 | Y86: =LOOKUP(X86,Names!$A$2:$A$161,Names!$B$2:$B$161) -> أحمد سمير خلف | Z86: =$L$33 -> 140 | AA86: =Sheet1!L20 -> 3
A87: 19 | B87: 19 | C87: =$Q$30 -> 73 | D87: =LOOKUP(C87,Names!$A$2:$A$161,Names!$B$2:$B$161) -> مينا ناجح صبحي | E87: =$S$30 -> 180 | F87: =Sheet1!L21 -> 2 | I87: 19 | J87: =$Q$31 -> 74 | K87: =LOOKUP(J87,Names!$A$2:$A$161,Names!$B$2:$B$161) -> فريدة شكري | L87: =$S$31 -> 187 | M87: =Sheet1!L21 -> 2 | P87: 19 | Q87: =$Q$32 -> 75 | R87: =LOOKUP(Q87,Names!$A$2:$A$161,Names!$B$2:$B$161) -> محمود سليمان | S87: =$S$32 -> 48 | T87: =Sheet1!L21 -> 2 | W87: 19 | X87: =$Q$33 -> 76 | Y87: =LOOKUP(X87,Names!$A$2:$A$161,Names!$B$2:$B$161) -> محمد إبراهيم قطب | Z87: =$S$33 -> 8 | AA87: =Sheet1!L21 -> 2
A88: 20 | B88: 20 | C88: =$X$30 -> 77 | D88: =LOOKUP(C88,Names!$A$2:$A$161,Names!$B$2:$B$161) -> محمد محمود شعبان | E88: =$Z$30 -> 92 | F88: =Sheet1!L22 -> 1 | I88: 20 | J88: =$X$31 -> 78 | K88: =LOOKUP(J88,Names!$A$2:$A$161,Names!$B$2:$B$161) -> حسام الخلفاوي | L88: =$Z$31 -> 39 | M88: =Sheet1!L22 -> 1 | P88: 20 | Q88: =$X$32 -> 79 | R88: =LOOKUP(Q88,Names!$A$2:$A$161,Names!$B$2:$B$161) -> محمد علي حسن طه الأمام | S88: =$Z$32 -> 193 | T88: =Sheet1!L22 -> 1 | W88: 20 | X88: =$X$33 -> 80 | Y88: =LOOKUP(X88,Names!$A$2:$A$161,Names!$B$2:$B$161) -> أمن حسام | Z88: =$Z$33 -> -28 | AA88: =Sheet1!L22 -> 1
A89: 21 | B89: 21 | C89: =$C$37 -> 81 | D89: =LOOKUP(C89,Names!$A$2:$A$161,Names!$B$2:$B$161) -> 0 | E89: =$E$37 -> 0 | I89: 21 | J89: =$C$38 -> 82 | K89: =LOOKUP(J89,Names!$A$2:$A$161,Names!$B$2:$B$161) -> 0 | L89: =$E$38 -> 0 | P89: 21 | Q89: =$C$39 -> 83 | R89: =LOOKUP(Q89,Names!$A$2:$A$161,Names!$B$2:$B$161) -> 0 | S89: =$E$39 -> 0 | W89: 21 | X89: =$C$40 -> 84 | Y89: =LOOKUP(X89,Names!$A$2:$A$161,Names!$B$2:$B$161) -> 0 | Z89: =$E$40 -> 0
A90: 22 | B90: 22 | C90: =$J$37 -> 85 | D90: =LOOKUP(C90,Names!$A$2:$A$161,Names!$B$2:$B$161) -> 0 | E90: =$L$37 -> 0 | I90: 22 | J90: =$J$38 -> 86 | K90: =LOOKUP(J90,Names!$A$2:$A$161,Names!$B$2:$B$161) -> 0 | L90: =$L$38 -> 0 | P90: 22 | Q90: =$J$39 -> 87 | R90: =LOOKUP(Q90,Names!$A$2:$A$161,Names!$B$2:$B$161) -> 0 | S90: =$L$39 -> 0 | W90: 22 | X90: =$J$40 -> 88 | Y90: =LOOKUP(X90,Names!$A$2:$A$161,Names!$B$2:$B$161) -> 0 | Z90: =$L$40 -> 0
A91: 23 | B91: 23 | C91: =$Q$37 -> 89 | D91: =LOOKUP(C91,Names!$A$2:$A$161,Names!$B$2:$B$161) -> 0 | E91: =$S$37 -> 0 | I91: 23 | J91: =$Q$38 -> 90 | K91: =LOOKUP(J91,Names!$A$2:$A$161,Names!$B$2:$B$161) -> 0 | L91: =$S$38 -> 0 | P91: 23 | Q91: =$Q$39 -> 91 | R91: =LOOKUP(Q91,Names!$A$2:$A$161,Names!$B$2:$B$161) -> 0 | S91: =$S$39 -> 0 | W91: 23 | X91: =$Q$40 -> 92 | Y91: =LOOKUP(X91,Names!$A$2:$A$161,Names!$B$2:$B$161) -> 0 | Z91: =$S$40 -> 0
A92: 24 | B92: 24 | C92: =$X$37 -> 93 | D92: =LOOKUP(C92,Names!$A$2:$A$161,Names!$B$2:$B$161) -> 0 | E92: =$Z$37 -> 0 | I92: 24 | J92: =$X$38 -> 94 | K92: =LOOKUP(J92,Names!$A$2:$A$161,Names!$B$2:$B$161) -> 0 | L92: =$Z$38 -> 0 | P92: 24 | Q92: =$X$39 -> 95 | R92: =LOOKUP(Q92,Names!$A$2:$A$161,Names!$B$2:$B$161) -> 0 | S92: =$Z$39 -> 0 | W92: 24 | X92: =$X$40 -> 96 | Y92: =LOOKUP(X92,Names!$A$2:$A$161,Names!$B$2:$B$161) -> 0 | Z92: =$Z$40 -> 0
A93: 25 | B93: 25 | C93: =$C$43 -> 97 | D93: =LOOKUP(C93,Names!$A$2:$A$161,Names!$B$2:$B$161) -> 0 | E93: =$E$43 -> 0 | I93: 25 | J93: =$C$44 -> 98 | K93: =LOOKUP(J93,Names!$A$2:$A$161,Names!$B$2:$B$161) -> 0 | L93: =$E$44 -> 0 | P93: 25 | Q93: =$C$45 -> 99 | R93: =LOOKUP(Q93,Names!$A$2:$A$161,Names!$B$2:$B$161) -> 0 | S93: =$E$45 -> 0 | W93: 25 | X93: =$C$46 -> 100 | Y93: =LOOKUP(X93,Names!$A$2:$A$161,Names!$B$2:$B$161) -> 0 | Z93: =$E$46 -> 0
A94: 26 | B94: 26 | C94: =$J$43 -> 101 | D94: =LOOKUP(C94,Names!$A$2:$A$161,Names!$B$2:$B$161) -> 0 | E94: =$L$43 -> 0 | I94: 26 | J94: =$J$44 -> 102 | K94: =LOOKUP(J94,Names!$A$2:$A$161,Names!$B$2:$B$161) -> 0 | L94: =$L$44 -> 0 | P94: 26 | Q94: =$J$45 -> 103 | R94: =LOOKUP(Q94,Names!$A$2:$A$161,Names!$B$2:$B$161) -> 0 | S94: =$L$45 -> 0 | W94: 26 | X94: =$J$46 -> 104 | Y94: =LOOKUP(X94,Names!$A$2:$A$161,Names!$B$2:$B$161) -> 0 | Z94: =$L$46 -> 0
A95: 27 | B95: 27 | C95: =$Q$43 -> 105 | D95: =LOOKUP(C95,Names!$A$2:$A$161,Names!$B$2:$B$161) -> 0 | E95: =$S$43 -> 0 | I95: 27 | J95: =$Q$44 -> 106 | K95: =LOOKUP(J95,Names!$A$2:$A$161,Names!$B$2:$B$161) -> 0 | L95: =$S$44 -> 0 | P95: 27 | Q95: =$Q$45 -> 107 | R95: =LOOKUP(Q95,Names!$A$2:$A$161,Names!$B$2:$B$161) -> 0 | S95: =$S$45 -> 0 | W95: 27 | X95: =$Q$46 -> 108 | Y95: =LOOKUP(X95,Names!$A$2:$A$161,Names!$B$2:$B$161) -> 0 | Z95: =$S$46 -> 0
A96: 28 | B96: 28 | C96: =$X$43 -> 109 | D96: =LOOKUP(C96,Names!$A$2:$A$161,Names!$B$2:$B$161) -> 0 | I96: 28 | J96: =$X$44 -> 110 | K96: =LOOKUP(J96,Names!$A$2:$A$161,Names!$B$2:$B$161) -> 0 | P96: 28 | Q96: =$X$45 -> 111 | R96: =LOOKUP(Q96,Names!$A$2:$A$161,Names!$B$2:$B$161) -> 0 | W96: 28 | X96: =$X$46 -> 112 | Y96: =LOOKUP(X96,Names!$A$2:$A$161,Names!$B$2:$B$161) -> 0
A97: 29 | B97: 29 | C97: =$C$49 -> 113 | D97: =LOOKUP(C97,Names!$A$2:$A$161,Names!$B$2:$B$161) -> 0 | I97: 29 | J97: =$C$50 -> 114 | K97: =LOOKUP(J97,Names!$A$2:$A$161,Names!$B$2:$B$161) -> 0 | P97: 29 | Q97: =$C$51 -> 115 | R97: =LOOKUP(Q97,Names!$A$2:$A$161,Names!$B$2:$B$161) -> 0 | W97: 29 | X97: =$C$52 -> 116 | Y97: =LOOKUP(X97,Names!$A$2:$A$161,Names!$B$2:$B$161) -> 0
A98: 30 | B98: 30 | C98: =$J$49 -> 117 | D98: =LOOKUP(C98,Names!$A$2:$A$161,Names!$B$2:$B$161) -> 0 | I98: 30 | J98: =$J$50 -> 118 | K98: =LOOKUP(J98,Names!$A$2:$A$161,Names!$B$2:$B$161) -> 0 | P98: 30 | Q98: =$J$51 -> 119 | R98: =LOOKUP(Q98,Names!$A$2:$A$161,Names!$B$2:$B$161) -> 0 | W98: 30 | X98: =$J$52 -> 120 | Y98: =LOOKUP(X98,Names!$A$2:$A$161,Names!$B$2:$B$161) -> 0
A99: 31 | B99: 31 | C99: =$Q$49 -> 121 | D99: =LOOKUP(C99,Names!$A$2:$A$161,Names!$B$2:$B$161) -> 0 | I99: 31 | J99: =$Q$50 -> 122 | K99: =LOOKUP(J99,Names!$A$2:$A$161,Names!$B$2:$B$161) -> 0 | P99: 31 | Q99: =$Q$51 -> 123 | R99: =LOOKUP(Q99,Names!$A$2:$A$161,Names!$B$2:$B$161) -> 0 | W99: 31 | X99: =$Q$52 -> 124 | Y99: =LOOKUP(X99,Names!$A$2:$A$161,Names!$B$2:$B$161) -> 0
A100: 32 | B100: 32 | C100: =$X$49 -> 125 | D100: =LOOKUP(C100,Names!$A$2:$A$161,Names!$B$2:$B$161) -> 0 | I100: 32 | J100: =$X$50 -> 126 | K100: =LOOKUP(J100,Names!$A$2:$A$161,Names!$B$2:$B$161) -> 0 | P100: 32 | Q100: =$X$51 -> 127 | R100: =LOOKUP(Q100,Names!$A$2:$A$161,Names!$B$2:$B$161) -> 0 | W100: 32 | X100: =$X$52 -> 128 | Y100: =LOOKUP(X100,Names!$A$2:$A$161,Names!$B$2:$B$161) -> 0
A101: 33 | B101: 33 | C101: =$C$55 -> 129 | D101: =LOOKUP(C101,Names!$A$2:$A$161,Names!$B$2:$B$161) -> 0 | I101: 33 | J101: =$C$56 -> 130 | K101: =LOOKUP(J101,Names!$A$2:$A$161,Names!$B$2:$B$161) -> 0 | P101: 33 | Q101: =$C$57 -> 131 | R101: =LOOKUP(Q101,Names!$A$2:$A$161,Names!$B$2:$B$161) -> 0 | W101: 33 | X101: =$C$58 -> 132 | Y101: =LOOKUP(X101,Names!$A$2:$A$161,Names!$B$2:$B$161) -> 0
A102: 34 | B102: 34 | C102: =$J$55 -> 133 | D102: =LOOKUP(C102,Names!$A$2:$A$161,Names!$B$2:$B$161) -> 0 | I102: 34 | J102: =$J$56 -> 134 | K102: =LOOKUP(J102,Names!$A$2:$A$161,Names!$B$2:$B$161) -> 0 | P102: 34 | Q102: =$J$57 -> 135 | R102: =LOOKUP(Q102,Names!$A$2:$A$161,Names!$B$2:$B$161) -> 0 | W102: 34 | X102: =$J$58 -> 136 | Y102: =LOOKUP(X102,Names!$A$2:$A$161,Names!$B$2:$B$161) -> 0
A103: 35 | B103: 35 | C103: =$Q$55 -> 137 | D103: =LOOKUP(C103,Names!$A$2:$A$161,Names!$B$2:$B$161) -> 0 | I103: 35 | J103: =$Q$56 -> 138 | K103: =LOOKUP(J103,Names!$A$2:$A$161,Names!$B$2:$B$161) -> 0 | P103: 35 | Q103: =$Q$57 -> 139 | R103: =LOOKUP(Q103,Names!$A$2:$A$161,Names!$B$2:$B$161) -> 0 | W103: 35 | X103: =$Q$58 -> 140 | Y103: =LOOKUP(X103,Names!$A$2:$A$161,Names!$B$2:$B$161) -> 0
A104: 36 | B104: 36 | C104: =$X$55 -> 141 | D104: =LOOKUP(C104,Names!$A$2:$A$161,Names!$B$2:$B$161) -> 0 | I104: 36 | J104: =$X$56 -> 142 | K104: =LOOKUP(J104,Names!$A$2:$A$161,Names!$B$2:$B$161) -> 0 | P104: 36 | Q104: =$X$57 -> 143 | R104: =LOOKUP(Q104,Names!$A$2:$A$161,Names!$B$2:$B$161) -> 0 | W104: 36 | X104: =$X$58 -> 144 | Y104: =LOOKUP(X104,Names!$A$2:$A$161,Names!$B$2:$B$161) -> 0
A105: 37 | B105: 37 | C105: =$C$61 -> 145 | D105: =LOOKUP(C105,Names!$A$2:$A$161,Names!$B$2:$B$161) -> 0 | I105: 37 | J105: =$C$62 -> 146 | K105: =LOOKUP(J105,Names!$A$2:$A$161,Names!$B$2:$B$161) -> 0 | P105: 37 | Q105: =$C$63 -> 147 | R105: =LOOKUP(Q105,Names!$A$2:$A$161,Names!$B$2:$B$161) -> 0 | W105: 37 | X105: =$C$64 -> 148 | Y105: =LOOKUP(X105,Names!$A$2:$A$161,Names!$B$2:$B$161) -> 0
A106: 38 | B106: 38 | C106: =$J$61 -> 149 | D106: =LOOKUP(C106,Names!$A$2:$A$161,Names!$B$2:$B$161) -> 0 | I106: 38 | J106: =$J$62 -> 150 | K106: =LOOKUP(J106,Names!$A$2:$A$161,Names!$B$2:$B$161) -> 0 | P106: 38 | Q106: =$J$63 -> 151 | R106: =LOOKUP(Q106,Names!$A$2:$A$161,Names!$B$2:$B$161) -> 0 | W106: 38 | X106: =$J$64 -> 152 | Y106: =LOOKUP(X106,Names!$A$2:$A$161,Names!$B$2:$B$161) -> 0
A107: 39 | B107: 39 | C107: =$Q$61 -> 153 | D107: =LOOKUP(C107,Names!$A$2:$A$161,Names!$B$2:$B$161) -> 0 | I107: 39 | J107: =$Q$62 -> 154 | K107: =LOOKUP(J107,Names!$A$2:$A$161,Names!$B$2:$B$161) -> 0 | P107: 39 | Q107: =$Q$63 -> 155 | R107: =LOOKUP(Q107,Names!$A$2:$A$161,Names!$B$2:$B$161) -> 0 | W107: 39 | X107: =$Q$64 -> 156 | Y107: =LOOKUP(X107,Names!$A$2:$A$161,Names!$B$2:$B$161) -> 0
A108: 40 | B108: 40 | C108: =$X$61 -> 157 | D108: =LOOKUP(C108,Names!$A$2:$A$161,Names!$B$2:$B$161) -> 0 | I108: 40 | J108: =$X$62 -> 158 | K108: =LOOKUP(J108,Names!$A$2:$A$161,Names!$B$2:$B$161) -> 0 | P108: 40 | Q108: =$X$63 -> 159 | R108: =LOOKUP(Q108,Names!$A$2:$A$161,Names!$B$2:$B$161) -> 0 | W108: 40 | X108: =$X$64 -> 160 | Y108: =LOOKUP(X108,Names!$A$2:$A$161,Names!$B$2:$B$161) -> 0

Sheet R2
K1: التوقيت : | L1: Round ( 2 ) | Y1: =Score!T1 -> بطولة الجمهورية الثانية للفردي المفتوح
K3: 3.00 PM | L3: Tab.
D4: 1 | K4: 2 | R4: 3 | Y4: 4
D5: Names | E5: Sc. | F5: Tab | K5: Names | L5: Sc. | M5: Tab | R5: Names | S5: Sc. | T5: Tab | Y5: Names | Z5: Sc. | AA5: Tab
A6: N | B6: 1 | C6: =Score!I5 -> 1 | D6: =LOOKUP(C6,Names!$A$2:$A$161,Names!$B$2:$B$161) -> راجي صبحي | E6: 47 | F6: =Sheet1!$M$4 -> 0 | G6: =F69 -> 21 | H6: N | I6: 1 | J6: =Score!I9 -> 2 | K6: =LOOKUP(J6,Names!$A$2:$A$161,Names!$B$2:$B$161) -> شريف أحمد محمد حمروش | L6: 51 | M6: =Sheet1!$M$4 -> 0 | N6: =F70 -> 19 | O6: N | P6: 1 | Q6: =Score!I13 -> 3 | R6: =LOOKUP(Q6,Names!$A$2:$A$161,Names!$B$2:$B$161) -> إيهاب يوسف عمارة | S6: 108 | T6: =Sheet1!$M$4 -> 0 | U6: =F71 -> 18 | V6: N | W6: 1 | X6: =Score!I17 -> 4 | Y6: =LOOKUP(X6,Names!$A$2:$A$161,Names!$B$2:$B$161) -> محمد سعيد الفطاطري | Z6: 190 | AA6: =Sheet1!$M$4 -> 0 | AB6: =F72 -> 17
A7: W | B7: 2 | C7: =Score!I6 -> 21 | D7: =LOOKUP(C7,Names!$A$2:$A$161,Names!$B$2:$B$161) -> أحمد محمد حمدي صالح | E7: 112 | F7: =Sheet1!$M$5 -> 0 | G7: =M69 -> 21 | H7: W | I7: 2 | J7: =Score!I10 -> 22 | K7: =LOOKUP(J7,Names!$A$2:$A$161,Names!$B$2:$B$161) -> طه إبراهيم طه | L7: 151 | M7: =Sheet1!$M$5 -> 0 | N7: =M70 -> 19 | O7: W | P7: 2 | Q7: =Score!I14 -> 23 | R7: =LOOKUP(Q7,Names!$A$2:$A$161,Names!$B$2:$B$161) -> مصطفى يوسف محمد | S7: 69 | T7: =Sheet1!$M$5 -> 0 | U7: =M71 -> 18 | V7: W | W7: 2 | X7: =Score!I18 -> 24 | Y7: =LOOKUP(X7,Names!$A$2:$A$161,Names!$B$2:$B$161) -> هيثم محمد شبانة | Z7: 134 | AA7: =Sheet1!$M$5 -> 0 | AB7: =M72 -> 17
A8: S | B8: 3 | C8: =Score!I7 -> 41 | D8: =LOOKUP(C8,Names!$A$2:$A$161,Names!$B$2:$B$161) -> خالد مصطفى عزت | E8: 97 | F8: =Sheet1!$M$6 -> 0 | G8: =T69 -> 21 | H8: S | I8: 3 | J8: =Score!I11 -> 42 | K8: =LOOKUP(J8,Names!$A$2:$A$161,Names!$B$2:$B$161) -> محمد عبد الهادي أبو القاسم | L8: 119 | M8: =Sheet1!$M$6 -> 0 | N8: =T70 -> 19 | O8: S | P8: 3 | Q8: =Score!I15 -> 43 | R8: =LOOKUP(Q8,Names!$A$2:$A$161,Names!$B$2:$B$161) -> أمير محمد خطاب | S8: 49 | T8: =Sheet1!$M$6 -> 0 | U8: =T71 -> 18 | V8: S | W8: 3 | X8: =Score!I19 -> 44 | Y8: =LOOKUP(X8,Names!$A$2:$A$161,Names!$B$2:$B$161) -> جمال السيد توفيق محمد | Z8: 22 | AA8: =Sheet1!$M$6 -> 0 | AB8: =T72 -> 17
A9: E | B9: 4 | C9: =Score!I8 -> 61 | D9: =LOOKUP(C9,Names!$A$2:$A$161,Names!$B$2:$B$161) -> كريم إيهاب عامر | E9: 116 | F9: =Sheet1!$M$7 -> 0 | G9: =AA69 -> 21 | H9: E | I9: 4 | J9: =Score!I12 -> 62 | K9: =LOOKUP(J9,Names!$A$2:$A$161,Names!$B$2:$B$161) -> محمد محمود مسعود | L9: 78 | M9: =Sheet1!$M$7 -> 0 | N9: =AA70 -> 19 | O9: E | P9: 4 | Q9: =Score!I16 -> 63 | R9: =LOOKUP(Q9,Names!$A$2:$A$161,Names!$B$2:$B$161) -> محمد أحمد محمد عبد الله | S9: 102 | T9: =Sheet1!$M$7 -> 0 | U9: =AA71 -> 18 | V9: E | W9: 4 | X9: =Score!I20 -> 64 | Y9: =LOOKUP(X9,Names!$A$2:$A$161,Names!$B$2:$B$161) -> وليد شعبان إسماعيل علي | Z9: -8 | AA9: =Sheet1!$M$7 -> 0 | AB9: =AA72 -> 17
D10: 5 | K10: 6 | R10: 7 | Y10: 8
D11: Names | E11: Sc. | F11: Tab | K11: Names | L11: Sc. | M11: Tab | R11: Names | S11: Sc. | T11: Tab | Y11: Names | Z11: Sc. | AA11: Tab
A12: N | B12: 1 | C12: =Score!I21 -> 5 | D12: =LOOKUP(C12,Names!$A$2:$A$161,Names!$B$2:$B$161) -> محمد عصام الدين القاضي | E12: 118 | F12: =Sheet1!$M$4 -> 0 | G12: =F73 -> 16 | H12: N | I12: 1 | J12: =Score!I25 -> 6 | K12: =LOOKUP(J12,Names!$A$2:$A$161,Names!$B$2:$B$161) -> إبراهيم عرفان السقا | L12: 142 | M12: =Sheet1!$M$4 -> 0 | N12: =F74 -> 15 | O12: N | P12: 1 | Q12: =Score!I29 -> 7 | R12: =LOOKUP(Q12,Names!$A$2:$A$161,Names!$B$2:$B$161) -> باسم أسحق صموائيل | S12: 112 | T12: =Sheet1!$M$4 -> 0 | U12: =F75 -> 14 | V12: N | W12: 1 | X12: =Score!I33 -> 8 | Y12: =LOOKUP(X12,Names!$A$2:$A$161,Names!$B$2:$B$161) -> إيهاب محمد الزهيري | Z12: 93 | AA12: =Sheet1!$M$4 -> 0 | AB12: =F76 -> 13
A13: W | B13: 2 | C13: =Score!I22 -> 25 | D13: =LOOKUP(C13,Names!$A$2:$A$161,Names!$B$2:$B$161) -> خالد شباره | E13: 160 | F13: =Sheet1!$M$5 -> 0 | G13: =M73 -> 16 | H13: W | I13: 2 | J13: =Score!I26 -> 26 | K13: =LOOKUP(J13,Names!$A$2:$A$161,Names!$B$2:$B$161) -> أحمد الطنطاوي | L13: 126 | M13: =Sheet1!$M$5 -> 0 | N13: =M74 -> 15 | O13: W | P13: 2 | Q13: =Score!I30 -> 27 | R13: =LOOKUP(Q13,Names!$A$2:$A$161,Names!$B$2:$B$161) -> سمير الحوفي | S13: 70 | T13: =Sheet1!$M$5 -> 0 | U13: =M75 -> 14 | V13: W | W13: 2 | X13: =Score!I34 -> 28 | Y13: =LOOKUP(X13,Names!$A$2:$A$161,Names!$B$2:$B$161) -> عمرو محسن فرج | Z13: 55 | AA13: =Sheet1!$M$5 -> 0 | AB13: =M76 -> 13
A14: S | B14: 3 | C14: =Score!I23 -> 45 | D14: =LOOKUP(C14,Names!$A$2:$A$161,Names!$B$2:$B$161) -> رضا هنري | E14: -12 | F14: =Sheet1!$M$6 -> 0 | G14: =T73 -> 16 | H14: S | I14: 3 | J14: =Score!I27 -> 46 | K14: =LOOKUP(J14,Names!$A$2:$A$161,Names!$B$2:$B$161) -> علاء شوقي جبريل | L14: -30 | M14: =Sheet1!$M$6 -> 0 | N14: =T74 -> 15 | O14: S | P14: 3 | Q14: =Score!I31 -> 47 | R14: =LOOKUP(Q14,Names!$A$2:$A$161,Names!$B$2:$B$161) -> هاني فكري المراكبي | S14: 177 | T14: =Sheet1!$M$6 -> 0 | U14: =T75 -> 14 | V14: S | W14: 3 | X14: =Score!I35 -> 48 | Y14: =LOOKUP(X14,Names!$A$2:$A$161,Names!$B$2:$B$161) -> محمد ناجي زاهر بلبع | Z14: 119 | AA14: =Sheet1!$M$6 -> 0 | AB14: =T76 -> 13
A15: E | B15: 4 | C15: =Score!I24 -> 65 | D15: =LOOKUP(C15,Names!$A$2:$A$161,Names!$B$2:$B$161) -> أحمد طارق | E15: 83 | F15: =Sheet1!$M$7 -> 0 | G15: =AA73 -> 16 | H15: E | I15: 4 | J15: =Score!I28 -> 66 | K15: =LOOKUP(J15,Names!$A$2:$A$161,Names!$B$2:$B$161) -> أحمد فؤاد حسنين | L15: 140 | M15: =Sheet1!$M$7 -> 0 | N15: =AA74 -> 15 | O15: E | P15: 4 | Q15: =Score!I32 -> 67 | R15: =LOOKUP(Q15,Names!$A$2:$A$161,Names!$B$2:$B$161) -> محمد محمود فضل | S15: 73 | T15: =Sheet1!$M$7 -> 0 | U15: =AA75 -> 14 | V15: E | W15: 4 | X15: =Score!I36 -> 68 | Y15: =LOOKUP(X15,Names!$A$2:$A$161,Names!$B$2:$B$161) -> مصطفى إسماعيل | Z15: 113 | AA15: =Sheet1!$M$7 -> 0 | AB15: =AA76 -> 13
D16: 9 | K16: 10 | R16: ='R1'!R16:T16 -> 11 | Y16: ='R1'!Y16:AA16 -> 12
D17: Names | E17: Sc. | F17: Tab | K17: Names | L17: Sc. | M17: Tab | R17: Names | S17: Sc. | T17: Tab | Y17: Names | Z17: Sc. | AA17: Tab
A18: N | B18: 1 | C18: =Score!I37 -> 9 | D18: =LOOKUP(C18,Names!$A$2:$A$161,Names!$B$2:$B$161) -> رأفت الصياد | E18: 83 | F18: =Sheet1!$M$4 -> 0 | G18: =F77 -> 12 | H18: N | I18: 1 | J18: =Score!I41 -> 10 | K18: =LOOKUP(J18,Names!$A$2:$A$161,Names!$B$2:$B$161) -> نبيل خلف زكي حسنين | L18: 164 | M18: =Sheet1!$M$4 -> 0 | N18: =F78 -> 11 | O18: N | P18: 1 | Q18: =Score!I45 -> 11 | R18: =LOOKUP(Q18,Names!$A$2:$A$161,Names!$B$2:$B$161) -> معتز محمد مدبولي | S18: 103 | T18: =Sheet1!$M$4 -> 0 | U18: =F79 -> 10 | V18: N | W18: 1 | X18: =Score!I49 -> 12 | Y18: =LOOKUP(X18,Names!$A$2:$A$161,Names!$B$2:$B$161) -> أمير كمال جميل | Z18: 67 | AA18: =Sheet1!$M$4 -> 0 | AB18: =F80 -> 9
A19: W | B19: 2 | C19: =Score!I38 -> 29 | D19: =LOOKUP(C19,Names!$A$2:$A$161,Names!$B$2:$B$161) -> عبد الرحمن عثمان | E19: 114 | F19: =Sheet1!$M$5 -> 0 | G19: =M77 -> 12 | H19: W | I19: 2 | J19: =Score!I42 -> 30 | K19: =LOOKUP(J19,Names!$A$2:$A$161,Names!$B$2:$B$161) -> شريف جلال سماحة | L19: 216 | M19: =Sheet1!$M$5 -> 0 | N19: =M78 -> 11 | O19: W | P19: 2 | Q19: =Score!I46 -> 31 | R19: =LOOKUP(Q19,Names!$A$2:$A$161,Names!$B$2:$B$161) -> ماجد محمد فكري | S19: 151 | T19: =Sheet1!$M$5 -> 0 | U19: =M79 -> 10 | V19: W | W19: 2 | X19: =Score!I50 -> 32 | Y19: =LOOKUP(X19,Names!$A$2:$A$161,Names!$B$2:$B$161) -> حمزة أحمد محمد | Z19: 130 | AA19: =Sheet1!$M$5 -> 0 | AB19: =M80 -> 9
A20: S | B20: 3 | C20: =Score!I39 -> 49 | D20: =LOOKUP(C20,Names!$A$2:$A$161,Names!$B$2:$B$161) -> هيثم العشماوي | E20: 78 | F20: =Sheet1!$M$6 -> 0 | G20: =T77 -> 12 | H20: S | I20: 3 | J20: =Score!I43 -> 50 | K20: =LOOKUP(J20,Names!$A$2:$A$161,Names!$B$2:$B$161) -> فادي ناجح | L20: -7 | M20: =Sheet1!$M$6 -> 0 | N20: =T78 -> 11 | O20: S | P20: 3 | Q20: =Score!I47 -> 51 | R20: =LOOKUP(Q20,Names!$A$2:$A$161,Names!$B$2:$B$161) -> أحمد أحمد مرسي عبد الله | S20: 121 | T20: =Sheet1!$M$6 -> 0 | U20: =T79 -> 10 | V20: S | W20: 3 | X20: =Score!I51 -> 52 | Y20: =LOOKUP(X20,Names!$A$2:$A$161,Names!$B$2:$B$161) -> يامن محمد حسن | Z20: 61 | AA20: =Sheet1!$M$6 -> 0 | AB20: =T80 -> 9
A21: E | B21: 4 | C21: =Score!I40 -> 69 | D21: =LOOKUP(C21,Names!$A$2:$A$161,Names!$B$2:$B$161) -> أحمد علي السيد شرع | E21: 136 | F21: =Sheet1!$M$7 -> 0 | G21: =AA77 -> 12 | H21: E | I21: 4 | J21: =Score!I44 -> 70 | K21: =LOOKUP(J21,Names!$A$2:$A$161,Names!$B$2:$B$161) -> أحمد صلاح الدين دياب | L21: 36 | M21: =Sheet1!$M$7 -> 0 | N21: =AA78 -> 11 | O21: E | P21: 4 | Q21: =Score!I48 -> 71 | R21: =LOOKUP(Q21,Names!$A$2:$A$161,Names!$B$2:$B$161) -> معتز محمد | S21: 30 | T21: =Sheet1!$M$7 -> 0 | U21: =AA79 -> 10 | V21: E | W21: 4 | X21: =Score!I52 -> 72 | Y21: =LOOKUP(X21,Names!$A$2:$A$161,Names!$B$2:$B$161) -> أحمد سمير خلف | Z21: 140 | AA21: =Sheet1!$M$7 -> 0 | AB21: =AA80 -> 9
D22: ='R1'!D22:F22 -> 13 | K22: ='R1'!K22:M22 -> 14 | R22: ='R1'!R22:T22 -> 15 | Y22: ='R1'!Y22:AA22 -> 16
D23: Names | E23: Sc. | F23: Tab | K23: Names | L23: Sc. | M23: Tab | R23: Names | S23: Sc. | T23: Tab | Y23: Names | Z23: Sc. | AA23: Tab
A24: N | B24: 1 | C24: =Score!I53 -> 13 | D24: =LOOKUP(C24,Names!$A$2:$A$161,Names!$B$2:$B$161) -> أحمد جميل السيد | E24: 142 | F24: =Sheet1!$M$4 -> 0 | G24: =F81 -> 8 | H24: N | I24: 1 | J24: =Score!I57 -> 14 | K24: =LOOKUP(J24,Names!$A$2:$A$161,Names!$B$2:$B$161) -> عماد محمد فؤاد | L24: 119 | M24: =Sheet1!$M$4 -> 0 | N24: =F82 -> 7 | O24: N | P24: 1 | Q24: =Score!I61 -> 15 | R24: =LOOKUP(Q24,Names!$A$2:$A$161,Names!$B$2:$B$161) -> أحمد رمزي الديب | S24: 172 | T24: =Sheet1!$M$4 -> 0 | U24: =F83 -> 6 | V24: N | W24: 1 | X24: =Score!I65 -> 16 | Y24: =LOOKUP(X24,Names!$A$2:$A$161,Names!$B$2:$B$161) -> عبد الرحمن سعد موسى | Z24: 58 | AA24: =Sheet1!$M$4 -> 0 | AB24: =F84 -> 5
A25: W | B25: 2 | C25: =Score!I54 -> 33 | D25: =LOOKUP(C25,Names!$A$2:$A$161,Names!$B$2:$B$161) -> أحمد بسيوني | E25: 63 | F25: =Sheet1!$M$5 -> 0 | G25: =M81 -> 8 | H25: W | I25: 2 | J25: =Score!I58 -> 34 | K25: =LOOKUP(J25,Names!$A$2:$A$161,Names!$B$2:$B$161) -> عماد الدين جمعة هلال | L25: 128 | M25: =Sheet1!$M$5 -> 0 | N25: =M82 -> 7 | O25: W | P25: 2 | Q25: =Score!I62 -> 35 | R25: =LOOKUP(Q25,Names!$A$2:$A$161,Names!$B$2:$B$161) -> عمرو عماد الدين أبوالعلا | S25: 160 | T25: =Sheet1!$M$5 -> 0 | U25: =M83 -> 6 | V25: W | W25: 2 | X25: =Score!I66 -> 36 | Y25: =LOOKUP(X25,Names!$A$2:$A$161,Names!$B$2:$B$161) -> أحمد عبد الفتاح عرفه | Z25: 128 | AA25: =Sheet1!$M$5 -> 0 | AB25: =M84 -> 5
A26: S | B26: 3 | C26: =Score!I55 -> 53 | D26: =LOOKUP(C26,Names!$A$2:$A$161,Names!$B$2:$B$161) -> أحمد محمد شوقي هيبه | E26: 72 | F26: =Sheet1!$M$6 -> 0 | G26: =T81 -> 8 | H26: S | I26: 3 | J26: =Score!I59 -> 54 | K26: =LOOKUP(J26,Names!$A$2:$A$161,Names!$B$2:$B$161) -> تامر رشاد | L26: 55 | M26: =Sheet1!$M$6 -> 0 | N26: =T82 -> 7 | O26: S | P26: 3 | Q26: =Score!I63 -> 55 | R26: =LOOKUP(Q26,Names!$A$2:$A$161,Names!$B$2:$B$161) -> ناجي بلبع | S26: 18 | T26: =Sheet1!$M$6 -> 0 | U26: =T83 -> 6 | V26: S | W26: 3 | X26: =Score!I67 -> 56 | Y26: =LOOKUP(X26,Names!$A$2:$A$161,Names!$B$2:$B$161) -> جاسر محمد | Z26: 135 | AA26: =Sheet1!$M$6 -> 0 | AB26: =T84 -> 5
A27: E | B27: 4 | C27: =Score!I56 -> 73 | D27: =LOOKUP(C27,Names!$A$2:$A$161,Names!$B$2:$B$161) -> مينا ناجح صبحي | E27: 98 | F27: =Sheet1!$M$7 -> 0 | G27: =AA81 -> 8 | H27: E | I27: 4 | J27: =Score!I60 -> 74 | K27: =LOOKUP(J27,Names!$A$2:$A$161,Names!$B$2:$B$161) -> فريدة شكري | L27: 43 | M27: =Sheet1!$M$7 -> 0 | N27: =AA82 -> 7 | O27: E | P27: 4 | Q27: =Score!I64 -> 75 | R27: =LOOKUP(Q27,Names!$A$2:$A$161,Names!$B$2:$B$161) -> محمود سليمان | S27: 37 | T27: =Sheet1!$M$7 -> 0 | U27: =AA83 -> 6 | V27: E | W27: 4 | X27: =Score!I68 -> 76 | Y27: =LOOKUP(X27,Names!$A$2:$A$161,Names!$B$2:$B$161) -> محمد إبراهيم قطب | Z27: 52 | AA27: =Sheet1!$M$7 -> 0 | AB27: =AA84 -> 5
D28: ='R1'!D28:F28 -> 17 | K28: ='R1'!K28:M28 -> 18 | R28: ='R1'!R28:T28 -> 19 | Y28: ='R1'!Y28:AA28 -> 20
D29: Names | E29: Sc. | F29: Tab | K29: Names | L29: Sc. | M29: Tab | R29: Names | S29: Sc. | T29: Tab | Y29: Names | Z29: Sc. | AA29: Tab
A30: N | B30: 1 | C30: =Score!I69 -> 17 | D30: =LOOKUP(C30,Names!$A$2:$A$161,Names!$B$2:$B$161) -> أحمد علي خليل حسن | E30: 57 | F30: =Sheet1!$M$4 -> 0 | G30: =F85 -> 4 | H30: N | I30: 1 | J30: =Score!I73 -> 18 | K30: =LOOKUP(J30,Names!$A$2:$A$161,Names!$B$2:$B$161) -> أحمد ممدوح عبد الدايم | L30: 73 | M30: =Sheet1!$M$4 -> 0 | N30: =F86 -> 3 | O30: N | P30: 1 | Q30: =Score!I77 -> 19 | R30: =LOOKUP(Q30,Names!$A$2:$A$161,Names!$B$2:$B$161) -> إبراهيم عنتر | S30: 106 | T30: =Sheet1!$M$4 -> 0 | U30: =F87 -> 2 | V30: N | W30: 1 | X30: =Score!I81 -> 20 | Y30: =LOOKUP(X30,Names!$A$2:$A$161,Names!$B$2:$B$161) -> إسلام قاسم | Z30: 146 | AA30: =Sheet1!$M$4 -> 0 | AB30: =F88 -> 1
A31: W | B31: 2 | C31: =Score!I70 -> 37 | D31: =LOOKUP(C31,Names!$A$2:$A$161,Names!$B$2:$B$161) -> حمدي محمود عبد العزيز | E31: 15 | F31: =Sheet1!$M$5 -> 0 | G31: =M85 -> 4 | H31: W | I31: 2 | J31: =Score!I74 -> 38 | K31: =LOOKUP(J31,Names!$A$2:$A$161,Names!$B$2:$B$161) -> أسامة لطفي نجيب | L31: 107 | M31: =Sheet1!$M$5 -> 0 | N31: =M86 -> 3 | O31: W | P31: 2 | Q31: =Score!I78 -> 39 | R31: =LOOKUP(Q31,Names!$A$2:$A$161,Names!$B$2:$B$161) -> إسلام أحمد السيد عمر | S31: 136 | T31: =Sheet1!$M$5 -> 0 | U31: =M87 -> 2 | V31: W | W31: 2 | X31: =Score!I82 -> 40 | Y31: =LOOKUP(X31,Names!$A$2:$A$161,Names!$B$2:$B$161) -> احمد محمود عبد الرزاق | Z31: 135 | AA31: =Sheet1!$M$5 -> 0 | AB31: =M88 -> 1
A32: S | B32: 3 | C32: =Score!I71 -> 57 | D32: =LOOKUP(C32,Names!$A$2:$A$161,Names!$B$2:$B$161) -> مصطفى كامل الشحري | E32: 85 | F32: =Sheet1!$M$6 -> 0 | G32: =T85 -> 4 | H32: S | I32: 3 | J32: =Score!I75 -> 58 | K32: =LOOKUP(J32,Names!$A$2:$A$161,Names!$B$2:$B$161) -> أحمد إبراهيم غانم | L32: 94 | M32: =Sheet1!$M$6 -> 0 | N32: =T86 -> 3 | O32: S | P32: 3 | Q32: =Score!I79 -> 59 | R32: =LOOKUP(Q32,Names!$A$2:$A$161,Names!$B$2:$B$161) -> هشام أبوغربية | S32: 162 | T32: =Sheet1!$M$6 -> 0 | U32: =T87 -> 2 | V32: S | W32: 3 | X32: =Score!I83 -> 60 | Y32: =LOOKUP(X32,Names!$A$2:$A$161,Names!$B$2:$B$161) -> عصام الدين حامد منصور | Z32: 109 | AA32: =Sheet1!$M$6 -> 0 | AB32: =T88 -> 1
A33: E | B33: 4 | C33: =Score!I72 -> 77 | D33: =LOOKUP(C33,Names!$A$2:$A$161,Names!$B$2:$B$161) -> محمد محمود شعبان | E33: 96 | F33: =Sheet1!$M$7 -> 0 | G33: =AA85 -> 4 | H33: E | I33: 4 | J33: =Score!I76 -> 78 | K33: =LOOKUP(J33,Names!$A$2:$A$161,Names!$B$2:$B$161) -> حسام الخلفاوي | L33: 115 | M33: =Sheet1!$M$7 -> 0 | N33: =AA86 -> 3 | O33: E | P33: 4 | Q33: =Score!I80 -> 79 | R33: =LOOKUP(Q33,Names!$A$2:$A$161,Names!$B$2:$B$161) -> محمد علي حسن طه الأمام | S33: 54 | T33: =Sheet1!$M$7 -> 0 | U33: =AA87 -> 2 | V33: E | W33: 4 | X33: =Score!I84 -> 80 | Y33: =LOOKUP(X33,Names!$A$2:$A$161,Names!$B$2:$B$161) -> أمن حسام | Z33: -41 | AA33: =Sheet1!$M$7 -> 0 | AB33: =AA88 -> 1
D35: ='R1'!D35:F35 -> 21 | K35: ='R1'!K35:M35 -> 22 | R35: ='R1'!R35:T35 -> 23 | Y35: ='R1'!Y35:AA35 -> 24
D36: Names | E36: Sc. | F36: Tab | K36: Names | L36: Sc. | M36: Tab | R36: Names | S36: Sc. | T36: Tab | Y36: Names | Z36: Sc. | AA36: Tab
A37: N | B37: 1 | C37: =Score!I85 -> 0 | D37: =LOOKUP(C37,Names!$A$2:$A$161,Names!$B$2:$B$161) ->  | F37: =Sheet1!$M$4 -> 0 | G37: =F89 -> 0 | H37: N | I37: 1 | J37: =Score!I89 -> 0 | K37: =LOOKUP(J37,Names!$A$2:$A$161,Names!$B$2:$B$161) ->  | M37: =Sheet1!$M$4 -> 0 | N37: =F90 -> -1 | O37: N | P37: 1 | Q37: =Score!I93 -> 0 | R37: =LOOKUP(Q37,Names!$A$2:$A$161,Names!$B$2:$B$161) ->  | T37: =Sheet1!$M$4 -> 0 | U37: =F91 -> -2 | V37: N | W37: 1 | X37: =Score!I97 -> 0 | Y37: =LOOKUP(X37,Names!$A$2:$A$161,Names!$B$2:$B$161) ->  | AA37: =Sheet1!$M$4 -> 0 | AB37: =F92 -> -3
A38: W | B38: 2 | C38: =Score!I86 -> 0 | D38: =LOOKUP(C38,Names!$A$2:$A$161,Names!$B$2:$B$161) ->  | F38: =Sheet1!$M$5 -> 0 | G38: =M89 -> 0 | H38: W | I38: 2 | J38: =Score!I90 -> 0 | K38: =LOOKUP(J38,Names!$A$2:$A$161,Names!$B$2:$B$161) ->  | M38: =Sheet1!$M$5 -> 0 | N38: =M90 -> -1 | O38: W | P38: 2 | Q38: =Score!I94 -> 0 | R38: =LOOKUP(Q38,Names!$A$2:$A$161,Names!$B$2:$B$161) ->  | T38: =Sheet1!$M$5 -> 0 | U38: =M91 -> -2 | V38: W | W38: 2 | X38: =Score!I98 -> 0 | Y38: =LOOKUP(X38,Names!$A$2:$A$161,Names!$B$2:$B$161) ->  | AA38: =Sheet1!$M$5 -> 0 | AB38: =M92 -> -3
A39: S | B39: 3 | C39: =Score!I87 -> 0 | D39: =LOOKUP(C39,Names!$A$2:$A$161,Names!$B$2:$B$161) ->  | F39: =Sheet1!$M$6 -> 0 | G39: =T89 -> 3 | H39: S | I39: 3 | J39: =Score!I91 -> 0 | K39: =LOOKUP(J39,Names!$A$2:$A$161,Names!$B$2:$B$161) ->  | M39: =Sheet1!$M$6 -> 0 | N39: =T90 -> 2 | O39: S | P39: 3 | Q39: =Score!I95 -> 0 | R39: =LOOKUP(Q39,Names!$A$2:$A$161,Names!$B$2:$B$161) ->  | T39: =Sheet1!$M$6 -> 0 | U39: =T91 -> 1 | V39: S | W39: 3 | X39: =Score!I99 -> 0 | Y39: =LOOKUP(X39,Names!$A$2:$A$161,Names!$B$2:$B$161) ->  | AA39: =Sheet1!$M$6 -> 0 | AB39: =T92 -> 0
A40: E | B40: 4 | C40: =Score!I88 -> 0 | D40: =LOOKUP(C40,Names!$A$2:$A$161,Names!$B$2:$B$161) ->  | F40: =Sheet1!$M$7 -> 0 | G40: =AA89 -> 2 | H40: E | I40: 4 | J40: =Score!I92 -> 0 | K40: =LOOKUP(J40,Names!$A$2:$A$161,Names!$B$2:$B$161) ->  | M40: =Sheet1!$M$7 -> 0 | N40: =AA90 -> 1 | O40: E | P40: 4 | Q40: =Score!I96 -> 0 | R40: =LOOKUP(Q40,Names!$A$2:$A$161,Names!$B$2:$B$161) ->  | T40: =Sheet1!$M$7 -> 0 | U40: =AA91 -> 0 | V40: E | W40: 4 | X40: =Score!I100 -> 0 | Y40: =LOOKUP(X40,Names!$A$2:$A$161,Names!$B$2:$B$161) ->  | AA40: =Sheet1!$M$7 -> 0 | AB40: =AA92 -> -1
D41: ='R1'!D41:F41 -> B1 | K41: ='R1'!K41:M41 -> B2 | R41: ='R1'!R41:T41 -> B3 | Y41: ='R1'!Y41:AA41 -> B4
D42: Names | E42: Sc. | F42: Tab | K42: Names | L42: Sc. | M42: Tab | R42: Names | S42: Sc. | T42: Tab | Y42: Names | Z42: Sc. | AA42: Tab
A43: N | B43: 1 | C43: =Score!I101 -> 0 | D43: =LOOKUP(C43,Names!$A$2:$A$161,Names!$B$2:$B$161) ->  | F43: =Sheet1!$M$4 -> 0 | G43: =F93 -> -4 | H43: N | I43: 1 | J43: =Score!I105 -> 0 | K43: =LOOKUP(J43,Names!$A$2:$A$161,Names!$B$2:$B$161) ->  | M43: =Sheet1!$M$4 -> 0 | N43: =F94 -> -5 | O43: N | P43: 1 | Q43: =Score!I109 -> 0 | R43: =LOOKUP(Q43,Names!$A$2:$A$161,Names!$B$2:$B$161) ->  | T43: =Sheet1!$M$4 -> 0 | U43: =F95 -> -6 | V43: N | W43: 1 | X43: =Score!I113 -> 88 | Y43: =LOOKUP(X43,Names!$A$2:$A$161,Names!$B$2:$B$161) -> 0 | AA43: =Sheet1!$M$4 -> 0 | AB43: =F96 -> 0
A44: W | B44: 2 | C44: =Score!I102 -> 0 | D44: =LOOKUP(C44,Names!$A$2:$A$161,Names!$B$2:$B$161) ->  | F44: =Sheet1!$M$5 -> 0 | G44: =M93 -> -4 | H44: W | I44: 2 | J44: =Score!I106 -> 0 | K44: =LOOKUP(J44,Names!$A$2:$A$161,Names!$B$2:$B$161) ->  | M44: =Sheet1!$M$5 -> 0 | N44: =M94 -> -5 | O44: W | P44: 2 | Q44: =Score!I110 -> 0 | R44: =LOOKUP(Q44,Names!$A$2:$A$161,Names!$B$2:$B$161) ->  | T44: =Sheet1!$M$5 -> 0 | U44: =M95 -> -6 | V44: W | W44: 2 | X44: =Score!I114 -> 108 | Y44: =LOOKUP(X44,Names!$A$2:$A$161,Names!$B$2:$B$161) -> 0 | AA44: =Sheet1!$M$5 -> 0 | AB44: =M96 -> 0
A45: S | B45: 3 | C45: =Score!I103 -> 0 | D45: =LOOKUP(C45,Names!$A$2:$A$161,Names!$B$2:$B$161) ->  | F45: =Sheet1!$M$6 -> 0 | G45: =T93 -> -1 | H45: S | I45: 3 | J45: =Score!I107 -> 0 | K45: =LOOKUP(J45,Names!$A$2:$A$161,Names!$B$2:$B$161) ->  | M45: =Sheet1!$M$6 -> 0 | N45: =T94 -> -2 | O45: S | P45: 3 | Q45: =Score!I111 -> 0 | R45: =LOOKUP(Q45,Names!$A$2:$A$161,Names!$B$2:$B$161) ->  | T45: =Sheet1!$M$6 -> 0 | U45: =T95 -> -3 | V45: S | W45: 3 | X45: =Score!I115 -> 128 | Y45: =LOOKUP(X45,Names!$A$2:$A$161,Names!$B$2:$B$161) -> 0 | AA45: =Sheet1!$M$6 -> 0 | AB45: =T96 -> 0
A46: E | B46: 4 | C46: =Score!I104 -> 0 | D46: =LOOKUP(C46,Names!$A$2:$A$161,Names!$B$2:$B$161) ->  | F46: =Sheet1!$M$7 -> 0 | G46: =AA93 -> -2 | H46: E | I46: 4 | J46: =Score!I108 -> 0 | K46: =LOOKUP(J46,Names!$A$2:$A$161,Names!$B$2:$B$161) ->  | M46: =Sheet1!$M$7 -> 0 | N46: =AA94 -> -3 | O46: E | P46: 4 | Q46: =Score!I112 -> 0 | R46: =LOOKUP(Q46,Names!$A$2:$A$161,Names!$B$2:$B$161) ->  | T46: =Sheet1!$M$7 -> 0 | U46: =AA95 -> -4 | V46: E | W46: 4 | X46: =Score!I116 -> 148 | Y46: =LOOKUP(X46,Names!$A$2:$A$161,Names!$B$2:$B$161) -> 0 | AA46: =Sheet1!$M$7 -> 0 | AB46: =AA96 -> 0
D47: B5 | K47: B6 | R47: B7 | Y47: B8
D48: Names | E48: Sc. | F48: Tab | K48: Names | L48: Sc. | M48: Tab | R48: Names | S48: Sc. | T48: Tab | Y48: Names | Z48: Sc. | AA48: Tab
A49: N | B49: 1 | C49: =Score!I117 -> 89 | D49: =LOOKUP(C49,Names!$A$2:$A$161,Names!$B$2:$B$161) -> 0 | F49: =Sheet1!$M$4 -> 0 | G49: =F97 -> 0 | H49: N | I49: 1 | J49: =Score!I121 -> 90 | K49: =LOOKUP(J49,Names!$A$2:$A$161,Names!$B$2:$B$161) -> 0 | M49: =Sheet1!$M$4 -> 0 | N49: =F98 -> 0 | O49: N | P49: 1 | Q49: =Score!I125 -> 91 | R49: =LOOKUP(Q49,Names!$A$2:$A$161,Names!$B$2:$B$161) -> 0 | T49: =Sheet1!$M$4 -> 0 | U49: =F99 -> 0 | V49: N | W49: 1 | X49: =Score!I129 -> 92 | Y49: =LOOKUP(X49,Names!$A$2:$A$161,Names!$B$2:$B$161) -> 0 | AA49: =Sheet1!$M$4 -> 0 | AB49: =F100 -> 0
A50: W | B50: 2 | C50: =Score!I118 -> 109 | D50: =LOOKUP(C50,Names!$A$2:$A$161,Names!$B$2:$B$161) -> 0 | F50: =Sheet1!$M$5 -> 0 | G50: =M97 -> 0 | H50: W | I50: 2 | J50: =Score!I122 -> 110 | K50: =LOOKUP(J50,Names!$A$2:$A$161,Names!$B$2:$B$161) -> 0 | M50: =Sheet1!$M$5 -> 0 | N50: =M98 -> 0 | O50: W | P50: 2 | Q50: =Score!I126 -> 111 | R50: =LOOKUP(Q50,Names!$A$2:$A$161,Names!$B$2:$B$161) -> 0 | T50: =Sheet1!$M$5 -> 0 | U50: =M99 -> 0 | V50: W | W50: 2 | X50: =Score!I130 -> 112 | Y50: =LOOKUP(X50,Names!$A$2:$A$161,Names!$B$2:$B$161) -> 0 | AA50: =Sheet1!$M$5 -> 0 | AB50: =M100 -> 0
A51: S | B51: 3 | C51: =Score!I119 -> 129 | D51: =LOOKUP(C51,Names!$A$2:$A$161,Names!$B$2:$B$161) -> 0 | F51: =Sheet1!$M$6 -> 0 | G51: =T97 -> 0 | H51: S | I51: 3 | J51: =Score!I123 -> 130 | K51: =LOOKUP(J51,Names!$A$2:$A$161,Names!$B$2:$B$161) -> 0 | M51: =Sheet1!$M$6 -> 0 | N51: =T98 -> 0 | O51: S | P51: 3 | Q51: =Score!I127 -> 131 | R51: =LOOKUP(Q51,Names!$A$2:$A$161,Names!$B$2:$B$161) -> 0 | T51: =Sheet1!$M$6 -> 0 | U51: =T99 -> 0 | V51: S | W51: 3 | X51: =Score!I131 -> 132 | Y51: =LOOKUP(X51,Names!$A$2:$A$161,Names!$B$2:$B$161) -> 0 | AA51: =Sheet1!$M$6 -> 0 | AB51: =T100 -> 0
A52: E | B52: 4 | C52: =Score!I120 -> 149 | D52: =LOOKUP(C52,Names!$A$2:$A$161,Names!$B$2:$B$161) -> 0 | F52: =Sheet1!$M$7 -> 0 | G52: =AA97 -> 0 | H52: E | I52: 4 | J52: =Score!I124 -> 150 | K52: =LOOKUP(J52,Names!$A$2:$A$161,Names!$B$2:$B$161) -> 0 | M52: =Sheet1!$M$7 -> 0 | N52: =AA98 -> 0 | O52: E | P52: 4 | Q52: =Score!I128 -> 151 | R52: =LOOKUP(Q52,Names!$A$2:$A$161,Names!$B$2:$B$161) -> 0 | T52: =Sheet1!$M$7 -> 0 | U52: =AA99 -> 0 | V52: E | W52: 4 | X52: =Score!I132 -> 152 | Y52: =LOOKUP(X52,Names!$A$2:$A$161,Names!$B$2:$B$161) -> 0 | AA52: =Sheet1!$M$7 -> 0 | AB52: =AA100 -> 0
D53: 33 | K53: 34 | R53: 35 | Y53: 36
D54: Names | E54: Sc. | F54: Tab | K54: Names | L54: Sc. | M54: Tab | R54: Names | S54: Sc. | T54: Tab | Y54: Names | Z54: Sc. | AA54: Tab
A55: N | B55: 1 | C55: =Score!I133 -> 93 | D55: =LOOKUP(C55,Names!$A$2:$A$161,Names!$B$2:$B$161) -> 0 | F55: =Sheet1!$M$4 -> 0 | G55: =F101 -> 0 | H55: N | I55: 1 | J55: =Score!I137 -> 94 | K55: =LOOKUP(J55,Names!$A$2:$A$161,Names!$B$2:$B$161) -> 0 | M55: =Sheet1!$M$4 -> 0 | N55: =F102 -> 0 | O55: N | P55: 1 | Q55: =Score!I141 -> 95 | R55: =LOOKUP(Q55,Names!$A$2:$A$161,Names!$B$2:$B$161) -> 0 | T55: =Sheet1!$M$4 -> 0 | U55: =F103 -> 0 | V55: N | W55: 1 | X55: =Score!I145 -> 96 | Y55: =LOOKUP(X55,Names!$A$2:$A$161,Names!$B$2:$B$161) -> 0 | AA55: =Sheet1!$M$4 -> 0 | AB55: =F104 -> 0
A56: W | B56: 2 | C56: =Score!I134 -> 113 | D56: =LOOKUP(C56,Names!$A$2:$A$161,Names!$B$2:$B$161) -> 0 | F56: =Sheet1!$M$5 -> 0 | G56: =M101 -> 0 | H56: W | I56: 2 | J56: =Score!I138 -> 114 | K56: =LOOKUP(J56,Names!$A$2:$A$161,Names!$B$2:$B$161) -> 0 | M56: =Sheet1!$M$5 -> 0 | N56: =M102 -> 0 | O56: W | P56: 2 | Q56: =Score!I142 -> 115 | R56: =LOOKUP(Q56,Names!$A$2:$A$161,Names!$B$2:$B$161) -> 0 | T56: =Sheet1!$M$5 -> 0 | U56: =M103 -> 0 | V56: W | W56: 2 | X56: =Score!I146 -> 116 | Y56: =LOOKUP(X56,Names!$A$2:$A$161,Names!$B$2:$B$161) -> 0 | AA56: =Sheet1!$M$5 -> 0 | AB56: =M104 -> 0
A57: S | B57: 3 | C57: =Score!I135 -> 133 | D57: =LOOKUP(C57,Names!$A$2:$A$161,Names!$B$2:$B$161) -> 0 | F57: =Sheet1!$M$6 -> 0 | G57: =T101 -> 0 | H57: S | I57: 3 | J57: =Score!I139 -> 134 | K57: =LOOKUP(J57,Names!$A$2:$A$161,Names!$B$2:$B$161) -> 0 | M57: =Sheet1!$M$6 -> 0 | N57: =T102 -> 0 | O57: S | P57: 3 | Q57: =Score!I143 -> 135 | R57: =LOOKUP(Q57,Names!$A$2:$A$161,Names!$B$2:$B$161) -> 0 | T57: =Sheet1!$M$6 -> 0 | U57: =T103 -> 0 | V57: S | W57: 3 | X57: =Score!I147 -> 136 | Y57: =LOOKUP(X57,Names!$A$2:$A$161,Names!$B$2:$B$161) -> 0 | AA57: =Sheet1!$M$6 -> 0 | AB57: =T104 -> 0
A58: E | B58: 4 | C58: =Score!I136 -> 153 | D58: =LOOKUP(C58,Names!$A$2:$A$161,Names!$B$2:$B$161) -> 0 | F58: =Sheet1!$M$7 -> 0 | G58: =AA101 -> 0 | H58: E | I58: 4 | J58: =Score!I140 -> 154 | K58: =LOOKUP(J58,Names!$A$2:$A$161,Names!$B$2:$B$161) -> 0 | M58: =Sheet1!$M$7 -> 0 | N58: =AA102 -> 0 | O58: E | P58: 4 | Q58: =Score!I144 -> 155 | R58: =LOOKUP(Q58,Names!$A$2:$A$161,Names!$B$2:$B$161) -> 0 | T58: =Sheet1!$M$7 -> 0 | U58: =AA103 -> 0 | V58: E | W58: 4 | X58: =Score!I148 -> 156 | Y58: =LOOKUP(X58,Names!$A$2:$A$161,Names!$B$2:$B$161) -> 0 | AA58: =Sheet1!$M$7 -> 0 | AB58: =AA104 -> 0
D59: 37 | K59: 38 | R59: 39 | Y59: 40
D60: Names | E60: Sc. | F60: Tab | K60: Names | L60: Sc. | M60: Tab | R60: Names | S60: Sc. | T60: Tab | Y60: Names | Z60: Sc. | AA60: Tab
A61: N | B61: 1 | C61: =Score!I149 -> 97 | D61: =LOOKUP(C61,Names!$A$2:$A$161,Names!$B$2:$B$161) -> 0 | F61: =Sheet1!$M$4 -> 0 | G61: =F105 -> 0 | H61: N | I61: 1 | J61: =Score!I153 -> 98 | K61: =LOOKUP(J61,Names!$A$2:$A$161,Names!$B$2:$B$161) -> 0 | M61: =Sheet1!$M$4 -> 0 | N61: =F106 -> 0 | O61: N | P61: 1 | Q61: =Score!I157 -> 99 | R61: =LOOKUP(Q61,Names!$A$2:$A$161,Names!$B$2:$B$161) -> 0 | T61: =Sheet1!$M$4 -> 0 | U61: =F107 -> 0 | V61: N | W61: 1 | X61: =Score!I161 -> 100 | Y61: =LOOKUP(X61,Names!$A$2:$A$161,Names!$B$2:$B$161) -> 0 | AA61: =Sheet1!$M$4 -> 0 | AB61: =F108 -> 0
A62: W | B62: 2 | C62: =Score!I150 -> 117 | D62: =LOOKUP(C62,Names!$A$2:$A$161,Names!$B$2:$B$161) -> 0 | F62: =Sheet1!$M$5 -> 0 | G62: =M105 -> 0 | H62: W | I62: 2 | J62: =Score!I154 -> 118 | K62: =LOOKUP(J62,Names!$A$2:$A$161,Names!$B$2:$B$161) -> 0 | M62: =Sheet1!$M$5 -> 0 | N62: =M106 -> 0 | O62: W | P62: 2 | Q62: =Score!I158 -> 119 | R62: =LOOKUP(Q62,Names!$A$2:$A$161,Names!$B$2:$B$161) -> 0 | T62: =Sheet1!$M$5 -> 0 | U62: =M107 -> 0 | V62: W | W62: 2 | X62: =Score!I162 -> 120 | Y62: =LOOKUP(X62,Names!$A$2:$A$161,Names!$B$2:$B$161) -> 0 | AA62: =Sheet1!$M$5 -> 0 | AB62: =M108 -> 0
A63: S | B63: 3 | C63: =Score!I151 -> 137 | D63: =LOOKUP(C63,Names!$A$2:$A$161,Names!$B$2:$B$161) -> 0 | F63: =Sheet1!$M$6 -> 0 | G63: =T105 -> 0 | H63: S | I63: 3 | J63: =Score!I155 -> 138 | K63: =LOOKUP(J63,Names!$A$2:$A$161,Names!$B$2:$B$161) -> 0 | M63: =Sheet1!$M$6 -> 0 | N63: =T106 -> 0 | O63: S | P63: 3 | Q63: =Score!I159 -> 139 | R63: =LOOKUP(Q63,Names!$A$2:$A$161,Names!$B$2:$B$161) -> 0 | T63: =Sheet1!$M$6 -> 0 | U63: =T107 -> 0 | V63: S | W63: 3 | X63: =Score!I163 -> 140 | Y63: =LOOKUP(X63,Names!$A$2:$A$161,Names!$B$2:$B$161) -> 0 | AA63: =Sheet1!$M$6 -> 0 | AB63: =T108 -> 0
A64: E | B64: 4 | C64: =Score!I152 -> 157 | D64: =LOOKUP(C64,Names!$A$2:$A$161,Names!$B$2:$B$161) -> 0 | F64: =Sheet1!$M$7 -> 0 | G64: =AA105 -> 0 | H64: E | I64: 4 | J64: =Score!I156 -> 158 | K64: =LOOKUP(J64,Names!$A$2:$A$161,Names!$B$2:$B$161) -> 0 | M64: =Sheet1!$M$7 -> 0 | N64: =AA106 -> 0 | O64: E | P64: 4 | Q64: =Score!I160 -> 159 | R64: =LOOKUP(Q64,Names!$A$2:$A$161,Names!$B$2:$B$161) -> 0 | T64: =Sheet1!$M$7 -> 0 | U64: =AA107 -> 0 | V64: E | W64: 4 | X64: =Score!I164 -> 160 | Y64: =LOOKUP(X64,Names!$A$2:$A$161,Names!$B$2:$B$161) -> 0 | AA64: =Sheet1!$M$7 -> 0 | AB64: =AA108 -> 0
K66: Axe
D67: North | K67: West | R67: South | Y67: East
D68: Names | E68: Sc. | F68: Axe | K68: Names | L68: Sc. | M68: Axe | R68: Names | S68: Sc. | T68: Axe | Y68: Names | Z68: Sc. | AA68: Axe
A69: 1 | B69: 1 | C69: =$C$6 -> 1 | D69: =LOOKUP(C69,Names!$A$2:$A$161,Names!$B$2:$B$161) -> راجي صبحي | E69: =$E$6 -> 47 | F69: =Sheet1!L3 -> 21 | I69: 1 | J69: =$C$7 -> 21 | K69: =LOOKUP(J69,Names!$A$2:$A$161,Names!$B$2:$B$161) -> أحمد محمد حمدي صالح | L69: =$E$7 -> 112 | M69: =Sheet1!L3 -> 21 | P69: 1 | Q69: =$C$8 -> 41 | R69: =LOOKUP(Q69,Names!$A$2:$A$161,Names!$B$2:$B$161) -> خالد مصطفى عزت | S69: =$E$8 -> 97 | T69: =Sheet1!L3 -> 21 | W69: 1 | X69: =$C$9 -> 61 | Y69: =LOOKUP(X69,Names!$A$2:$A$161,Names!$B$2:$B$161) -> كريم إيهاب عامر | Z69: =$E$9 -> 116 | AA69: =Sheet1!L3 -> 21
A70: 2 | B70: 2 | C70: =$J$6 -> 2 | D70: =LOOKUP(C70,Names!$A$2:$A$161,Names!$B$2:$B$161) -> شريف أحمد محمد حمروش | E70: =$L$6 -> 51 | F70: =Sheet1!L4 -> 19 | I70: 2 | J70: =$J$7 -> 22 | K70: =LOOKUP(J70,Names!$A$2:$A$161,Names!$B$2:$B$161) -> طه إبراهيم طه | L70: =$L$7 -> 151 | M70: =Sheet1!L4 -> 19 | P70: 2 | Q70: =$J$8 -> 42 | R70: =LOOKUP(Q70,Names!$A$2:$A$161,Names!$B$2:$B$161) -> محمد عبد الهادي أبو القاسم | S70: =$L$8 -> 119 | T70: =Sheet1!L4 -> 19 | W70: 2 | X70: =$J$9 -> 62 | Y70: =LOOKUP(X70,Names!$A$2:$A$161,Names!$B$2:$B$161) -> محمد محمود مسعود | Z70: =$L$9 -> 78 | AA70: =Sheet1!L4 -> 19
A71: 3 | B71: 3 | C71: =$Q$6 -> 3 | D71: =LOOKUP(C71,Names!$A$2:$A$161,Names!$B$2:$B$161) -> إيهاب يوسف عمارة | E71: =$S$6 -> 108 | F71: =Sheet1!L5 -> 18 | I71: 3 | J71: =$Q$7 -> 23 | K71: =LOOKUP(J71,Names!$A$2:$A$161,Names!$B$2:$B$161) -> مصطفى يوسف محمد | L71: =$S$7 -> 69 | M71: =Sheet1!L5 -> 18 | P71: 3 | Q71: =$Q$8 -> 43 | R71: =LOOKUP(Q71,Names!$A$2:$A$161,Names!$B$2:$B$161) -> أمير محمد خطاب | S71: =$S$8 -> 49 | T71: =Sheet1!L5 -> 18 | W71: 3 | X71: =$Q$9 -> 63 | Y71: =LOOKUP(X71,Names!$A$2:$A$161,Names!$B$2:$B$161) -> محمد أحمد محمد عبد الله | Z71: =$S$9 -> 102 | AA71: =Sheet1!L5 -> 18
A72: 4 | B72: 4 | C72: =$X$6 -> 4 | D72: =LOOKUP(C72,Names!$A$2:$A$161,Names!$B$2:$B$161) -> محمد سعيد الفطاطري | E72: =$Z$6 -> 190 | F72: =Sheet1!L6 -> 17 | I72: 4 | J72: =$X$7 -> 24 | K72: =LOOKUP(J72,Names!$A$2:$A$161,Names!$B$2:$B$161) -> هيثم محمد شبانة | L72: =$Z$7 -> 134 | M72: =Sheet1!L6 -> 17 | P72: 4 | Q72: =$X$8 -> 44 | R72: =LOOKUP(Q72,Names!$A$2:$A$161,Names!$B$2:$B$161) -> جمال السيد توفيق محمد | S72: =$Z$8 -> 22 | T72: =Sheet1!L6 -> 17 | W72: 4 | X72: =$X$9 -> 64 | Y72: =LOOKUP(X72,Names!$A$2:$A$161,Names!$B$2:$B$161) -> وليد شعبان إسماعيل علي | Z72: =$Z$9 -> -8 | AA72: =Sheet1!L6 -> 17
A73: 5 | B73: 5 | C73: =$C$12 -> 5 | D73: =LOOKUP(C73,Names!$A$2:$A$161,Names!$B$2:$B$161) -> محمد عصام الدين القاضي | E73: =$E$12 -> 118 | F73: =Sheet1!L7 -> 16 | I73: 5 | J73: =$C$13 -> 25 | K73: =LOOKUP(J73,Names!$A$2:$A$161,Names!$B$2:$B$161) -> خالد شباره | L73: =$E$13 -> 160 | M73: =Sheet1!L7 -> 16 | P73: 5 | Q73: =$C$14 -> 45 | R73: =LOOKUP(Q73,Names!$A$2:$A$161,Names!$B$2:$B$161) -> رضا هنري | S73: =$E$14 -> -12 | T73: =Sheet1!L7 -> 16 | W73: 5 | X73: =$C$15 -> 65 | Y73: =LOOKUP(X73,Names!$A$2:$A$161,Names!$B$2:$B$161) -> أحمد طارق | Z73: =$E$15 -> 83 | AA73: =Sheet1!L7 -> 16
A74: 6 | B74: 6 | C74: =$J$12 -> 6 | D74: =LOOKUP(C74,Names!$A$2:$A$161,Names!$B$2:$B$161) -> إبراهيم عرفان السقا | E74: =$L$12 -> 142 | F74: =Sheet1!L8 -> 15 | I74: 6 | J74: =$J$13 -> 26 | K74: =LOOKUP(J74,Names!$A$2:$A$161,Names!$B$2:$B$161) -> أحمد الطنطاوي | L74: =$L$13 -> 126 | M74: =Sheet1!L8 -> 15 | P74: 6 | Q74: =$J$14 -> 46 | R74: =LOOKUP(Q74,Names!$A$2:$A$161,Names!$B$2:$B$161) -> علاء شوقي جبريل | S74: =$L$14 -> -30 | T74: =Sheet1!L8 -> 15 | W74: 6 | X74: =$J$15 -> 66 | Y74: =LOOKUP(X74,Names!$A$2:$A$161,Names!$B$2:$B$161) -> أحمد فؤاد حسنين | Z74: =$L$15 -> 140 | AA74: =Sheet1!L8 -> 15
A75: 7 | B75: 7 | C75: =$Q$12 -> 7 | D75: =LOOKUP(C75,Names!$A$2:$A$161,Names!$B$2:$B$161) -> باسم أسحق صموائيل | E75: =$S$12 -> 112 | F75: =Sheet1!L9 -> 14 | I75: 7 | J75: =$Q$13 -> 27 | K75: =LOOKUP(J75,Names!$A$2:$A$161,Names!$B$2:$B$161) -> سمير الحوفي | L75: =$S$13 -> 70 | M75: =Sheet1!L9 -> 14 | P75: 7 | Q75: =$Q$14 -> 47 | R75: =LOOKUP(Q75,Names!$A$2:$A$161,Names!$B$2:$B$161) -> هاني فكري المراكبي | S75: =$S$14 -> 177 | T75: =Sheet1!L9 -> 14 | W75: 7 | X75: =$Q$15 -> 67 | Y75: =LOOKUP(X75,Names!$A$2:$A$161,Names!$B$2:$B$161) -> محمد محمود فضل | Z75: =$S$15 -> 73 | AA75: =Sheet1!L9 -> 14
A76: 8 | B76: 8 | C76: =$X$12 -> 8 | D76: =LOOKUP(C76,Names!$A$2:$A$161,Names!$B$2:$B$161) -> إيهاب محمد الزهيري | E76: =$Z$12 -> 93 | F76: =Sheet1!L10 -> 13 | I76: 8 | J76: =$X$13 -> 28 | K76: =LOOKUP(J76,Names!$A$2:$A$161,Names!$B$2:$B$161) -> عمرو محسن فرج | L76: =$Z$13 -> 55 | M76: =Sheet1!L10 -> 13 | P76: 8 | Q76: =$X$14 -> 48 | R76: =LOOKUP(Q76,Names!$A$2:$A$161,Names!$B$2:$B$161) -> محمد ناجي زاهر بلبع | S76: =$Z$14 -> 119 | T76: =Sheet1!L10 -> 13 | W76: 8 | X76: =$X$15 -> 68 | Y76: =LOOKUP(X76,Names!$A$2:$A$161,Names!$B$2:$B$161) -> مصطفى إسماعيل | Z76: =$Z$15 -> 113 | AA76: =Sheet1!L10 -> 13
A77: 9 | B77: 9 | C77: =$C$18 -> 9 | D77: =LOOKUP(C77,Names!$A$2:$A$161,Names!$B$2:$B$161) -> رأفت الصياد | E77: =$E$18 -> 83 | F77: =Sheet1!L11 -> 12 | I77: 9 | J77: =$C$19 -> 29 | K77: =LOOKUP(J77,Names!$A$2:$A$161,Names!$B$2:$B$161) -> عبد الرحمن عثمان | L77: =$E$19 -> 114 | M77: =Sheet1!L11 -> 12 | P77: 9 | Q77: =$C$20 -> 49 | R77: =LOOKUP(Q77,Names!$A$2:$A$161,Names!$B$2:$B$161) -> هيثم العشماوي | S77: =$E$20 -> 78 | T77: =Sheet1!L11 -> 12 | W77: 9 | X77: =$C$21 -> 69 | Y77: =LOOKUP(X77,Names!$A$2:$A$161,Names!$B$2:$B$161) -> أحمد علي السيد شرع | Z77: =$E$21 -> 136 | AA77: =Sheet1!L11 -> 12
A78: 10 | B78: 10 | C78: =$J$18 -> 10 | D78: =LOOKUP(C78,Names!$A$2:$A$161,Names!$B$2:$B$161) -> نبيل خلف زكي حسنين | E78: =$L$18 -> 164 | F78: =Sheet1!L12 -> 11 | I78: 10 | J78: =$J$19 -> 30 | K78: =LOOKUP(J78,Names!$A$2:$A$161,Names!$B$2:$B$161) -> شريف جلال سماحة | L78: =$L$19 -> 216 | M78: =Sheet1!L12 -> 11 | P78: 10 | Q78: =$J$20 -> 50 | R78: =LOOKUP(Q78,Names!$A$2:$A$161,Names!$B$2:$B$161) -> فادي ناجح | S78: =$L$20 -> -7 | T78: =Sheet1!L12 -> 11 | W78: 10 | X78: =$J$21 -> 70 | Y78: =LOOKUP(X78,Names!$A$2:$A$161,Names!$B$2:$B$161) -> أحمد صلاح الدين دياب | Z78: =$L$21 -> 36 | AA78: =Sheet1!L12 -> 11
A79: 11 | B79: 11 | C79: =$Q$18 -> 11 | D79: =LOOKUP(C79,Names!$A$2:$A$161,Names!$B$2:$B$161) -> معتز محمد مدبولي | E79: =$S$18 -> 103 | F79: =Sheet1!L13 -> 10 | I79: 11 | J79: =$Q$19 -> 31 | K79: =LOOKUP(J79,Names!$A$2:$A$161,Names!$B$2:$B$161) -> ماجد محمد فكري | L79: =$S$19 -> 151 | M79: =Sheet1!L13 -> 10 | P79: 11 | Q79: =$Q$20 -> 51 | R79: =LOOKUP(Q79,Names!$A$2:$A$161,Names!$B$2:$B$161) -> أحمد أحمد مرسي عبد الله | S79: =$S$20 -> 121 | T79: =Sheet1!L13 -> 10 | W79: 11 | X79: =$Q$21 -> 71 | Y79: =LOOKUP(X79,Names!$A$2:$A$161,Names!$B$2:$B$161) -> معتز محمد | Z79: =$S$21 -> 30 | AA79: =Sheet1!L13 -> 10
A80: 12 | B80: 12 | C80: =$X$18 -> 12 | D80: =LOOKUP(C80,Names!$A$2:$A$161,Names!$B$2:$B$161) -> أمير كمال جميل | E80: =$Z$18 -> 67 | F80: =Sheet1!L14 -> 9 | I80: 12 | J80: =$X$19 -> 32 | K80: =LOOKUP(J80,Names!$A$2:$A$161,Names!$B$2:$B$161) -> حمزة أحمد محمد | L80: =$Z$19 -> 130 | M80: =Sheet1!L14 -> 9 | P80: 12 | Q80: =$X$20 -> 52 | R80: =LOOKUP(Q80,Names!$A$2:$A$161,Names!$B$2:$B$161) -> يامن محمد حسن | S80: =$Z$20 -> 61 | T80: =Sheet1!L14 -> 9 | W80: 12 | X80: =$X$21 -> 72 | Y80: =LOOKUP(X80,Names!$A$2:$A$161,Names!$B$2:$B$161) -> أحمد سمير خلف | Z80: =$Z$21 -> 140 | AA80: =Sheet1!L14 -> 9
A81: 13 | B81: 13 | C81: =$C$24 -> 13 | D81: =LOOKUP(C81,Names!$A$2:$A$161,Names!$B$2:$B$161) -> أحمد جميل السيد | E81: =$E$24 -> 142 | F81: =Sheet1!L15 -> 8 | I81: 13 | J81: =$C$25 -> 33 | K81: =LOOKUP(J81,Names!$A$2:$A$161,Names!$B$2:$B$161) -> أحمد بسيوني | L81: =$E$25 -> 63 | M81: =Sheet1!L15 -> 8 | P81: 13 | Q81: =$C$26 -> 53 | R81: =LOOKUP(Q81,Names!$A$2:$A$161,Names!$B$2:$B$161) -> أحمد محمد شوقي هيبه | S81: =$E$26 -> 72 | T81: =Sheet1!L15 -> 8 | W81: 13 | X81: =$C$27 -> 73 | Y81: =LOOKUP(X81,Names!$A$2:$A$161,Names!$B$2:$B$161) -> مينا ناجح صبحي | Z81: =$E$27 -> 98 | AA81: =Sheet1!L15 -> 8
A82: 14 | B82: 14 | C82: =$J$24 -> 14 | D82: =LOOKUP(C82,Names!$A$2:$A$161,Names!$B$2:$B$161) -> عماد محمد فؤاد | E82: =$L$24 -> 119 | F82: =Sheet1!L16 -> 7 | I82: 14 | J82: =$J$25 -> 34 | K82: =LOOKUP(J82,Names!$A$2:$A$161,Names!$B$2:$B$161) -> عماد الدين جمعة هلال | L82: =$L$25 -> 128 | M82: =Sheet1!L16 -> 7 | P82: 14 | Q82: =$J$26 -> 54 | R82: =LOOKUP(Q82,Names!$A$2:$A$161,Names!$B$2:$B$161) -> تامر رشاد | S82: =$L$26 -> 55 | T82: =Sheet1!L16 -> 7 | W82: 14 | X82: =$J$27 -> 74 | Y82: =LOOKUP(X82,Names!$A$2:$A$161,Names!$B$2:$B$161) -> فريدة شكري | Z82: =$L$27 -> 43 | AA82: =Sheet1!L16 -> 7
A83: 15 | B83: 15 | C83: =$Q$24 -> 15 | D83: =LOOKUP(C83,Names!$A$2:$A$161,Names!$B$2:$B$161) -> أحمد رمزي الديب | E83: =$S$24 -> 172 | F83: =Sheet1!L17 -> 6 | I83: 15 | J83: =$Q$25 -> 35 | K83: =LOOKUP(J83,Names!$A$2:$A$161,Names!$B$2:$B$161) -> عمرو عماد الدين أبوالعلا | L83: =$S$25 -> 160 | M83: =Sheet1!L17 -> 6 | P83: 15 | Q83: =$Q$26 -> 55 | R83: =LOOKUP(Q83,Names!$A$2:$A$161,Names!$B$2:$B$161) -> ناجي بلبع | S83: =$S$26 -> 18 | T83: =Sheet1!L17 -> 6 | W83: 15 | X83: =$Q$27 -> 75 | Y83: =LOOKUP(X83,Names!$A$2:$A$161,Names!$B$2:$B$161) -> محمود سليمان | Z83: =$S$27 -> 37 | AA83: =Sheet1!L17 -> 6
A84: 16 | B84: 16 | C84: =$X$24 -> 16 | D84: =LOOKUP(C84,Names!$A$2:$A$161,Names!$B$2:$B$161) -> عبد الرحمن سعد موسى | E84: =$Z$24 -> 58 | F84: =Sheet1!L18 -> 5 | I84: 16 | J84: =$X$25 -> 36 | K84: =LOOKUP(J84,Names!$A$2:$A$161,Names!$B$2:$B$161) -> أحمد عبد الفتاح عرفه | L84: =$Z$25 -> 128 | M84: =Sheet1!L18 -> 5 | P84: 16 | Q84: =$X$26 -> 56 | R84: =LOOKUP(Q84,Names!$A$2:$A$161,Names!$B$2:$B$161) -> جاسر محمد | S84: =$Z$26 -> 135 | T84: =Sheet1!L18 -> 5 | W84: 16 | X84: =$X$27 -> 76 | Y84: =LOOKUP(X84,Names!$A$2:$A$161,Names!$B$2:$B$161) -> محمد إبراهيم قطب | Z84: =$Z$27 -> 52 | AA84: =Sheet1!L18 -> 5
A85: 17 | B85: 17 | C85: =$C$30 -> 17 | D85: =LOOKUP(C85,Names!$A$2:$A$161,Names!$B$2:$B$161) -> أحمد علي خليل حسن | E85: =$E$30 -> 57 | F85: =Sheet1!L19 -> 4 | I85: 17 | J85: =$C$31 -> 37 | K85: =LOOKUP(J85,Names!$A$2:$A$161,Names!$B$2:$B$161) -> حمدي محمود عبد العزيز | L85: =$E$31 -> 15 | M85: =Sheet1!L19 -> 4 | P85: 17 | Q85: =$C$32 -> 57 | R85: =LOOKUP(Q85,Names!$A$2:$A$161,Names!$B$2:$B$161) -> مصطفى كامل الشحري | S85: =$E$32 -> 85 | T85: =Sheet1!L19 -> 4 | W85: 17 | X85: =$C$33 -> 77 | Y85: =LOOKUP(X85,Names!$A$2:$A$161,Names!$B$2:$B$161) -> محمد محمود شعبان | Z85: =$E$33 -> 96 | AA85: =Sheet1!L19 -> 4
A86: 18 | B86: 18 | C86: =$J$30 -> 18 | D86: =LOOKUP(C86,Names!$A$2:$A$161,Names!$B$2:$B$161) -> أحمد ممدوح عبد الدايم | E86: =$L$30 -> 73 | F86: =Sheet1!L20 -> 3 | I86: 18 | J86: =$J$31 -> 38 | K86: =LOOKUP(J86,Names!$A$2:$A$161,Names!$B$2:$B$161) -> أسامة لطفي نجيب | L86: =$L$31 -> 107 | M86: =Sheet1!L20 -> 3 | P86: 18 | Q86: =$J$32 -> 58 | R86: =LOOKUP(Q86,Names!$A$2:$A$161,Names!$B$2:$B$161) -> أحمد إبراهيم غانم | S86: =$L$32 -> 94 | T86: =Sheet1!L20 -> 3 | W86: 18 | X86: =$J$33 -> 78 | Y86: =LOOKUP(X86,Names!$A$2:$A$161,Names!$B$2:$B$161) -> حسام الخلفاوي | Z86: =$L$33 -> 115 | AA86: =Sheet1!L20 -> 3
A87: 19 | B87: 19 | C87: =$Q$30 -> 19 | D87: =LOOKUP(C87,Names!$A$2:$A$161,Names!$B$2:$B$161) -> إبراهيم عنتر | E87: =$S$30 -> 106 | F87: =Sheet1!L21 -> 2 | I87: 19 | J87: =$Q$31 -> 39 | K87: =LOOKUP(J87,Names!$A$2:$A$161,Names!$B$2:$B$161) -> إسلام أحمد السيد عمر | L87: =$S$31 -> 136 | M87: =Sheet1!L21 -> 2 | P87: 19 | Q87: =$Q$32 -> 59 | R87: =LOOKUP(Q87,Names!$A$2:$A$161,Names!$B$2:$B$161) -> هشام أبوغربية | S87: =$S$32 -> 162 | T87: =Sheet1!L21 -> 2 | W87: 19 | X87: =$Q$33 -> 79 | Y87: =LOOKUP(X87,Names!$A$2:$A$161,Names!$B$2:$B$161) -> محمد علي حسن طه الأمام | Z87: =$S$33 -> 54 | AA87: =Sheet1!L21 -> 2
A88: 20 | B88: 20 | C88: =$X$30 -> 20 | D88: =LOOKUP(C88,Names!$A$2:$A$161,Names!$B$2:$B$161) -> إسلام قاسم | E88: =$Z$30 -> 146 | F88: =Sheet1!L22 -> 1 | I88: 20 | J88: =$X$31 -> 40 | K88: =LOOKUP(J88,Names!$A$2:$A$161,Names!$B$2:$B$161) -> احمد محمود عبد الرزاق | L88: =$Z$31 -> 135 | M88: =Sheet1!L22 -> 1 | P88: 20 | Q88: =$X$32 -> 60 | R88: =LOOKUP(Q88,Names!$A$2:$A$161,Names!$B$2:$B$161) -> عصام الدين حامد منصور | S88: =$Z$32 -> 109 | T88: =Sheet1!L22 -> 1 | W88: 20 | X88: =$X$33 -> 80 | Y88: =LOOKUP(X88,Names!$A$2:$A$161,Names!$B$2:$B$161) -> أمن حسام | Z88: =$Z$33 -> -41 | AA88: =Sheet1!L22 -> 1
A89: 21 | B89: 21 | C89: =$C$37 -> 0 | D89: =LOOKUP(C89,Names!$A$2:$A$161,Names!$B$2:$B$161) ->  | E89: =$E$37 -> 0 | F89: =Sheet1!L23 -> 0 | I89: 21 | J89: =$C$38 -> 0 | K89: =LOOKUP(J89,Names!$A$2:$A$161,Names!$B$2:$B$161) ->  | L89: =$E$38 -> 0 | M89: =Sheet1!L23 -> 0 | P89: 21 | Q89: =$C$39 -> 0 | R89: =LOOKUP(Q89,Names!$A$2:$A$161,Names!$B$2:$B$161) ->  | S89: =$E$39 -> 0 | T89: =Sheet1!L20 -> 3 | W89: 21 | X89: =$C$40 -> 0 | Y89: =LOOKUP(X89,Names!$A$2:$A$161,Names!$B$2:$B$161) ->  | Z89: =$E$40 -> 0 | AA89: =Sheet1!L21 -> 2
A90: 22 | B90: 22 | C90: =$J$37 -> 0 | D90: =LOOKUP(C90,Names!$A$2:$A$161,Names!$B$2:$B$161) ->  | E90: =$L$37 -> 0 | F90: =Sheet1!L24 -> -1 | I90: 22 | J90: =$J$38 -> 0 | K90: =LOOKUP(J90,Names!$A$2:$A$161,Names!$B$2:$B$161) ->  | L90: =$L$38 -> 0 | M90: =Sheet1!L24 -> -1 | P90: 22 | Q90: =$J$39 -> 0 | R90: =LOOKUP(Q90,Names!$A$2:$A$161,Names!$B$2:$B$161) ->  | S90: =$L$39 -> 0 | T90: =Sheet1!L21 -> 2 | W90: 22 | X90: =$J$40 -> 0 | Y90: =LOOKUP(X90,Names!$A$2:$A$161,Names!$B$2:$B$161) ->  | Z90: =$L$40 -> 0 | AA90: =Sheet1!L22 -> 1
A91: 23 | B91: 23 | C91: =$Q$37 -> 0 | D91: =LOOKUP(C91,Names!$A$2:$A$161,Names!$B$2:$B$161) ->  | E91: =$S$37 -> 0 | F91: =Sheet1!L25 -> -2 | I91: 23 | J91: =$Q$38 -> 0 | K91: =LOOKUP(J91,Names!$A$2:$A$161,Names!$B$2:$B$161) ->  | L91: =$S$38 -> 0 | M91: =Sheet1!L25 -> -2 | P91: 23 | Q91: =$Q$39 -> 0 | R91: =LOOKUP(Q91,Names!$A$2:$A$161,Names!$B$2:$B$161) ->  | S91: =$S$39 -> 0 | T91: =Sheet1!L22 -> 1 | W91: 23 | X91: =$Q$40 -> 0 | Y91: =LOOKUP(X91,Names!$A$2:$A$161,Names!$B$2:$B$161) ->  | Z91: =$S$40 -> 0 | AA91: =Sheet1!L23 -> 0
A92: 24 | B92: 24 | C92: =$X$37 -> 0 | D92: =LOOKUP(C92,Names!$A$2:$A$161,Names!$B$2:$B$161) ->  | E92: =$Z$37 -> 0 | F92: =Sheet1!L26 -> -3 | I92: 24 | J92: =$X$38 -> 0 | K92: =LOOKUP(J92,Names!$A$2:$A$161,Names!$B$2:$B$161) ->  | L92: =$Z$38 -> 0 | M92: =Sheet1!L26 -> -3 | P92: 24 | Q92: =$X$39 -> 0 | R92: =LOOKUP(Q92,Names!$A$2:$A$161,Names!$B$2:$B$161) ->  | S92: =$Z$39 -> 0 | T92: =Sheet1!L23 -> 0 | W92: 24 | X92: =$X$40 -> 0 | Y92: =LOOKUP(X92,Names!$A$2:$A$161,Names!$B$2:$B$161) ->  | Z92: =$Z$40 -> 0 | AA92: =Sheet1!L24 -> -1
A93: 25 | B93: 25 | C93: =$C$43 -> 0 | D93: =LOOKUP(C93,Names!$A$2:$A$161,Names!$B$2:$B$161) ->  | E93: =$E$43 -> 0 | F93: =Sheet1!L27 -> -4 | I93: 25 | J93: =$C$44 -> 0 | K93: =LOOKUP(J93,Names!$A$2:$A$161,Names!$B$2:$B$161) ->  | L93: =$E$44 -> 0 | M93: =Sheet1!L27 -> -4 | P93: 25 | Q93: =$C$45 -> 0 | R93: =LOOKUP(Q93,Names!$A$2:$A$161,Names!$B$2:$B$161) ->  | S93: =$E$45 -> 0 | T93: =Sheet1!L24 -> -1 | W93: 25 | X93: =$C$46 -> 0 | Y93: =LOOKUP(X93,Names!$A$2:$A$161,Names!$B$2:$B$161) ->  | Z93: =$E$46 -> 0 | AA93: =Sheet1!L25 -> -2
A94: 26 | B94: 26 | C94: =$J$43 -> 0 | D94: =LOOKUP(C94,Names!$A$2:$A$161,Names!$B$2:$B$161) ->  | E94: =$L$43 -> 0 | F94: =Sheet1!L28 -> -5 | I94: 26 | J94: =$J$44 -> 0 | K94: =LOOKUP(J94,Names!$A$2:$A$161,Names!$B$2:$B$161) ->  | L94: =$L$44 -> 0 | M94: =Sheet1!L28 -> -5 | P94: 26 | Q94: =$J$45 -> 0 | R94: =LOOKUP(Q94,Names!$A$2:$A$161,Names!$B$2:$B$161) ->  | S94: =$L$45 -> 0 | T94: =Sheet1!L25 -> -2 | W94: 26 | X94: =$J$46 -> 0 | Y94: =LOOKUP(X94,Names!$A$2:$A$161,Names!$B$2:$B$161) ->  | Z94: =$L$46 -> 0 | AA94: =Sheet1!L26 -> -3
A95: 27 | B95: 27 | C95: =$Q$43 -> 0 | D95: =LOOKUP(C95,Names!$A$2:$A$161,Names!$B$2:$B$161) ->  | E95: =$S$43 -> 0 | F95: =Sheet1!L29 -> -6 | I95: 27 | J95: =$Q$44 -> 0 | K95: =LOOKUP(J95,Names!$A$2:$A$161,Names!$B$2:$B$161) ->  | L95: =$S$44 -> 0 | M95: =Sheet1!L29 -> -6 | P95: 27 | Q95: =$Q$45 -> 0 | R95: =LOOKUP(Q95,Names!$A$2:$A$161,Names!$B$2:$B$161) ->  | S95: =$S$45 -> 0 | T95: =Sheet1!L26 -> -3 | W95: 27 | X95: =$Q$46 -> 0 | Y95: =LOOKUP(X95,Names!$A$2:$A$161,Names!$B$2:$B$161) ->  | Z95: =$S$46 -> 0 | AA95: =Sheet1!L27 -> -4
A96: 28 | B96: 28 | C96: =$X$43 -> 88 | D96: =LOOKUP(C96,Names!$A$2:$A$161,Names!$B$2:$B$161) -> 0 | I96: 28 | J96: =$X$44 -> 108 | K96: =LOOKUP(J96,Names!$A$2:$A$161,Names!$B$2:$B$161) -> 0 | P96: 28 | Q96: =$X$45 -> 128 | R96: =LOOKUP(Q96,Names!$A$2:$A$161,Names!$B$2:$B$161) -> 0 | W96: 28 | X96: =$X$46 -> 148 | Y96: =LOOKUP(X96,Names!$A$2:$A$161,Names!$B$2:$B$161) -> 0
A97: 29 | B97: 29 | C97: =$C$49 -> 89 | D97: =LOOKUP(C97,Names!$A$2:$A$161,Names!$B$2:$B$161) -> 0 | I97: 29 | J97: =$C$50 -> 109 | K97: =LOOKUP(J97,Names!$A$2:$A$161,Names!$B$2:$B$161) -> 0 | P97: 29 | Q97: =$C$51 -> 129 | R97: =LOOKUP(Q97,Names!$A$2:$A$161,Names!$B$2:$B$161) -> 0 | W97: 29 | X97: =$C$52 -> 149 | Y97: =LOOKUP(X97,Names!$A$2:$A$161,Names!$B$2:$B$161) -> 0
A98: 30 | B98: 30 | C98: =$J$49 -> 90 | D98: =LOOKUP(C98,Names!$A$2:$A$161,Names!$B$2:$B$161) -> 0 | I98: 30 | J98: =$J$50 -> 110 | K98: =LOOKUP(J98,Names!$A$2:$A$161,Names!$B$2:$B$161) -> 0 | P98: 30 | Q98: =$J$51 -> 130 | R98: =LOOKUP(Q98,Names!$A$2:$A$161,Names!$B$2:$B$161) -> 0 | W98: 30 | X98: =$J$52 -> 150 | Y98: =LOOKUP(X98,Names!$A$2:$A$161,Names!$B$2:$B$161) -> 0
A99: 31 | B99: 31 | C99: =$Q$49 -> 91 | D99: =LOOKUP(C99,Names!$A$2:$A$161,Names!$B$2:$B$161) -> 0 | I99: 31 | J99: =$Q$50 -> 111 | K99: =LOOKUP(J99,Names!$A$2:$A$161,Names!$B$2:$B$161) -> 0 | P99: 31 | Q99: =$Q$51 -> 131 | R99: =LOOKUP(Q99,Names!$A$2:$A$161,Names!$B$2:$B$161) -> 0 | W99: 31 | X99: =$Q$52 -> 151 | Y99: =LOOKUP(X99,Names!$A$2:$A$161,Names!$B$2:$B$161) -> 0
A100: 32 | B100: 32 | C100: =$X$49 -> 92 | D100: =LOOKUP(C100,Names!$A$2:$A$161,Names!$B$2:$B$161) -> 0 | I100: 32 | J100: =$X$50 -> 112 | K100: =LOOKUP(J100,Names!$A$2:$A$161,Names!$B$2:$B$161) -> 0 | P100: 32 | Q100: =$X$51 -> 132 | R100: =LOOKUP(Q100,Names!$A$2:$A$161,Names!$B$2:$B$161) -> 0 | W100: 32 | X100: =$X$52 -> 152 | Y100: =LOOKUP(X100,Names!$A$2:$A$161,Names!$B$2:$B$161) -> 0
A101: 33 | B101: 33 | C101: =$C$55 -> 93 | D101: =LOOKUP(C101,Names!$A$2:$A$161,Names!$B$2:$B$161) -> 0 | I101: 33 | J101: =$C$56 -> 113 | K101: =LOOKUP(J101,Names!$A$2:$A$161,Names!$B$2:$B$161) -> 0 | P101: 33 | Q101: =$C$57 -> 133 | R101: =LOOKUP(Q101,Names!$A$2:$A$161,Names!$B$2:$B$161) -> 0 | W101: 33 | X101: =$C$58 -> 153 | Y101: =LOOKUP(X101,Names!$A$2:$A$161,Names!$B$2:$B$161) -> 0
A102: 34 | B102: 34 | C102: =$J$55 -> 94 | D102: =LOOKUP(C102,Names!$A$2:$A$161,Names!$B$2:$B$161) -> 0 | I102: 34 | J102: =$J$56 -> 114 | K102: =LOOKUP(J102,Names!$A$2:$A$161,Names!$B$2:$B$161) -> 0 | P102: 34 | Q102: =$J$57 -> 134 | R102: =LOOKUP(Q102,Names!$A$2:$A$161,Names!$B$2:$B$161) -> 0 | W102: 34 | X102: =$J$58 -> 154 | Y102: =LOOKUP(X102,Names!$A$2:$A$161,Names!$B$2:$B$161) -> 0
A103: 35 | B103: 35 | C103: =$Q$55 -> 95 | D103: =LOOKUP(C103,Names!$A$2:$A$161,Names!$B$2:$B$161) -> 0 | I103: 35 | J103: =$Q$56 -> 115 | K103: =LOOKUP(J103,Names!$A$2:$A$161,Names!$B$2:$B$161) -> 0 | P103: 35 | Q103: =$Q$57 -> 135 | R103: =LOOKUP(Q103,Names!$A$2:$A$161,Names!$B$2:$B$161) -> 0 | W103: 35 | X103: =$Q$58 -> 155 | Y103: =LOOKUP(X103,Names!$A$2:$A$161,Names!$B$2:$B$161) -> 0
A104: 36 | B104: 36 | C104: =$X$55 -> 96 | D104: =LOOKUP(C104,Names!$A$2:$A$161,Names!$B$2:$B$161) -> 0 | I104: 36 | J104: =$X$56 -> 116 | K104: =LOOKUP(J104,Names!$A$2:$A$161,Names!$B$2:$B$161) -> 0 | P104: 36 | Q104: =$X$57 -> 136 | R104: =LOOKUP(Q104,Names!$A$2:$A$161,Names!$B$2:$B$161) -> 0 | W104: 36 | X104: =$X$58 -> 156 | Y104: =LOOKUP(X104,Names!$A$2:$A$161,Names!$B$2:$B$161) -> 0
A105: 37 | B105: 37 | C105: =$C$61 -> 97 | D105: =LOOKUP(C105,Names!$A$2:$A$161,Names!$B$2:$B$161) -> 0 | I105: 37 | J105: =$C$62 -> 117 | K105: =LOOKUP(J105,Names!$A$2:$A$161,Names!$B$2:$B$161) -> 0 | P105: 37 | Q105: =$C$63 -> 137 | R105: =LOOKUP(Q105,Names!$A$2:$A$161,Names!$B$2:$B$161) -> 0 | W105: 37 | X105: =$C$64 -> 157 | Y105: =LOOKUP(X105,Names!$A$2:$A$161,Names!$B$2:$B$161) -> 0
A106: 38 | B106: 38 | C106: =$J$61 -> 98 | D106: =LOOKUP(C106,Names!$A$2:$A$161,Names!$B$2:$B$161) -> 0 | I106: 38 | J106: =$J$62 -> 118 | K106: =LOOKUP(J106,Names!$A$2:$A$161,Names!$B$2:$B$161) -> 0 | P106: 38 | Q106: =$J$63 -> 138 | R106: =LOOKUP(Q106,Names!$A$2:$A$161,Names!$B$2:$B$161) -> 0 | W106: 38 | X106: =$J$64 -> 158 | Y106: =LOOKUP(X106,Names!$A$2:$A$161,Names!$B$2:$B$161) -> 0
A107: 39 | B107: 39 | C107: =$Q$61 -> 99 | D107: =LOOKUP(C107,Names!$A$2:$A$161,Names!$B$2:$B$161) -> 0 | I107: 39 | J107: =$Q$62 -> 119 | K107: =LOOKUP(J107,Names!$A$2:$A$161,Names!$B$2:$B$161) -> 0 | P107: 39 | Q107: =$Q$63 -> 139 | R107: =LOOKUP(Q107,Names!$A$2:$A$161,Names!$B$2:$B$161) -> 0 | W107: 39 | X107: =$Q$64 -> 159 | Y107: =LOOKUP(X107,Names!$A$2:$A$161,Names!$B$2:$B$161) -> 0
A108: 40 | B108: 40 | C108: =$X$61 -> 100 | D108: =LOOKUP(C108,Names!$A$2:$A$161,Names!$B$2:$B$161) -> 0 | I108: 40 | J108: =$X$62 -> 120 | K108: =LOOKUP(J108,Names!$A$2:$A$161,Names!$B$2:$B$161) -> 0 | P108: 40 | Q108: =$X$63 -> 140 | R108: =LOOKUP(Q108,Names!$A$2:$A$161,Names!$B$2:$B$161) -> 0 | W108: 40 | X108: =$X$64 -> 160 | Y108: =LOOKUP(X108,Names!$A$2:$A$161,Names!$B$2:$B$161) -> 0

Sheet R3
K1: التوقيت : | L1: Round ( 3 ) | Y1: =Score!T1 -> بطولة الجمهورية الثانية للفردي المفتوح
K3: 4.00 PM | L3: Tab.
D4: 1 | K4: 2 | R4: 3 | Y4: 4
D5: Names | E5: Sc. | F5: Tab | K5: Names | L5: Sc. | M5: Tab | R5: Names | S5: Sc. | T5: Tab | Y5: Names | Z5: Sc. | AA5: Tab
A6: N | B6: 1 | C6: =Score!O5 -> 1 | D6: =LOOKUP(C6,Names!$A$2:$A$161,Names!$B$2:$B$161) -> راجي صبحي | E6: 76 | F6: =Sheet1!$M$4 -> 0 | G6: =F69 -> 21 | H6: N | I6: 1 | J6: =Score!O9 -> 2 | K6: =LOOKUP(J6,Names!$A$2:$A$161,Names!$B$2:$B$161) -> شريف أحمد محمد حمروش | L6: 113 | M6: =Sheet1!$M$4 -> 0 | N6: =F70 -> 19 | O6: N | P6: 1 | Q6: =Score!O13 -> 19 | R6: =LOOKUP(Q6,Names!$A$2:$A$161,Names!$B$2:$B$161) -> إبراهيم عنتر | S6: 94 | T6: =Sheet1!$M$4 -> 0 | U6: =F71 -> 18 | V6: N | W6: 1 | X6: =Score!O17 -> 33 | Y6: =LOOKUP(X6,Names!$A$2:$A$161,Names!$B$2:$B$161) -> أحمد بسيوني | Z6: 129 | AA6: =Sheet1!$M$4 -> 0 | AB6: =F72 -> 17
A7: W | B7: 2 | C7: =Score!O6 -> 78 | D7: =LOOKUP(C7,Names!$A$2:$A$161,Names!$B$2:$B$161) -> حسام الخلفاوي | E7: 8 | F7: =Sheet1!$M$5 -> 0 | G7: =M69 -> 21 | H7: W | I7: 2 | J7: =Score!O10 -> 25 | K7: =LOOKUP(J7,Names!$A$2:$A$161,Names!$B$2:$B$161) -> خالد شباره | L7: 35 | M7: =Sheet1!$M$5 -> 0 | N7: =M70 -> 19 | O7: W | P7: 2 | Q7: =Score!O14 -> 16 | R7: =LOOKUP(Q7,Names!$A$2:$A$161,Names!$B$2:$B$161) -> عبد الرحمن سعد موسى | S7: 90 | T7: =Sheet1!$M$5 -> 0 | U7: =M71 -> 18 | V7: W | W7: 2 | X7: =Score!O18 -> 10 | Y7: =LOOKUP(X7,Names!$A$2:$A$161,Names!$B$2:$B$161) -> نبيل خلف زكي حسنين | Z7: 12 | AA7: =Sheet1!$M$5 -> 0 | AB7: =M72 -> 17
A8: S | B8: 3 | C8: =Score!O7 -> 11 | D8: =LOOKUP(C8,Names!$A$2:$A$161,Names!$B$2:$B$161) -> معتز محمد مدبولي | E8: 147 | F8: =Sheet1!$M$6 -> 0 | G8: =T69 -> 21 | H8: S | I8: 3 | J8: =Score!O11 -> 12 | K8: =LOOKUP(J8,Names!$A$2:$A$161,Names!$B$2:$B$161) -> أمير كمال جميل | L8: 147 | M8: =Sheet1!$M$6 -> 0 | N8: =T70 -> 19 | O8: S | P8: 3 | Q8: =Score!O15 -> 29 | R8: =LOOKUP(Q8,Names!$A$2:$A$161,Names!$B$2:$B$161) -> عبد الرحمن عثمان | S8: 39 | T8: =Sheet1!$M$6 -> 0 | U8: =T71 -> 18 | V8: S | W8: 3 | X8: =Score!O19 -> 23 | Y8: =LOOKUP(X8,Names!$A$2:$A$161,Names!$B$2:$B$161) -> مصطفى يوسف محمد | Z8: 136 | AA8: =Sheet1!$M$6 -> 0 | AB8: =T72 -> 17
A9: E | B9: 4 | C9: =Score!O8 -> 8 | D9: =LOOKUP(C9,Names!$A$2:$A$161,Names!$B$2:$B$161) -> إيهاب محمد الزهيري | E9: 160 | F9: =Sheet1!$M$7 -> 0 | G9: =AA69 -> 21 | H9: E | I9: 4 | J9: =Score!O12 -> 15 | K9: =LOOKUP(J9,Names!$A$2:$A$161,Names!$B$2:$B$161) -> أحمد رمزي الديب | L9: 90 | M9: =Sheet1!$M$7 -> 0 | N9: =AA70 -> 19 | O9: E | P9: 4 | Q9: =Score!O16 -> 6 | R9: =LOOKUP(Q9,Names!$A$2:$A$161,Names!$B$2:$B$161) -> إبراهيم عرفان السقا | S9: 96 | T9: =Sheet1!$M$7 -> 0 | U9: =AA71 -> 18 | V9: E | W9: 4 | X9: =Score!O20 -> 20 | Y9: =LOOKUP(X9,Names!$A$2:$A$161,Names!$B$2:$B$161) -> إسلام قاسم | Z9: 64 | AA9: =Sheet1!$M$7 -> 0 | AB9: =AA72 -> 17
D10: 5 | K10: 6 | R10: 7 | Y10: 8
D11: Names | E11: Sc. | F11: Tab | K11: Names | L11: Sc. | M11: Tab | R11: Names | S11: Sc. | T11: Tab | Y11: Names | Z11: Sc. | AA11: Tab
A12: N | B12: 1 | C12: =Score!O21 -> 14 | D12: =LOOKUP(C12,Names!$A$2:$A$161,Names!$B$2:$B$161) -> عماد محمد فؤاد | E12: 201 | F12: =Sheet1!$M$4 -> 0 | G12: =F73 -> 16 | H12: N | I12: 1 | J12: =Score!O25 -> 31 | K12: =LOOKUP(J12,Names!$A$2:$A$161,Names!$B$2:$B$161) -> ماجد محمد فكري | L12: 57 | M12: =Sheet1!$M$4 -> 0 | N12: =F74 -> 15 | O12: N | P12: 1 | Q12: =Score!O29 -> 45 | R12: =LOOKUP(Q12,Names!$A$2:$A$161,Names!$B$2:$B$161) -> رضا هنري | S12: 168 | T12: =Sheet1!$M$4 -> 0 | U12: =F75 -> 14 | V12: N | W12: 1 | X12: =Score!O33 -> 26 | Y12: =LOOKUP(X12,Names!$A$2:$A$161,Names!$B$2:$B$161) -> أحمد الطنطاوي | Z12: 98 | AA12: =Sheet1!$M$4 -> 0 | AB12: =F76 -> 13
A13: W | B13: 2 | C13: =Score!O22 -> 37 | D13: =LOOKUP(C13,Names!$A$2:$A$161,Names!$B$2:$B$161) -> حمدي محمود عبد العزيز | E13: 68 | F13: =Sheet1!$M$5 -> 0 | G13: =M73 -> 16 | H13: W | I13: 2 | J13: =Score!O26 -> 28 | K13: =LOOKUP(J13,Names!$A$2:$A$161,Names!$B$2:$B$161) -> عمرو محسن فرج | L13: 110 | M13: =Sheet1!$M$5 -> 0 | N13: =M74 -> 15 | O13: W | P13: 2 | Q13: =Score!O30 -> 22 | R13: =LOOKUP(Q13,Names!$A$2:$A$161,Names!$B$2:$B$161) -> طه إبراهيم طه | S13: 56 | T13: =Sheet1!$M$5 -> 0 | U13: =M75 -> 14 | V13: W | W13: 2 | X13: =Score!O34 -> 49 | Y13: =LOOKUP(X13,Names!$A$2:$A$161,Names!$B$2:$B$161) -> هيثم العشماوي | Z13: 106 | AA13: =Sheet1!$M$5 -> 0 | AB13: =M76 -> 13
A14: S | B14: 3 | C14: =Score!O23 -> 24 | D14: =LOOKUP(C14,Names!$A$2:$A$161,Names!$B$2:$B$161) -> هيثم محمد شبانة | E14: 92 | F14: =Sheet1!$M$6 -> 0 | G14: =T73 -> 16 | H14: S | I14: 3 | J14: =Score!O27 -> 41 | K14: =LOOKUP(J14,Names!$A$2:$A$161,Names!$B$2:$B$161) -> خالد مصطفى عزت | L14: 93 | M14: =Sheet1!$M$6 -> 0 | N14: =T74 -> 15 | O14: S | P14: 3 | Q14: =Score!O31 -> 35 | R14: =LOOKUP(Q14,Names!$A$2:$A$161,Names!$B$2:$B$161) -> عمرو عماد الدين أبوالعلا | S14: 98 | T14: =Sheet1!$M$6 -> 0 | U14: =T75 -> 14 | V14: S | W14: 3 | X14: =Score!O35 -> 36 | Y14: =LOOKUP(X14,Names!$A$2:$A$161,Names!$B$2:$B$161) -> أحمد عبد الفتاح عرفه | Z14: 42 | AA14: =Sheet1!$M$6 -> 0 | AB14: =T76 -> 13
A15: E | B15: 4 | C15: =Score!O24 -> 27 | D15: =LOOKUP(C15,Names!$A$2:$A$161,Names!$B$2:$B$161) -> سمير الحوفي | E15: 92 | F15: =Sheet1!$M$7 -> 0 | G15: =AA73 -> 16 | H15: E | I15: 4 | J15: =Score!O28 -> 18 | K15: =LOOKUP(J15,Names!$A$2:$A$161,Names!$B$2:$B$161) -> أحمد ممدوح عبد الدايم | L15: 78 | M15: =Sheet1!$M$7 -> 0 | N15: =AA74 -> 15 | O15: E | P15: 4 | Q15: =Score!O32 -> 32 | R15: =LOOKUP(Q15,Names!$A$2:$A$161,Names!$B$2:$B$161) -> حمزة أحمد محمد | S15: 40 | T15: =Sheet1!$M$7 -> 0 | U15: =AA75 -> 14 | V15: E | W15: 4 | X15: =Score!O36 -> 39 | Y15: =LOOKUP(X15,Names!$A$2:$A$161,Names!$B$2:$B$161) -> إسلام أحمد السيد عمر | Z15: 124 | AA15: =Sheet1!$M$7 -> 0 | AB15: =AA76 -> 13
D16: 9 | K16: 10 | R16: ='R1'!R16:T16 -> 11 | Y16: ='R1'!Y16:AA16 -> 12
D17: Names | E17: Sc. | F17: Tab | K17: Names | L17: Sc. | M17: Tab | R17: Names | S17: Sc. | T17: Tab | Y17: Names | Z17: Sc. | AA17: Tab
A18: N | B18: 1 | C18: =Score!O37 -> 43 | D18: =LOOKUP(C18,Names!$A$2:$A$161,Names!$B$2:$B$161) -> أمير محمد خطاب | E18: 110 | F18: =Sheet1!$M$4 -> 0 | G18: =F77 -> 12 | H18: N | I18: 1 | J18: =Score!O41 -> 57 | K18: =LOOKUP(J18,Names!$A$2:$A$161,Names!$B$2:$B$161) -> مصطفى كامل الشحري | L18: 63 | M18: =Sheet1!$M$4 -> 0 | N18: =F78 -> 11 | O18: N | P18: 1 | Q18: =Score!O45 -> 38 | R18: =LOOKUP(Q18,Names!$A$2:$A$161,Names!$B$2:$B$161) -> أسامة لطفي نجيب | S18: 157 | T18: =Sheet1!$M$4 -> 0 | U18: =F79 -> 10 | V18: N | W18: 1 | X18: =Score!O49 -> 55 | Y18: =LOOKUP(X18,Names!$A$2:$A$161,Names!$B$2:$B$161) -> ناجي بلبع | Z18: 4 | AA18: =Sheet1!$M$4 -> 0 | AB18: =F80 -> 9
A19: W | B19: 2 | C19: =Score!O38 -> 40 | D19: =LOOKUP(C19,Names!$A$2:$A$161,Names!$B$2:$B$161) -> احمد محمود عبد الرزاق | E19: 28 | F19: =Sheet1!$M$5 -> 0 | G19: =M77 -> 12 | H19: W | I19: 2 | J19: =Score!O42 -> 34 | K19: =LOOKUP(J19,Names!$A$2:$A$161,Names!$B$2:$B$161) -> عماد الدين جمعة هلال | L19: 66 | M19: =Sheet1!$M$5 -> 0 | N19: =M78 -> 11 | O19: W | P19: 2 | Q19: =Score!O46 -> 61 | R19: =LOOKUP(Q19,Names!$A$2:$A$161,Names!$B$2:$B$161) -> كريم إيهاب عامر | S19: 59 | T19: =Sheet1!$M$5 -> 0 | U19: =M79 -> 10 | V19: W | W19: 2 | X19: =Score!O50 -> 52 | Y19: =LOOKUP(X19,Names!$A$2:$A$161,Names!$B$2:$B$161) -> يامن محمد حسن | Z19: 99 | AA19: =Sheet1!$M$5 -> 0 | AB19: =M80 -> 9
A20: S | B20: 3 | C20: =Score!O39 -> 53 | D20: =LOOKUP(C20,Names!$A$2:$A$161,Names!$B$2:$B$161) -> أحمد محمد شوقي هيبه | E20: 104 | F20: =Sheet1!$M$6 -> 0 | G20: =T77 -> 12 | H20: S | I20: 3 | J20: =Score!O43 -> 47 | K20: =LOOKUP(J20,Names!$A$2:$A$161,Names!$B$2:$B$161) -> هاني فكري المراكبي | L20: 173 | M20: =Sheet1!$M$6 -> 0 | N20: =T78 -> 11 | O20: S | P20: 3 | Q20: =Score!O47 -> 48 | R20: =LOOKUP(Q20,Names!$A$2:$A$161,Names!$B$2:$B$161) -> محمد ناجي زاهر بلبع | S20: 146 | T20: =Sheet1!$M$6 -> 0 | U20: =T79 -> 10 | V20: S | W20: 3 | X20: =Score!O51 -> 65 | Y20: =LOOKUP(X20,Names!$A$2:$A$161,Names!$B$2:$B$161) -> أحمد طارق | Z20: 101 | AA20: =Sheet1!$M$6 -> 0 | AB20: =T80 -> 9
A21: E | B21: 4 | C21: =Score!O40 -> 30 | D21: =LOOKUP(C21,Names!$A$2:$A$161,Names!$B$2:$B$161) -> شريف جلال سماحة | E21: 137 | F21: =Sheet1!$M$7 -> 0 | G21: =AA77 -> 12 | H21: E | I21: 4 | J21: =Score!O44 -> 44 | K21: =LOOKUP(J21,Names!$A$2:$A$161,Names!$B$2:$B$161) -> جمال السيد توفيق محمد | L21: 69 | M21: =Sheet1!$M$7 -> 0 | N21: =AA78 -> 11 | O21: E | P21: 4 | Q21: =Score!O48 -> 51 | R21: =LOOKUP(Q21,Names!$A$2:$A$161,Names!$B$2:$B$161) -> أحمد أحمد مرسي عبد الله | S21: 112 | T21: =Sheet1!$M$7 -> 0 | U21: =AA79 -> 10 | V21: E | W21: 4 | X21: =Score!O52 -> 42 | Y21: =LOOKUP(X21,Names!$A$2:$A$161,Names!$B$2:$B$161) -> محمد عبد الهادي أبو القاسم | Z21: 153 | AA21: =Sheet1!$M$7 -> 0 | AB21: =AA80 -> 9
D22: ='R1'!D22:F22 -> 13 | K22: ='R1'!K22:M22 -> 14 | R22: ='R1'!R22:T22 -> 15 | Y22: ='R1'!Y22:AA22 -> 16
D23: Names | E23: Sc. | F23: Tab | K23: Names | L23: Sc. | M23: Tab | R23: Names | S23: Sc. | T23: Tab | Y23: Names | Z23: Sc. | AA23: Tab
A24: N | B24: 1 | C24: =Score!O53 -> 69 | D24: =LOOKUP(C24,Names!$A$2:$A$161,Names!$B$2:$B$161) -> أحمد علي السيد شرع | E24: 152 | F24: =Sheet1!$M$4 -> 0 | G24: =F81 -> 8 | H24: N | I24: 1 | J24: =Score!O57 -> 50 | K24: =LOOKUP(J24,Names!$A$2:$A$161,Names!$B$2:$B$161) -> فادي ناجح | L24: 82 | M24: =Sheet1!$M$4 -> 0 | N24: =F82 -> 7 | O24: N | P24: 1 | Q24: =Score!O61 -> 67 | R24: =LOOKUP(Q24,Names!$A$2:$A$161,Names!$B$2:$B$161) -> محمد محمود فضل | S24: 148 | T24: =Sheet1!$M$4 -> 0 | U24: =F83 -> 6 | V24: N | W24: 1 | X24: =Score!O65 -> 5 | Y24: =LOOKUP(X24,Names!$A$2:$A$161,Names!$B$2:$B$161) -> محمد عصام الدين القاضي | Z24: 70 | AA24: =Sheet1!$M$4 -> 0 | AB24: =F84 -> 5
A25: W | B25: 2 | C25: =Score!O54 -> 46 | D25: =LOOKUP(C25,Names!$A$2:$A$161,Names!$B$2:$B$161) -> علاء شوقي جبريل | E25: 48 | F25: =Sheet1!$M$5 -> 0 | G25: =M81 -> 8 | H25: W | I25: 2 | J25: =Score!O58 -> 73 | K25: =LOOKUP(J25,Names!$A$2:$A$161,Names!$B$2:$B$161) -> مينا ناجح صبحي | L25: 125 | M25: =Sheet1!$M$5 -> 0 | N25: =M82 -> 7 | O25: W | P25: 2 | Q25: =Score!O62 -> 64 | R25: =LOOKUP(Q25,Names!$A$2:$A$161,Names!$B$2:$B$161) -> وليد شعبان إسماعيل علي | S25: 14 | T25: =Sheet1!$M$5 -> 0 | U25: =M83 -> 6 | V25: W | W25: 2 | X25: =Score!O66 -> 58 | Y25: =LOOKUP(X25,Names!$A$2:$A$161,Names!$B$2:$B$161) -> أحمد إبراهيم غانم | Z25: 106 | AA25: =Sheet1!$M$5 -> 0 | AB25: =M84 -> 5
A26: S | B26: 3 | C26: =Score!O55 -> 59 | D26: =LOOKUP(C26,Names!$A$2:$A$161,Names!$B$2:$B$161) -> هشام أبوغربية | E26: 104 | F26: =Sheet1!$M$6 -> 0 | G26: =T81 -> 8 | H26: S | I26: 3 | J26: =Score!O59 -> 60 | K26: =LOOKUP(J26,Names!$A$2:$A$161,Names!$B$2:$B$161) -> عصام الدين حامد منصور | L26: 49 | M26: =Sheet1!$M$6 -> 0 | N26: =T82 -> 7 | O26: S | P26: 3 | Q26: =Score!O63 -> 77 | R26: =LOOKUP(Q26,Names!$A$2:$A$161,Names!$B$2:$B$161) -> محمد محمود شعبان | S26: 119 | T26: =Sheet1!$M$6 -> 0 | U26: =T83 -> 6 | V26: S | W26: 3 | X26: =Score!O67 -> 71 | Y26: =LOOKUP(X26,Names!$A$2:$A$161,Names!$B$2:$B$161) -> معتز محمد | Z26: 95 | AA26: =Sheet1!$M$6 -> 0 | AB26: =T84 -> 5
A27: E | B27: 4 | C27: =Score!O56 -> 56 | D27: =LOOKUP(C27,Names!$A$2:$A$161,Names!$B$2:$B$161) -> جاسر محمد | E27: 122 | F27: =Sheet1!$M$7 -> 0 | G27: =AA81 -> 8 | H27: E | I27: 4 | J27: =Score!O60 -> 63 | K27: =LOOKUP(J27,Names!$A$2:$A$161,Names!$B$2:$B$161) -> محمد أحمد محمد عبد الله | L27: 77 | M27: =Sheet1!$M$7 -> 0 | N27: =AA82 -> 7 | O27: E | P27: 4 | Q27: =Score!O64 -> 54 | R27: =LOOKUP(Q27,Names!$A$2:$A$161,Names!$B$2:$B$161) -> تامر رشاد | S27: 30 | T27: =Sheet1!$M$7 -> 0 | U27: =AA83 -> 6 | V27: E | W27: 4 | X27: =Score!O68 -> 68 | Y27: =LOOKUP(X27,Names!$A$2:$A$161,Names!$B$2:$B$161) -> مصطفى إسماعيل | Z27: 159 | AA27: =Sheet1!$M$7 -> 0 | AB27: =AA84 -> 5
D28: ='R1'!D28:F28 -> 17 | K28: ='R1'!K28:M28 -> 18 | R28: ='R1'!R28:T28 -> 19 | Y28: ='R1'!Y28:AA28 -> 20
D29: Names | E29: Sc. | F29: Tab | K29: Names | L29: Sc. | M29: Tab | R29: Names | S29: Sc. | T29: Tab | Y29: Names | Z29: Sc. | AA29: Tab
A30: N | B30: 1 | C30: =Score!O69 -> 62 | D30: =LOOKUP(C30,Names!$A$2:$A$161,Names!$B$2:$B$161) -> محمد محمود مسعود | E30: 134 | F30: =Sheet1!$M$4 -> 0 | G30: =F85 -> 4 | H30: N | I30: 1 | J30: =Score!O73 -> 79 | K30: =LOOKUP(J30,Names!$A$2:$A$161,Names!$B$2:$B$161) -> محمد علي حسن طه الأمام | L30: 46 | M30: =Sheet1!$M$4 -> 0 | N30: =F86 -> 3 | O30: N | P30: 1 | Q30: =Score!O77 -> 17 | R30: =LOOKUP(Q30,Names!$A$2:$A$161,Names!$B$2:$B$161) -> أحمد علي خليل حسن | S30: 202 | T30: =Sheet1!$M$4 -> 0 | U30: =F87 -> 2 | V30: N | W30: 1 | X30: =Score!O81 -> 74 | Y30: =LOOKUP(X30,Names!$A$2:$A$161,Names!$B$2:$B$161) -> فريدة شكري | Z30: 82 | AA30: =Sheet1!$M$4 -> 0 | AB30: =F88 -> 1
A31: W | B31: 2 | C31: =Score!O70 -> 9 | D31: =LOOKUP(C31,Names!$A$2:$A$161,Names!$B$2:$B$161) -> رأفت الصياد | E31: 9 | F31: =Sheet1!$M$5 -> 0 | G31: =M85 -> 4 | H31: W | I31: 2 | J31: =Score!O74 -> 76 | K31: =LOOKUP(J31,Names!$A$2:$A$161,Names!$B$2:$B$161) -> محمد إبراهيم قطب | L31: 90 | M31: =Sheet1!$M$5 -> 0 | N31: =M86 -> 3 | O31: W | P31: 2 | Q31: =Score!O78 -> 70 | R31: =LOOKUP(Q31,Names!$A$2:$A$161,Names!$B$2:$B$161) -> أحمد صلاح الدين دياب | S31: 95 | T31: =Sheet1!$M$5 -> 0 | U31: =M87 -> 2 | V31: W | W31: 2 | X31: =Score!O82 -> 21 | Y31: =LOOKUP(X31,Names!$A$2:$A$161,Names!$B$2:$B$161) -> أحمد محمد حمدي صالح | Z31: 77 | AA31: =Sheet1!$M$5 -> 0 | AB31: =M88 -> 1
A32: S | B32: 3 | C32: =Score!O71 -> 72 | D32: =LOOKUP(C32,Names!$A$2:$A$161,Names!$B$2:$B$161) -> أحمد سمير خلف | E32: 64 | F32: =Sheet1!$M$6 -> 0 | G32: =T85 -> 4 | H32: S | I32: 3 | J32: =Score!O75 -> 13 | K32: =LOOKUP(J32,Names!$A$2:$A$161,Names!$B$2:$B$161) -> أحمد جميل السيد | L32: 96 | M32: =Sheet1!$M$6 -> 0 | N32: =T86 -> 3 | O32: S | P32: 3 | Q32: =Score!O79 -> 3 | R32: =LOOKUP(Q32,Names!$A$2:$A$161,Names!$B$2:$B$161) -> إيهاب يوسف عمارة | S32: 165 | T32: =Sheet1!$M$6 -> 0 | U32: =T87 -> 2 | V32: S | W32: 3 | X32: =Score!O83 -> 4 | Y32: =LOOKUP(X32,Names!$A$2:$A$161,Names!$B$2:$B$161) -> محمد سعيد الفطاطري | Z32: 56 | AA32: =Sheet1!$M$6 -> 0 | AB32: =T88 -> 1
A33: E | B33: 4 | C33: =Score!O72 -> 75 | D33: =LOOKUP(C33,Names!$A$2:$A$161,Names!$B$2:$B$161) -> محمود سليمان | E33: 100 | F33: =Sheet1!$M$7 -> 0 | G33: =AA85 -> 4 | H33: E | I33: 4 | J33: =Score!O76 -> 66 | K33: =LOOKUP(J33,Names!$A$2:$A$161,Names!$B$2:$B$161) -> أحمد فؤاد حسنين | L33: 98 | M33: =Sheet1!$M$7 -> 0 | N33: =AA86 -> 3 | O33: E | P33: 4 | Q33: =Score!O80 -> 80 | R33: =LOOKUP(Q33,Names!$A$2:$A$161,Names!$B$2:$B$161) -> أمن حسام | S33: -83 | T33: =Sheet1!$M$7 -> 0 | U33: =AA87 -> 2 | V33: E | W33: 4 | X33: =Score!O84 -> 7 | Y33: =LOOKUP(X33,Names!$A$2:$A$161,Names!$B$2:$B$161) -> باسم أسحق صموائيل | Z33: 121 | AA33: =Sheet1!$M$7 -> 0 | AB33: =AA88 -> 1
D35: ='R1'!D35:F35 -> 21 | K35: ='R1'!K35:M35 -> 22 | R35: ='R1'!R35:T35 -> 23 | Y35: ='R1'!Y35:AA35 -> 24
D36: Names | E36: Sc. | F36: Tab | K36: Names | L36: Sc. | M36: Tab | R36: Names | S36: Sc. | T36: Tab | Y36: Names | Z36: Sc. | AA36: Tab
A37: N | B37: 1 | C37: =Score!O85 -> 0 | D37: =LOOKUP(C37,Names!$A$2:$A$161,Names!$B$2:$B$161) ->  | F37: =Sheet1!$M$4 -> 0 | G37: =F89 -> 0 | H37: N | I37: 1 | J37: =Score!O89 -> 0 | K37: =LOOKUP(J37,Names!$A$2:$A$161,Names!$B$2:$B$161) ->  | M37: =Sheet1!$M$4 -> 0 | N37: =F90 -> -1 | O37: N | P37: 1 | Q37: =Score!O93 -> 0 | R37: =LOOKUP(Q37,Names!$A$2:$A$161,Names!$B$2:$B$161) ->  | T37: =Sheet1!$M$4 -> 0 | U37: =F91 -> -2 | V37: N | W37: 1 | X37: =Score!O97 -> 0 | Y37: =LOOKUP(X37,Names!$A$2:$A$161,Names!$B$2:$B$161) ->  | AA37: =Sheet1!$M$4 -> 0 | AB37: =F92 -> -3
A38: W | B38: 2 | C38: =Score!O86 -> 0 | D38: =LOOKUP(C38,Names!$A$2:$A$161,Names!$B$2:$B$161) ->  | F38: =Sheet1!$M$5 -> 0 | G38: =M89 -> 0 | H38: W | I38: 2 | J38: =Score!O90 -> 0 | K38: =LOOKUP(J38,Names!$A$2:$A$161,Names!$B$2:$B$161) ->  | M38: =Sheet1!$M$5 -> 0 | N38: =M90 -> -1 | O38: W | P38: 2 | Q38: =Score!O94 -> 0 | R38: =LOOKUP(Q38,Names!$A$2:$A$161,Names!$B$2:$B$161) ->  | T38: =Sheet1!$M$5 -> 0 | U38: =M91 -> -2 | V38: W | W38: 2 | X38: =Score!O98 -> 0 | Y38: =LOOKUP(X38,Names!$A$2:$A$161,Names!$B$2:$B$161) ->  | AA38: =Sheet1!$M$5 -> 0 | AB38: =M92 -> -3
A39: S | B39: 3 | C39: =Score!O87 -> 0 | D39: =LOOKUP(C39,Names!$A$2:$A$161,Names!$B$2:$B$161) ->  | F39: =Sheet1!$M$6 -> 0 | G39: =T89 -> 0 | H39: S | I39: 3 | J39: =Score!O91 -> 0 | K39: =LOOKUP(J39,Names!$A$2:$A$161,Names!$B$2:$B$161) ->  | M39: =Sheet1!$M$6 -> 0 | N39: =T90 -> -1 | O39: S | P39: 3 | Q39: =Score!O95 -> 0 | R39: =LOOKUP(Q39,Names!$A$2:$A$161,Names!$B$2:$B$161) ->  | T39: =Sheet1!$M$6 -> 0 | U39: =T91 -> -2 | V39: S | W39: 3 | X39: =Score!O99 -> 0 | Y39: =LOOKUP(X39,Names!$A$2:$A$161,Names!$B$2:$B$161) ->  | AA39: =Sheet1!$M$6 -> 0 | AB39: =T92 -> -3
A40: E | B40: 4 | C40: =Score!O88 -> 0 | D40: =LOOKUP(C40,Names!$A$2:$A$161,Names!$B$2:$B$161) ->  | F40: =Sheet1!$M$7 -> 0 | G40: =AA89 -> 1 | H40: E | I40: 4 | J40: =Score!O92 -> 0 | K40: =LOOKUP(J40,Names!$A$2:$A$161,Names!$B$2:$B$161) ->  | M40: =Sheet1!$M$7 -> 0 | N40: =AA90 -> 0 | O40: E | P40: 4 | Q40: =Score!O96 -> 0 | R40: =LOOKUP(Q40,Names!$A$2:$A$161,Names!$B$2:$B$161) ->  | T40: =Sheet1!$M$7 -> 0 | U40: =AA91 -> -1 | V40: E | W40: 4 | X40: =Score!O100 -> 0 | Y40: =LOOKUP(X40,Names!$A$2:$A$161,Names!$B$2:$B$161) ->  | AA40: =Sheet1!$M$7 -> 0 | AB40: =AA92 -> -2
D41: ='R1'!D41:F41 -> B1 | K41: ='R1'!K41:M41 -> B2 | R41: ='R1'!R41:T41 -> B3 | Y41: ='R1'!Y41:AA41 -> B4
D42: Names | E42: Sc. | F42: Tab | K42: Names | L42: Sc. | M42: Tab | R42: Names | S42: Sc. | T42: Tab | Y42: Names | Z42: Sc. | AA42: Tab
A43: N | B43: 1 | C43: =Score!O101 -> 0 | D43: =LOOKUP(C43,Names!$A$2:$A$161,Names!$B$2:$B$161) ->  | F43: =Sheet1!$M$4 -> 0 | G43: =F93 -> -4 | H43: N | I43: 1 | J43: =Score!O105 -> 0 | K43: =LOOKUP(J43,Names!$A$2:$A$161,Names!$B$2:$B$161) ->  | M43: =Sheet1!$M$4 -> 0 | N43: =F94 -> -5 | O43: N | P43: 1 | Q43: =Score!O109 -> 0 | R43: =LOOKUP(Q43,Names!$A$2:$A$161,Names!$B$2:$B$161) ->  | T43: =Sheet1!$M$4 -> 0 | U43: =F95 -> -6 | V43: N | W43: 1 | X43: =Score!O113 -> 0 | Y43: =LOOKUP(X43,Names!$A$2:$A$161,Names!$B$2:$B$161) ->  | AA43: =Sheet1!$M$4 -> 0 | AB43: =F96 -> 0
A44: W | B44: 2 | C44: =Score!O102 -> 0 | D44: =LOOKUP(C44,Names!$A$2:$A$161,Names!$B$2:$B$161) ->  | F44: =Sheet1!$M$5 -> 0 | G44: =M93 -> -4 | H44: W | I44: 2 | J44: =Score!O106 -> 0 | K44: =LOOKUP(J44,Names!$A$2:$A$161,Names!$B$2:$B$161) ->  | M44: =Sheet1!$M$5 -> 0 | N44: =M94 -> -5 | O44: W | P44: 2 | Q44: =Score!O110 -> 0 | R44: =LOOKUP(Q44,Names!$A$2:$A$161,Names!$B$2:$B$161) ->  | T44: =Sheet1!$M$5 -> 0 | U44: =M95 -> -6 | V44: W | W44: 2 | X44: =Score!O114 -> 0 | Y44: =LOOKUP(X44,Names!$A$2:$A$161,Names!$B$2:$B$161) ->  | AA44: =Sheet1!$M$5 -> 0 | AB44: =M96 -> 0
A45: S | B45: 3 | C45: =Score!O103 -> 0 | D45: =LOOKUP(C45,Names!$A$2:$A$161,Names!$B$2:$B$161) ->  | F45: =Sheet1!$M$6 -> 0 | G45: =T93 -> -4 | H45: S | I45: 3 | J45: =Score!O107 -> 0 | K45: =LOOKUP(J45,Names!$A$2:$A$161,Names!$B$2:$B$161) ->  | M45: =Sheet1!$M$6 -> 0 | N45: =T94 -> -5 | O45: S | P45: 3 | Q45: =Score!O111 -> 0 | R45: =LOOKUP(Q45,Names!$A$2:$A$161,Names!$B$2:$B$161) ->  | T45: =Sheet1!$M$6 -> 0 | U45: =T95 -> -6 | V45: S | W45: 3 | X45: =Score!O115 -> 0 | Y45: =LOOKUP(X45,Names!$A$2:$A$161,Names!$B$2:$B$161) ->  | AA45: =Sheet1!$M$6 -> 0 | AB45: =T96 -> 0
A46: E | B46: 4 | C46: =Score!O104 -> 0 | D46: =LOOKUP(C46,Names!$A$2:$A$161,Names!$B$2:$B$161) ->  | F46: =Sheet1!$M$7 -> 0 | G46: =AA93 -> -3 | H46: E | I46: 4 | J46: =Score!O108 -> 0 | K46: =LOOKUP(J46,Names!$A$2:$A$161,Names!$B$2:$B$161) ->  | M46: =Sheet1!$M$7 -> 0 | N46: =AA94 -> -4 | O46: E | P46: 4 | Q46: =Score!O112 -> 0 | R46: =LOOKUP(Q46,Names!$A$2:$A$161,Names!$B$2:$B$161) ->  | T46: =Sheet1!$M$7 -> 0 | U46: =AA95 -> -5 | V46: E | W46: 4 | X46: =Score!O116 -> 0 | Y46: =LOOKUP(X46,Names!$A$2:$A$161,Names!$B$2:$B$161) ->  | AA46: =Sheet1!$M$7 -> 0 | AB46: =AA96 -> 0
D47: B5 | K47: B6 | R47: B7 | Y47: B8
D48: Names | E48: Sc. | F48: Tab | K48: Names | L48: Sc. | M48: Tab | R48: Names | S48: Sc. | T48: Tab | Y48: Names | Z48: Sc. | AA48: Tab
A49: N | B49: 1 | C49: =Score!O117 -> 0 | D49: =LOOKUP(C49,Names!$A$2:$A$161,Names!$B$2:$B$161) ->  | F49: =Sheet1!$M$4 -> 0 | G49: =F97 -> 0 | H49: N | I49: 1 | J49: =Score!O121 -> 0 | K49: =LOOKUP(J49,Names!$A$2:$A$161,Names!$B$2:$B$161) ->  | M49: =Sheet1!$M$4 -> 0 | N49: =F98 -> 0 | O49: N | P49: 1 | Q49: =Score!O125 -> 0 | R49: =LOOKUP(Q49,Names!$A$2:$A$161,Names!$B$2:$B$161) ->  | T49: =Sheet1!$M$4 -> 0 | U49: =F99 -> 0 | V49: N | W49: 1 | X49: =Score!O129 -> 0 | Y49: =LOOKUP(X49,Names!$A$2:$A$161,Names!$B$2:$B$161) ->  | AA49: =Sheet1!$M$4 -> 0 | AB49: =F100 -> 0
A50: W | B50: 2 | C50: =Score!O118 -> 0 | D50: =LOOKUP(C50,Names!$A$2:$A$161,Names!$B$2:$B$161) ->  | F50: =Sheet1!$M$5 -> 0 | G50: =M97 -> 0 | H50: W | I50: 2 | J50: =Score!O122 -> 0 | K50: =LOOKUP(J50,Names!$A$2:$A$161,Names!$B$2:$B$161) ->  | M50: =Sheet1!$M$5 -> 0 | N50: =M98 -> 0 | O50: W | P50: 2 | Q50: =Score!O126 -> 0 | R50: =LOOKUP(Q50,Names!$A$2:$A$161,Names!$B$2:$B$161) ->  | T50: =Sheet1!$M$5 -> 0 | U50: =M99 -> 0 | V50: W | W50: 2 | X50: =Score!O130 -> 0 | Y50: =LOOKUP(X50,Names!$A$2:$A$161,Names!$B$2:$B$161) ->  | AA50: =Sheet1!$M$5 -> 0 | AB50: =M100 -> 0
A51: S | B51: 3 | C51: =Score!O119 -> 0 | D51: =LOOKUP(C51,Names!$A$2:$A$161,Names!$B$2:$B$161) ->  | F51: =Sheet1!$M$6 -> 0 | G51: =T97 -> 0 | H51: S | I51: 3 | J51: =Score!O123 -> 0 | K51: =LOOKUP(J51,Names!$A$2:$A$161,Names!$B$2:$B$161) ->  | M51: =Sheet1!$M$6 -> 0 | N51: =T98 -> 0 | O51: S | P51: 3 | Q51: =Score!O127 -> 0 | R51: =LOOKUP(Q51,Names!$A$2:$A$161,Names!$B$2:$B$161) ->  | T51: =Sheet1!$M$6 -> 0 | U51: =T99 -> 0 | V51: S | W51: 3 | X51: =Score!O131 -> 0 | Y51: =LOOKUP(X51,Names!$A$2:$A$161,Names!$B$2:$B$161) ->  | AA51: =Sheet1!$M$6 -> 0 | AB51: =T100 -> 0
A52: E | B52: 4 | C52: =Score!O120 -> 0 | D52: =LOOKUP(C52,Names!$A$2:$A$161,Names!$B$2:$B$161) ->  | F52: =Sheet1!$M$7 -> 0 | G52: =AA97 -> 0 | H52: E | I52: 4 | J52: =Score!O124 -> 0 | K52: =LOOKUP(J52,Names!$A$2:$A$161,Names!$B$2:$B$161) ->  | M52: =Sheet1!$M$7 -> 0 | N52: =AA98 -> 0 | O52: E | P52: 4 | Q52: =Score!O128 -> 0 | R52: =LOOKUP(Q52,Names!$A$2:$A$161,Names!$B$2:$B$161) ->  | T52: =Sheet1!$M$7 -> 0 | U52: =AA99 -> 0 | V52: E | W52: 4 | X52: =Score!O132 -> 0 | Y52: =LOOKUP(X52,Names!$A$2:$A$161,Names!$B$2:$B$161) ->  | AA52: =Sheet1!$M$7 -> 0 | AB52: =AA100 -> 0
D53: 33 | K53: 34 | R53: 35 | Y53: 36
D54: Names | E54: Sc. | F54: Tab | K54: Names | L54: Sc. | M54: Tab | R54: Names | S54: Sc. | T54: Tab | Y54: Names | Z54: Sc. | AA54: Tab
A55: N | B55: 1 | C55: =Score!O133 -> 0 | D55: =LOOKUP(C55,Names!$A$2:$A$161,Names!$B$2:$B$161) ->  | F55: =Sheet1!$M$4 -> 0 | G55: =F101 -> 0 | H55: N | I55: 1 | J55: =Score!O137 -> 0 | K55: =LOOKUP(J55,Names!$A$2:$A$161,Names!$B$2:$B$161) ->  | M55: =Sheet1!$M$4 -> 0 | N55: =F102 -> 0 | O55: N | P55: 1 | Q55: =Score!O141 -> 0 | R55: =LOOKUP(Q55,Names!$A$2:$A$161,Names!$B$2:$B$161) ->  | T55: =Sheet1!$M$4 -> 0 | U55: =F103 -> 0 | V55: N | W55: 1 | X55: =Score!O145 -> 0 | Y55: =LOOKUP(X55,Names!$A$2:$A$161,Names!$B$2:$B$161) ->  | AA55: =Sheet1!$M$4 -> 0 | AB55: =F104 -> 0
A56: W | B56: 2 | C56: =Score!O134 -> 0 | D56: =LOOKUP(C56,Names!$A$2:$A$161,Names!$B$2:$B$161) ->  | F56: =Sheet1!$M$5 -> 0 | G56: =M101 -> 0 | H56: W | I56: 2 | J56: =Score!O138 -> 0 | K56: =LOOKUP(J56,Names!$A$2:$A$161,Names!$B$2:$B$161) ->  | M56: =Sheet1!$M$5 -> 0 | N56: =M102 -> 0 | O56: W | P56: 2 | Q56: =Score!O142 -> 0 | R56: =LOOKUP(Q56,Names!$A$2:$A$161,Names!$B$2:$B$161) ->  | T56: =Sheet1!$M$5 -> 0 | U56: =M103 -> 0 | V56: W | W56: 2 | X56: =Score!O146 -> 0 | Y56: =LOOKUP(X56,Names!$A$2:$A$161,Names!$B$2:$B$161) ->  | AA56: =Sheet1!$M$5 -> 0 | AB56: =M104 -> 0
A57: S | B57: 3 | C57: =Score!O135 -> 0 | D57: =LOOKUP(C57,Names!$A$2:$A$161,Names!$B$2:$B$161) ->  | F57: =Sheet1!$M$6 -> 0 | G57: =T101 -> 0 | H57: S | I57: 3 | J57: =Score!O139 -> 0 | K57: =LOOKUP(J57,Names!$A$2:$A$161,Names!$B$2:$B$161) ->  | M57: =Sheet1!$M$6 -> 0 | N57: =T102 -> 0 | O57: S | P57: 3 | Q57: =Score!O143 -> 0 | R57: =LOOKUP(Q57,Names!$A$2:$A$161,Names!$B$2:$B$161) ->  | T57: =Sheet1!$M$6 -> 0 | U57: =T103 -> 0 | V57: S | W57: 3 | X57: =Score!O147 -> 0 | Y57: =LOOKUP(X57,Names!$A$2:$A$161,Names!$B$2:$B$161) ->  | AA57: =Sheet1!$M$6 -> 0 | AB57: =T104 -> 0
A58: E | B58: 4 | C58: =Score!O136 -> 0 | D58: =LOOKUP(C58,Names!$A$2:$A$161,Names!$B$2:$B$161) ->  | F58: =Sheet1!$M$7 -> 0 | G58: =AA101 -> 0 | H58: E | I58: 4 | J58: =Score!O140 -> 0 | K58: =LOOKUP(J58,Names!$A$2:$A$161,Names!$B$2:$B$161) ->  | M58: =Sheet1!$M$7 -> 0 | N58: =AA102 -> 0 | O58: E | P58: 4 | Q58: =Score!O144 -> 0 | R58: =LOOKUP(Q58,Names!$A$2:$A$161,Names!$B$2:$B$161) ->  | T58: =Sheet1!$M$7 -> 0 | U58: =AA103 -> 0 | V58: E | W58: 4 | X58: =Score!O148 -> 0 | Y58: =LOOKUP(X58,Names!$A$2:$A$161,Names!$B$2:$B$161) ->  | AA58: =Sheet1!$M$7 -> 0 | AB58: =AA104 -> 0
D59: 37 | K59: 38 | R59: 39 | Y59: 40
D60: Names | E60: Sc. | F60: Tab | K60: Names | L60: Sc. | M60: Tab | R60: Names | S60: Sc. | T60: Tab | Y60: Names | Z60: Sc. | AA60: Tab
A61: N | B61: 1 | C61: =Score!O149 -> 0 | D61: =LOOKUP(C61,Names!$A$2:$A$161,Names!$B$2:$B$161) ->  | F61: =Sheet1!$M$4 -> 0 | G61: =F105 -> 0 | H61: N | I61: 1 | J61: =Score!O153 -> 0 | K61: =LOOKUP(J61,Names!$A$2:$A$161,Names!$B$2:$B$161) ->  | M61: =Sheet1!$M$4 -> 0 | N61: =F106 -> 0 | O61: N | P61: 1 | Q61: =Score!O157 -> 0 | R61: =LOOKUP(Q61,Names!$A$2:$A$161,Names!$B$2:$B$161) ->  | T61: =Sheet1!$M$4 -> 0 | U61: =F107 -> 0 | V61: N | W61: 1 | X61: =Score!O161 -> 0 | Y61: =LOOKUP(X61,Names!$A$2:$A$161,Names!$B$2:$B$161) ->  | AA61: =Sheet1!$M$4 -> 0 | AB61: =F108 -> 0
A62: W | B62: 2 | C62: =Score!O150 -> 0 | D62: =LOOKUP(C62,Names!$A$2:$A$161,Names!$B$2:$B$161) ->  | F62: =Sheet1!$M$5 -> 0 | G62: =M105 -> 0 | H62: W | I62: 2 | J62: =Score!O154 -> 0 | K62: =LOOKUP(J62,Names!$A$2:$A$161,Names!$B$2:$B$161) ->  | M62: =Sheet1!$M$5 -> 0 | N62: =M106 -> 0 | O62: W | P62: 2 | Q62: =Score!O158 -> 0 | R62: =LOOKUP(Q62,Names!$A$2:$A$161,Names!$B$2:$B$161) ->  | T62: =Sheet1!$M$5 -> 0 | U62: =M107 -> 0 | V62: W | W62: 2 | X62: =Score!O162 -> 0 | Y62: =LOOKUP(X62,Names!$A$2:$A$161,Names!$B$2:$B$161) ->  | AA62: =Sheet1!$M$5 -> 0 | AB62: =M108 -> 0
A63: S | B63: 3 | C63: =Score!O151 -> 0 | D63: =LOOKUP(C63,Names!$A$2:$A$161,Names!$B$2:$B$161) ->  | F63: =Sheet1!$M$6 -> 0 | G63: =T105 -> 0 | H63: S | I63: 3 | J63: =Score!O155 -> 0 | K63: =LOOKUP(J63,Names!$A$2:$A$161,Names!$B$2:$B$161) ->  | M63: =Sheet1!$M$6 -> 0 | N63: =T106 -> 0 | O63: S | P63: 3 | Q63: =Score!O159 -> 0 | R63: =LOOKUP(Q63,Names!$A$2:$A$161,Names!$B$2:$B$161) ->  | T63: =Sheet1!$M$6 -> 0 | U63: =T107 -> 0 | V63: S | W63: 3 | X63: =Score!O163 -> 0 | Y63: =LOOKUP(X63,Names!$A$2:$A$161,Names!$B$2:$B$161) ->  | AA63: =Sheet1!$M$6 -> 0 | AB63: =T108 -> 0
A64: E | B64: 4 | C64: =Score!O152 -> 0 | D64: =LOOKUP(C64,Names!$A$2:$A$161,Names!$B$2:$B$161) ->  | F64: =Sheet1!$M$7 -> 0 | G64: =AA105 -> 0 | H64: E | I64: 4 | J64: =Score!O156 -> 0 | K64: =LOOKUP(J64,Names!$A$2:$A$161,Names!$B$2:$B$161) ->  | M64: =Sheet1!$M$7 -> 0 | N64: =AA106 -> 0 | O64: E | P64: 4 | Q64: =Score!O160 -> 0 | R64: =LOOKUP(Q64,Names!$A$2:$A$161,Names!$B$2:$B$161) ->  | T64: =Sheet1!$M$7 -> 0 | U64: =AA107 -> 0 | V64: E | W64: 4 | X64: =Score!O164 -> 0 | Y64: =LOOKUP(X64,Names!$A$2:$A$161,Names!$B$2:$B$161) ->  | AA64: =Sheet1!$M$7 -> 0 | AB64: =AA108 -> 0
K66: Axe
D67: North | K67: West | R67: South | Y67: East
D68: Names | E68: Sc. | F68: Axe | K68: Names | L68: Sc. | M68: Axe | R68: Names | S68: Sc. | T68: Axe | Y68: Names | Z68: Sc. | AA68: Axe
A69: 1 | B69: 1 | C69: =$C$6 -> 1 | D69: =LOOKUP(C69,Names!$A$2:$A$161,Names!$B$2:$B$161) -> راجي صبحي | E69: =$E$6 -> 76 | F69: =Sheet1!L3 -> 21 | I69: 1 | J69: =$C$7 -> 78 | K69: =LOOKUP(J69,Names!$A$2:$A$161,Names!$B$2:$B$161) -> حسام الخلفاوي | L69: =$E$7 -> 8 | M69: =Sheet1!L3 -> 21 | P69: 1 | Q69: =$C$8 -> 11 | R69: =LOOKUP(Q69,Names!$A$2:$A$161,Names!$B$2:$B$161) -> معتز محمد مدبولي | S69: =$E$8 -> 147 | T69: =Sheet1!L3 -> 21 | W69: 1 | X69: =$C$9 -> 8 | Y69: =LOOKUP(X69,Names!$A$2:$A$161,Names!$B$2:$B$161) -> إيهاب محمد الزهيري | Z69: =$E$9 -> 160 | AA69: =Sheet1!L3 -> 21
A70: 2 | B70: 2 | C70: =$J$6 -> 2 | D70: =LOOKUP(C70,Names!$A$2:$A$161,Names!$B$2:$B$161) -> شريف أحمد محمد حمروش | E70: =$L$6 -> 113 | F70: =Sheet1!L4 -> 19 | I70: 2 | J70: =$J$7 -> 25 | K70: =LOOKUP(J70,Names!$A$2:$A$161,Names!$B$2:$B$161) -> خالد شباره | L70: =$L$7 -> 35 | M70: =Sheet1!L4 -> 19 | P70: 2 | Q70: =$J$8 -> 12 | R70: =LOOKUP(Q70,Names!$A$2:$A$161,Names!$B$2:$B$161) -> أمير كمال جميل | S70: =$L$8 -> 147 | T70: =Sheet1!L4 -> 19 | W70: 2 | X70: =$J$9 -> 15 | Y70: =LOOKUP(X70,Names!$A$2:$A$161,Names!$B$2:$B$161) -> أحمد رمزي الديب | Z70: =$L$9 -> 90 | AA70: =Sheet1!L4 -> 19
A71: 3 | B71: 3 | C71: =$Q$6 -> 19 | D71: =LOOKUP(C71,Names!$A$2:$A$161,Names!$B$2:$B$161) -> إبراهيم عنتر | E71: =$S$6 -> 94 | F71: =Sheet1!L5 -> 18 | I71: 3 | J71: =$Q$7 -> 16 | K71: =LOOKUP(J71,Names!$A$2:$A$161,Names!$B$2:$B$161) -> عبد الرحمن سعد موسى | L71: =$S$7 -> 90 | M71: =Sheet1!L5 -> 18 | P71: 3 | Q71: =$Q$8 -> 29 | R71: =LOOKUP(Q71,Names!$A$2:$A$161,Names!$B$2:$B$161) -> عبد الرحمن عثمان | S71: =$S$8 -> 39 | T71: =Sheet1!L5 -> 18 | W71: 3 | X71: =$Q$9 -> 6 | Y71: =LOOKUP(X71,Names!$A$2:$A$161,Names!$B$2:$B$161) -> إبراهيم عرفان السقا | Z71: =$S$9 -> 96 | AA71: =Sheet1!L5 -> 18
A72: 4 | B72: 4 | C72: =$X$6 -> 33 | D72: =LOOKUP(C72,Names!$A$2:$A$161,Names!$B$2:$B$161) -> أحمد بسيوني | E72: =$Z$6 -> 129 | F72: =Sheet1!L6 -> 17 | I72: 4 | J72: =$X$7 -> 10 | K72: =LOOKUP(J72,Names!$A$2:$A$161,Names!$B$2:$B$161) -> نبيل خلف زكي حسنين | L72: =$Z$7 -> 12 | M72: =Sheet1!L6 -> 17 | P72: 4 | Q72: =$X$8 -> 23 | R72: =LOOKUP(Q72,Names!$A$2:$A$161,Names!$B$2:$B$161) -> مصطفى يوسف محمد | S72: =$Z$8 -> 136 | T72: =Sheet1!L6 -> 17 | W72: 4 | X72: =$X$9 -> 20 | Y72: =LOOKUP(X72,Names!$A$2:$A$161,Names!$B$2:$B$161) -> إسلام قاسم | Z72: =$Z$9 -> 64 | AA72: =Sheet1!L6 -> 17
A73: 5 | B73: 5 | C73: =$C$12 -> 14 | D73: =LOOKUP(C73,Names!$A$2:$A$161,Names!$B$2:$B$161) -> عماد محمد فؤاد | E73: =$E$12 -> 201 | F73: =Sheet1!L7 -> 16 | I73: 5 | J73: =$C$13 -> 37 | K73: =LOOKUP(J73,Names!$A$2:$A$161,Names!$B$2:$B$161) -> حمدي محمود عبد العزيز | L73: =$E$13 -> 68 | M73: =Sheet1!L7 -> 16 | P73: 5 | Q73: =$C$14 -> 24 | R73: =LOOKUP(Q73,Names!$A$2:$A$161,Names!$B$2:$B$161) -> هيثم محمد شبانة | S73: =$E$14 -> 92 | T73: =Sheet1!L7 -> 16 | W73: 5 | X73: =$C$15 -> 27 | Y73: =LOOKUP(X73,Names!$A$2:$A$161,Names!$B$2:$B$161) -> سمير الحوفي | Z73: =$E$15 -> 92 | AA73: =Sheet1!L7 -> 16
A74: 6 | B74: 6 | C74: =$J$12 -> 31 | D74: =LOOKUP(C74,Names!$A$2:$A$161,Names!$B$2:$B$161) -> ماجد محمد فكري | E74: =$L$12 -> 57 | F74: =Sheet1!L8 -> 15 | I74: 6 | J74: =$J$13 -> 28 | K74: =LOOKUP(J74,Names!$A$2:$A$161,Names!$B$2:$B$161) -> عمرو محسن فرج | L74: =$L$13 -> 110 | M74: =Sheet1!L8 -> 15 | P74: 6 | Q74: =$J$14 -> 41 | R74: =LOOKUP(Q74,Names!$A$2:$A$161,Names!$B$2:$B$161) -> خالد مصطفى عزت | S74: =$L$14 -> 93 | T74: =Sheet1!L8 -> 15 | W74: 6 | X74: =$J$15 -> 18 | Y74: =LOOKUP(X74,Names!$A$2:$A$161,Names!$B$2:$B$161) -> أحمد ممدوح عبد الدايم | Z74: =$L$15 -> 78 | AA74: =Sheet1!L8 -> 15
A75: 7 | B75: 7 | C75: =$Q$12 -> 45 | D75: =LOOKUP(C75,Names!$A$2:$A$161,Names!$B$2:$B$161) -> رضا هنري | E75: =$S$12 -> 168 | F75: =Sheet1!L9 -> 14 | I75: 7 | J75: =$Q$13 -> 22 | K75: =LOOKUP(J75,Names!$A$2:$A$161,Names!$B$2:$B$161) -> طه إبراهيم طه | L75: =$S$13 -> 56 | M75: =Sheet1!L9 -> 14 | P75: 7 | Q75: =$Q$14 -> 35 | R75: =LOOKUP(Q75,Names!$A$2:$A$161,Names!$B$2:$B$161) -> عمرو عماد الدين أبوالعلا | S75: =$S$14 -> 98 | T75: =Sheet1!L9 -> 14 | W75: 7 | X75: =$Q$15 -> 32 | Y75: =LOOKUP(X75,Names!$A$2:$A$161,Names!$B$2:$B$161) -> حمزة أحمد محمد | Z75: =$S$15 -> 40 | AA75: =Sheet1!L9 -> 14
A76: 8 | B76: 8 | C76: =$X$12 -> 26 | D76: =LOOKUP(C76,Names!$A$2:$A$161,Names!$B$2:$B$161) -> أحمد الطنطاوي | E76: =$Z$12 -> 98 | F76: =Sheet1!L10 -> 13 | I76: 8 | J76: =$X$13 -> 49 | K76: =LOOKUP(J76,Names!$A$2:$A$161,Names!$B$2:$B$161) -> هيثم العشماوي | L76: =$Z$13 -> 106 | M76: =Sheet1!L10 -> 13 | P76: 8 | Q76: =$X$14 -> 36 | R76: =LOOKUP(Q76,Names!$A$2:$A$161,Names!$B$2:$B$161) -> أحمد عبد الفتاح عرفه | S76: =$Z$14 -> 42 | T76: =Sheet1!L10 -> 13 | W76: 8 | X76: =$X$15 -> 39 | Y76: =LOOKUP(X76,Names!$A$2:$A$161,Names!$B$2:$B$161) -> إسلام أحمد السيد عمر | Z76: =$Z$15 -> 124 | AA76: =Sheet1!L10 -> 13
A77: 9 | B77: 9 | C77: =$C$18 -> 43 | D77: =LOOKUP(C77,Names!$A$2:$A$161,Names!$B$2:$B$161) -> أمير محمد خطاب | E77: =$E$18 -> 110 | F77: =Sheet1!L11 -> 12 | I77: 9 | J77: =$C$19 -> 40 | K77: =LOOKUP(J77,Names!$A$2:$A$161,Names!$B$2:$B$161) -> احمد محمود عبد الرزاق | L77: =$E$19 -> 28 | M77: =Sheet1!L11 -> 12 | P77: 9 | Q77: =$C$20 -> 53 | R77: =LOOKUP(Q77,Names!$A$2:$A$161,Names!$B$2:$B$161) -> أحمد محمد شوقي هيبه | S77: =$E$20 -> 104 | T77: =Sheet1!L11 -> 12 | W77: 9 | X77: =$C$21 -> 30 | Y77: =LOOKUP(X77,Names!$A$2:$A$161,Names!$B$2:$B$161) -> شريف جلال سماحة | Z77: =$E$21 -> 137 | AA77: =Sheet1!L11 -> 12
A78: 10 | B78: 10 | C78: =$J$18 -> 57 | D78: =LOOKUP(C78,Names!$A$2:$A$161,Names!$B$2:$B$161) -> مصطفى كامل الشحري | E78: =$L$18 -> 63 | F78: =Sheet1!L12 -> 11 | I78: 10 | J78: =$J$19 -> 34 | K78: =LOOKUP(J78,Names!$A$2:$A$161,Names!$B$2:$B$161) -> عماد الدين جمعة هلال | L78: =$L$19 -> 66 | M78: =Sheet1!L12 -> 11 | P78: 10 | Q78: =$J$20 -> 47 | R78: =LOOKUP(Q78,Names!$A$2:$A$161,Names!$B$2:$B$161) -> هاني فكري المراكبي | S78: =$L$20 -> 173 | T78: =Sheet1!L12 -> 11 | W78: 10 | X78: =$J$21 -> 44 | Y78: =LOOKUP(X78,Names!$A$2:$A$161,Names!$B$2:$B$161) -> جمال السيد توفيق محمد | Z78: =$L$21 -> 69 | AA78: =Sheet1!L12 -> 11
A79: 11 | B79: 11 | C79: =$Q$18 -> 38 | D79: =LOOKUP(C79,Names!$A$2:$A$161,Names!$B$2:$B$161) -> أسامة لطفي نجيب | E79: =$S$18 -> 157 | F79: =Sheet1!L13 -> 10 | I79: 11 | J79: =$Q$19 -> 61 | K79: =LOOKUP(J79,Names!$A$2:$A$161,Names!$B$2:$B$161) -> كريم إيهاب عامر | L79: =$S$19 -> 59 | M79: =Sheet1!L13 -> 10 | P79: 11 | Q79: =$Q$20 -> 48 | R79: =LOOKUP(Q79,Names!$A$2:$A$161,Names!$B$2:$B$161) -> محمد ناجي زاهر بلبع | S79: =$S$20 -> 146 | T79: =Sheet1!L13 -> 10 | W79: 11 | X79: =$Q$21 -> 51 | Y79: =LOOKUP(X79,Names!$A$2:$A$161,Names!$B$2:$B$161) -> أحمد أحمد مرسي عبد الله | Z79: =$S$21 -> 112 | AA79: =Sheet1!L13 -> 10
A80: 12 | B80: 12 | C80: =$X$18 -> 55 | D80: =LOOKUP(C80,Names!$A$2:$A$161,Names!$B$2:$B$161) -> ناجي بلبع | E80: =$Z$18 -> 4 | F80: =Sheet1!L14 -> 9 | I80: 12 | J80: =$X$19 -> 52 | K80: =LOOKUP(J80,Names!$A$2:$A$161,Names!$B$2:$B$161) -> يامن محمد حسن | L80: =$Z$19 -> 99 | M80: =Sheet1!L14 -> 9 | P80: 12 | Q80: =$X$20 -> 65 | R80: =LOOKUP(Q80,Names!$A$2:$A$161,Names!$B$2:$B$161) -> أحمد طارق | S80: =$Z$20 -> 101 | T80: =Sheet1!L14 -> 9 | W80: 12 | X80: =$X$21 -> 42 | Y80: =LOOKUP(X80,Names!$A$2:$A$161,Names!$B$2:$B$161) -> محمد عبد الهادي أبو القاسم | Z80: =$Z$21 -> 153 | AA80: =Sheet1!L14 -> 9
A81: 13 | B81: 13 | C81: =$C$24 -> 69 | D81: =LOOKUP(C81,Names!$A$2:$A$161,Names!$B$2:$B$161) -> أحمد علي السيد شرع | E81: =$E$24 -> 152 | F81: =Sheet1!L15 -> 8 | I81: 13 | J81: =$C$25 -> 46 | K81: =LOOKUP(J81,Names!$A$2:$A$161,Names!$B$2:$B$161) -> علاء شوقي جبريل | L81: =$E$25 -> 48 | M81: =Sheet1!L15 -> 8 | P81: 13 | Q81: =$C$26 -> 59 | R81: =LOOKUP(Q81,Names!$A$2:$A$161,Names!$B$2:$B$161) -> هشام أبوغربية | S81: =$E$26 -> 104 | T81: =Sheet1!L15 -> 8 | W81: 13 | X81: =$C$27 -> 56 | Y81: =LOOKUP(X81,Names!$A$2:$A$161,Names!$B$2:$B$161) -> جاسر محمد | Z81: =$E$27 -> 122 | AA81: =Sheet1!L15 -> 8
A82: 14 | B82: 14 | C82: =$J$24 -> 50 | D82: =LOOKUP(C82,Names!$A$2:$A$161,Names!$B$2:$B$161) -> فادي ناجح | E82: =$L$24 -> 82 | F82: =Sheet1!L16 -> 7 | I82: 14 | J82: =$J$25 -> 73 | K82: =LOOKUP(J82,Names!$A$2:$A$161,Names!$B$2:$B$161) -> مينا ناجح صبحي | L82: =$L$25 -> 125 | M82: =Sheet1!L16 -> 7 | P82: 14 | Q82: =$J$26 -> 60 | R82: =LOOKUP(Q82,Names!$A$2:$A$161,Names!$B$2:$B$161) -> عصام الدين حامد منصور | S82: =$L$26 -> 49 | T82: =Sheet1!L16 -> 7 | W82: 14 | X82: =$J$27 -> 63 | Y82: =LOOKUP(X82,Names!$A$2:$A$161,Names!$B$2:$B$161) -> محمد أحمد محمد عبد الله | Z82: =$L$27 -> 77 | AA82: =Sheet1!L16 -> 7
A83: 15 | B83: 15 | C83: =$Q$24 -> 67 | D83: =LOOKUP(C83,Names!$A$2:$A$161,Names!$B$2:$B$161) -> محمد محمود فضل | E83: =$S$24 -> 148 | F83: =Sheet1!L17 -> 6 | I83: 15 | J83: =$Q$25 -> 64 | K83: =LOOKUP(J83,Names!$A$2:$A$161,Names!$B$2:$B$161) -> وليد شعبان إسماعيل علي | L83: =$S$25 -> 14 | M83: =Sheet1!L17 -> 6 | P83: 15 | Q83: =$Q$26 -> 77 | R83: =LOOKUP(Q83,Names!$A$2:$A$161,Names!$B$2:$B$161) -> محمد محمود شعبان | S83: =$S$26 -> 119 | T83: =Sheet1!L17 -> 6 | W83: 15 | X83: =$Q$27 -> 54 | Y83: =LOOKUP(X83,Names!$A$2:$A$161,Names!$B$2:$B$161) -> تامر رشاد | Z83: =$S$27 -> 30 | AA83: =Sheet1!L17 -> 6
A84: 16 | B84: 16 | C84: =$X$24 -> 5 | D84: =LOOKUP(C84,Names!$A$2:$A$161,Names!$B$2:$B$161) -> محمد عصام الدين القاضي | E84: =$Z$24 -> 70 | F84: =Sheet1!L18 -> 5 | I84: 16 | J84: =$X$25 -> 58 | K84: =LOOKUP(J84,Names!$A$2:$A$161,Names!$B$2:$B$161) -> أحمد إبراهيم غانم | L84: =$Z$25 -> 106 | M84: =Sheet1!L18 -> 5 | P84: 16 | Q84: =$X$26 -> 71 | R84: =LOOKUP(Q84,Names!$A$2:$A$161,Names!$B$2:$B$161) -> معتز محمد | S84: =$Z$26 -> 95 | T84: =Sheet1!L18 -> 5 | W84: 16 | X84: =$X$27 -> 68 | Y84: =LOOKUP(X84,Names!$A$2:$A$161,Names!$B$2:$B$161) -> مصطفى إسماعيل | Z84: =$Z$27 -> 159 | AA84: =Sheet1!L18 -> 5
A85: 17 | B85: 17 | C85: =$C$30 -> 62 | D85: =LOOKUP(C85,Names!$A$2:$A$161,Names!$B$2:$B$161) -> محمد محمود مسعود | E85: =$E$30 -> 134 | F85: =Sheet1!L19 -> 4 | I85: 17 | J85: =$C$31 -> 9 | K85: =LOOKUP(J85,Names!$A$2:$A$161,Names!$B$2:$B$161) -> رأفت الصياد | L85: =$E$31 -> 9 | M85: =Sheet1!L19 -> 4 | P85: 17 | Q85: =$C$32 -> 72 | R85: =LOOKUP(Q85,Names!$A$2:$A$161,Names!$B$2:$B$161) -> أحمد سمير خلف | S85: =$E$32 -> 64 | T85: =Sheet1!L19 -> 4 | W85: 17 | X85: =$C$33 -> 75 | Y85: =LOOKUP(X85,Names!$A$2:$A$161,Names!$B$2:$B$161) -> محمود سليمان | Z85: =$E$33 -> 100 | AA85: =Sheet1!L19 -> 4
A86: 18 | B86: 18 | C86: =$J$30 -> 79 | D86: =LOOKUP(C86,Names!$A$2:$A$161,Names!$B$2:$B$161) -> محمد علي حسن طه الأمام | E86: =$L$30 -> 46 | F86: =Sheet1!L20 -> 3 | I86: 18 | J86: =$J$31 -> 76 | K86: =LOOKUP(J86,Names!$A$2:$A$161,Names!$B$2:$B$161) -> محمد إبراهيم قطب | L86: =$L$31 -> 90 | M86: =Sheet1!L20 -> 3 | P86: 18 | Q86: =$J$32 -> 13 | R86: =LOOKUP(Q86,Names!$A$2:$A$161,Names!$B$2:$B$161) -> أحمد جميل السيد | S86: =$L$32 -> 96 | T86: =Sheet1!L20 -> 3 | W86: 18 | X86: =$J$33 -> 66 | Y86: =LOOKUP(X86,Names!$A$2:$A$161,Names!$B$2:$B$161) -> أحمد فؤاد حسنين | Z86: =$L$33 -> 98 | AA86: =Sheet1!L20 -> 3
A87: 19 | B87: 19 | C87: =$Q$30 -> 17 | D87: =LOOKUP(C87,Names!$A$2:$A$161,Names!$B$2:$B$161) -> أحمد علي خليل حسن | E87: =$S$30 -> 202 | F87: =Sheet1!L21 -> 2 | I87: 19 | J87: =$Q$31 -> 70 | K87: =LOOKUP(J87,Names!$A$2:$A$161,Names!$B$2:$B$161) -> أحمد صلاح الدين دياب | L87: =$S$31 -> 95 | M87: =Sheet1!L21 -> 2 | P87: 19 | Q87: =$Q$32 -> 3 | R87: =LOOKUP(Q87,Names!$A$2:$A$161,Names!$B$2:$B$161) -> إيهاب يوسف عمارة | S87: =$S$32 -> 165 | T87: =Sheet1!L21 -> 2 | W87: 19 | X87: =$Q$33 -> 80 | Y87: =LOOKUP(X87,Names!$A$2:$A$161,Names!$B$2:$B$161) -> أمن حسام | Z87: =$S$33 -> -83 | AA87: =Sheet1!L21 -> 2
A88: 20 | B88: 20 | C88: =$X$30 -> 74 | D88: =LOOKUP(C88,Names!$A$2:$A$161,Names!$B$2:$B$161) -> فريدة شكري | E88: =$Z$30 -> 82 | F88: =Sheet1!L22 -> 1 | I88: 20 | J88: =$X$31 -> 21 | K88: =LOOKUP(J88,Names!$A$2:$A$161,Names!$B$2:$B$161) -> أحمد محمد حمدي صالح | L88: =$Z$31 -> 77 | M88: =Sheet1!L22 -> 1 | P88: 20 | Q88: =$X$32 -> 4 | R88: =LOOKUP(Q88,Names!$A$2:$A$161,Names!$B$2:$B$161) -> محمد سعيد الفطاطري | S88: =$Z$32 -> 56 | T88: =Sheet1!L22 -> 1 | W88: 20 | X88: =$X$33 -> 7 | Y88: =LOOKUP(X88,Names!$A$2:$A$161,Names!$B$2:$B$161) -> باسم أسحق صموائيل | Z88: =$Z$33 -> 121 | AA88: =Sheet1!L22 -> 1
A89: 21 | B89: 21 | C89: =$C$37 -> 0 | D89: =LOOKUP(C89,Names!$A$2:$A$161,Names!$B$2:$B$161) ->  | E89: =$E$37 -> 0 | F89: =Sheet1!L23 -> 0 | I89: 21 | J89: =$C$38 -> 0 | K89: =LOOKUP(J89,Names!$A$2:$A$161,Names!$B$2:$B$161) ->  | L89: =$E$38 -> 0 | M89: =Sheet1!L23 -> 0 | P89: 21 | Q89: =$C$39 -> 0 | R89: =LOOKUP(Q89,Names!$A$2:$A$161,Names!$B$2:$B$161) ->  | S89: =$E$39 -> 0 | T89: =Sheet1!L23 -> 0 | W89: 21 | X89: =$C$40 -> 0 | Y89: =LOOKUP(X89,Names!$A$2:$A$161,Names!$B$2:$B$161) ->  | Z89: =$E$40 -> 0 | AA89: =Sheet1!L22 -> 1
A90: 22 | B90: 22 | C90: =$J$37 -> 0 | D90: =LOOKUP(C90,Names!$A$2:$A$161,Names!$B$2:$B$161) ->  | E90: =$L$37 -> 0 | F90: =Sheet1!L24 -> -1 | I90: 22 | J90: =$J$38 -> 0 | K90: =LOOKUP(J90,Names!$A$2:$A$161,Names!$B$2:$B$161) ->  | L90: =$L$38 -> 0 | M90: =Sheet1!L24 -> -1 | P90: 22 | Q90: =$J$39 -> 0 | R90: =LOOKUP(Q90,Names!$A$2:$A$161,Names!$B$2:$B$161) ->  | S90: =$L$39 -> 0 | T90: =Sheet1!L24 -> -1 | W90: 22 | X90: =$J$40 -> 0 | Y90: =LOOKUP(X90,Names!$A$2:$A$161,Names!$B$2:$B$161) ->  | Z90: =$L$40 -> 0 | AA90: =Sheet1!L23 -> 0
A91: 23 | B91: 23 | C91: =$Q$37 -> 0 | D91: =LOOKUP(C91,Names!$A$2:$A$161,Names!$B$2:$B$161) ->  | E91: =$S$37 -> 0 | F91: =Sheet1!L25 -> -2 | I91: 23 | J91: =$Q$38 -> 0 | K91: =LOOKUP(J91,Names!$A$2:$A$161,Names!$B$2:$B$161) ->  | L91: =$S$38 -> 0 | M91: =Sheet1!L25 -> -2 | P91: 23 | Q91: =$Q$39 -> 0 | R91: =LOOKUP(Q91,Names!$A$2:$A$161,Names!$B$2:$B$161) ->  | S91: =$S$39 -> 0 | T91: =Sheet1!L25 -> -2 | W91: 23 | X91: =$Q$40 -> 0 | Y91: =LOOKUP(X91,Names!$A$2:$A$161,Names!$B$2:$B$161) ->  | Z91: =$S$40 -> 0 | AA91: =Sheet1!L24 -> -1
A92: 24 | B92: 24 | C92: =$X$37 -> 0 | D92: =LOOKUP(C92,Names!$A$2:$A$161,Names!$B$2:$B$161) ->  | E92: =$Z$37 -> 0 | F92: =Sheet1!L26 -> -3 | I92: 24 | J92: =$X$38 -> 0 | K92: =LOOKUP(J92,Names!$A$2:$A$161,Names!$B$2:$B$161) ->  | L92: =$Z$38 -> 0 | M92: =Sheet1!L26 -> -3 | P92: 24 | Q92: =$X$39 -> 0 | R92: =LOOKUP(Q92,Names!$A$2:$A$161,Names!$B$2:$B$161) ->  | S92: =$Z$39 -> 0 | T92: =Sheet1!L26 -> -3 | W92: 24 | X92: =$X$40 -> 0 | Y92: =LOOKUP(X92,Names!$A$2:$A$161,Names!$B$2:$B$161) ->  | Z92: =$Z$40 -> 0 | AA92: =Sheet1!L25 -> -2
